Workbook

Sheet Custos Diversos
G1: Piracicabana | H1: Bacia 1
B2: Abertura dos Custos Administrativos Mensais
B4: Custos Diversos
B5: Serviços Públicos | E5: =SUM(E6:E8) -> 13200
B6: Água | E6: 1200
B7: Luz | E7: 6000
B8: Telefonia Geral | E8: 6000
B10: Serviços de Terceiros | E10: =SUM(E11:E16) -> 9000
B11: Administração de rede / data center | E11: 1200
B12: Rede de Comunicação | E12: 1000
B13: Honorários de advogados | E13: 3000
B14: Auditoria externa | E14: 800
B15: Comunicação social | E15: 1500
B16: Treinamento | E16: 1500
F17: Frota | G17: R$
B18: Impostos e taxas (IPTU / empresariais) | E18: 1500 | F18: na | G18: Por
F19: Licitação | G19: Veículo
B20: Total Geral Custos Diversos | E20: =E5+E10+E18 -> 23700 | F20: =Q.Frota!R5 -> 387 | G20: =E20/F20 -> 61.24031008
B23: Histórico | E23: R$ Total | F23: Custo/Veíc.
B24: Manutenção e Operação de garagens (mês) | E24: 11000 | F24: =E24/Q.Frota!R5 -> 28.42377261 | G24: ver pela proposta eletrônica, onde incluir
B27: Histórico | E27: R$ Total | F27: R$ Mês Total
B28: Licenciamento Por Veículo/Ano | E28: 48.46 | F28: =E28*Q.Frota!R5/12 -> 1562.835 | G28: ver pela proposta eletrônica, onde incluir
B31: Histórico | E31: R$ Total | F31: Custo/Veíc.
B32: Pro-labore da Diretoria - Valor Mensal | E32: 18000 | F32: =E32/Q.Frota!R5 -> 46.51162791
B35: Histórico | E35: R$ Total | F35: Custo/Veíc.
B36: Custos não considerados nos itens acima | E36: 110839.29 | F36: =E36/Q.Frota!R5 -> 286.4064341 | G36: ver pela proposta eletrônica a composição desse custo para revisar.

Sheet Deprec.Aum.Frota
A1: PIRACICABANA
A3: Estudo de Viabilidade Econômica Financeira | D3: Lote (Bacia): 1
A6: Notas Explicativas
A8: O valor da venda considerado corresponde ao valor do veículo novo sem pneus deduzido do valor da depreciação
A12: Edificações de garagem: | C12: Vida útil | D12: 20 | E12: anos
C13: Valor residual | D13: sem
A15: Instalações de garagem | C15: Vida útil | D15: 10.52631579 | E15: depreciação
A16: Equipamentos de Garagem | C16: Vida útil | D16: 16.799 | E16: depreciação
C17: Valor residual | D17: sem
A20: Sim e Sistema de Vigilância | C20: Vida útil | D20: 5.272892 | E20: Depreciação | F20: Renovação: | G20: 0.179298495
C21: Valor residual | D21: sem
A23: Centro de Controle Operacional da empresa | C23: Vida útil | D23: 10 | E23: anos
C24: Valor residual | D24: sem
B28: DEPRECIAÇÃO DA FROTA ACRESCENTADA
A29: Tipo de Ônibus | B29: Licitada | C29: Acrescida | D29: Frota Total | E29: R$ Deprec.
E30: Mês/Carro
A31: Ônibus Básico | B31: =Q.Frota!F22 -> 324 | C31: 0 | D31: =B31+C31 -> 324 | E31: ='Plan 3 Custo Capital'!E33/12/B31 -> 5075.769547
A32: Depreciação Anual | C32: Início Ano 2 | D32: =E31*12*C31 -> 0
C33: Ano 3 | D33: =D32 -> 0
C34: Ano 4 | D34: =D33 -> 0
C35: Ano 5 | D35: =D34 -> 0
C36: Ano 9 | D36: =D35 -> 0
C37: Ano 10 | D37: =D36 -> 0

Sheet Benefícios
B2: Valores dos Benefícios
B4: Item | C4: Valor Base (R$) | D4: Parcela | E4: Valor Final (R$)
D5: Empregador
B6: Cesta básica | C6: 131.6 | D6: 1 | E6: =C6*D6 -> 131.6
B7: Vale refeição | C7: 325.98 | D7: 0.9 | E7: =C7*D7 -> 293.382
B8: Plano de Saúde | C8: 150 | D8: 1 | E8: =C8*D8 -> 150
B9: Plano Odontológico | C9: 15 | D9: 1 | E9: =C9*D9 -> 15
B10: Seguro de vida em grupo | C10: 3.2 | D10: 0.5 | E10: =C10*D10 -> 1.6
B11: Sub-Total | E11: =SUM(E6:E10) -> 591.582
B12: Benefícios Adicionais | E12: 21.898
B13: Sub-Total | E13: =E11+E12 -> 613.48
B19: Motoristas | C19: Fatores de utilização (equivalentes) | F19: ='Plan2 R$ Pessoal'!D8 -> 2.45
C20: Fatores de utilização (empregados) | F20: 2.00739 | G20: 2.00652176 | H20: utilizou no cálculo benefícios
C21: Frota operacional | F21: =Q.Frota!T22 -> 398
C22: Quantidade de empregados | F22: =G20*F21 -> 798.5956605
B24: Cobradores | C24: Fatores de utilização (equivalentes) | F24: 2.12955
C25: Fatores de utilização (empregados) | F25: 2.04385 | G25: 2.044334975 | H25: utilizou no cálculo benefícios
C26: Frota operacional | F26: =Q.Frota!T22-Q.Frota!E22 -> 338
C27: Quantidade de empregados | F27: =G25*F26 -> 690.9852216
B29: O cálculo do custo de salários e encargos sociais dos motoristas e cobradores consideram o fator de utilização equivalente.
B30: O cálculo do custo de benefícios considera a quantidade empregados

Sheet Plan4 R$ Pessoal
B2: Planilha 2 - Demonstração do Custo com Pessoal de Administração até 31/12/2014 | M2: Piracicabana
B3: Composição do Custo mensal com Pessoal | L3: Bacia/Lote: | M3: 1
B5: Funções | C5: Cargo | D5: Fator de | E5: Qtde. de | F5: Salário Base | G5: Salário Total | H5: Horas extras | I5: % Encargos | J5: Encargos | K5: Salário + Enc. | L5: Benefícios | M5: Total
D6: Utilização | E6: Funcionários | F6: (R$/mês) | G6: R$ | H6: e adicional | I6: aplicáveis | J6: R$ | K6: R$/mês | L6: R$/mês | M6: R$/mês
H7: noturno
B8: Administração | C8: Gerente Adm. Financeiro | D8: =E8/Q.Frota!$T$5 -> 0.002512562814 | E8: 1 | F8: 7200 | G8: =E8*F8 -> 7200 | H8: 0 | I8: =Enc.Soc.!C40 -> 0.5156744065 | J8: =(G8+H8)*I8 -> 3712.855727 | K8: =G8+J8 -> 10912.85573 | L8: =E8*Benefícios!$E$13 -> 613.48 | M8: =K8+L8-0.01 -> 11526.32573
C9: Gerente de Operação | D9: =E9/Q.Frota!$T$5 -> 0.002512562814 | E9: 1 | F9: 6800 | G9: 6800 | H9: 0 | I9: =I8 -> 0.5156744065 | J9: 3506.585964 | K9: 10306.58596 | L9: =E9*Benefícios!$E$13 -> 613.48 | M9: =K9+L9-0.01 -> 10920.05596
C10: Controle de Manutenção | D10: =E10/Q.Frota!$T$5 -> 0.002512562814 | E10: 1 | F10: 4500 | G10: 4500 | H10: 0 | I10: =I9 -> 0.5156744065 | J10: 2320.534829 | K10: 6820.534829 | L10: =E10*Benefícios!$E$13 -> 613.48 | M10: =K10+L10 -> 7434.014829
C11: Auxiliar de Contabilidade | D11: =E11/Q.Frota!$T$5 -> 0.002512562814 | E11: 1 | F11: 1200 | G11: 1200 | H11: 0 | I11: =I10 -> 0.5156744065 | J11: 618.8092878 | K11: 1818.809288 | L11: =E11*Benefícios!$E$13 -> 613.48 | M11: =K11+L11 -> 2432.289288
C12: Assistente Adm./Financeiro | D12: =E12/Q.Frota!$T$5 -> 0.007537688442 | E12: 3 | F12: 1000 | G12: 3000 | H12: 0 | I12: =I11+0.000044% -> 0.5156748465 | J12: 1547.024539 | K12: 4547.024539 | L12: =E12*Benefícios!$E$13 -> 1840.44 | M12: =K12+L12 -> 6387.464539
C13: Contador | D13: =E13/Q.Frota!$T$5 -> 0.002512562814 | E13: 1 | F13: 3000 | G13: 3000 | H13: 0 | I13: =I12 -> 0.5156748465 | J13: 1547.024539 | K13: 4547.024539 | L13: =E13*Benefícios!$E$13 -> 613.48 | M13: =K13+L13 -> 5160.504539
C14: Auxiliar Adm./Financeiro | D14: =E14/Q.Frota!$T$5 -> 0.007537688442 | E14: 3 | F14: 1000 | G14: 3000 | H14: 0 | I14: 0.5156748465 | J14: 1547.024539 | K14: 4547.024539 | L14: =E14*Benefícios!$E$13 -> 1840.44 | M14: =K14+L14 -> 6387.464539
C15: Secretária Executiva | D15: =E15/Q.Frota!$T$5 -> 0.002512562814 | E15: 1 | F15: 2000 | G15: 2000 | H15: 0 | I15: 0.5156748465 | J15: 1031.349693 | K15: 3031.349693 | L15: =E15*Benefícios!$E$13 -> 613.48 | M15: 3644.829693
C16: Telefonista | D16: =E16/Q.Frota!$T$5 -> 0.005025125628 | E16: 2 | F16: 1100 | G16: 2200 | H16: 0 | I16: 0.5156748465 | J16: 1134.484662 | K16: 3334.484662 | L16: =E16*Benefícios!$E$13 -> 1226.96 | M16: 4561.444662
C17: Aux de serviços gerais | D17: =E17/Q.Frota!$T$5 -> 0.005025125628 | E17: 2 | F17: 1100 | G17: 2200 | H17: 0 | I17: 0.5156748465 | J17: 1134.484662 | K17: 3334.484662 | L17: =E17*Benefícios!$E$13 -> 1226.96 | M17: 4561.444662
C18: Encarregado do Depto.Pessoal | D18: =E18/Q.Frota!$T$5 -> 0.002512562814 | E18: 1 | F18: 3200 | G18: 3200 | H18: 0 | I18: 0.5156748465 | J18: 1650.159509 | K18: 4850.159509 | L18: =E18*Benefícios!$E$13 -> 613.48 | M18: 5463.639509
C19: Auxiliar Administrativo | D19: =E19/Q.Frota!$T$5 -> 0.005025125628 | E19: 2 | F19: 1000 | G19: 2000 | H19: 0 | I19: 0.5156748465 | J19: 1031.349693 | K19: 3031.349693 | L19: =E19*Benefícios!$E$13 -> 1226.96 | M19: 4258.309693
C20: Psicólogo | D20: =E20/Q.Frota!$T$5 -> 0.002512562814 | E20: 1 | F20: 3000 | G20: 3000 | H20: 0 | I20: 0.5156748465 | J20: 1547.024539 | K20: 4547.024539 | L20: =E20*Benefícios!$E$13 -> 613.48 | M20: 5160.504539
C21: Auxiliar Administrativo | D21: =E21/Q.Frota!$T$5 -> 0.002512562814 | E21: 1 | F21: 1000 | G21: 1000 | H21: 0 | I21: 0.5156748465 | J21: 515.6748465 | K21: 1515.674846 | L21: =E21*Benefícios!$E$13 -> 613.48 | M21: 2129.154846
C22: Assistente Recrut./Seleção | D22: =E22/Q.Frota!$T$5 -> 0.002512562814 | E22: 1 | F22: 1600 | G22: 1600 | H22: 0 | I22: 0.5156748465 | J22: 825.0797544 | K22: 2425.079754 | L22: =E22*Benefícios!$E$13 -> 613.48 | M22: 3038.559754
C23: Assistente Treinam./Capacitação | D23: =E23/Q.Frota!$T$5 -> 0.002512562814 | E23: 1 | F23: 1600 | G23: 1600 | H23: 0 | I23: 0.5156748465 | J23: 825.0797544 | K23: 2425.079754 | L23: =E23*Benefícios!$E$13 -> 613.48 | M23: 3038.559754
C24: Assessor Jurídico | D24: =E24/Q.Frota!$T$5 -> 0.002512562814 | E24: 1 | F24: 3000 | G24: =E24*F24 -> 3000 | H24: 0 | I24: 0.5156748465 | J24: 1547.024539 | K24: =G24+J24 -> 4547.024539 | L24: =E24*Benefícios!$E$13 -> 613.48 | M24: =K24+L24 -> 5160.504539
C25: Auxiliar de Compras | D25: =E25/Q.Frota!$T$5 -> 0.002512562814 | E25: 1 | F25: 1100 | G25: 1100 | H25: 0 | I25: 0.5156748465 | J25: 567.2423311 | K25: 1667.242331 | L25: =E25*Benefícios!$E$13 -> 613.48 | M25: 2280.722331
C26: Médico do Trabalho | D26: =E26/Q.Frota!$T$5 -> 0.002512562814 | E26: 1 | F26: 2700 | G26: 2700 | H26: 0 | I26: 0.5156748465 | J26: 1392.322085 | K26: 4092.322085 | L26: =E26*Benefícios!$E$13 -> 613.48 | M26: 4705.802085
C27: Eng. Seg. Trabalho | D27: =E27/Q.Frota!$T$5 -> 0.002512562814 | E27: 1 | F27: 2700 | G27: 2700 | H27: 0 | I27: 0.5156748465 | J27: 1392.322085 | K27: 4092.322085 | L27: =E27*Benefícios!$E$13 -> 613.48 | M27: 4705.802085
C28: Téc. Segurança do Trabalho | D28: =E28/Q.Frota!$T$5 -> 0.002512562814 | E28: 1 | F28: 2100 | G28: 2100 | H28: 0 | I28: 0.5156748465 | J28: 1082.917178 | K28: 3182.917178 | L28: =E28*Benefícios!$E$13 -> 613.48 | M28: =K28+L28-0.01 -> 3796.387178
C29: Auxiliar de CPD | D29: =E29/Q.Frota!$T$5 -> 0.002512562814 | E29: 1 | F29: 1700 | G29: 1700 | H29: 0 | I29: 0.5156748465 | J29: 876.647239 | K29: 2576.647239 | L29: =E29*Benefícios!$E$13 -> 613.48 | M29: 3190.127239
C30: Técnico em Informática | D30: =E30/Q.Frota!$T$5 -> 0.002512562814 | E30: 1 | F30: 1000 | G30: 1000 | H30: 0 | I30: 0.5156748465 | J30: 515.6748465 | K30: 1515.674846 | L30: =E30*Benefícios!$E$13 -> 613.48 | M30: 2129.154846
C31: Auxiliar de Monitoramento | D31: =E31/Q.Frota!$T$5 -> 0.01005025126 | E31: 4 | F31: 1000 | G31: 4000 | H31: 0 | I31: 0.5156748465 | J31: 2062.699386 | K31: 6062.699386 | L31: =E31*Benefícios!$E$13 -> 2453.92 | M31: =K31+L31-0.01 -> 8516.609386
C32: Porteiro | D32: =E32/Q.Frota!$T$5 -> 0.007537688442 | E32: 3 | F32: 1000 | G32: 3000 | H32: 0 | I32: 0.5156748465 | J32: 1547.024539 | K32: 4547.024539 | L32: =E32*Benefícios!$E$13 -> 1840.44 | M32: 6387.464539
B33: Total | D33: =SUM(D8:D32) -> 0.09296482412 | E33: =SUM(E8:E32) -> 37 | F33: =G33/E33 -> 1859.459459 | G33: =SUM(G8:G32) -> 68800 | H33: =SUM(H8:H32) -> 0 | J33: =SUM(J8:J32)-0.02 -> 35478.40077 | K33: =SUM(K8:K32)-0.02 -> 104278.4008 | L33: =SUM(L8:L32)-0.05 -> 22698.71 | M33: =SUM(M8:M32)-0.03 -> 126977.1108
B35: Demais custos administrativos
D36: Valores | E36: Valores (R$/ano)
B37: Itens | D37: (R$/mês)
B38: Custos administrativos diversos | D38: ='Custos Diversos'!E20 -> 23700 | E38: =D38*12 -> 284400
B39: Custos de manutenção SIM e Sist. de Vigilância | D39: =650520/12 -> 54210 | E39: =D39*12 -> 650520
B40: Custos com seguros diversos | D40: 76538.82 | E40: =D40*12 -> 918465.84
B41: Custos não considerados nos itens acima | D41: ='Custos Diversos'!E36 -> 110839.29 | E41: =D41*12 -> 1330071.48
B42: Pró-labore da diretoria | D42: ='Custos Diversos'!E32 -> 18000 | E42: =D42*12 -> 216000
B46: Planilha 2 - Demonstração do Custo com Pessoal de Administração após 31/12/2014 | M46: Piracicabana
B47: Composição do Custo mensal com Pessoal | L47: Bacia/Lote: | M47: 1
B49: Funções | C49: Cargo | D49: Fator de | E49: Qtde. de | F49: Salário Base | G49: Salário Total | H49: Horas extras | I49: % Encargos | J49: Encargos | K49: Salário + Enc. | L49: Benefícios | M49: Total
D50: Utilização | E50: Funcionários | F50: (R$/mês) | G50: R$ | H50: e adicional | I50: aplicáveis | J50: R$ | K50: R$/mês | L50: R$/mês | M50: R$/mês
H51: noturno
B52: Administração | C52: Gerente Adm. Financeiro | D52: =E52/Q.Frota!$T$5 -> 0.002512562814 | E52: 1 | F52: 7200 | G52: =E52*F52 -> 7200 | H52: 0 | I52: =Enc.Soc.!C85 -> 0.565678869 | J52: =(G52+H52)*I52 -> 4072.887857 | K52: =G52+J52 -> 11272.88786 | L52: =E52*Benefícios!$E$13 -> 613.48 | M52: =K52+L52 -> 11886.36786
C53: Gerente de Operação | D53: =E53/Q.Frota!$T$5 -> 0.002512562814 | E53: 1 | F53: 6800 | G53: 6800 | H53: 0 | I53: =I52 -> 0.565678869 | J53: 3846.616309 | K53: 10646.61631 | L53: =E53*Benefícios!$E$13 -> 613.48 | M53: 11260.09631
C54: Controle de Manutenção | D54: =E54/Q.Frota!$T$5 -> 0.002512562814 | E54: 1 | F54: 4500 | G54: 4500 | H54: 0 | I54: =I53 -> 0.565678869 | J54: 2545.55491 | K54: 7045.55491 | L54: =E54*Benefícios!$E$13 -> 613.48 | M54: 7659.03491
C55: Auxiliar de Contabilidade | D55: =E55/Q.Frota!$T$5 -> 0.002512562814 | E55: 1 | F55: 1200 | G55: 1200 | H55: 0 | I55: =I54 -> 0.565678869 | J55: 678.8146428 | K55: 1878.814643 | L55: =E55*Benefícios!$E$13 -> 613.48 | M55: 2492.294643
C56: Assistente Adm./Financeiro | D56: =E56/Q.Frota!$T$5 -> 0.007537688442 | E56: 3 | F56: 1000 | G56: 3000 | H56: 0 | I56: =I55+0.000044% -> 0.565679309 | J56: 1697.037927 | K56: 4697.037927 | L56: =E56*Benefícios!$E$13 -> 1840.44 | M56: 6537.477927
C57: Contador | D57: =E57/Q.Frota!$T$5 -> 0.002512562814 | E57: 1 | F57: 3000 | G57: 3000 | H57: 0 | I57: =I56 -> 0.565679309 | J57: 1697.037927 | K57: 4697.037927 | L57: =E57*Benefícios!$E$13 -> 613.48 | M57: 5310.517927
C58: Auxiliar Adm./Financeiro | D58: =E58/Q.Frota!$T$5 -> 0.007537688442 | E58: 3 | F58: 1000 | G58: 3000 | H58: 0 | I58: 0.565679309 | J58: 1697.037927 | K58: 4697.037927 | L58: =E58*Benefícios!$E$13 -> 1840.44 | M58: =K58+L58 -> 6537.477927
C59: Secretária Executiva | D59: =E59/Q.Frota!$T$5 -> 0.002512562814 | E59: 1 | F59: 2000 | G59: 2000 | H59: 0 | I59: 0.565679309 | J59: 1131.358618 | K59: 3131.358618 | L59: =E59*Benefícios!$E$13 -> 613.48 | M59: 3744.838618
C60: Telefonista | D60: =E60/Q.Frota!$T$5 -> 0.005025125628 | E60: 2 | F60: 1100 | G60: 2200 | H60: 0 | I60: 0.565679309 | J60: 1244.49448 | K60: 3444.49448 | L60: =E60*Benefícios!$E$13 -> 1226.96 | M60: 4671.45448
C61: Aux de serviços gerais | D61: =E61/Q.Frota!$T$5 -> 0.005025125628 | E61: 2 | F61: 1100 | G61: 2200 | H61: 0 | I61: 0.565679309 | J61: 1244.49448 | K61: 3444.49448 | L61: =E61*Benefícios!$E$13 -> 1226.96 | M61: 4671.45448
C62: Encarregado do Depto.Pessoal | D62: =E62/Q.Frota!$T$5 -> 0.002512562814 | E62: 1 | F62: 3200 | G62: 3200 | H62: 0 | I62: 0.565679309 | J62: 1810.173789 | K62: 5010.173789 | L62: =E62*Benefícios!$E$13 -> 613.48 | M62: 5623.653789
C63: Auxiliar Administrativo | D63: =E63/Q.Frota!$T$5 -> 0.005025125628 | E63: 2 | F63: 1000 | G63: 2000 | H63: 0 | I63: 0.565679309 | J63: 1131.358618 | K63: 3131.358618 | L63: =E63*Benefícios!$E$13 -> 1226.96 | M63: 4358.318618
C64: Psicólogo | D64: =E64/Q.Frota!$T$5 -> 0.002512562814 | E64: 1 | F64: 3000 | G64: 3000 | H64: 0 | I64: 0.565679309 | J64: 1697.037927 | K64: 4697.037927 | L64: =E64*Benefícios!$E$13 -> 613.48 | M64: 5310.517927
C65: Auxiliar Administrativo | D65: =E65/Q.Frota!$T$5 -> 0.002512562814 | E65: 1 | F65: 1000 | G65: 1000 | H65: 0 | I65: 0.565679309 | J65: 565.679309 | K65: 1565.679309 | L65: =E65*Benefícios!$E$13 -> 613.48 | M65: 2179.159309
C66: Assistente Recrut./Seleção | D66: =E66/Q.Frota!$T$5 -> 0.002512562814 | E66: 1 | F66: 1600 | G66: 1600 | H66: 0 | I66: 0.565679309 | J66: 905.0868944 | K66: 2505.086894 | L66: =E66*Benefícios!$E$13 -> 613.48 | M66: 3118.566894
C67: Assistente Treinam./Capacitação | D67: =E67/Q.Frota!$T$5 -> 0.002512562814 | E67: 1 | F67: 1600 | G67: 1600 | H67: 0 | I67: 0.565679309 | J67: 905.0868944 | K67: 2505.086894 | L67: =E67*Benefícios!$E$13 -> 613.48 | M67: 3118.566894
C68: Assessor Jurídico | D68: =E68/Q.Frota!$T$5 -> 0.002512562814 | E68: 1 | F68: 3000 | G68: 3000 | H68: 0 | I68: 0.565679309 | J68: 1697.037927 | K68: 4697.037927 | L68: =E68*Benefícios!$E$13 -> 613.48 | M68: 5310.517927
C69: Auxiliar de Compras | D69: =E69/Q.Frota!$T$5 -> 0.002512562814 | E69: 1 | F69: 1100 | G69: 1100 | H69: 0 | I69: 0.565679309 | J69: 622.2472399 | K69: 1722.24724 | L69: =E69*Benefícios!$E$13 -> 613.48 | M69: 2335.72724
C70: Médico do Trabalho | D70: =E70/Q.Frota!$T$5 -> 0.002512562814 | E70: 1 | F70: 2700 | G70: 2700 | H70: 0 | I70: 0.565679309 | J70: 1527.334134 | K70: 4227.334134 | L70: =E70*Benefícios!$E$13 -> 613.48 | M70: 4840.814134
C71: Eng. Seg. Trabalho | D71: =E71/Q.Frota!$T$5 -> 0.002512562814 | E71: 1 | F71: 2700 | G71: 2700 | H71: 0 | I71: 0.565679309 | J71: 1527.334134 | K71: 4227.334134 | L71: =E71*Benefícios!$E$13 -> 613.48 | M71: 4840.814134
C72: Téc. Segurança do Trabalho | D72: =E72/Q.Frota!$T$5 -> 0.002512562814 | E72: 1 | F72: 2100 | G72: 2100 | H72: 0 | I72: 0.565679309 | J72: 1187.926549 | K72: 3287.926549 | L72: =E72*Benefícios!$E$13 -> 613.48 | M72: 3901.406549
C73: Auxiliar de CPD | D73: =E73/Q.Frota!$T$5 -> 0.002512562814 | E73: 1 | F73: 1700 | G73: 1700 | H73: 0 | I73: 0.565679309 | J73: 961.6548253 | K73: 2661.654825 | L73: =E73*Benefícios!$E$13 -> 613.48 | M73: 3275.134825
C74: Técnico em Informática | D74: =E74/Q.Frota!$T$5 -> 0.002512562814 | E74: 1 | F74: 1000 | G74: 1000 | H74: 0 | I74: 0.565679309 | J74: 565.679309 | K74: 1565.679309 | L74: =E74*Benefícios!$E$13 -> 613.48 | M74: 2179.159309
C75: Auxiliar de Monitoramento | D75: =E75/Q.Frota!$T$5 -> 0.01005025126 | E75: 4 | F75: 1000 | G75: 4000 | H75: 0 | I75: 0.565679309 | J75: 2262.717236 | K75: 6262.717236 | L75: =E75*Benefícios!$E$13 -> 2453.92 | M75: =K75+L75-0.01 -> 8716.627236
C76: Porteiro | D76: =E76/Q.Frota!$T$5 -> 0.007537688442 | E76: 3 | F76: 1000 | G76: 3000 | H76: 0 | I76: 0.565679309 | J76: 1697.037927 | K76: 4697.037927 | L76: =E76*Benefícios!$E$13 -> 1840.44 | M76: =K76+L76 -> 6537.477927
B77: Total | D77: =SUM(D52:D76) -> 0.09296482412 | E77: =SUM(E52:E76) -> 37 | F77: =G77/E77 -> 1859.459459 | G77: =SUM(G52:G76) -> 68800 | H77: =SUM(H52:H76) -> 0 | J77: =SUM(J52:J76)-0.03 -> 38918.69779 | K77: =SUM(K52:K76)-0.03 -> 107718.6978 | L77: =SUM(L52:L76)-0.05 -> 22698.71 | M77: =SUM(M52:M76)-0.06 -> 130417.4178
B79: Demais custos administrativos
D80: Valores | E80: Valores (R$/ano)
B81: Itens | D81: (R$/mês)
B82: Custos administrativos diversos | D82: =D38 -> 23700 | E82: =D82*12 -> 284400
B83: Custos de manutenção SIM e Sist. de Vigilância | D83: =D39 -> 54210 | E83: =D83*12 -> 650520
B84: Custos com seguros diversos | D84: =D40 -> 76538.82 | E84: =D84*12 -> 918465.84
B85: Custos não considerados nos itens acima | D85: =D41 -> 110839.29 | E85: =D85*12 -> 1330071.48
B86: Pró-labore da diretoria | D86: =D42 -> 18000 | E86: =D86*12 -> 216000
B90: Planilha 2 - Demonstração do Custo com Pessoal de Administração após o 5º ano de concessão | M90: Piracicabana
B91: Composição do Custo mensal com Pessoal | L91: Bacia/Lote: | M91: 1
B93: Funções | C93: Cargo | D93: Fator de | E93: Qtde. de | F93: Salário Base | G93: Salário Total | H93: Horas extras | I93: % Encargos | J93: Encargos | K93: Salário + Enc. | L93: Benefícios | M93: Total
D94: Utilização | E94: Funcionários | F94: (R$/mês) | G94: R$ | H94: e adicional | I94: aplicáveis | J94: R$ | K94: R$/mês | L94: R$/mês | M94: R$/mês
H95: noturno
B96: Administração | C96: Gerente Adm. Financeiro | D96: =E96/Q.Frota!$T$5 -> 0.002512562814 | E96: 1 | F96: 7560 | G96: =F96*E96 -> 7560 | H96: 0 | I96: =Enc.Soc.!C85 -> 0.565678869 | J96: =(G96+H96)*I96 -> 4276.53225 | K96: =G96+J96 -> 11836.53225 | L96: =E96*Benefícios!$E$13 -> 613.48 | M96: =K96+L96 -> 12450.01225
C97: Gerente de Operação | D97: =E97/Q.Frota!$T$5 -> 0.002512562814 | E97: 1 | F97: 7140 | G97: 7140 | H97: 0 | I97: =I96 -> 0.565678869 | J97: 4038.947125 | K97: 11178.94712 | L97: =E97*Benefícios!$E$13 -> 613.48 | M97: 11792.42712
C98: Controle de Manutenção | D98: =E98/Q.Frota!$T$5 -> 0.002512562814 | E98: 1 | F98: 4725 | G98: 4725 | H98: 0 | I98: =I97 -> 0.565678869 | J98: 2672.832656 | K98: 7397.832656 | L98: =E98*Benefícios!$E$13 -> 613.48 | M98: 8011.312656
C99: Auxiliar de Contabilidade | D99: =E99/Q.Frota!$T$5 -> 0.002512562814 | E99: 1 | F99: 1260 | G99: 1260 | H99: 0 | I99: =I98 -> 0.565678869 | J99: 712.7553749 | K99: 1972.755375 | L99: =E99*Benefícios!$E$13 -> 613.48 | M99: 2586.235375
C100: Assistente Adm./Financeiro | D100: =E100/Q.Frota!$T$5 -> 0.007537688442 | E100: 3 | F100: 1050 | G100: 3150 | H100: 0 | I100: =I99+0.000044% -> 0.565679309 | J100: 1781.889823 | K100: 4931.889823 | L100: =E100*Benefícios!$E$13 -> 1840.44 | M100: 6772.329823
C101: Contador | D101: =E101/Q.Frota!$T$5 -> 0.002512562814 | E101: 1 | F101: 3150 | G101: 3150 | H101: 0 | I101: =I100 -> 0.565679309 | J101: 1781.889823 | K101: 4931.889823 | L101: =E101*Benefícios!$E$13 -> 613.48 | M101: 5545.369823
C102: Auxiliar Adm./Financeiro | D102: =E102/Q.Frota!$T$5 -> 0.007537688442 | E102: 3 | F102: 1050 | G102: 3150 | H102: 0 | I102: 0.565679309 | J102: 1781.889823 | K102: 4931.889823 | L102: =E102*Benefícios!$E$13 -> 1840.44 | M102: =K102+L102 -> 6772.329823
C103: Secretária Executiva | D103: =E103/Q.Frota!$T$5 -> 0.002512562814 | E103: 1 | F103: 2100 | G103: 2100 | H103: 0 | I103: 0.565679309 | J103: 1187.926549 | K103: 3287.926549 | L103: =E103*Benefícios!$E$13 -> 613.48 | M103: 3901.406549
C104: Telefonista | D104: =E104/Q.Frota!$T$5 -> 0.005025125628 | E104: 2 | F104: 1155 | G104: 2310 | H104: 0 | I104: 0.565679309 | J104: 1306.719204 | K104: 3616.719204 | L104: =E104*Benefícios!$E$13 -> 1226.96 | M104: 4843.679204
C105: Aux de serviços gerais | D105: =E105/Q.Frota!$T$5 -> 0.005025125628 | E105: 2 | F105: 1155 | G105: 2310 | H105: 0 | I105: 0.565679309 | J105: 1306.719204 | K105: 3616.719204 | L105: =E105*Benefícios!$E$13 -> 1226.96 | M105: 4843.679204
C106: Encarregado do Depto.Pessoal | D106: =E106/Q.Frota!$T$5 -> 0.002512562814 | E106: 1 | F106: 3360 | G106: 3360 | H106: 0 | I106: 0.565679309 | J106: 1900.682478 | K106: 5260.682478 | L106: =E106*Benefícios!$E$13 -> 613.48 | M106: 5874.162478
C107: Auxiliar Administrativo | D107: =E107/Q.Frota!$T$5 -> 0.005025125628 | E107: 2 | F107: 1050 | G107: 2100 | H107: 0 | I107: 0.565679309 | J107: 1187.926549 | K107: 3287.926549 | L107: =E107*Benefícios!$E$13 -> 1226.96 | M107: 4514.886549
C108: Psicólogo | D108: =E108/Q.Frota!$T$5 -> 0.002512562814 | E108: 1 | F108: 3150 | G108: 3150 | H108: 0 | I108: 0.565679309 | J108: 1781.889823 | K108: 4931.889823 | L108: =E108*Benefícios!$E$13 -> 613.48 | M108: 5545.369823
C109: Auxiliar Administrativo | D109: =E109/Q.Frota!$T$5 -> 0.002512562814 | E109: 1 | F109: 1050 | G109: 1050 | H109: 0 | I109: 0.565679309 | J109: 593.9632744 | K109: 1643.963274 | L109: =E109*Benefícios!$E$13 -> 613.48 | M109: 2257.443274
C110: Assistente Recrut./Seleção | D110: =E110/Q.Frota!$T$5 -> 0.002512562814 | E110: 1 | F110: 1680 | G110: 1680 | H110: 0 | I110: 0.565679309 | J110: 950.3412391 | K110: 2630.341239 | L110: =E110*Benefícios!$E$13 -> 613.48 | M110: 3243.821239
C111: Assistente Treinam./Capacitação | D111: =E111/Q.Frota!$T$5 -> 0.002512562814 | E111: 1 | F111: 1680 | G111: 1680 | H111: 0 | I111: 0.565679309 | J111: 950.3412391 | K111: 2630.341239 | L111: =E111*Benefícios!$E$13 -> 613.48 | M111: 3243.821239
C112: Assessor Jurídico | D112: =E112/Q.Frota!$T$5 -> 0.002512562814 | E112: 1 | F112: 3150 | G112: 3150 | H112: 0 | I112: 0.565679309 | J112: 1781.889823 | K112: 4931.889823 | L112: =E112*Benefícios!$E$13 -> 613.48 | M112: 5545.369823
C113: Auxiliar de Compras | D113: =E113/Q.Frota!$T$5 -> 0.002512562814 | E113: 1 | F113: 1155 | G113: 1155 | H113: 0 | I113: 0.565679309 | J113: 653.3596019 | K113: 1808.359602 | L113: =E113*Benefícios!$E$13 -> 613.48 | M113: 2421.839602
C114: Médico do Trabalho | D114: =E114/Q.Frota!$T$5 -> 0.002512562814 | E114: 1 | F114: 2835 | G114: 2835 | H114: 0 | I114: 0.565679309 | J114: 1603.700841 | K114: 4438.700841 | L114: =E114*Benefícios!$E$13 -> 613.48 | M114: 5052.180841
C115: Eng. Seg. Trabalho | D115: =E115/Q.Frota!$T$5 -> 0.002512562814 | E115: 1 | F115: 2835 | G115: 2835 | H115: 0 | I115: 0.565679309 | J115: 1603.700841 | K115: 4438.700841 | L115: =E115*Benefícios!$E$13 -> 613.48 | M115: 5052.180841
C116: Téc. Segurança do Trabalho | D116: =E116/Q.Frota!$T$5 -> 0.002512562814 | E116: 1 | F116: 2205 | G116: 2205 | H116: 0 | I116: 0.565679309 | J116: 1247.322876 | K116: 3452.322876 | L116: =E116*Benefícios!$E$13 -> 613.48 | M116: 4065.802876
C117: Auxiliar de CPD | D117: =E117/Q.Frota!$T$5 -> 0.002512562814 | E117: 1 | F117: 1785 | G117: 1785 | H117: 0 | I117: 0.565679309 | J117: 1009.737567 | K117: 2794.737567 | L117: =E117*Benefícios!$E$13 -> 613.48 | M117: 3408.217567
C118: Técnico em Informática | D118: =E118/Q.Frota!$T$5 -> 0.002512562814 | E118: 1 | F118: 1050 | G118: 1050 | H118: 0 | I118: 0.565679309 | J118: 593.9632744 | K118: 1643.963274 | L118: =E118*Benefícios!$E$13 -> 613.48 | M118: 2257.443274
C119: Auxiliar de Monitoramento | D119: =E119/Q.Frota!$T$5 -> 0.01005025126 | E119: 4 | F119: 1050 | G119: 4200 | H119: 0 | I119: 0.565679309 | J119: 2375.853098 | K119: 6575.853098 | L119: =E119*Benefícios!$E$13 -> 2453.92 | M119: =K119+L119-0.01 -> 9029.763098
C120: Porteiro | D120: =E120/Q.Frota!$T$5 -> 0.007537688442 | E120: 3 | F120: 1050 | G120: 3150 | H120: 0 | I120: 0.565679309 | J120: 1781.889823 | K120: 4931.889823 | L120: =E120*Benefícios!$E$13 -> 1840.44 | M120: =K120+L120 -> 6772.329823
B121: Total | D121: =SUM(D96:D120) -> 0.09296482412 | E121: =SUM(E96:E120) -> 37 | F121: =G121/E121 -> 1952.432432 | G121: =SUM(G96:G120) -> 72240 | H121: =SUM(H96:H120) -> 0 | J121: =SUM(J96:J120)-0.03 -> 40864.63418 | K121: =SUM(K96:K120)-0.02 -> 113104.6442 | L121: =SUM(L96:L120)-0.05 -> 22698.71 | M121: =SUM(M96:M120)-0.06 -> 135803.3542
B123: Demais custos administrativos
D124: Valores | E124: Valores (R$/ano)
B125: Itens | D125: (R$/mês)
B126: Custos administrativos diversos | D126: =D82 -> 23700 | E126: =D126*12 -> 284400
B127: Custos de manutenção SIM e Sist. de Vigilância | D127: =D83 -> 54210 | E127: =D127*12 -> 650520
B128: Custos com seguros diversos | D128: =D84 -> 76538.82 | E128: =D128*12 -> 918465.84
B129: Custos não considerados nos itens acima | D129: =D85 -> 110839.29 | E129: =D129*12 -> 1330071.48
B130: Pró-labore da diretoria | D130: =D86 -> 18000 | E130: =D130*12 -> 216000

Sheet Q.Frota
B2: PIRA | F2: Frota Homologada Disponível e Operacional - Ano 1
B3: FONTE | C3: Miniônibus | F3: Básico | I3: Padron | L3: Artic.Conv. | O3: Artic.BRT | R3: Frota total
C4: Disp. | D4: Res. | E4: Oper. | F4: Disp. | G4: Res. | H4: Oper. | I4: Disp. | J4: Res. | K4: Oper. | L4: Disp. | M4: Res. | N4: Oper. | O4: Disp. | P4: Res. | Q4: Oper. | R4: Disp. | S4: Res. | T4: Oper.
B5: Edital | C5: 63 | D5: =C5-E5 -> 3 | E5: 60 | F5: 324 | G5: =F5-H5 -> 15 | H5: 309 | I5: 0 | J5: =I5-K5 -> 0 | K5: 0 | L5: 0 | M5: =L5-N5 -> -29 | N5: 29 | O5: 0 | P5: =O5-Q5 -> 0 | Q5: 0 | R5: =C5+F5+I5+L5+O5 -> 387 | S5: =R5-T5 -> -11 | T5: =E5+H5+K5+N5+Q5 -> 398
B6: 2013-10-01 | C6: 0 | D6: =C6-E6 -> 0 | E6: 0 | F6: 142 | G6: =F6-H6 -> 7 | H6: 135 | I6: 0 | J6: =I6-K6 -> 0 | K6: 0 | M6: =L6-N6 -> 0 | O6: 0 | P6: =O6-Q6 -> 0 | Q6: 0 | R6: =C6+F6+I6+L6+O6 -> 142 | S6: 7 | T6: 135
B7: =DATE(YEAR(B6),MONTH(B6)+1,DAY(B6)) -> 2013-11-01 | C7: 10 | D7: 0 | E7: 10 | F7: 181 | G7: 9 | H7: 172 | I7: 0 | J7: 0 | K7: 0 | M7: 0 | O7: 0 | P7: 0 | Q7: 0 | R7: 191 | S7: 9 | T7: 182
B8: 2013-12-01 | C8: 49 | D8: 2 | E8: 47 | F8: 313 | G8: 15 | H8: 298 | I8: 0 | J8: 0 | K8: 0 | M8: 0 | O8: 0 | P8: 0 | Q8: 0 | R8: 362 | S8: 17 | T8: 345
B9: 2014-01-01 | C9: 63 | D9: 3 | E9: 60 | F9: 404 | G9: 20 | H9: 384 | I9: 0 | J9: 0 | K9: 0 | M9: 0 | O9: 0 | P9: 0 | Q9: 0 | R9: 467 | S9: 23 | T9: 444
B10: 2014-02-01 | C10: 63 | D10: 3 | E10: 60 | F10: 404 | G10: 20 | H10: 384 | I10: 0 | J10: 0 | K10: 0 | M10: 0 | O10: 0 | P10: 0 | Q10: 0 | R10: 467 | S10: 23 | T10: 444
B11: 2014-03-01 | C11: 63 | D11: 3 | E11: 60 | F11: 404 | G11: 20 | H11: 384 | I11: 0 | J11: 0 | K11: 0 | M11: 0 | O11: 0 | P11: 0 | Q11: 0 | R11: 467 | S11: 23 | T11: 444
B12: 2014-04-01 | C12: 63 | D12: 3 | E12: 60 | F12: 404 | G12: 20 | H12: 384 | I12: 0 | J12: 0 | K12: 0 | M12: 0 | O12: 0 | P12: 0 | Q12: 0 | R12: 467 | S12: 23 | T12: 444
B13: 2014-05-01 | C13: 63 | D13: 3 | E13: 60 | F13: 404 | G13: 20 | H13: 384 | I13: 0 | J13: 0 | K13: 0 | M13: 0 | O13: 0 | P13: 0 | Q13: 0 | R13: 467 | S13: 23 | T13: 444
B14: 2014-06-01 | C14: 63 | D14: 3 | E14: 60 | F14: 404 | G14: 20 | H14: 384 | I14: 0 | J14: 0 | K14: 0 | M14: 0 | O14: 0 | P14: 0 | Q14: 0 | R14: 467 | S14: 23 | T14: 444
B15: 2014-07-01 | C15: 63 | D15: 3 | E15: 60 | F15: 404 | G15: 20 | H15: 384 | I15: 0 | J15: 0 | K15: 0 | M15: 0 | O15: 0 | P15: 0 | Q15: 0 | R15: 467 | S15: 23 | T15: 444
B16: 2014-08-01 | C16: 63 | D16: 3 | E16: 60 | F16: 404 | G16: 20 | H16: 384 | I16: 0 | J16: 0 | K16: 0 | M16: 0 | O16: 0 | P16: 0 | Q16: 0 | R16: 467 | S16: 23 | T16: 444
B17: 2014-09-01 | C17: 63 | D17: 3 | E17: 60 | F17: 404 | G17: 20 | H17: 384 | I17: 0 | J17: 0 | K17: 0 | M17: 0 | O17: 0 | P17: 0 | Q17: 0 | R17: 467 | S17: 23 | T17: 444
B19: =B2 -> PIRA | F19: Frota Homologada Disponível e Operacional - Ano 2
B20: FONTE | C20: Miniônibus | F20: Básico | I20: Padron | L20: Artic.Conv. | O20: Artic.BRT | R20: Frota total
C21: Disp. | D21: Res. | E21: Oper. | F21: Disp. | G21: Res. | H21: Oper. | I21: Disp. | J21: Res. | K21: Oper. | L21: Disp. | M21: Res. | N21: Oper. | O21: Disp. | P21: Res. | Q21: Oper. | R21: Disp. | S21: Res. | T21: Oper.
B22: Edital | C22: =C5 -> 63 | D22: 3 | E22: 60 | F22: 324 | G22: 15 | H22: 309 | I22: 0 | J22: 0 | K22: 0 | L22: 0 | M22: -29 | N22: 29 | O22: 0 | P22: 0 | Q22: 0 | R22: =C22+F22+I22+L22+O22 -> 387 | S22: =D22+G22+J22+M22+P22 -> -11 | T22: =E22+H22+K22+N22+Q22 -> 398
B23: =DATE(YEAR(B17),MONTH(B17)+1,DAY(B17)) -> 2014-10-01 | C23: 63 | D23: =C23-E23 -> 3 | E23: 60 | F23: 404 | G23: =F23-H23 -> 20 | H23: 384 | I23: 0 | J23: =I23-K23 -> 0 | K23: 0 | M23: =L23-N23 -> 0 | O23: 0 | P23: =O23-Q23 -> 0 | Q23: 0 | R23: =C23+F23+I23+L23+O23 -> 467 | S23: 23 | T23: 444
B24: =DATE(YEAR(B23),MONTH(B23)+1,DAY(B23)) -> 2014-11-01 | C24: 63 | D24: 3 | E24: 60 | F24: 404 | G24: 20 | H24: 384 | I24: 0 | J24: 0 | K24: 0 | M24: 0 | O24: 0 | P24: 0 | Q24: 0 | R24: 467 | S24: 23 | T24: 444
B25: 2014-12-01 | C25: 63 | D25: 3 | E25: 60 | F25: 434 | G25: 21 | H25: 413 | I25: 0 | J25: 0 | K25: 0 | M25: 0 | O25: 0 | P25: 0 | Q25: 0 | R25: 497 | S25: 24 | T25: 473
B26: 2015-01-01 | C26: 63 | D26: 3 | E26: 60 | F26: 434 | G26: 21 | H26: 413 | I26: 0 | J26: 0 | K26: 0 | M26: 0 | O26: 0 | P26: 0 | Q26: 0 | R26: 497 | S26: 24 | T26: 473
B27: 2015-02-01 | C27: 63 | D27: 3 | E27: 60 | F27: 434 | G27: 21 | H27: 413 | I27: 0 | J27: 0 | K27: 0 | M27: 0 | O27: 0 | P27: 0 | Q27: 0 | R27: 497 | S27: 24 | T27: 473
B28: 2015-03-01 | C28: 63 | D28: 3 | E28: 60 | F28: 434 | G28: 21 | H28: 413 | I28: 0 | J28: 0 | K28: 0 | M28: 0 | O28: 0 | P28: 0 | Q28: 0 | R28: 497 | S28: 24 | T28: 473
B29: 2015-04-01 | C29: 63 | D29: 3 | E29: 60 | F29: 434 | G29: 21 | H29: 413 | I29: 0 | J29: 0 | K29: 0 | M29: 0 | O29: 0 | P29: 0 | Q29: 0 | R29: 497 | S29: 24 | T29: 473
B30: 2015-05-01 | C30: 63 | D30: 3 | E30: 60 | F30: 434 | G30: 21 | H30: 413 | I30: 0 | J30: 0 | K30: 0 | M30: 0 | O30: 0 | P30: 0 | Q30: 0 | R30: 497 | S30: 24 | T30: 473
B31: 2015-06-01 | C31: 63 | D31: 3 | E31: 60 | F31: 434 | G31: 21 | H31: 413 | I31: 0 | J31: 0 | K31: 0 | M31: 0 | O31: 0 | P31: 0 | Q31: 0 | R31: 497 | S31: 24 | T31: 473
B32: 2015-07-01 | C32: 63 | D32: 3 | E32: 60 | F32: 434 | G32: 21 | H32: 413 | I32: 0 | J32: 0 | K32: 0 | M32: 0 | O32: 0 | P32: 0 | Q32: 0 | R32: 497 | S32: 24 | T32: 473
B33: 2015-08-01 | C33: 63 | D33: 3 | E33: 60 | F33: 434 | G33: 21 | H33: 413 | I33: 0 | J33: 0 | K33: 0 | M33: 0 | O33: 0 | P33: 0 | Q33: 0 | R33: 497 | S33: 24 | T33: 473
B34: 2015-09-01 | C34: 63 | D34: 3 | E34: 60 | F34: 454 | G34: 22 | H34: 432 | I34: 0 | J34: 0 | K34: 0 | M34: 0 | O34: 0 | P34: 0 | Q34: 0 | R34: 517 | S34: 25 | T34: 492
B36: =B19 -> PIRA | F36: Frota Homologada Disponível e Operacional - Ano 3
B37: FONTE | C37: Miniônibus | F37: Básico | I37: Padron | L37: Artic.Conv. | O37: Artic.BRT | R37: Frota total
C38: Disp. | D38: Res. | E38: Oper. | F38: Disp. | G38: Res. | H38: Oper. | I38: Disp. | J38: Res. | K38: Oper. | L38: Disp. | M38: Res. | N38: Oper. | O38: Disp. | P38: Res. | Q38: Oper. | R38: Disp. | S38: Res. | T38: Oper.
B39: Edital | C39: =C22 -> 63 | D39: 3 | E39: 60 | F39: 324 | G39: 15 | H39: 309 | I39: 0 | J39: 0 | K39: 0 | L39: 0 | M39: -29 | N39: 29 | O39: 0 | P39: 0 | Q39: 0 | R39: =C39+F39+I39+L39+O39 -> 387 | S39: =D39+G39+J39+M39+P39 -> -11 | T39: =E39+H39+K39+N39+Q39 -> 398
B40: =DATE(YEAR(B34),MONTH(B34)+1,DAY(B34)) -> 2015-10-01 | C40: 63 | D40: =C40-E40 -> 3 | E40: 60 | F40: 454 | G40: =F40-H40 -> 22 | H40: 432 | I40: 0 | J40: =I40-K40 -> 0 | K40: 0 | M40: =L40-N40 -> 0 | O40: 0 | P40: =O40-Q40 -> 0 | Q40: 0 | R40: =C40+F40+I40+L40+O40 -> 517 | S40: =D40+G40+J40+M40+P40 -> 25 | T40: =E40+H40+K40+N40+Q40 -> 492
B41: =DATE(YEAR(B40),MONTH(B40)+1,DAY(B40)) -> 2015-11-01 | C41: 63 | D41: 3 | E41: 60 | F41: 454 | G41: 22 | H41: 432 | I41: 0 | J41: 0 | K41: 0 | M41: 0 | O41: 0 | P41: 0 | Q41: 0 | R41: 517 | S41: 25 | T41: 492
B42: 2015-12-01 | C42: 63 | D42: 3 | E42: 60 | F42: 454 | G42: 22 | H42: 432 | I42: 0 | J42: 0 | K42: 0 | M42: 0 | O42: 0 | P42: 0 | Q42: 0 | R42: 517 | S42: 25 | T42: 492
B43: 2016-01-01 | C43: 63 | D43: 3 | E43: 60 | F43: 454 | G43: 22 | H43: 432 | I43: 0 | J43: 0 | K43: 0 | M43: 0 | O43: 0 | P43: 0 | Q43: 0 | R43: 517 | S43: 25 | T43: 492
B44: 2016-02-01 | C44: 63 | D44: 3 | E44: 60 | F44: 454 | G44: 22 | H44: 432 | I44: 0 | J44: 0 | K44: 0 | M44: 0 | O44: 0 | P44: 0 | Q44: 0 | R44: 517 | S44: 25 | T44: 492
B45: 2016-03-01 | C45: 63 | D45: 3 | E45: 60 | F45: 454 | G45: 22 | H45: 432 | I45: 0 | J45: 0 | K45: 0 | M45: 0 | O45: 0 | P45: 0 | Q45: 0 | R45: 517 | S45: 25 | T45: 492
B46: 2016-04-01 | C46: 63 | D46: 3 | E46: 60 | F46: 454 | G46: 22 | H46: 432 | I46: 0 | J46: 0 | K46: 0 | M46: 0 | O46: 0 | P46: 0 | Q46: 0 | R46: 517 | S46: 25 | T46: 492
B47: 2016-05-01 | C47: 63 | D47: 3 | E47: 60 | F47: 454 | G47: 22 | H47: 432 | I47: 0 | J47: 0 | K47: 0 | M47: 0 | O47: 0 | P47: 0 | Q47: 0 | R47: 517 | S47: 25 | T47: 492
B48: 2016-06-01 | C48: 63 | D48: 3 | E48: 60 | F48: 454 | G48: 22 | H48: 432 | I48: 0 | J48: 0 | K48: 0 | M48: 0 | O48: 0 | P48: 0 | Q48: 0 | R48: 517 | S48: 25 | T48: 492
B49: 2016-07-01 | C49: 63 | D49: 3 | E49: 60 | F49: 454 | G49: 22 | H49: 432 | I49: 0 | J49: 0 | K49: 0 | M49: 0 | O49: 0 | P49: 0 | Q49: 0 | R49: 517 | S49: 25 | T49: 492
B50: 2016-08-01 | C50: 63 | D50: 3 | E50: 60 | F50: 454 | G50: 22 | H50: 432 | I50: 0 | J50: 0 | K50: 0 | M50: 0 | O50: 0 | P50: 0 | Q50: 0 | R50: 517 | S50: 25 | T50: 492
B51: 2016-09-01 | C51: 63 | D51: 3 | E51: 60 | F51: 454 | G51: 22 | H51: 432 | I51: 0 | J51: 0 | K51: 0 | M51: 0 | O51: 0 | P51: 0 | Q51: 0 | R51: 517 | S51: 25 | T51: 492
B53: =B36 -> PIRA | F53: Frota Homologada Disponível e Operacional - Ano 4
B54: FONTE | C54: Miniônibus | F54: Básico | I54: Padron | L54: Artic.Conv. | O54: Artic.BRT | R54: Frota total
C55: Disp. | D55: Res. | E55: Oper. | F55: Disp. | G55: Res. | H55: Oper. | I55: Disp. | J55: Res. | K55: Oper. | L55: Disp. | M55: Res. | N55: Oper. | O55: Disp. | P55: Res. | Q55: Oper. | R55: Disp. | S55: Res. | T55: Oper.
B56: Edital | C56: =C39 -> 63 | D56: 3 | E56: 60 | F56: 324 | G56: 15 | H56: 309 | I56: 0 | J56: 0 | K56: 0 | L56: 0 | M56: -29 | N56: 29 | O56: 0 | P56: 0 | Q56: 0 | R56: =C56+F56+I56+L56+O56 -> 387 | S56: =D56+G56+J56+M56+P56 -> -11 | T56: =E56+H56+K56+N56+Q56 -> 398
B57: =DATE(YEAR(B51),MONTH(B51)+1,DAY(B51)) -> 2016-10-01 | C57: 63 | D57: =C57-E57 -> 3 | E57: 60 | F57: 454 | G57: =F57-H57 -> 22 | H57: 432 | I57: 0 | J57: =I57-K57 -> 0 | K57: 0 | L57: 0 | M57: =L57-N57 -> 0 | N57: 0 | O57: 0 | P57: =O57-Q57 -> 0 | Q57: 0 | R57: =C57+F57+I57+L57+O57 -> 517 | S57: =D57+G57+J57+M57+P57 -> 25 | T57: =E57+H57+K57+N57+Q57 -> 492
B58: =DATE(YEAR(B57),MONTH(B57)+1,DAY(B57)) -> 2016-11-01 | C58: 63 | D58: 3 | E58: 60 | F58: 454 | G58: 22 | H58: 432 | I58: 0 | J58: 0 | K58: 0 | L58: 0 | M58: 0 | N58: 0 | O58: 0 | P58: 0 | Q58: 0 | R58: 517 | S58: 25 | T58: 492
B59: 2016-12-01 | C59: 63 | D59: 3 | E59: 60 | F59: 454 | G59: 22 | H59: 432 | I59: 0 | J59: 0 | K59: 0 | L59: 0 | M59: 0 | N59: 0 | O59: 0 | P59: 0 | Q59: 0 | R59: 517 | S59: 25 | T59: 492
B60: 2017-01-01 | C60: 63 | D60: 3 | E60: 60 | F60: 454 | G60: 22 | H60: 432 | I60: 9 | J60: 0 | K60: 9 | L60: 0 | M60: 0 | N60: 0 | O60: 0 | P60: 0 | Q60: 0 | R60: 526 | S60: 25 | T60: 501
B61: 2017-02-01 | C61: 63 | D61: 3 | E61: 60 | F61: 454 | G61: 22 | H61: 432 | I61: 9 | J61: 0 | K61: 9 | L61: 0 | M61: 0 | N61: 0 | O61: 0 | P61: 0 | Q61: 0 | R61: 526 | S61: 25 | T61: 501
B62: 2017-03-01 | C62: 63 | D62: 3 | E62: 60 | F62: 454 | G62: 22 | H62: 432 | I62: 9 | J62: 0 | K62: 9 | L62: 0 | M62: 0 | N62: 0 | O62: 0 | P62: 0 | Q62: 0 | R62: 526 | S62: 25 | T62: 501
B63: 2017-04-01 | C63: 63 | D63: 3 | E63: 60 | F63: 454 | G63: 22 | H63: 432 | I63: 9 | J63: 0 | K63: 9 | L63: 0 | M63: 0 | N63: 0 | O63: 0 | P63: 0 | Q63: 0 | R63: 526 | S63: 25 | T63: 501
B64: 2017-05-01 | C64: 63 | D64: 3 | E64: 60 | F64: 454 | G64: 22 | H64: 432 | I64: 9 | J64: 0 | K64: 9 | L64: 0 | M64: 0 | N64: 0 | O64: 0 | P64: 0 | Q64: 0 | R64: 526 | S64: 25 | T64: 501
B65: 2017-06-01 | C65: 63 | D65: 3 | E65: 60 | F65: 454 | G65: 22 | H65: 432 | I65: 9 | J65: 0 | K65: 9 | L65: 0 | M65: 0 | N65: 0 | O65: 0 | P65: 0 | Q65: 0 | R65: 526 | S65: 25 | T65: 501
B66: 2017-07-01 | C66: 63 | D66: 3 | E66: 60 | F66: 454 | G66: 22 | H66: 432 | I66: 9 | J66: 0 | K66: 9 | L66: 0 | M66: 0 | N66: 0 | O66: 0 | P66: 0 | Q66: 0 | R66: 526 | S66: 25 | T66: 501
B67: 2017-08-01 | C67: 63 | D67: 3 | E67: 60 | F67: 454 | G67: 22 | H67: 432 | I67: 9 | J67: 0 | K67: 9 | L67: 0 | M67: 0 | N67: 0 | O67: 0 | P67: 0 | Q67: 0 | R67: 526 | S67: 25 | T67: 501
B68: 2017-09-01 | C68: 63 | D68: 3 | E68: 60 | F68: 454 | G68: 22 | H68: 432 | I68: 9 | J68: 0 | K68: 9 | L68: 0 | M68: 0 | N68: 0 | O68: 0 | P68: 0 | Q68: 0 | R68: 526 | S68: 25 | T68: 501
B69: OBS: Para os demais anos seguem 526 total, 25 reservas e 501 operacionais

Sheet FU Lei Mot.
A1: TABELA CÁLCULO FU EDITAL e OFERTADO na LICITAÇÃO da BACIA 3
A2: Dados Constantes no Anexo II.10 e II.11 do Edital da Licitação
A3: Pe- | B3: Fx. | C3: Frequência por faixa Horária | G3: Utilização Equiv.Fx.Horária
A4: río- | B4: ho- | C4: Dias | D4: Sáb. | E4: Dom. | G4: Dias | H4: Sáb. | I4: Dom.
A5: do | B5: ra | C5: Úteis | G5: Úteis
A6: MAD | B6: 0 | C6: 29.4 | D6: 20.5 | E6: 22.4 | G6: =C6/$C$12 -> 0.1200980392 | H6: 0.08374183007 | I6: 0.09150326797
A7: MAD | B7: 1 | C7: 21.5 | D7: 9.3 | E7: 7 | G7: 0.08782679739 | H7: 0.03799019608 | I7: 0.02859477124
A8: MAD | B8: 2 | C8: 22.4 | D8: 10.6 | E8: 3.2 | G8: 0.09150326797 | H8: 0.04330065359 | I8: 0.01307189542
A9: MAD | B9: 3 | C9: 36 | D9: 5.2 | E9: 4.2 | G9: 0.1470588235 | H9: 0.02124183007 | I9: 0.01715686275
A10: MAD | B10: 4 | C10: 142.7 | D10: 35.3 | E10: 25.7 | G10: 0.5829248366 | H10: 0.1441993464 | I10: =E10/$C$12 -> 0.1049836601
A11: PM | B11: 5 | C11: 166.1 | D11: 89.6 | E11: 56.2 | G11: 0.6785130719 | H11: 0.3660130719 | I11: 0.2295751634
A12: PM | B12: 6 | C12: 244.8 | D12: 162.2 | E12: 73.8 | G12: 1 | H12: 0.6625816993 | I12: 0.3014705882
A13: PM | B13: 7 | C13: 147.1 | D13: 148.6 | E13: 62.9 | G13: 0.6008986928 | H13: 0.6070261438 | I13: 0.2569444444
A14: EP | B14: 8 | C14: 115.4 | D14: 88 | E14: 44.7 | G14: 0.4714052288 | H14: 0.3594771242 | I14: 0.1825980392
A15: EP | B15: 9 | C15: 84.3 | D15: 65 | E15: 39.3 | G15: 0.3443627451 | H15: 0.2655228758 | I15: 0.1605392157
A16: EP | B16: 10 | C16: 75.9 | D16: 67 | E16: 46.2 | G16: 0.3100490196 | H16: 0.2736928105 | I16: 0.1887254902
A17: EP | B17: 11 | C17: 102 | D17: 80.4 | E17: 48 | G17: 0.4166666667 | H17: 0.3284313725 | I17: 0.1960784314
A18: EP | B18: 12 | C18: 142.8 | D18: 94.6 | E18: 56.2 | G18: 0.5833333333 | H18: 0.3864379085 | I18: 0.2295751634
A19: EP | B19: 13 | C19: 119.6 | D19: 91.6 | E19: 47.2 | G19: 0.4885620915 | H19: 0.3741830065 | I19: 0.1928104575
A20: EP | B20: 14 | C20: 113.5 | D20: 92.7 | E20: 47.3 | G20: 0.4636437908 | H20: 0.3786764706 | I20: 0.1932189542
A21: EP | B21: 15 | C21: 140.6 | D21: 91.2 | E21: 56.1 | G21: 0.5743464052 | H21: 0.3725490196 | I21: 0.2291666667
A22: PT | B22: 16 | C22: 169.6 | D22: 103.4 | E22: 58.7 | G22: =C22/$C$12 -> 0.6928104575 | H22: 0.4223856209 | I22: 0.2397875817
A23: PT | B23: 17 | C23: 191.1 | D23: 108.7 | E23: 74.3 | G23: 0.7806372549 | H23: 0.4440359477 | I23: 0.3035130719
A24: PT | B24: 18 | C24: 140.3 | D24: 90.8 | E24: 66.4 | G24: 0.573120915 | H24: 0.3709150327 | I24: 0.2712418301
A25: PPT | B25: 19 | C25: 195.8 | D25: 89.2 | E25: 66.7 | G25: 0.7998366013 | H25: 0.364379085 | I25: 0.2724673203
A26: PPT | B26: 20 | C26: 111.2 | D26: 55.6 | E26: 43 | G26: 0.454248366 | H26: 0.227124183 | I26: 0.1756535948
A27: PN | B27: 21 | C27: 120.1 | D27: 60.2 | E27: 41.9 | G27: 0.4906045752 | H27: 0.2459150327 | I27: 0.1711601307
A28: PN | B28: 22 | C28: 78.4 | D28: 52.6 | E28: 26.7 | G28: 0.3202614379 | H28: 0.214869281 | I28: 0.1090686275
A29: PN | B29: 23 | C29: 31.5 | D29: 29.5 | E29: 21.8 | G29: 0.1286764706 | H29: 0.1205065359 | I29: 0.08905228758
C30: =SUM(C6:C29) -> 2742.1 | D30: =SUM(D6:D29) -> 1741.8 | E30: =SUM(E6:E29) -> 1039.9 | G30: =SUM(G6:G29) -> 11.20138889 | H30: =SUM(H6:H29) -> 7.115196078 | I30: =SUM(I6:I29) -> 4.247957516
G31: =G30/100*100 -> 11.20138889 | H31: =H30/100*100 -> 7.115196078 | I31: =I30/100*100 -> 4.247957516
A33: Cálculo do Fator de Utilização Vencedor da Licitação Pela Bacia 3 - Salário Motoristas
A34: =G31 -> 11.20138889 | B34: A | C34: Duração Equivalente da Operação em Dias Úteis
A35: =I36 -> 6 | B35: B | C35: Jornada Diária de Trabalho de Motorista e Cobrador | I35: 06:00:00
A36: =A34/A35 -> 1.866898148 | B36: C | C36: Coeficiente de Utilização em Horas Normais (A/B) | I36: =I35*24 -> 6
A37: =IF(A36>2,A36-2,0) -> 0 | B37: D | C37: Horas Extras [(C-2) se Positivo; Se Negativo adotar 0]
A38: =A37*1.5 -> 0 | B38: E | C38: Horas Extras com Coef.equivalente (D x 1,5)
A39: =A36-A38 -> 1.866898148 | B39: F | C39: Horas Normais (C - E) OBS: Veja nos lotes 1 e 4 a fórmula é (C-D)
A40: =A38+A39 -> 1.866898148 | B40: G | C40: Coeficiente de Utilização (E + F)
A41: =A54*100/100 -> 0.1361268991 | B41: H | C41: Percentual de Pessoal p/ cobrir Folgas, Férias e Reservas (O*100/100)
A42: =A40*A41 -> 0.2541350559 | B42: I | C42: Pessoal para Cobrir Flogas, Férias e Reservas (G x H)
A43: =A40+A42 -> 2.121033204 | B43: J | C43: Fator de Utilização de Motoristas e Cobradores (G + I)
A44: 2.231 | C44: Fator de Utilização adotado (Maior valor entre FU do Lote e FU Global)
A45: =(A44-A43)/A43 -> 0.05184586255 | C45: Percentual a maior apurado no FU bacia 3 p/ o FU Global
A46: =(A43-A47)/A43 -> -0.1550974286 | C46: Desconto FU Considerado sobre o FU de 2,121 apurado p/ bacia 3
A47: ='Plan2 R$ Pessoal'!D8 -> 2.45 | C47: FU considerado na Tarifa Vencedora da Licitação
A49: Detalhamento do Item "H"
A50: =IF(A61>1,(A61-1)/7,0) -> 0 | B50: K | C50: % Pessoal Sábado e Domingo [(T-1)/7, se T>1]
A51: 0.0233 | B51: L | C51: % Pessoal Feriados (12 dias ano / 365=3,28%) OBS: usaram 2,33%
A52: =(12/11)-1 -> 0.09090909091 | B52: M | C52: % Pessoal de Férias (12/11)-1
A53: =8/365 -> 0.02191780822 | B53: N | C53: % Pessoal de Faltas (8 dias ano / 365)
A54: =SUM(A50:A53) -> 0.1361268991 | B54: O | C54: Total (K + L + M + N)
A56: Detalhamento do Item "K"
A57: =H31 -> 7.115196078 | B57: P | C57: Duração Equivalente da Operação no Sábado
A58: =I31 -> 4.247957516 | B58: Q | C58: Duração Equivalente da Operação no Domingo
A59: =A35 -> 6 | B59: R | C59: Jornada Diária de Trabalho de Motorista e Cobrador
A60: =A57/A59 -> 1.185866013 | B60: S | C60: Coeficiente de Utilização Sáb (P / R)
A61: =A58/A59 -> 0.7079929194 | B61: T | C61: Coeficiente de Utilização Dom (Q / R)
A62: =(A60+A61)/2 -> 0.9469294662 | B62: U | C62: Média de Sáb e Dom [(S + T) / 2]
C64: MAD | D64: Madrugada | G64: PM | H64: Pico da Manhã
A65: Legenda: | C65: EP | D65: Entre-pico | G65: PT | H65: Pico da Tarde
C66: PPT | D66: Pós Pico da Tarde | G66: PN | H66: Pico da Noite
A70: Cálculo do Fator de Utilização conforme Lei Motorista - Salário do Motorista
A71: =G31 -> 11.20138889 | B71: A | C71: Duração Equivalente da Operação em Dias Úteis
A72: =I73 -> 5.5 | B72: B | C72: Jornada Diária de Trabalho de Motorista e Cobrador | I72: 05:30:00
A73: =A71/A72 -> 2.036616162 | B73: C | C73: Coeficiente de Utilização em Horas Normais (A/B) | I73: =I72*24 -> 5.5
A74: =IF(A73>2,A73-2,0) -> 0.03661616162 | B74: D | C74: Horas Extras [(C-2) se Positivo; Se Negativo adotar 0]
A75: =A74*1.5 -> 0.05492424242 | B75: E | C75: Horas Extras com Coef.equivalente (D x 1,5)
A76: =A73-A75 -> 1.981691919 | B76: F | C76: Horas Normais (C - E) OBS: Veja nos lotes 1 e 4 a fórmula é (C-D)
A77: =A75+A76 -> 2.036616162 | B77: G | C77: Coeficiente de Utilização (E + F)
A78: =A91*100/100 -> 0.1361268991 | B78: H | C78: Percentual de Pessoal p/ cobrir Folgas, Férias e Reservas (O*100/100)
A79: =A77*A78 -> 0.2772382428 | B79: I | C79: Pessoal para Cobrir Flogas, Férias e Reservas (G x H)
A80: =A77+A79 -> 2.313854404 | B80: J | C80: Fator de Utilização de Motoristas e Cobradores (G + I)
A81: 2.231 | C81: Fator de Utilização adotado (Maior valor entre FU do Lote e FU Global)
A82: =(A81-A80)/A80 -> -0.03580795933 | C82: Percentual a maior apurado no FU bacia 3 p/ o FU Global
A83: =A46 -> -0.1550974286 | C83: Desconto FU Considerado sobre o FU de 2,121 apurado p/ bacia 3
A84: =A80-(A80*A83) -> 2.672727273 | C84: FU devido aplicação Lei Mot. | I84: Complemento: 2,28037 - 2,09034 = | J84: =A84-A47 -> 0.2227272727
A86: Detalhamento do Item "H"
A87: =IF(A98>1,(A98-1)/7,0) -> 0 | B87: K | C87: % Pessoal Sábado e Domingo [(T-1)/7, se T>1]
A88: 0.0233 | B88: L | C88: % Pessoal Feriados (12 dias ano / 365=3,28%) OBS: usaram 2,33%
A89: =(12/11)-1 -> 0.09090909091 | B89: M | C89: % Pessoal de Férias (12/11)-1
A90: =8/365 -> 0.02191780822 | B90: N | C90: % Pessoal de Faltas (8 dias ano / 365)
A91: =SUM(A87:A90) -> 0.1361268991 | B91: O | C91: Total (K + L + M + N)
A93: Detalhamento do Item "K"
A94: =H31 -> 7.115196078 | B94: P | C94: Duração Equivalente da Operação no Sábado
A95: =I31 -> 4.247957516 | B95: Q | C95: Duração Equivalente da Operação no Domingo
A96: =A72 -> 5.5 | B96: R | C96: Jornada Diária de Trabalho de Motorista e Cobrador
A97: =A94/A96 -> 1.293672014 | B97: S | C97: Coeficiente de Utilização Sáb (P / R)
A98: =A95/A96 -> 0.7723559121 | B98: T | C98: Coeficiente de Utilização Dom (Q / R)
A99: =(A97+A98)/2 -> 1.033013963 | B99: U | C99: Média de Sáb e Dom [(S + T) / 2]
A103: Cálculo do Fator de Utilização Vencedor da Licitação Pela Bacia 3 | J103: Benefícios Motorista
A104: =G31 -> 11.20138889 | B104: A | C104: Duração Equivalente da Operação em Dias Úteis
A105: =I106 -> 6 | B105: B | C105: Jornada Diária de Trabalho de Motorista e Cobrador | I105: 06:00:00
A106: =A104/A105 -> 1.866898148 | B106: C | C106: Coeficiente de Utilização em Horas Normais (A/B) | I106: =I105*24 -> 6
A107: =IF(A106>2,A106-2,0) -> 0 | B107: D | C107: Horas Extras [(C-2) se Positivo; Se Negativo adotar 0]
A108: =A107*1.5 -> 0 | B108: E | C108: Horas Extras com Coef.equivalente (D x 1,5)
A109: =A106-A108 -> 1.866898148 | B109: F | C109: Horas Normais (C - E) OBS: Veja nos lotes 1 e 4 a fórmula é (C-D)
A110: =A108+A109 -> 1.866898148 | B110: G | C110: Coeficiente de Utilização (E + F)
A111: =A124*100/100 -> 0.1361268991 | B111: H | C111: Percentual de Pessoal p/ cobrir Folgas, Férias e Reservas (O*100/100)
A112: =A110*A111 -> 0.2541350559 | B112: I | C112: Pessoal para Cobrir Flogas, Férias e Reservas (G x H)
A113: =A110+A112 -> 2.121033204 | B113: J | C113: Fator de Utilização de Motoristas e Cobradores (G + I)
A114: 2.231 | C114: Fator de Utilização adotado (Maior valor entre FU do Lote e FU Global)
A115: =(A114-A113)/A113 -> 0.05184586255 | C115: Percentual a maior apurado no FU bacia 3 p/ o FU Global
A116: =(A113-A117)/A113 -> 0.05398852023 | C116: Desconto FU Considerado sobre o FU de 2,121 apurado p/ bacia 3
A117: =Benefícios!G20 -> 2.00652176 | C117: FU considerado na Tarifa Vencedora da Licitação
A119: Detalhamento do Item "H"
A120: =IF(A131>1,(A131-1)/7,0) -> 0 | B120: K | C120: % Pessoal Sábado e Domingo [(T-1)/7, se T>1]
A121: 0.0233 | B121: L | C121: % Pessoal Feriados (12 dias ano / 365=3,28%) OBS: usaram 2,33%
A122: =(12/11)-1 -> 0.09090909091 | B122: M | C122: % Pessoal de Férias (12/11)-1
A123: =8/365 -> 0.02191780822 | B123: N | C123: % Pessoal de Faltas (8 dias ano / 365)
A124: =SUM(A120:A123) -> 0.1361268991 | B124: O | C124: Total (K + L + M + N)
A126: Detalhamento do Item "K"
A127: =H31 -> 7.115196078 | B127: P | C127: Duração Equivalente da Operação no Sábado
A128: =I31 -> 4.247957516 | B128: Q | C128: Duração Equivalente da Operação no Domingo
A129: =A105 -> 6 | B129: R | C129: Jornada Diária de Trabalho de Motorista e Cobrador
A130: =A127/A129 -> 1.185866013 | B130: S | C130: Coeficiente de Utilização Sáb (P / R)
A131: =A128/A129 -> 0.7079929194 | B131: T | C131: Coeficiente de Utilização Dom (Q / R)
A132: =(A130+A131)/2 -> 0.9469294662 | B132: U | C132: Média de Sáb e Dom [(S + T) / 2]
A136: Cálculo do Fator de Utilização conforme Lei Motorista | J136: Benefícios do Motorista
A137: =G31 -> 11.20138889 | B137: A | C137: Duração Equivalente da Operação em Dias Úteis
A138: =I139 -> 5.5 | B138: B | C138: Jornada Diária de Trabalho de Motorista e Cobrador | I138: 05:30:00
A139: =A137/A138 -> 2.036616162 | B139: C | C139: Coeficiente de Utilização em Horas Normais (A/B) | I139: =I138*24 -> 5.5
A140: =IF(A139>2,A139-2,0) -> 0.03661616162 | B140: D | C140: Horas Extras [(C-2) se Positivo; Se Negativo adotar 0]
A141: =A140*1.5 -> 0.05492424242 | B141: E | C141: Horas Extras com Coef.equivalente (D x 1,5)
A142: =A139-A141 -> 1.981691919 | B142: F | C142: Horas Normais (C - E) OBS: Veja nos lotes 1 e 4 a fórmula é (C-D)
A143: =A141+A142 -> 2.036616162 | B143: G | C143: Coeficiente de Utilização (E + F)
A144: =A157*100/100 -> 0.1361268991 | B144: H | C144: Percentual de Pessoal p/ cobrir Folgas, Férias e Reservas (O*100/100)
A145: =A143*A144 -> 0.2772382428 | B145: I | C145: Pessoal para Cobrir Flogas, Férias e Reservas (G x H)
A146: =A143+A145 -> 2.313854404 | B146: J | C146: Fator de Utilização de Motoristas e Cobradores (G + I)
A147: 2.231 | C147: Fator de Utilização adotado (Maior valor entre FU do Lote e FU Global)
A148: =(A147-A146)/A146 -> -0.03580795933 | C148: Percentual a maior apurado no FU bacia 3 p/ o FU Global
A149: =A116 -> 0.05398852023 | C149: Desconto FU Considerado sobre o FU de 2,121 apurado p/ bacia 3
A150: =A146-(A146*A149) -> 2.188932829 | C150: FU devido aplicação Lei Mot. | I150: Complemento: 2,18893 - 2,00652 = | J150: =A150-A117 -> 0.1824110691
A152: Detalhamento do Item "H"
A153: =IF(A164>1,(A164-1)/7,0) -> 0 | B153: K | C153: % Pessoal Sábado e Domingo [(T-1)/7, se T>1]
A154: 0.0233 | B154: L | C154: % Pessoal Feriados (12 dias ano / 365=3,28%) OBS: usaram 2,33%
A155: =(12/11)-1 -> 0.09090909091 | B155: M | C155: % Pessoal de Férias (12/11)-1
A156: =8/365 -> 0.02191780822 | B156: N | C156: % Pessoal de Faltas (8 dias ano / 365)
A157: =SUM(A153:A156) -> 0.1361268991 | B157: O | C157: Total (K + L + M + N)
A159: Detalhamento do Item "K"
A160: =H31 -> 7.115196078 | B160: P | C160: Duração Equivalente da Operação no Sábado
A161: =I31 -> 4.247957516 | B161: Q | C161: Duração Equivalente da Operação no Domingo
A162: =A138 -> 5.5 | B162: R | C162: Jornada Diária de Trabalho de Motorista e Cobrador
A163: =A160/A162 -> 1.293672014 | B163: S | C163: Coeficiente de Utilização Sáb (P / R)
A164: =A161/A162 -> 0.7723559121 | B164: T | C164: Coeficiente de Utilização Dom (Q / R)
A165: =(A163+A164)/2 -> 1.033013963 | B165: U | C165: Média de Sáb e Dom [(S + T) / 2]
A169: Cálculo do Fator de Utilização Vencedor da Licitação Pela Bacia 3 | J169: Salário do Cobrador
A170: =G31 -> 11.20138889 | B170: A | C170: Duração Equivalente da Operação em Dias Úteis
A171: =I172 -> 6 | B171: B | C171: Jornada Diária de Trabalho de Motorista e Cobrador | I171: 06:00:00
A172: =A170/A171 -> 1.866898148 | B172: C | C172: Coeficiente de Utilização em Horas Normais (A/B) | I172: =I171*24 -> 6
A173: =IF(A172>2,A172-2,0) -> 0 | B173: D | C173: Horas Extras [(C-2) se Positivo; Se Negativo adotar 0]
A174: =A173*1.5 -> 0 | B174: E | C174: Horas Extras com Coef.equivalente (D x 1,5)
A175: =A172-A174 -> 1.866898148 | B175: F | C175: Horas Normais (C - E) OBS: Veja nos lotes 1 e 4 a fórmula é (C-D)
A176: =A174+A175 -> 1.866898148 | B176: G | C176: Coeficiente de Utilização (E + F)
A177: =A190*100/100 -> 0.1361268991 | B177: H | C177: Percentual de Pessoal p/ cobrir Folgas, Férias e Reservas (O*100/100)
A178: =A176*A177 -> 0.2541350559 | B178: I | C178: Pessoal para Cobrir Flogas, Férias e Reservas (G x H)
A179: =A176+A178 -> 2.121033204 | B179: J | C179: Fator de Utilização de Motoristas e Cobradores (G + I)
A180: 2.231 | C180: Fator de Utilização adotado (Maior valor entre FU do Lote e FU Global)
A181: =(A180-A179)/A179 -> 0.05184586255 | C181: Percentual a maior apurado no FU bacia 3 p/ o FU Global
A182: =(A179-A183)/A179 -> -0.1550974286 | C182: Desconto FU Considerado sobre o FU de 2,121 apurado p/ bacia 3
A183: ='Plan2 R$ Pessoal'!D13 -> 2.45 | C183: FU considerado na Tarifa Vencedora da Licitação
A185: Detalhamento do Item "H"
A186: =IF(A197>1,(A197-1)/7,0) -> 0 | B186: K | C186: % Pessoal Sábado e Domingo [(T-1)/7, se T>1]
A187: 0.0233 | B187: L | C187: % Pessoal Feriados (12 dias ano / 365=3,28%) OBS: usaram 2,33%
A188: =(12/11)-1 -> 0.09090909091 | B188: M | C188: % Pessoal de Férias (12/11)-1
A189: =8/365 -> 0.02191780822 | B189: N | C189: % Pessoal de Faltas (8 dias ano / 365)
A190: =SUM(A186:A189) -> 0.1361268991 | B190: O | C190: Total (K + L + M + N)
A192: Detalhamento do Item "K"
A193: =H31 -> 7.115196078 | B193: P | C193: Duração Equivalente da Operação no Sábado
A194: =I31 -> 4.247957516 | B194: Q | C194: Duração Equivalente da Operação no Domingo
A195: =A171 -> 6 | B195: R | C195: Jornada Diária de Trabalho de Motorista e Cobrador
A196: =A193/A195 -> 1.185866013 | B196: S | C196: Coeficiente de Utilização Sáb (P / R)
A197: =A194/A195 -> 0.7079929194 | B197: T | C197: Coeficiente de Utilização Dom (Q / R)
A198: =(A196+A197)/2 -> 0.9469294662 | B198: U | C198: Média de Sáb e Dom [(S + T) / 2]
C200: MAD | D200: Madrugada | G200: PM | H200: Pico da Manhã
A201: Legenda: | C201: EP | D201: Entre-pico | G201: PT | H201: Pico da Tarde
C202: PPT | D202: Pós Pico da Tarde | G202: PN | H202: Pico da Noite
A206: Cálculo do Fator de Utilização conforme Lei Motorista | J206: Salário do Cobrador
A207: =G31 -> 11.20138889 | B207: A | C207: Duração Equivalente da Operação em Dias Úteis
A208: =I209 -> 5.5 | B208: B | C208: Jornada Diária de Trabalho de Motorista e Cobrador | I208: 05:30:00
A209: =A207/A208 -> 2.036616162 | B209: C | C209: Coeficiente de Utilização em Horas Normais (A/B) | I209: =I208*24 -> 5.5
A210: =IF(A209>2,A209-2,0) -> 0.03661616162 | B210: D | C210: Horas Extras [(C-2) se Positivo; Se Negativo adotar 0]
A211: =A210*1.5 -> 0.05492424242 | B211: E | C211: Horas Extras com Coef.equivalente (D x 1,5)
A212: =A209-A211 -> 1.981691919 | B212: F | C212: Horas Normais (C - E) OBS: Veja nos lotes 1 e 4 a fórmula é (C-D)
A213: =A211+A212 -> 2.036616162 | B213: G | C213: Coeficiente de Utilização (E + F)
A214: =A227*100/100 -> 0.1361268991 | B214: H | C214: Percentual de Pessoal p/ cobrir Folgas, Férias e Reservas (O*100/100)
A215: =A213*A214 -> 0.2772382428 | B215: I | C215: Pessoal para Cobrir Flogas, Férias e Reservas (G x H)
A216: =A213+A215 -> 2.313854404 | B216: J | C216: Fator de Utilização de Motoristas e Cobradores (G + I)
A217: 2.231 | C217: Fator de Utilização adotado (Maior valor entre FU do Lote e FU Global)
A218: =(A217-A216)/A216 -> -0.03580795933 | C218: Percentual a maior apurado no FU bacia 3 p/ o FU Global
A219: =A182 -> -0.1550974286 | C219: Desconto FU Considerado sobre o FU de 2,121 apurado p/ bacia 3
A220: =A216-(A216*A219) -> 2.672727273 | C220: FU devido aplicação Lei Mot. | I220: Complemento: 2,32315 - 2,12955 = | J220: =A220-A183 -> 0.2227272727
A222: Detalhamento do Item "H"
A223: =IF(A234>1,(A234-1)/7,0) -> 0 | B223: K | C223: % Pessoal Sábado e Domingo [(T-1)/7, se T>1]
A224: 0.0233 | B224: L | C224: % Pessoal Feriados (12 dias ano / 365=3,28%) OBS: usaram 2,33%
A225: =(12/11)-1 -> 0.09090909091 | B225: M | C225: % Pessoal de Férias (12/11)-1
A226: =8/365 -> 0.02191780822 | B226: N | C226: % Pessoal de Faltas (8 dias ano / 365)
A227: =SUM(A223:A226) -> 0.1361268991 | B227: O | C227: Total (K + L + M + N)
A229: Detalhamento do Item "K"
A230: =H31 -> 7.115196078 | B230: P | C230: Duração Equivalente da Operação no Sábado
... 61 more rows

Sheet Custos Variáveis
A1: Custos Variáveis | H1: Viação Piracicabana
G2: Bacia (Lote): | H2: 1 | BC2: Metodologia de Cálculo do Diesel - ICMS Monofásico
A3: Combustível - Início até 31/12/2020 | J3: Combustível - jan-21 a abr-21 | S3: Combustível - mai-21 a dez-21 | AB3: Combustível - jan-22 a dez-22 | AK3: Combustível - jan-23 a abr-23 | AT3: Combustível - mai-23 em diante | BC3: 2012-09-01 | BD3: a | BE3: 1.929 | BF3: Preço Médio Distribuição ANP
BC4: 2022-09-01 | BD4: b | BE4: 5.954 | BF4: Preço Médio Distribuição ANP
C5: Preço Proposta | D5: 1.655 | F5: 0 | G5: Alíquota ICMS | L5: Preço Proposta | M5: 1.655 | O5: 0.15 | P5: Alíquota ICMS | U5: Preço Proposta | V5: 1.655 | X5: 0.15 | Y5: Alíquota ICMS | AD5: Preço Proposta | AE5: 1.655 | AG5: 0.14 | AH5: Alíquota ICMS | AM5: Preço Proposta | AN5: 1.655 | AP5: 0.13 | AQ5: Alíquota ICMS | AV5: Preço Proposta | AW5: 1.655 | BC5: Percentual Acumulado | BD5: c = b/a | BE5: =BE4/BE3 -> 3.086573354 | BF5: Acumulado para Deflacionar
C6: Preço: | D6: =1.655/(1-(F7/100*100)) -> 1.655 | E6: R$/litro | F6: =F5*G6 -> 0 | G6: 0.8 | L6: Preço: | M6: =1.655/(1-(O5/100*100)) -> 1.947058824 | N6: R$/litro | U6: Preço: | V6: =V5/(1-(X7/100*100)) -> 1.706185567 | W6: R$/litro | X6: =X5*Y6 -> 0.12 | Y6: 0.8 | AD6: Preço: | AE6: =AE5/(1-(AG7/100*100)) -> 1.702674897 | AF6: R$/litro | AG6: =AG5*AH6 -> 0.112 | AH6: 0.8 | AM6: Preço: | AN6: =AN5/(1-(AP7/100*100)) -> 1.699178645 | AO6: R$/litro | AP6: =AP5*AQ6 -> 0.104 | AQ6: 0.8 | AV6: Preço: | AW6: =BE11 -> 1.735898774 | AX6: R$/litro | AY6: ICMS Monofásico | BC6: 1 | BD6: d | BE6: 0.9456 | BF6: ICMS Bruto
C7: Energia: | D7: 0.7652173913 | F7: =F5-F6 -> 0 | G7: 0.2 | X7: =X5-X6 -> 0.03 | Y7: 0.2 | AG7: =AG5-AG6 -> 0.028 | AH7: 0.2 | AP7: =AP5-AP6 -> 0.026 | AQ7: 0.2 | BC7: =BE7/BE6 -> 0.7359348562 | BD7: e | BE7: 0.6959 | BF7: Desconto Efetivo ICMS
A8: Combustível | F8: Lubrificante - Coeficiente do custo/km c/combustível | H8: Média km/L | J8: Combustível | O8: Lubrificante - Coeficiente do custo/km c/combustível | Q8: Média km/L | S8: Combustível | X8: Lubrificante - Coeficiente do custo/km c/combustível | Z8: Média km/L | AB8: Combustível | AG8: Lubrificante - Coeficiente do custo/km c/combustível | AI8: Média km/L | AK8: Combustível | AP8: Lubrificante - Coeficiente do custo/km c/combustível | AR8: Média km/L | AT8: Combustível | AY8: Lubrificante - Coeficiente do custo/km c/combustível | BA8: Média km/L | BC8: =BC6-BC7 -> 0.2640651438 | BD8: f = e/d | BE8: =BE6-BE7 -> 0.2497 | BF8: ICMS Efetivamente Pago
A9: Tipo Veículo | C9: Ar Condicionado | D9: Litros/km | E9: R$/km | F9: Coeficiente | G9: R$/km | H9: Veículo | J9: Tipo Veículo | L9: Ar Condicionado | M9: Litros/km | N9: R$/km | O9: Coeficiente | P9: R$/km | Q9: Veículo | S9: Tipo Veículo | U9: Ar Condicionado | V9: Litros/km | W9: R$/km | X9: Coeficiente | Y9: R$/km | Z9: Veículo | AB9: Tipo Veículo | AD9: Ar Condicionado | AE9: Litros/km | AF9: R$/km | AG9: Coeficiente | AH9: R$/km | AI9: Veículo | AK9: Tipo Veículo | AM9: Ar Condicionado | AN9: Litros/km | AO9: R$/km | AP9: Coeficiente | AQ9: R$/km | AR9: Veículo | AT9: Tipo Veículo | AV9: Ar Condicionado | AW9: Litros/km | AX9: R$/km | AY9: Coeficiente | AZ9: R$/km | BA9: Veículo | BD9: g = f/c | BE9: =BE8/BE5 -> 0.08089877393 | BF9: ICMS Pago Deflacionado a Preços de Proposta
A10: Miniônibus | C10: Sem Ar | D10: =0.2857105188 -> 0.2857105188 | E10: =D10*$D$6 -> 0.4728509086 | F10: 0.03 | G10: =E10*$F$10 -> 0.01418552726 | H10: =1/D10 -> 3.500046145 | J10: Miniônibus | L10: Sem Ar | M10: =0.2857105188 -> 0.2857105188 | N10: =M10*$D$6 -> 0.4728509086 | O10: 0.03 | P10: =N10*$F$10 -> 0.01418552726 | Q10: =1/M10 -> 3.500046145 | S10: Miniônibus | U10: Sem Ar | V10: =0.2857105188 -> 0.2857105188 | W10: =V10*$D$6 -> 0.4728509086 | X10: 0.03 | Y10: =W10*$F$10 -> 0.01418552726 | Z10: =1/V10 -> 3.500046145 | AB10: Miniônibus | AD10: Sem Ar | AE10: =0.2857105188 -> 0.2857105188 | AF10: =AE10*$D$6 -> 0.4728509086 | AG10: 0.03 | AH10: =AF10*$F$10 -> 0.01418552726 | AI10: =1/AE10 -> 3.500046145 | AK10: Miniônibus | AM10: Sem Ar | AN10: =0.2857105188 -> 0.2857105188 | AO10: =AN10*$D$6 -> 0.4728509086 | AP10: 0.03 | AQ10: =AO10*$F$10 -> 0.01418552726 | AR10: =1/AN10 -> 3.500046145 | AT10: Miniônibus | AV10: Sem Ar | AW10: =0.2857105188 -> 0.2857105188 | AX10: =AW10*$D$6 -> 0.4728509086 | AY10: 0.03 | AZ10: =AX10*$F$10 -> 0.01418552726 | BA10: =1/AW10 -> 3.500046145 | BD10: h | BE10: =AW5 -> 1.655 | BF10: Preço Diesel Proposta
A11: Ônibus Básico | C11: Sem Ar | D11: =0.3600005188 -> 0.3600005188 | E11: =D11*$D$6 -> 0.5958008586 | G11: =E11*$F$10 -> 0.01787402576 | H11: =1/D11 -> 2.777773775 | J11: Ônibus Básico | L11: Sem Ar | M11: =0.3600005188 -> 0.3600005188 | N11: =M11*$D$6 -> 0.5958008586 | P11: =N11*$F$10 -> 0.01787402576 | Q11: =1/M11 -> 2.777773775 | S11: Ônibus Básico | U11: Sem Ar | V11: =0.3600005188 -> 0.3600005188 | W11: =V11*$D$6 -> 0.5958008586 | Y11: =W11*$F$10 -> 0.01787402576 | Z11: =1/V11 -> 2.777773775 | AB11: Ônibus Básico | AD11: Sem Ar | AE11: =0.3600005188 -> 0.3600005188 | AF11: =AE11*$D$6 -> 0.5958008586 | AH11: =AF11*$F$10 -> 0.01787402576 | AI11: =1/AE11 -> 2.777773775 | AK11: Ônibus Básico | AM11: Sem Ar | AN11: =0.3600005188 -> 0.3600005188 | AO11: =AN11*$D$6 -> 0.5958008586 | AQ11: =AO11*$F$10 -> 0.01787402576 | AR11: =1/AN11 -> 2.777773775 | AT11: Ônibus Básico | AV11: Sem Ar | AW11: =0.3600005188 -> 0.3600005188 | AX11: =AW11*$D$6 -> 0.5958008586 | AZ11: =AX11*$F$10 -> 0.01787402576 | BA11: =1/AW11 -> 2.777773775 | BD11: i = h + g | BE11: =BE9+BE10 -> 1.735898774 | BF11: Preço Diesel Proposta com ICMS
A12: Padron | C12: Com Ar | D12: =D11 -> 0.3600005188 | E12: =D12*$D$6 -> 0.5958008586 | G12: =E12*$F$10 -> 0.01787402576 | H12: =1/D12 -> 2.777773775 | J12: Padron | L12: Com Ar | M12: =M11 -> 0.3600005188 | N12: =M12*$D$6 -> 0.5958008586 | P12: =N12*$F$10 -> 0.01787402576 | Q12: =1/M12 -> 2.777773775 | S12: Padron | U12: Com Ar | V12: =V11 -> 0.3600005188 | W12: =V12*$D$6 -> 0.5958008586 | Y12: =W12*$F$10 -> 0.01787402576 | Z12: =1/V12 -> 2.777773775 | AB12: Padron | AD12: Com Ar | AE12: =AE11 -> 0.3600005188 | AF12: =AE12*$D$6 -> 0.5958008586 | AH12: =AF12*$F$10 -> 0.01787402576 | AI12: =1/AE12 -> 2.777773775 | AK12: Padron | AM12: Com Ar | AN12: =AN11 -> 0.3600005188 | AO12: =AN12*$D$6 -> 0.5958008586 | AQ12: =AO12*$F$10 -> 0.01787402576 | AR12: =1/AN12 -> 2.777773775 | AT12: Padron | AV12: Com Ar | AW12: =AW11 -> 0.3600005188 | AX12: =AW12*$D$6 -> 0.5958008586 | AZ12: =AX12*$F$10 -> 0.01787402576 | BA12: =1/AW12 -> 2.777773775
A13: Articulado | C13: Com Ar | D13: =0.6100005188 -> 0.6100005188 | E13: =D13*$D$6 -> 1.009550859 | G13: =E13*$F$10 -> 0.03028652576 | H13: =1/D13 -> 1.639342868 | J13: Articulado | L13: Com Ar | M13: =0.6100005188 -> 0.6100005188 | N13: =M13*$D$6 -> 1.009550859 | P13: =N13*$F$10 -> 0.03028652576 | Q13: =1/M13 -> 1.639342868 | S13: Articulado | U13: Com Ar | V13: =0.6100005188 -> 0.6100005188 | W13: =V13*$D$6 -> 1.009550859 | Y13: =W13*$F$10 -> 0.03028652576 | Z13: =1/V13 -> 1.639342868 | AB13: Articulado | AD13: Com Ar | AE13: =0.6100005188 -> 0.6100005188 | AF13: =AE13*$D$6 -> 1.009550859 | AH13: =AF13*$F$10 -> 0.03028652576 | AI13: =1/AE13 -> 1.639342868 | AK13: Articulado | AM13: Com Ar | AN13: =0.6100005188 -> 0.6100005188 | AO13: =AN13*$D$6 -> 1.009550859 | AQ13: =AO13*$F$10 -> 0.03028652576 | AR13: =1/AN13 -> 1.639342868 | AT13: Articulado | AV13: Com Ar | AW13: =0.6100005188 -> 0.6100005188 | AX13: =AW13*$D$6 -> 1.009550859 | AZ13: =AX13*$F$10 -> 0.03028652576 | BA13: =1/AW13 -> 1.639342868
A14: Elétrico | C14: Com Ar | D14: 1.15 | E14: =D14*$D$7 -> 0.88 | H14: 0 | J14: =A14 -> Elétrico | L14: Com Ar | M14: =D14 -> 1.15 | N14: =M14*$D$7 -> 0.88 | Q14: 0 | S14: Articulado BRT | U14: Com Ar | V14: 0 | W14: =V14*$D$6 -> 0 | Y14: =W14*$F$10 -> 0 | Z14: 0 | AB14: Articulado BRT | AD14: Com Ar | AE14: 0 | AF14: =AE14*$D$6 -> 0 | AH14: =AF14*$F$10 -> 0 | AI14: 0 | AK14: Articulado BRT | AM14: Com Ar | AN14: 0 | AO14: =AN14*$D$6 -> 0 | AQ14: =AO14*$F$10 -> 0 | AR14: 0 | AT14: Articulado BRT | AV14: Com Ar | AW14: 0 | AX14: =AW14*$D$6 -> 0 | AZ14: =AX14*$F$10 -> 0 | BA14: 0
A20: Pneus
A21: Pneus
A22: Tipo | C22: Quantidade | D22: Custo (R$) | E22: Vida | F22: Número de | G22: Custo Unitário | H22: Custo por km
A23: Veículos | C23: de Pneus | D23: Unitário | E23: Útil | F23: Recapagens | G23: Recapagem (R$) | H23: (R$/km)
A24: Miniônibus | C24: 6 | D24: 560 | E24: 90000 | F24: 0 | G24: 288 | H24: =((C24*D24+C24*F24*G24)/E24) -> 0.03733333333
A25: Ônibus Básico | C25: 6 | D25: 960 | E25: 150000 | F25: 2 | G25: 288 | H25: =((C25*D25+C25*F25*G25)/E25) -> 0.06144
A26: Padron | C26: =C25 -> 6 | D26: =D27 -> 960 | E26: =E25 -> 150000 | F26: =F27 -> 2 | G26: =G25 -> 288 | H26: =((C26*D26+C26*F26*G26)/E26) -> 0.06144
A27: Articulado | C27: 10 | D27: 960 | E27: 150000 | F27: 2 | G27: 288 | H27: =((C27*D27+C27*F27*G27)/E27) -> 0.1024
A28: Articulado BRT | C28: 0 | D28: 0 | E28: 0 | F28: 0 | G28: 0 | H28: 0
A32: Peças e acessórios de reposição
C34: Coeficiente do valor do veículo novo
C35: Tipo | E35: Ar Condicionado | F35: Coeficiente | G35: R$/km
C36: Veículos
C37: Miniônibus | E37: Sem Ar | F37: =0.00000072+E42 -> 7.20210158e-07 | G37: ='Plan 3 Custo Capital'!F9*F37 -> 0.1632284302
C38: Ônibus Básico | E38: Sem Ar | F38: =0.00000072+E42 -> 7.20210158e-07 | G38: ='Plan 3 Custo Capital'!G9*'Custos Variáveis'!F38 -> 0.175904129
C39: Padron | F39: =F38 -> 7.20210158e-07 | G39: ='Plan 3 Custo Capital'!H9*F39 -> 0.2526294639
C40: Articulado | E40: Com Ar | F40: =0.0000007201+E42 -> 7.20310158e-07 | G40: =F40*'Plan 3 Custo Capital'!I13 -> 0.533317641
C41: Elétrico | F41: 2.214382771e-07 | G41: =F41*'Custo Capital B'!I13 -> 0.1043828793
E42: 2.10158e-10
F43: ='FC Pág.1'!D27 -> 6770810.08
A44: Custo variável por km | F44: 6086532.13 | G44: Fluxo real
F45: =F44-F43 -> -684277.9503
C46: Tipo | E46: Ar Condicionado | F46: R$/km (total)
C47: Veículos
C48: Miniônibus | E48: Sem Ar | F48: =E10+G10+H24+G37 -> 0.6875981994
C49: Ônibus Básico | E49: Sem Ar | F49: =E11+G11+H25+G38 -> 0.8510190134
C50: Padron | F50: =E12+G12+H26+G39 -> 0.9277443482
C51: Articulado | E51: Com Ar | F51: =E13+G13+H27+G40 -> 1.675555025
C52: Articulado BRT | F52: =E14+G14+H28+G41 -> 0.9843828793

Sheet FU RESUMO
B2: STPC/DF - DISSÍDIO COLETIVO - REAJUSTES DOS SALÁRIOS E BENEFÍCIOS
B3: Histórico | C3: REAJUSTES DE MÃO DE OBRA | G3: Benefícios
C4: Mot. | D4: Mot. | E4: Cobra- | F4: Demais | G4: Tikets | H4: Cestas | I4: Plano | J4: Plano | K4: Seguro Vida
C5: Diversos | D5: Artic. | E5: dores | F5: Funcionários | I5: de Saúde | J5: Odontol. | K5: é deduzido
B6: Licitação | C6: 100 | D6: 100 | E6: 100 | F6: 100 | G6: 100 | H6: 100 | I6: 100 | J6: 100 | K6: 100
B7: 2013-05-01 | C7: 0.0668 | D7: 0.0668 | E7: 0.0668 | F7: 0.0668 | G7: 0.0668 | H7: 0.0668 | I7: 0.0668 | J7: 0.0668 | K7: 0
C8: =C6*(1+C7) -> 106.68 | D8: =D6*(1+D7) -> 106.68 | E8: 106.68 | F8: 106.68 | G8: 106.68 | H8: 106.68 | I8: 106.68 | J8: 106.68 | K8: 100
B9: 2014-05-01 | C9: 0.2 | D9: 0.3 | E9: 0.2 | F9: 0.2 | G9: 0.12 | H9: 0.4 | I9: 0.12 | J9: 0.12 | K9: 0
C10: =C8*(1+C9) -> 128.016 | D10: =D8*(1+D9) -> 138.684 | E10: 128.016 | F10: 128.016 | G10: 119.4816 | H10: 149.352 | I10: 119.4816 | J10: 119.4816 | K10: 100
B11: 2015-05-01 | C11: 0.1 | D11: 0.1 | E11: 0.1 | F11: 0.1 | G11: 0.11 | H11: 0.11 | I11: 0 | J11: 0 | K11: 0
C12: =C10*(1+C11) -> 140.8176 | D12: =D10*(1+D11) -> 152.5524 | E12: 140.8176 | F12: 140.8176 | G12: 132.624576 | H12: 165.78072 | I12: 119.4816 | J12: 119.4816 | K12: 100
B13: 2016-05-01 | C13: 0.1 | D13: 0.1 | E13: 0.1 | F13: 0.1 | G13: 0.11 | H13: 0.11 | I13: 0.11 | J13: 0.3 | K13: 0
C14: =C12*(1+C13) -> 154.89936 | D14: =D12*(1+D13) -> 167.80764 | E14: 154.89936 | F14: 154.89936 | G14: 147.2132794 | H14: 184.0165992 | I14: 132.624576 | J14: 155.32608 | K14: 100
B15: 2017-05-01 | C15: 0.0525 | D15: 0.0525 | E15: 0.0525 | F15: 0.0525 | G15: 0.0525 | H15: 0.0525 | I15: 0.14 | J15: 0.14 | K15: 0
C16: =C14*(1+C15) -> 163.0315764 | D16: =D14*(1+D15) -> 176.6175411 | E16: 163.0315764 | F16: 163.0315764 | G16: 154.9419765 | H16: 193.6774707 | I16: 151.1920166 | J16: 177.0717312 | K16: 100
B17: 2018-08-01 | C17: 0.0445 | D17: 0.0445 | E17: 0.0445 | F17: 0.0445 | G17: 0.05 | H17: 0.05 | I17: 0.078 | J17: 0.05 | K17: 0
C18: =C16*(1+C17) -> 170.2864815 | D18: =D16*(1+D17) -> 184.4770217 | E18: 170.2864815 | F18: 170.2864815 | G18: 162.6890754 | H18: 203.3613442 | I18: 162.9849939 | J18: 185.9253178 | K18: 100
B19: % Acumulado | C19: =(C18/C6)-100% -> 0.7028648155 | D19: 0.8447702168 | E19: 0.7028648155 | F19: 0.7028648155 | G19: 0.6268907535 | H19: 1.033613442 | I19: 0.6298499394 | J19: 0.8592531776 | K19: 0
B22: Bacia 1 | C22: R$ da Licitação corrigidos nos Dissídios Coletivos | K22: Ano 1 | M22: =B22 -> Bacia 1 | N22: R$ Salário Total Com Horas Extras e Adicional Noturno Pago Por Função (Sem inclusão de Encargos Sociais) - Valor de GFIP | S22: =K22 -> Ano 1 | U22: =M22 -> Bacia 1 | V22: Quantidade de Funcionários - Cálculo pela Folha | AA22: =S22 -> Ano 1 | AC22: =U22 -> Bacia 1 | AD22: Quantidade de Frota Operacional | AH22: =AA22 -> Ano 1 | AJ22: =AC22 -> Bacia 1 | AK22: FU POR FUNÇÃO | AO22: =AH22 -> Ano 1 | AQ22: =AJ22 -> Bacia 1 | AR22: FU FÍSICO PARA BENEFÍCIOS | AV22: =AO22 -> Ano 1 | AX22: =AQ22 -> Bacia 1 | AY22: Qtde. Funcionários - FÍSICO para Benefícios e FOLHA para Salários base de cálculo dos Enc.Sociais | BP22: =AV22 -> Ano 1 | BR22: =AX22 -> Bacia 1 | BS22: =BP22 -> Ano 1
B23: Mês | C23: R$ Salário Médio da Função (Sem Encargos) | M23: Mês | U23: Mês | V23: Inclusas todas as Horas Extras | AC23: Mês | AJ23: Mês | AK23: CÁLCULO SOBRE A FOLHA DE PAGAMENTO | AQ23: Mês | AX23: Mês | AY23: Motoristas | BB23: Cobradores | BE23: Controle Operacional | BH23: Manutenção | BK23: Administração | BN23: Total Geral | BR23: Mês | BS23: Cálculo Mot.Articulados | BV23: Qtde. Física de Motoristas | BY23: Cálculo R$ Mot.Artic. | CA23: R$
B24: de | C24: Motoristas | E24: Qtde.Física de Mot. | G24: R$ Salário | H24: Cobradores | I24: Controle | J24: Manu- | K24: Admi- | M24: de | N24: Motoristas | O24: Cobradores | P24: Controle | Q24: Manutenção | R24: Administração | S24: R$ | U24: de | V24: Motoristas | W24: Cobradores | X24: Controle | Y24: Manutenção | Z24: Administração | AA24: Qtde. | AC24: de | AD24: Motoristas | AE24: Cobradores | AF24: Controle | AG24: Manutenção | AH24: Administração | AJ24: de | AK24: Motoristas | AL24: Cobradores | AM24: Controle | AN24: Manutenção | AO24: Administração | AQ24: de | AR24: Motoristas | AS24: Cobradores | AT24: Controle | AU24: Manutenção | AV24: Administração | AX24: de | AY24: Físico | AZ24: Folha | BA24: Dif.Folha | BB24: Físico | BC24: Folha | BD24: Dif.Folha | BE24: Físico | BF24: Folha | BG24: Dif.Folha | BH24: Físico | BI24: Folha | BJ24: Dif.Folha | BK24: Físico | BL24: Folha | BM24: Dif.Folha | BN24: Físico | BO24: Folha | BP24: Dif.Folha | BR24: de | BS24: Frota | BT24: FU físico | BU24: Mot. | BV24: Mot. | BW24: Mot. | BX24: Mot. | BY24: R$ Mot. | BZ24: R$ Mot. | CA24: Total
B25: Ref. | C25: Diversos | D25: Artic. | E25: Div. | F25: Artic. | G25: Médio Mot. | I25: Operacional | J25: tenção | K25: nistração | M25: Ref. | N25: Diversos | P25: Operacional | S25: Total | U25: Ref. | X25: Operacional | AA25: Total | AC25: Ref. | AF25: Operacional | AJ25: Ref. | AM25: Operacional | AQ25: Ref. | AT25: Operacional | AX25: Ref. | BA25: (-) Físico | BD25: (-) Físico | BG25: (-) Físico | BJ25: (-) Físico | BM25: (-) Físico | BP25: (-) Físico | BR25: Ref. | BS25: Artic. | BT25: Mot.Div. | BU25: Artic. | BV25: Total | BW25: Diversos | BX25: Artic. | BY25: Diversos | BZ25: Articulados | CA25: Motoristas
B26: 2013-11-01 | E26: =BW26 ->  | F26: =BX26 ->  | G26: =IF(C26>0,((C26*E26)+(D26*F26))/(E26+F26),0) -> 0 | M26: =B26 -> 2013-11-01 | S26: =SUM(N26:R26) -> 0 | U26: =M26 -> 2013-11-01 | V26: =N26/G26 ->  | W26: =O26/H26 ->  | X26: =P26/I26 ->  | Y26: =Q26/J26 ->  | Z26: =R26/K26 ->  | AA26: =SUM(V26:Z26) ->  | AC26: =U26 -> 2013-11-01 | AJ26: =AC26 -> 2013-11-01 | AK26: 2.45 | AL26: =AK26 -> 2.45 | AM26: ='Plan2 R$ Pessoal'!D23 -> 0.1206032663 | AN26: ='Plan2 R$ Pessoal'!D45 -> 0.4472361809 | AO26: ='Plan4 R$ Pessoal'!D33 -> 0.09296482412 | AQ26: =AJ26 -> 2013-11-01 | AR26: 2.45 | AS26: =AR26 -> 2.45 | AT26: 0.1206032663 | AU26: 0.4472361809 | AV26: 0.09296482412 | AX26: =AQ26 -> 2013-11-01 | AZ26: =V26 ->  | BA26: =AZ26-AY26 ->  | BC26: =W26 ->  | BD26: =BC26-BB26 ->  | BF26: =X26 ->  | BG26: =BF26-BE26 ->  | BI26: =Y26 ->  | BJ26: =BI26-BH26 ->  | BL26: =Z26 ->  | BM26: =BL26-BK26 ->  | BN26: =AY26+BB26+BE26+BH26+BK26 -> 0 | BO26: =AZ26+BC26+BF26+BI26+BL26 ->  | BP26: =BO26-BN26 ->  | BR26: =AX26 -> 2013-11-01 | BT26: =AY26/AD26 ->  | BU26: =BT26*BS26 ->  | BV26: =AY26 -> 0 | BW26: =BV26-BX26 ->  | BX26: =BU26 ->  | BY26: =N26/BV26*BW26 ->  | BZ26: =N26/BV26*BX26 ->  | CA26: =BY26+BZ26 -> 
B27: =DATE(YEAR(B26),MONTH(B26)+1,DAY(B26)) -> 2013-12-01 | C27: =C26 -> 0 | D27: 0 | G27: =IF(C27>0,((C27*E27)+(D27*F27))/(E27+F27),0) -> 0 | H27: =H26 -> 0 | I27: 0 | J27: 0 | K27: 0 | M27: 2013-12-01 | S27: =SUM(N27:R27) -> 0 | U27: 2013-12-01 | V27: =N27/G27 ->  | AA27: =SUM(V27:Z27) ->  | AC27: 2013-12-01 | AJ27: =AC27 -> 2013-12-01 | AK27: 2.45 | AL27: =AK27 -> 2.45 | AM27: =AM26 -> 0.1206032663 | AN27: =AN26 -> 0.4472361809 | AO27: =AO26 -> 0.09296482412 | AQ27: =AJ27 -> 2013-12-01 | AR27: =AK27 -> 2.45 | AS27: =AR27 -> 2.45 | AT27: =AT26 -> 0.1206032663 | AU27: 0.4472361809 | AV27: 0.09296482412 | AX27: 2013-12-01 | AZ27: =V27 ->  | BN27: 0 | BR27: 2013-12-01 | BT27: =AY27/AD27 ->  | BV27: =AY27 -> 0 | BW27: =BV27-BX27 ->  | BX27: =BU27 ->  | BY27: =N27/BV27*BW27 ->  | BZ27: =N27/BV27*BX27 -> 
B28: 2014-01-01 | C28: 0 | D28: 0 | G28: =IF(C28>0,((C28*E28)+(D28*F28))/(E28+F28),0) -> 0 | H28: 0 | I28: 0 | J28: 0 | K28: 0 | M28: 2014-01-01 | S28: 0 | U28: 2014-01-01 | AC28: 2014-01-01 | AJ28: 2014-01-01 | AK28: 2.45 | AL28: 2.45 | AM28: 0.1206032663 | AN28: 0.4472361809 | AO28: 0.09296482412 | AQ28: =AJ28 -> 2014-01-01 | AR28: 2.45 | AS28: 2.45 | AT28: 0.1206032663 | AU28: 0.4472361809 | AV28: 0.09296482412 | AX28: 2014-01-01 | BN28: 0 | BR28: 2014-01-01 | BV28: 0 | BX28: =BU28 ->  | BZ28: =N28/BV28*BX28 -> 
B29: 2014-02-01 | C29: 0 | D29: 0 | G29: 0 | H29: 0 | I29: 0 | J29: 0 | K29: 0 | M29: 2014-02-01 | S29: 0 | U29: 2014-02-01 | AC29: 2014-02-01 | AJ29: 2014-02-01 | AK29: 2.45 | AL29: 2.45 | AM29: 0.1206032663 | AN29: 0.4472361809 | AO29: 0.09296482412 | AQ29: 2014-02-01 | AR29: 2.45 | AS29: 2.45 | AT29: 0.1206032663 | AU29: 0.4472361809 | AV29: 0.09296482412 | AX29: 2014-02-01 | BN29: 0 | BR29: 2014-02-01 | BV29: 0 | BX29: =BU29 -> 
B30: 2014-03-01 | C30: =C29*(C9/100*100+1) -> 0 | D30: =D29*(D9/100*100+1) -> 0 | G30: 0 | H30: =H29*(E9/100*100+1) -> 0 | I30: =I29*(F9/100*100+1) -> 0 | J30: =J29*(F9/100*100+1) -> 0 | K30: =K29*(F9/100*100+1) -> 0 | M30: 2014-03-01 | S30: 0 | U30: 2014-03-01 | AC30: 2014-03-01 | AJ30: 2014-03-01 | AK30: 2.45 | AL30: 2.45 | AM30: 0.1206032663 | AN30: 0.4472361809 | AO30: 0.09296482412 | AQ30: 2014-03-01 | AR30: 2.45 | AS30: 2.45 | AT30: 0.1206032663 | AU30: 0.4472361809 | AV30: 0.09296482412 | AX30: 2014-03-01 | BN30: 0 | BR30: 2014-03-01 | BV30: 0 | BX30: =BU30 -> 
B31: 2014-04-01 | C31: =C30 -> 0 | D31: 0 | G31: 0 | H31: =H30 -> 0 | I31: 0 | J31: 0 | K31: 0 | M31: 2014-04-01 | S31: 0 | U31: 2014-04-01 | AC31: 2014-04-01 | AJ31: 2014-04-01 | AK31: 2.45 | AL31: 2.45 | AM31: 0.1206032663 | AN31: 0.4472361809 | AO31: 0.09296482412 | AQ31: 2014-04-01 | AR31: 2.45 | AS31: 2.45 | AT31: 0.1206032663 | AU31: 0.4472361809 | AV31: 0.09296482412 | AX31: 2014-04-01 | BN31: 0 | BR31: 2014-04-01 | BV31: 0
B32: 2014-05-01 | C32: 0 | D32: 0 | G32: 0 | H32: 0 | I32: 0 | J32: 0 | K32: 0 | M32: 2014-05-01 | S32: 0 | U32: 2014-05-01 | AC32: 2014-05-01 | AJ32: 2014-05-01 | AK32: 2.45 | AL32: 2.45 | AM32: 0.1206032663 | AN32: 0.4472361809 | AO32: 0.09296482412 | AQ32: 2014-05-01 | AR32: 2.45 | AS32: 2.45 | AT32: 0.1206032663 | AU32: 0.4472361809 | AV32: 0.09296482412 | AX32: 2014-05-01 | BN32: 0 | BR32: 2014-05-01 | BV32: 0
B33: 2014-06-01 | C33: 0 | D33: 0 | G33: 0 | H33: 0 | I33: 0 | J33: 0 | K33: 0 | M33: 2014-06-01 | S33: 0 | U33: 2014-06-01 | AC33: 2014-06-01 | AJ33: 2014-06-01 | AK33: 2.45 | AL33: 2.45 | AM33: 0.1206032663 | AN33: 0.4472361809 | AO33: 0.09296482412 | AQ33: 2014-06-01 | AR33: 2.45 | AS33: 2.45 | AT33: 0.1206032663 | AU33: 0.4472361809 | AV33: 0.09296482412 | AX33: 2014-06-01 | BN33: 0 | BR33: 2014-06-01 | BV33: 0
B34: 2014-07-01 | C34: 0 | D34: 0 | G34: 0 | H34: 0 | I34: 0 | J34: 0 | K34: 0 | M34: 2014-07-01 | S34: 0 | U34: 2014-07-01 | AC34: 2014-07-01 | AJ34: 2014-07-01 | AK34: 2.45 | AL34: 2.45 | AM34: 0.1206032663 | AN34: 0.4472361809 | AO34: 0.09296482412 | AQ34: 2014-07-01 | AR34: 2.45 | AS34: 2.45 | AT34: 0.1206032663 | AU34: 0.4472361809 | AV34: 0.09296482412 | AX34: 2014-07-01 | BN34: 0 | BR34: 2014-07-01 | BV34: 0
B35: 2014-08-01 | C35: 0 | D35: 0 | G35: 0 | H35: 0 | I35: 0 | J35: 0 | K35: 0 | M35: 2014-08-01 | S35: 0 | U35: 2014-08-01 | AC35: 2014-08-01 | AJ35: 2014-08-01 | AK35: 2.45 | AL35: 2.45 | AM35: 0.1206032663 | AN35: 0.4472361809 | AO35: 0.09296482412 | AQ35: 2014-08-01 | AR35: 2.45 | AS35: 2.45 | AT35: 0.1206032663 | AU35: 0.4472361809 | AV35: 0.09296482412 | AX35: 2014-08-01 | BN35: 0 | BR35: 2014-08-01 | BV35: 0
B36: 2014-09-01 | C36: 0 | D36: 0 | G36: 0 | H36: 0 | I36: 0 | J36: 0 | K36: 0 | M36: 2014-09-01 | S36: 0 | U36: 2014-09-01 | AC36: 2014-09-01 | AJ36: 2014-09-01 | AK36: 2.45 | AL36: 2.45 | AM36: 0.1206032663 | AN36: 0.4472361809 | AO36: 0.09296482412 | AQ36: 2014-09-01 | AR36: 2.45 | AS36: 2.45 | AT36: 0.1206032663 | AU36: 0.4472361809 | AV36: 0.09296482412 | AX36: 2014-09-01 | BN36: 0 | BR36: 2014-09-01 | BV36: 0
B37: 2014-10-01 | C37: 0 | D37: 0 | G37: 0 | H37: 0 | I37: 0 | J37: 0 | K37: 0 | M37: 2014-10-01 | S37: 0 | U37: 2014-10-01 | AC37: 2014-10-01 | AJ37: 2014-10-01 | AK37: 2.45 | AL37: 2.45 | AM37: 0.1206032663 | AN37: 0.4472361809 | AO37: 0.09296482412 | AQ37: 2014-10-01 | AR37: 2.45 | AS37: 2.45 | AT37: 0.1206032663 | AU37: 0.4472361809 | AV37: 0.09296482412 | AX37: 2014-10-01 | BN37: 0 | BR37: 2014-10-01 | BV37: 0
B39: =B22 -> Bacia 1 | C39: R$ da Licitação corrigidos nos Dissídios Coletivos | K39: Ano 2 | M39: =B39 -> Bacia 1 | N39: R$ Salário Total Com Horas Extras e Adicional Noturno Pago Por Função (Sem inclusão de Encargos Sociais) - Valor de GFIP | S39: =K39 -> Ano 2 | U39: =M39 -> Bacia 1 | V39: Quantidade de Funcionários - Cálculo pela Folha | AA39: =S39 -> Ano 2 | AC39: =U39 -> Bacia 1 | AD39: Quantidade de Frota Operacional | AH39: =AA39 -> Ano 2 | AJ39: =AC39 -> Bacia 1 | AK39: FU POR FUNÇÃO | AO39: =AH39 -> Ano 2 | AQ39: =AJ39 -> Bacia 1 | AR39: FU FÍSICO PARA BENEFÍCIOS | AV39: =AO39 -> Ano 2 | AX39: =AQ39 -> Bacia 1 | AY39: Qtde. Funcionários - FÍSICO para Benefícios e FOLHA para Salários base de cálculo dos Enc.Sociais | BP39: =AV39 -> Ano 2 | BR39: =AX39 -> Bacia 1 | BS39: =BP39 -> Ano 2
B40: Mês | C40: R$ Salário Médio da Função (Sem Encargos) | M40: Mês | U40: Mês | V40: Inclusas todas as Horas Extras | AC40: Mês | AJ40: Mês | AK40: CÁLCULO SOBRE A FOLHA DE PAGAMENTO | AQ40: Mês | AX40: Mês | AY40: Motoristas | BB40: Cobradores | BE40: Controle Operacional | BH40: Manutenção | BK40: Administração | BN40: Total Geral | BR40: Mês | BS40: Cálculo Mot.Articulados | BV40: Qtde. Física de Motoristas | BY40: Cálculo R$ Mot.Artic. | CA40: R$
C41: Motoristas | E41: Qtde.Física de Mot. | G41: R$ Salário | H41: Cobradores | I41: Controle | J41: Manu- | K41: Admi- | M41: de | N41: Motoristas | O41: Cobradores | P41: Controle | Q41: Manutenção | R41: Administração | S41: R$ | V41: Motoristas | W41: Cobradores | X41: Controle | Y41: Manutenção | Z41: Administração | AA41: Qtde. | AC41: de | AD41: Motoristas | AE41: Cobradores | AF41: Controle | AG41: Manutenção | AH41: Administração | AJ41: de | AK41: Motoristas | AL41: Cobradores | AM41: Controle | AN41: Manutenção | AO41: Administração | AQ41: de | AR41: Motoristas | AS41: Cobradores | AT41: Controle | AU41: Manutenção | AV41: Administração | AX41: de | AY41: Físico | AZ41: Folha | BA41: Dif.Folha | BB41: Físico | BC41: Folha | BD41: Dif.Folha | BE41: Físico | BF41: Folha | BG41: Dif.Folha | BH41: Físico | BI41: Folha | BJ41: Dif.Folha | BK41: Físico | BL41: Folha | BM41: Dif.Folha | BN41: Físico | BO41: Folha | BP41: Dif.Folha | BR41: de | BS41: Frota | BT41: FU físico | BU41: Mot. | BV41: Mot. | BW41: Mot. | BX41: Mot. | BY41: R$ Mot. | BZ41: R$ Mot. | CA41: Total
B42: Ref. | C42: Diversos | D42: Artic. | E42: Div. | F42: Artic. | G42: Médio Mot. | I42: Operacional | J42: tenção | K42: nistração | M42: Ref. | N42: Diversos | P42: Operacional | S42: Total | U42: Ref. | X42: Operacional | AA42: Total | AC42: Ref. | AF42: Operacional | AJ42: Ref. | AM42: Operacional | AQ42: Ref. | AT42: Operacional | AX42: Ref. | BA42: (-) Físico | BD42: (-) Físico | BG42: (-) Físico | BJ42: (-) Físico | BM42: (-) Físico | BP42: (-) Físico | BR42: Ref. | BS42: Artic. | BT42: Mot.Div. | BU42: Artic. | BV42: Total | BW42: Diversos | BX42: Artic. | BY42: Diversos | BZ42: Articulados | CA42: Motoristas
B43: =DATE(YEAR(B37),MONTH(B37)+1,DAY(B37)) -> 2014-11-01 | C43: =C37 -> 0 | D43: =D37 -> 0 | E43: =BW43 ->  | G43: =IF(C43>0,((C43*E43)+(D43*F43))/(E43+F43),0) -> 0 | H43: =H37 -> 0 | I43: =I37 -> 0 | J43: =J37 -> 0 | K43: =K37 -> 0 | M43: =B43 -> 2014-11-01 | S43: =SUM(N43:R43) -> 0 | U43: =M43 -> 2014-11-01 | V43: =N43/G43 ->  | AA43: =SUM(V43:Z43) ->  | AC43: =U43 -> 2014-11-01 | AJ43: =AC43 -> 2014-11-01 | AK43: 2.45 | AL43: =AK43 -> 2.45 | AM43: =AM37 -> 0.1206032663 | AN43: =AN37 -> 0.4472361809 | AO43: =AO37 -> 0.09296482412 | AQ43: =AJ43 -> 2014-11-01 | AR43: =AK43 -> 2.45 | AS43: =AR43 -> 2.45 | AT43: =AT37 -> 0.1206032663 | AU43: =AU37 -> 0.4472361809 | AV43: =AV37 -> 0.09296482412 | AX43: =AQ43 -> 2014-11-01 | AZ43: =V43 ->  | BA43: =AZ43-AY43 ->  | BC43: =W43 ->  | BD43: =BC43-BB43 ->  | BF43: =X43 ->  | BG43: =BF43-BE43 ->  | BI43: =Y43 ->  | BJ43: =BI43-BH43 ->  | BL43: =Z43 ->  | BM43: =BL43-BK43 ->  | BN43: =AY43+BB43+BE43+BH43+BK43 -> 0 | BP43: =BO43-BN43 ->  | BR43: =AX43 -> 2014-11-01 | BT43: =AY43/AD43 ->  | BU43: =BT43*BS43 ->  | BV43: =AY43 -> 0 | BW43: =BV43-BX43 ->  | BX43: =BU43 ->  | BY43: =N43/BV43*BW43 ->  | BZ43: =N43/BV43*BX43 ->  | CA43: =BY43+BZ43 -> 
B44: =DATE(YEAR(B43),MONTH(B43)+1,DAY(B43)) -> 2014-12-01 | C44: =C43 -> 0 | D44: =D43 -> 0 | G44: 0 | H44: =H43 -> 0 | I44: =I43 -> 0 | J44: =J43 -> 0 | K44: =K43 -> 0 | M44: 2014-12-01 | S44: 0 | U44: 2014-12-01 | AC44: 2014-12-01 | AJ44: 2014-12-01 | AK44: 2.45 | AL44: =AK44 -> 2.45 | AM44: =AM43 -> 0.1206032663 | AN44: 0.4472361809 | AO44: 0.09296482412 | AQ44: 2014-12-01 | AR44: =AK44 -> 2.45 | AS44: =AR44 -> 2.45 | AT44: =AT43 -> 0.1206032663 | AU44: 0.4472361809 | AV44: 0.09296482412 | AX44: 2014-12-01 | BN44: 0 | BR44: 2014-12-01 | BV44: 0
B45: 2015-01-01 | C45: =C44 -> 0 | D45: 0 | G45: 0 | H45: =H44 -> 0 | I45: 0 | J45: 0 | K45: 0 | M45: 2015-01-01 | S45: 0 | U45: 2015-01-01 | AC45: 2015-01-01 | AJ45: 2015-01-01 | AK45: 2.45 | AL45: 2.45 | AM45: 0.1206032663 | AN45: 0.4472361809 | AO45: 0.09296482412 | AQ45: 2015-01-01 | AR45: 2.45 | AS45: 2.45 | AT45: 0.1206032663 | AU45: 0.4472361809 | AV45: 0.09296482412 | AX45: 2015-01-01 | BN45: 0 | BR45: 2015-01-01 | BV45: 0
B46: 2015-02-01 | C46: 0 | D46: 0 | G46: 0 | H46: 0 | I46: 0 | J46: 0 | K46: 0 | M46: 2015-02-01 | S46: 0 | U46: 2015-02-01 | AC46: 2015-02-01 | AJ46: 2015-02-01 | AK46: 2.45 | AL46: 2.45 | AM46: 0.1206032663 | AN46: 0.4472361809 | AO46: 0.09296482412 | AQ46: 2015-02-01 | AR46: 2.45 | AS46: 2.45 | AT46: 0.1206032663 | AU46: 0.4472361809 | AV46: 0.09296482412 | AX46: 2015-02-01 | BN46: 0 | BR46: 2015-02-01 | BV46: 0
B47: 2015-03-01 | C47: =C46*(C11/100*100+1) -> 0 | D47: =D46*(D11/100*100+1) -> 0 | G47: 0 | H47: =H46*(E11/100*100+1) -> 0 | I47: =I46*(F11/100*100+1) -> 0 | J47: =J46*(F11/100*100+1) -> 0 | K47: =K46*(F11/100*100+1) -> 0 | M47: 2015-03-01 | S47: 0 | U47: 2015-03-01 | AC47: 2015-03-01 | AJ47: 2015-03-01 | AK47: 2.45 | AL47: 2.45 | AM47: 0.1206032663 | AN47: 0.4472361809 | AO47: 0.09296482412 | AQ47: 2015-03-01 | AR47: 2.45 | AS47: 2.45 | AT47: 0.1206032663 | AU47: 0.4472361809 | AV47: 0.09296482412 | AX47: 2015-03-01 | BN47: 0 | BR47: 2015-03-01 | BV47: 0
B48: 2015-04-01 | C48: =C47 -> 0 | D48: 0 | G48: 0 | H48: =H47 -> 0 | I48: 0 | J48: 0 | K48: 0 | M48: 2015-04-01 | S48: 0 | U48: 2015-04-01 | AC48: 2015-04-01 | AJ48: 2015-04-01 | AK48: 2.45 | AL48: 2.45 | AM48: 0.1206032663 | AN48: 0.4472361809 | AO48: 0.09296482412 | AQ48: 2015-04-01 | AR48: 2.45 | AS48: 2.45 | AT48: 0.1206032663 | AU48: 0.4472361809 | AV48: 0.09296482412 | AX48: 2015-04-01 | BN48: 0 | BR48: 2015-04-01 | BV48: 0
B49: 2015-05-01 | C49: 0 | D49: 0 | G49: 0 | H49: 0 | I49: 0 | J49: 0 | K49: 0 | M49: 2015-05-01 | S49: 0 | U49: 2015-05-01 | AC49: 2015-05-01 | AJ49: 2015-05-01 | AK49: 2.7569 | AL49: =AK49 -> 2.7569 | AM49: 0.1206032663 | AN49: 0.4472361809 | AO49: 0.09296482412 | AQ49: 2015-05-01 | AR49: 2.7569 | AS49: 2.7569 | AT49: 0.1206032663 | AU49: 0.4472361809 | AV49: 0.09296482412 | AX49: 2015-05-01 | BN49: 0 | BR49: 2015-05-01 | BV49: 0
B50: 2015-06-01 | C50: 0 | D50: 0 | G50: 0 | H50: 0 | I50: 0 | J50: 0 | K50: 0 | M50: 2015-06-01 | S50: 0 | U50: 2015-06-01 | AC50: 2015-06-01 | AJ50: 2015-06-01 | AK50: 2.7569 | AL50: 2.7569 | AM50: 0.1206032663 | AN50: 0.4472361809 | AO50: 0.09296482412 | AQ50: 2015-06-01 | AR50: 2.7569 | AS50: 2.7569 | AT50: 0.1206032663 | AU50: 0.4472361809 | AV50: 0.09296482412 | AX50: 2015-06-01 | BN50: 0 | BR50: 2015-06-01 | BV50: 0
B51: 2015-07-01 | C51: 0 | D51: 0 | G51: 0 | H51: 0 | I51: 0 | J51: 0 | K51: 0 | M51: 2015-07-01 | S51: 0 | U51: 2015-07-01 | AC51: 2015-07-01 | AJ51: 2015-07-01 | AK51: 2.7569 | AL51: 2.7569 | AM51: 0.1206032663 | AN51: 0.4472361809 | AO51: 0.09296482412 | AQ51: 2015-07-01 | AR51: 2.7569 | AS51: 2.7569 | AT51: 0.1206032663 | AU51: 0.4472361809 | AV51: 0.09296482412 | AX51: 2015-07-01 | BN51: 0 | BR51: 2015-07-01 | BV51: 0
B52: 2015-08-01 | C52: 0 | D52: 0 | G52: 0 | H52: 0 | I52: 0 | J52: 0 | K52: 0 | M52: 2015-08-01 | S52: 0 | U52: 2015-08-01 | AC52: 2015-08-01 | AJ52: 2015-08-01 | AK52: 2.7569 | AL52: 2.7569 | AM52: 0.1206032663 | AN52: 0.4472361809 | AO52: 0.09296482412 | AQ52: 2015-08-01 | AR52: 2.7569 | AS52: 2.7569 | AT52: 0.1206032663 | AU52: 0.4472361809 | AV52: 0.09296482412 | AX52: 2015-08-01 | BN52: 0 | BR52: 2015-08-01 | BV52: 0
B53: 2015-09-01 | C53: 0 | D53: 0 | G53: 0 | H53: 0 | I53: 0 | J53: 0 | K53: 0 | M53: 2015-09-01 | S53: 0 | U53: 2015-09-01 | AC53: 2015-09-01 | AJ53: 2015-09-01 | AK53: 2.7569 | AL53: 2.7569 | AM53: 0.1206032663 | AN53: 0.4472361809 | AO53: 0.09296482412 | AQ53: 2015-09-01 | AR53: 2.7569 | AS53: 2.7569 | AT53: 0.1206032663 | AU53: 0.4472361809 | AV53: 0.09296482412 | AX53: 2015-09-01 | BN53: 0 | BR53: 2015-09-01 | BV53: 0
B54: 2015-10-01 | C54: 0 | D54: 0 | G54: 0 | H54: 0 | I54: 0 | J54: 0 | K54: 0 | M54: 2015-10-01 | S54: 0 | U54: 2015-10-01 | AC54: 2015-10-01 | AJ54: 2015-10-01 | AK54: 2.7569 | AL54: 2.7569 | AM54: 0.1206032663 | AN54: 0.4472361809 | AO54: 0.09296482412 | AQ54: 2015-10-01 | AR54: 2.7569 | AS54: 2.7569 | AT54: 0.1206032663 | AU54: 0.4472361809 | AV54: 0.09296482412 | AX54: 2015-10-01 | BN54: 0 | BR54: 2015-10-01 | BV54: 0
B56: =B39 -> Bacia 1 | C56: R$ da Licitação corrigidos nos Dissídios Coletivos | K56: Ano 3 | M56: =B56 -> Bacia 1 | N56: R$ Salário Total Com Horas Extras e Adicional Noturno Pago Por Função (Sem inclusão de Encargos Sociais) - Valor de GFIP | S56: =K56 -> Ano 3 | U56: =M56 -> Bacia 1 | V56: Quantidade de Funcionários - Cálculo pela Folha | AA56: =S56 -> Ano 3 | AC56: =U56 -> Bacia 1 | AD56: Quantidade de Frota Operacional | AH56: =AA56 -> Ano 3 | AJ56: =AC56 -> Bacia 1 | AK56: FU POR FUNÇÃO | AO56: =AH56 -> Ano 3 | AQ56: =AJ56 -> Bacia 1 | AR56: FU FÍSICO PARA BENEFÍCIOS | AV56: =AO56 -> Ano 3 | AX56: =AQ56 -> Bacia 1 | AY56: Qtde. Funcionários - FÍSICO para Benefícios e FOLHA para Salários base de cálculo dos Enc.Sociais | BP56: =AV56 -> Ano 3 | BR56: =AX56 -> Bacia 1 | BS56: =BP56 -> Ano 3
B57: Mês | C57: R$ Salário Médio da Função (Sem Encargos) | M57: Mês | U57: Mês | V57: Inclusas todas as Horas Extras | AC57: Mês | AJ57: Mês | AK57: CÁLCULO SOBRE A FOLHA DE PAGAMENTO | AQ57: Mês | AX57: Mês | AY57: Motoristas | BB57: Cobradores | BE57: Controle Operacional | BH57: Manutenção | BK57: Administração | BN57: Total Geral | BR57: Mês | BS57: Cálculo Mot.Articulados | BV57: Qtde. Física de Motoristas | BY57: Cálculo R$ Mot.Artic. | CA57: R$
C58: Motoristas | E58: Qtde.Física de Mot. | G58: R$ Salário | H58: Cobradores | I58: Controle | J58: Manu- | K58: Admi- | M58: de | N58: Motoristas | O58: Cobradores | P58: Controle | Q58: Manutenção | R58: Administração | S58: R$ | V58: Motoristas | W58: Cobradores | X58: Controle | Y58: Manutenção | Z58: Administração | AA58: Qtde. | AC58: de | AD58: Motoristas | AE58: Cobradores | AF58: Controle | AG58: Manutenção | AH58: Administração | AJ58: de | AK58: Motoristas | AL58: Cobradores | AM58: Controle | AN58: Manutenção | AO58: Administração | AQ58: de | AR58: Motoristas | AS58: Cobradores | AT58: Controle | AU58: Manutenção | AV58: Administração | AX58: de | AY58: Físico | AZ58: Folha | BA58: Dif.Folha | BB58: Físico | BC58: Folha | BD58: Dif.Folha | BE58: Físico | BF58: Folha | BG58: Dif.Folha | BH58: Físico | BI58: Folha | BJ58: Dif.Folha | BK58: Físico | BL58: Folha | BM58: Dif.Folha | BN58: Físico | BO58: Folha | BP58: Dif.Folha | BR58: de | BS58: Frota | BT58: FU físico | BU58: Mot. | BV58: Mot. | BW58: Mot. | BX58: Mot. | BY58: R$ Mot. | BZ58: R$ Mot. | CA58: Total
B59: Ref. | C59: Diversos | D59: Artic. | E59: Div. | F59: Artic. | G59: Médio Mot. | I59: Operacional | J59: tenção | K59: nistração | M59: Ref. | N59: Diversos | P59: Operacional | S59: Total | U59: Ref. | X59: Operacional | AA59: Total | AC59: Ref. | AF59: Operacional | AJ59: Ref. | AM59: Operacional | AQ59: Ref. | AT59: Operacional | AX59: Ref. | BA59: (-) Físico | BD59: (-) Físico | BG59: (-) Físico | BJ59: (-) Físico | BM59: (-) Físico | BP59: (-) Físico | BR59: Ref. | BS59: Artic. | BT59: Mot.Div. | BU59: Artic. | BV59: Total | BW59: Diversos | BX59: Artic. | BY59: Diversos | BZ59: Articulados | CA59: Motoristas
B60: =DATE(YEAR(B54),MONTH(B54)+1,DAY(B54)) -> 2015-11-01 | C60: =C54 -> 0 | D60: =D54 -> 0 | E60: =BW60 ->  | G60: =IF(C60>0,((C60*E60)+(D60*F60))/(E60+F60),0) -> 0 | H60: =H54 -> 0 | I60: =I54 -> 0 | J60: =J54 -> 0 | K60: =K54 -> 0 | M60: =B60 -> 2015-11-01 | S60: =SUM(N60:R60) -> 0 | U60: =M60 -> 2015-11-01 | V60: =N60/G60 ->  | AA60: =SUM(V60:Z60) ->  | AC60: =U60 -> 2015-11-01 | AJ60: =AC60 -> 2015-11-01 | AK60: 2.7569 | AL60: =AK60 -> 2.7569 | AM60: =AM54 -> 0.1206032663 | AN60: =AN54 -> 0.4472361809 | AO60: =AO54 -> 0.09296482412 | AQ60: =AJ60 -> 2015-11-01 | AR60: =AK60 -> 2.7569 | AS60: =AR60 -> 2.7569 | AT60: =AT54 -> 0.1206032663 | AU60: =AU54 -> 0.4472361809 | AV60: =AV54 -> 0.09296482412 | AX60: =AQ60 -> 2015-11-01 | AZ60: =V60 ->  | BA60: =AZ60-AY60 ->  | BC60: =W60 ->  | BD60: =BC60-BB60 ->  | BF60: =X60 ->  | BG60: =BF60-BE60 ->  | BI60: =Y60 ->  | BJ60: =BI60-BH60 ->  | BL60: =Z60 ->  | BM60: =BL60-BK60 ->  | BN60: =AY60+BB60+BE60+BH60+BK60 -> 0 | BP60: =BO60-BN60 ->  | BR60: =AX60 -> 2015-11-01 | BT60: =AY60/AD60 ->  | BU60: =BT60*BS60 ->  | BV60: =AY60 -> 0 | BW60: =BV60-BX60 ->  | BX60: =BU60 ->  | BY60: =N60/BV60*BW60 ->  | BZ60: =N60/BV60*BX60 ->  | CA60: =BY60+BZ60 -> 
B61: =DATE(YEAR(B60),MONTH(B60)+1,DAY(B60)) -> 2015-12-01 | C61: =C60 -> 0 | D61: =D60 -> 0 | G61: 0 | H61: =H60 -> 0 | I61: =I60 -> 0 | J61: =J60 -> 0 | K61: =K60 -> 0 | M61: 2015-12-01 | S61: 0 | U61: 2015-12-01 | AC61: 2015-12-01 | AJ61: 2015-12-01 | AK61: 2.7569 | AL61: =AK61 -> 2.7569 | AM61: =AM60 -> 0.1206032663 | AN61: 0.4472361809 | AO61: 0.09296482412 | AQ61: 2015-12-01 | AR61: =AK61 -> 2.7569 | AS61: =AR61 -> 2.7569 | AT61: =AT60 -> 0.1206032663 | AU61: 0.4472361809 | AV61: 0.09296482412 | AX61: 2015-12-01 | BN61: 0 | BR61: 2015-12-01 | BV61: 0
B62: 2016-01-01 | C62: 0 | D62: 0 | G62: 0 | H62: =H61 -> 0 | I62: =I61 -> 0 | J62: 0 | K62: 0 | M62: 2016-01-01 | S62: 0 | U62: 2016-01-01 | AC62: 2016-01-01 | AJ62: 2016-01-01 | AK62: 2.7569 | AL62: 2.7569 | AM62: 0.1206032663 | AN62: 0.4472361809 | AO62: 0.09296482412 | AQ62: 2016-01-01 | AR62: 2.7569 | AS62: 2.7569 | AT62: 0.1206032663 | AU62: 0.4472361809 | AV62: 0.09296482412 | AX62: 2016-01-01 | BN62: 0 | BR62: 2016-01-01 | BV62: 0
B63: 2016-02-01 | C63: 0 | D63: 0 | G63: 0 | H63: 0 | I63: 0 | J63: 0 | K63: 0 | M63: 2016-02-01 | S63: 0 | U63: 2016-02-01 | AC63: 2016-02-01 | AJ63: 2016-02-01 | AK63: 2.7569 | AL63: 2.7569 | AM63: 0.1206032663 | AN63: 0.4472361809 | AO63: 0.09296482412 | AQ63: 2016-02-01 | AR63: 2.7569 | AS63: 2.7569 | AT63: 0.1206032663 | AU63: 0.4472361809 | AV63: 0.09296482412 | AX63: 2016-02-01 | BN63: 0 | BR63: 2016-02-01 | BV63: 0
B64: 2016-03-01 | C64: =C63*(C13/100*100+1) -> 0 | D64: =D63*(D13/100*100+1) -> 0 | G64: 0 | H64: =H63*(E13/100*100+1) -> 0 | I64: =I63*(F13/100*100+1) -> 0 | J64: =J63*(F13/100*100+1) -> 0 | K64: =K63*(F13/100*100+1) -> 0 | M64: 2016-03-01 | S64: 0 | U64: 2016-03-01 | AC64: 2016-03-01 | AJ64: 2016-03-01 | AK64: 2.7569 | AL64: 2.7569 | AM64: 0.1206032663 | AN64: 0.4472361809 | AO64: 0.09296482412 | AQ64: 2016-03-01 | AR64: 2.7569 | AS64: 2.7569 | AT64: 0.1206032663 | AU64: 0.4472361809 | AV64: 0.09296482412 | AX64: 2016-03-01 | BN64: 0 | BR64: 2016-03-01 | BV64: 0
B65: 2016-04-01 | C65: =C64 -> 0 | D65: 0 | G65: 0 | H65: =H64 -> 0 | I65: 0 | J65: 0 | K65: 0 | M65: 2016-04-01 | S65: 0 | U65: 2016-04-01 | AC65: 2016-04-01 | AJ65: 2016-04-01 | AK65: 2.7569 | AL65: 2.7569 | AM65: 0.1206032663 | AN65: 0.4472361809 | AO65: 0.09296482412 | AQ65: 2016-04-01 | AR65: 2.7569 | AS65: 2.7569 | AT65: 0.1206032663 | AU65: 0.4472361809 | AV65: 0.09296482412 | AX65: 2016-04-01 | BN65: 0 | BR65: 2016-04-01 | BV65: 0
B66: 2016-05-01 | C66: 0 | D66: 0 | G66: 0 | H66: 0 | I66: 0 | J66: 0 | K66: 0 | M66: 2016-05-01 | S66: 0 | U66: 2016-05-01 | AC66: 2016-05-01 | AJ66: 2016-05-01 | AK66: 2.7569 | AL66: 2.7569 | AM66: 0.1206032663 | AN66: 0.4472361809 | AO66: 0.09296482412 | AQ66: 2016-05-01 | AR66: 2.7569 | AS66: 2.7569 | AT66: 0.1206032663 | AU66: 0.4472361809 | AV66: 0.09296482412 | AX66: 2016-05-01 | BN66: 0 | BR66: 2016-05-01 | BV66: 0
B67: 2016-06-01 | C67: 0 | D67: 0 | G67: 0 | H67: 0 | I67: 0 | J67: 0 | K67: 0 | M67: 2016-06-01 | S67: 0 | U67: 2016-06-01 | AC67: 2016-06-01 | AJ67: 2016-06-01 | AK67: 2.7569 | AL67: 2.7569 | AM67: 0.1206032663 | AN67: 0.4472361809 | AO67: 0.09296482412 | AQ67: 2016-06-01 | AR67: 2.7569 | AS67: 2.7569 | AT67: 0.1206032663 | AU67: 0.4472361809 | AV67: 0.09296482412 | AX67: 2016-06-01 | BN67: 0 | BR67: 2016-06-01 | BV67: 0
B68: 2016-07-01 | C68: 0 | D68: 0 | G68: 0 | H68: 0 | I68: 0 | J68: 0 | K68: 0 | M68: 2016-07-01 | S68: 0 | U68: 2016-07-01 | AC68: 2016-07-01 | AJ68: 2016-07-01 | AK68: 2.7569 | AL68: 2.7569 | AM68: 0.1206032663 | AN68: 0.4472361809 | AO68: 0.09296482412 | AQ68: 2016-07-01 | AR68: 2.7569 | AS68: 2.7569 | AT68: 0.1206032663 | AU68: 0.4472361809 | AV68: 0.09296482412 | AX68: 2016-07-01 | BN68: 0 | BR68: 2016-07-01 | BV68: 0
B69: 2016-08-01 | C69: 0 | D69: 0 | G69: 0 | H69: 0 | I69: 0 | J69: 0 | K69: 0 | M69: 2016-08-01 | S69: 0 | U69: 2016-08-01 | AC69: 2016-08-01 | AJ69: 2016-08-01 | AK69: 2.7569 | AL69: 2.7569 | AM69: 0.1206032663 | AN69: 0.4472361809 | AO69: 0.09296482412 | AQ69: 2016-08-01 | AR69: 2.7569 | AS69: 2.7569 | AT69: 0.1206032663 | AU69: 0.4472361809 | AV69: 0.09296482412 | AX69: 2016-08-01 | BN69: 0 | BR69: 2016-08-01 | BV69: 0
B70: 2016-09-01 | C70: 0 | D70: 0 | G70: 0 | H70: 0 | I70: 0 | J70: 0 | K70: 0 | M70: 2016-09-01 | S70: 0 | U70: 2016-09-01 | AC70: 2016-09-01 | AJ70: 2016-09-01 | AK70: 2.7569 | AL70: 2.7569 | AM70: 0.1206032663 | AN70: 0.4472361809 | AO70: 0.09296482412 | AQ70: 2016-09-01 | AR70: 2.7569 | AS70: 2.7569 | AT70: 0.1206032663 | AU70: 0.4472361809 | AV70: 0.09296482412 | AX70: 2016-09-01 | BN70: 0 | BR70: 2016-09-01 | BV70: 0
B71: 2016-10-01 | C71: 0 | D71: 0 | G71: 0 | H71: 0 | I71: 0 | J71: 0 | K71: 0 | M71: 2016-10-01 | S71: 0 | U71: 2016-10-01 | AC71: 2016-10-01 | AJ71: 2016-10-01 | AK71: 2.7569 | AL71: 2.7569 | AM71: 0.1206032663 | AN71: 0.4472361809 | AO71: 0.09296482412 | AQ71: 2016-10-01 | AR71: 2.7569 | AS71: 2.7569 | AT71: 0.1206032663 | AU71: 0.4472361809 | AV71: 0.09296482412 | AX71: 2016-10-01 | BN71: 0 | BR71: 2016-10-01 | BV71: 0
B73: =B56 -> Bacia 1 | C73: R$ da Licitação corrigidos nos Dissídios Coletivos | K73: Ano 4 | M73: =B73 -> Bacia 1 | N73: R$ Salário Total Com Horas Extras e Adicional Noturno Pago Por Função (Sem inclusão de Encargos Sociais) - Valor de GFIP | S73: =K73 -> Ano 4 | U73: =M73 -> Bacia 1 | V73: Quantidade de Funcionários - Cálculo pela Folha | AA73: =S73 -> Ano 4 | AC73: =U73 -> Bacia 1 | AD73: Quantidade de Frota Operacional | AH73: =AA73 -> Ano 4 | AJ73: =AC73 -> Bacia 1 | AK73: FU POR FUNÇÃO | AO73: =AH73 -> Ano 4 | AQ73: =AJ73 -> Bacia 1 | AR73: FU FÍSICO PARA BENEFÍCIOS | AV73: =AO73 -> Ano 4 | AX73: =AQ73 -> Bacia 1 | AY73: Qtde. Funcionários - FÍSICO para Benefícios e FOLHA para Salários base de cálculo dos Enc.Sociais | BP73: =AV73 -> Ano 4 | BR73: =AX73 -> Bacia 1 | BS73: =BP73 -> Ano 4
B74: Mês | C74: R$ Salário Médio da Função (Sem Encargos) | M74: Mês | U74: Mês | V74: Inclusas todas as Horas Extras | AC74: Mês | AJ74: Mês | AK74: CÁLCULO SOBRE A FOLHA DE PAGAMENTO | AQ74: Mês | AX74: Mês | AY74: Motoristas | BB74: Cobradores | BE74: Controle Operacional | BH74: Manutenção | BK74: Administração | BN74: Total Geral | BR74: Mês | BS74: Cálculo Mot.Articulados | BV74: Qtde. Física de Motoristas | BY74: Cálculo R$ Mot.Artic. | CA74: R$
C75: Motoristas | E75: Qtde.Física de Mot. | G75: R$ Salário | H75: Cobradores | I75: Controle | J75: Manu- | K75: Admi- | M75: de | N75: Motoristas | O75: Cobradores | P75: Controle | Q75: Manutenção | R75: Administração | S75: R$ | V75: Motoristas | W75: Cobradores | X75: Controle | Y75: Manutenção | Z75: Administração | AA75: Qtde. | AC75: de | AD75: Motoristas | AE75: Cobradores | AF75: Controle | AG75: Manutenção | AH75: Administração | AJ75: de | AK75: Motoristas | AL75: Cobradores | AM75: Controle | AN75: Manutenção | AO75: Administração | AQ75: de | AR75: Motoristas | AS75: Cobradores | AT75: Controle | AU75: Manutenção | AV75: Administração | AX75: de | AY75: Físico | AZ75: Folha | BA75: Dif.Folha | BB75: Físico | BC75: Folha | BD75: Dif.Folha | BE75: Físico | BF75: Folha | BG75: Dif.Folha | BH75: Físico | BI75: Folha | BJ75: Dif.Folha | BK75: Físico | BL75: Folha | BM75: Dif.Folha | BN75: Físico | BO75: Folha | BP75: Dif.Folha | BR75: de | BS75: Frota | BT75: FU físico | BU75: Mot. | BV75: Mot. | BW75: Mot. | BX75: Mot. | BY75: R$ Mot. | BZ75: R$ Mot. | CA75: Total
B76: Ref. | C76: Diversos | D76: Artic. | E76: Div. | F76: Artic. | G76: Médio Mot. | I76: Operacional | J76: tenção | K76: nistração | M76: Ref. | N76: Diversos | P76: Operacional | S76: Total | U76: Ref. | X76: Operacional | AA76: Total | AC76: Ref. | AF76: Operacional | AJ76: Ref. | AM76: Operacional | AQ76: Ref. | AT76: Operacional | AX76: Ref. | BA76: (-) Físico | BD76: (-) Físico | BG76: (-) Físico | BJ76: (-) Físico | BM76: (-) Físico | BP76: (-) Físico | BR76: Ref. | BS76: Artic. | BT76: Mot.Div. | BU76: Artic. | BV76: Total | BW76: Diversos | BX76: Artic. | BY76: Diversos | BZ76: Articulados | CA76: Motoristas
B77: =DATE(YEAR(B71),MONTH(B71)+1,DAY(B71)) -> 2016-11-01 | C77: =C71 -> 0 | D77: =D71 -> 0 | E77: =BW77 ->  | G77: =IF(C77>0,((C77*E77)+(D77*F77))/(E77+F77),0) -> 0 | H77: =H71 -> 0 | I77: =I71 -> 0 | J77: =J71 -> 0 | K77: =K71 -> 0 | M77: =B77 -> 2016-11-01 | S77: =SUM(N77:R77) -> 0 | U77: =M77 -> 2016-11-01 | V77: =N77/G77 ->  | AA77: =SUM(V77:Z77) ->  | AC77: =U77 -> 2016-11-01 | AJ77: =AC77 -> 2016-11-01 | AK77: 2.7569 | AL77: =AK77 -> 2.7569 | AM77: =AM71 -> 0.1206032663 | AN77: =AN71 -> 0.4472361809 | AO77: =AO71 -> 0.09296482412 | AQ77: =AJ77 -> 2016-11-01 | AR77: =AK77 -> 2.7569 | AS77: =AR77 -> 2.7569 | AT77: =AT71 -> 0.1206032663 | AU77: =AU71 -> 0.4472361809 | AV77: =AV71 -> 0.09296482412 | AX77: =AQ77 -> 2016-11-01 | AZ77: =V77 ->  | BA77: =AZ77-AY77 ->  | BC77: =W77 ->  | BD77: =BC77-BB77 ->  | BF77: =X77 ->  | BG77: =BF77-BE77 ->  | BI77: =Y77 ->  | BJ77: =BI77-BH77 ->  | BL77: =Z77 ->  | BM77: =BL77-BK77 ->  | BN77: =AY77+BB77+BE77+BH77+BK77 -> 0 | BP77: =BO77-BN77 ->  | BR77: =AX77 -> 2016-11-01 | BT77: =AY77/AD77 ->  | BU77: =BT77*BS77 ->  | BV77: =AY77 -> 0 | BW77: =BV77-BX77 ->  | BX77: =BU77 ->  | BY77: =N77/BV77*BW77 ->  | BZ77: =N77/BV77*BX77 ->  | CA77: =BY77+BZ77 -> 
B78: =DATE(YEAR(B77),MONTH(B77)+1,DAY(B77)) -> 2016-12-01 | C78: =C77 -> 0 | D78: =D77 -> 0 | G78: 0 | H78: =H77 -> 0 | I78: =I77 -> 0 | J78: =J77 -> 0 | K78: =K77 -> 0 | M78: 2016-12-01 | S78: 0 | U78: 2016-12-01 | AC78: 2016-12-01 | AJ78: 2016-12-01 | AK78: 2.7569 | AL78: =AK78 -> 2.7569 | AM78: =AM77 -> 0.1206032663 | AN78: 0.4472361809 | AO78: 0.09296482412 | AQ78: 2016-12-01 | AR78: =AK78 -> 2.7569 | AS78: =AR78 -> 2.7569 | AT78: =AT77 -> 0.1206032663 | AU78: 0.4472361809 | AV78: 0.09296482412 | AX78: 2016-12-01 | BN78: 0 | BR78: 2016-12-01 | BV78: 0
B79: 2017-01-01 | C79: 0 | D79: 0 | G79: 0 | H79: =H78 -> 0 | I79: =I78 -> 0 | J79: 0 | K79: 0 | M79: 2017-01-01 | S79: 0 | U79: 2017-01-01 | AC79: 2017-01-01 | AJ79: 2017-01-01 | AK79: 2.7569 | AL79: 2.7569 | AM79: 0.1206032663 | AN79: 0.4472361809 | AO79: 0.09296482412 | AQ79: 2017-01-01 | AR79: 2.7569 | AS79: 2.7569 | AT79: 0.1206032663 | AU79: 0.4472361809 | AV79: 0.09296482412 | AX79: 2017-01-01 | BN79: 0 | BR79: 2017-01-01 | BV79: 0
B80: 2017-02-01 | C80: 0 | D80: 0 | G80: 0 | H80: 0 | I80: 0 | J80: 0 | K80: 0 | M80: 2017-02-01 | S80: 0 | U80: 2017-02-01 | AC80: 2017-02-01 | AJ80: 2017-02-01 | AK80: 2.7569 | AL80: 2.7569 | AM80: 0.1206032663 | AN80: 0.4472361809 | AO80: 0.09296482412 | AQ80: 2017-02-01 | AR80: 2.7569 | AS80: 2.7569 | AT80: 0.1206032663 | AU80: 0.4472361809 | AV80: 0.09296482412 | AX80: 2017-02-01 | BN80: 0 | BR80: 2017-02-01 | BV80: 0
B81: 2017-03-01 | C81: =C80*(C15/100*100+1) -> 0 | D81: =D80*(D15/100*100+1) -> 0 | G81: 0 | H81: =H80*(E15/100*100+1) -> 0 | I81: =I80*(F15/100*100+1) -> 0 | J81: =J80*(F15/100*100+1) -> 0 | K81: =K80*(F15/100*100+1) -> 0 | M81: 2017-03-01 | S81: 0 | U81: 2017-03-01 | AC81: 2017-03-01 | AJ81: 2017-03-01 | AK81: 2.7569 | AL81: 2.7569 | AM81: 0.1206032663 | AN81: 0.4472361809 | AO81: 0.09296482412 | AQ81: 2017-03-01 | AR81: 2.7569 | AS81: 2.7569 | AT81: 0.1206032663 | AU81: 0.4472361809 | AV81: 0.09296482412 | AX81: 2017-03-01 | BN81: 0 | BR81: 2017-03-01 | BV81: 0
B82: 2017-04-01 | C82: =C81 -> 0 | D82: 0 | G82: 0 | H82: =H81 -> 0 | I82: =I81 -> 0 | J82: =J81 -> 0 | K82: =K81 -> 0 | M82: 2017-04-01 | S82: 0 | U82: 2017-04-01 | AC82: 2017-04-01 | AJ82: 2017-04-01 | AK82: 2.7569 | AL82: 2.7569 | AM82: 0.1206032663 | AN82: 0.4472361809 | AO82: 0.09296482412 | AQ82: 2017-04-01 | AR82: 2.7569 | AS82: 2.7569 | AT82: 0.1206032663 | AU82: 0.4472361809 | AV82: 0.09296482412 | AX82: 2017-04-01 | BN82: 0 | BR82: 2017-04-01 | BV82: 0
B83: 2017-05-01 | C83: 0 | D83: 0 | G83: 0 | H83: =H82 -> 0 | I83: 0 | J83: 0 | K83: 0 | M83: 2017-05-01 | S83: 0 | U83: 2017-05-01 | AC83: 2017-05-01 | AJ83: 2017-05-01 | AK83: 2.7569 | AL83: 2.7569 | AM83: 0.1206032663 | AN83: 0.4472361809 | AO83: 0.09296482412 | AQ83: 2017-05-01 | AR83: 2.7569 | AS83: 2.7569 | AT83: 0.1206032663 | AU83: 0.4472361809 | AV83: 0.09296482412 | AX83: 2017-05-01 | BN83: 0 | BR83: 2017-05-01 | BV83: 0
B84: 2017-06-01 | C84: 0 | D84: 0 | G84: 0 | H84: 0 | I84: 0 | J84: 0 | K84: 0 | M84: 2017-06-01 | S84: 0 | U84: 2017-06-01 | AC84: 2017-06-01 | AJ84: 2017-06-01 | AK84: 2.7569 | AL84: 2.7569 | AM84: 0.1206032663 | AN84: 0.4472361809 | AO84: 0.09296482412 | AQ84: 2017-06-01 | AR84: 2.7569 | AS84: 2.7569 | AT84: 0.1206032663 | AU84: 0.4472361809 | AV84: 0.09296482412 | AX84: 2017-06-01 | BN84: 0 | BR84: 2017-06-01 | BV84: 0
B85: 2017-07-01 | C85: 0 | D85: 0 | G85: 0 | H85: 0 | I85: 0 | J85: 0 | K85: 0 | M85: 2017-07-01 | S85: 0 | U85: 2017-07-01 | AC85: 2017-07-01 | AJ85: 2017-07-01 | AK85: 2.7569 | AL85: 2.7569 | AM85: 0.1206032663 | AN85: 0.4472361809 | AO85: 0.09296482412 | AQ85: 2017-07-01 | AR85: 2.7569 | AS85: 2.7569 | AT85: 0.1206032663 | AU85: 0.4472361809 | AV85: 0.09296482412 | AX85: 2017-07-01 | BN85: 0 | BR85: 2017-07-01 | BV85: 0
B86: 2017-08-01 | C86: 0 | D86: 0 | G86: 0 | H86: 0 | I86: 0 | J86: 0 | K86: 0 | M86: 2017-08-01 | S86: 0 | U86: 2017-08-01 | AC86: 2017-08-01 | AJ86: 2017-08-01 | AK86: 2.7569 | AL86: 2.7569 | AM86: 0.1206032663 | AN86: 0.4472361809 | AO86: 0.09296482412 | AQ86: 2017-08-01 | AR86: 2.7569 | AS86: 2.7569 | AT86: 0.1206032663 | AU86: 0.4472361809 | AV86: 0.09296482412 | AX86: 2017-08-01 | BN86: 0 | BR86: 2017-08-01 | BV86: 0
B87: 2017-09-01 | C87: 0 | D87: 0 | G87: 0 | H87: 0 | I87: 0 | J87: 0 | K87: 0 | M87: 2017-09-01 | S87: 0 | U87: 2017-09-01 | AC87: 2017-09-01 | AJ87: 2017-09-01 | AK87: 2.7569 | AL87: 2.7569 | AM87: 0.1206032663 | AN87: 0.4472361809 | AO87: 0.09296482412 | AQ87: 2017-09-01 | AR87: 2.7569 | AS87: 2.7569 | AT87: 0.1206032663 | AU87: 0.4472361809 | AV87: 0.09296482412 | AX87: 2017-09-01 | BN87: 0 | BR87: 2017-09-01 | BV87: 0
B88: 2017-10-01 | C88: 0 | D88: 0 | G88: 0 | H88: 0 | I88: 0 | J88: 0 | K88: 0 | M88: 2017-10-01 | S88: 0 | U88: 2017-10-01 | AC88: 2017-10-01 | AJ88: 2017-10-01 | AK88: 2.7569 | AL88: 2.7569 | AM88: 0.1206032663 | AN88: 0.4472361809 | AO88: 0.09296482412 | AQ88: 2017-10-01 | AR88: 2.7569 | AS88: 2.7569 | AT88: 0.1206032663 | AU88: 0.4472361809 | AV88: 0.09296482412 | AX88: 2017-10-01 | BN88: 0 | BR88: 2017-10-01 | BV88: 0
B90: =B73 -> Bacia 1 | C90: R$ da Licitação corrigidos nos Dissídios Coletivos | K90: Ano 5 | M90: =B90 -> Bacia 1 | N90: R$ Salário Total Com Horas Extras e Adicional Noturno Pago Por Função (Sem inclusão de Encargos Sociais) - Valor de GFIP | S90: =K90 -> Ano 5 | U90: =M90 -> Bacia 1 | V90: Quantidade de Funcionários - Cálculo pela Folha | AA90: =S90 -> Ano 5 | AC90: =U90 -> Bacia 1 | AD90: Quantidade de Frota Operacional | AH90: =AA90 -> Ano 5 | AJ90: =AC90 -> Bacia 1 | AK90: FU POR FUNÇÃO | AO90: =AH90 -> Ano 5 | AQ90: =AJ90 -> Bacia 1 | AR90: FU FÍSICO PARA BENEFÍCIOS | AV90: =AO90 -> Ano 5 | AX90: =AQ90 -> Bacia 1 | AY90: Qtde. Funcionários - FÍSICO para Benefícios e FOLHA para Salários base de cálculo dos Enc.Sociais | BP90: =AV90 -> Ano 5 | BR90: =AX90 -> Bacia 1 | BS90: =BP90 -> Ano 5
B91: Mês | C91: R$ Salário Médio da Função (Sem Encargos) | M91: Mês | U91: Mês | V91: Inclusas todas as Horas Extras | AC91: Mês | AJ91: Mês | AK91: CÁLCULO SOBRE A FOLHA DE PAGAMENTO | AQ91: Mês | AX91: Mês | AY91: Motoristas | BB91: Cobradores | BE91: Controle Operacional | BH91: Manutenção | BK91: Administração | BN91: Total Geral | BR91: Mês | BS91: Cálculo Mot.Articulados | BV91: Qtde. Física de Motoristas | BY91: Cálculo R$ Mot.Artic. | CA91: R$
C92: Motoristas | E92: Qtde.Física de Mot. | G92: R$ Salário | H92: Cobradores | I92: Controle | J92: Manu- | K92: Admi- | M92: de | N92: Motoristas | O92: Cobradores | P92: Controle | Q92: Manutenção | R92: Administração | S92: R$ | V92: Motoristas | W92: Cobradores | X92: Controle | Y92: Manutenção | Z92: Administração | AA92: Qtde. | AC92: de | AD92: Motoristas | AE92: Cobradores | AF92: Controle | AG92: Manutenção | AH92: Administração | AJ92: de | AK92: Motoristas | AL92: Cobradores | AM92: Controle | AN92: Manutenção | AO92: Administração | AQ92: de | AR92: Motoristas | AS92: Cobradores | AT92: Controle | AU92: Manutenção | AV92: Administração | AX92: de | AY92: Físico | AZ92: Folha | BA92: Dif.Folha | BB92: Físico | BC92: Folha | BD92: Dif.Folha | BE92: Físico | BF92: Folha | BG92: Dif.Folha | BH92: Físico | BI92: Folha | BJ92: Dif.Folha | BK92: Físico | BL92: Folha | BM92: Dif.Folha | BN92: Físico | BO92: Folha | BP92: Dif.Folha | BR92: de | BS92: Frota | BT92: FU físico | BU92: Mot. | BV92: Mot. | BW92: Mot. | BX92: Mot. | BY92: R$ Mot. | BZ92: R$ Mot. | CA92: Total
B93: Ref. | C93: Diversos | D93: Artic. | E93: Div. | F93: Artic. | G93: Médio Mot. | I93: Operacional | J93: tenção | K93: nistração | M93: Ref. | N93: Diversos | P93: Operacional | S93: Total | U93: Ref. | X93: Operacional | AA93: Total | AC93: Ref. | AF93: Operacional | AJ93: Ref. | AM93: Operacional | AQ93: Ref. | AT93: Operacional | AX93: Ref. | BA93: (-) Físico | BD93: (-) Físico | BG93: (-) Físico | BJ93: (-) Físico | BM93: (-) Físico | BP93: (-) Físico | BR93: Ref. | BS93: Artic. | BT93: Mot.Div. | BU93: Artic. | BV93: Total | BW93: Diversos | BX93: Artic. | BY93: Diversos | BZ93: Articulados | CA93: Motoristas
B94: =DATE(YEAR(B88),MONTH(B88)+1,DAY(B88)) -> 2017-11-01 | C94: =C88 -> 0 | D94: =D88 -> 0 | E94: =BW94 ->  | G94: =IF(C94>0,((C94*E94)+(D94*F94))/(E94+F94),0) -> 0 | H94: =H88 -> 0 | I94: =I88 -> 0 | J94: =J88 -> 0 | K94: =K88 -> 0 | M94: =B94 -> 2017-11-01 | S94: =SUM(N94:R94) -> 0 | U94: =M94 -> 2017-11-01 | V94: =N94/G94 ->  | AA94: =SUM(V94:Z94) ->  | AC94: =U94 -> 2017-11-01 | AJ94: =AC94 -> 2017-11-01 | AK94: 2.7569 | AL94: =AK94 -> 2.7569 | AM94: =AM88 -> 0.1206032663 | AN94: =AN88 -> 0.4472361809 | AO94: =AO88 -> 0.09296482412 | AQ94: =AJ94 -> 2017-11-01 | AR94: =AK94 -> 2.7569 | AS94: =AR94 -> 2.7569 | AT94: =AT88 -> 0.1206032663 | AU94: =AU88 -> 0.4472361809 | AV94: =AV88 -> 0.09296482412 | AX94: =AQ94 -> 2017-11-01 | AZ94: =V94 ->  | BA94: =AZ94-AY94 ->  | BC94: =W94 ->  | BD94: =BC94-BB94 ->  | BF94: =X94 ->  | BG94: =BF94-BE94 ->  | BI94: =Y94 ->  | BJ94: =BI94-BH94 ->  | BL94: =Z94 ->  | BM94: =BL94-BK94 ->  | BN94: =AY94+BB94+BE94+BH94+BK94 -> 0 | BP94: =BO94-BN94 ->  | BR94: =AX94 -> 2017-11-01 | BT94: =AY94/AD94 ->  | BU94: =BT94*BS94 ->  | BV94: =AY94 -> 0 | BW94: =BV94-BX94 ->  | BX94: =BU94 ->  | BY94: =N94/BV94*BW94 ->  | BZ94: =N94/BV94*BX94 ->  | CA94: =BY94+BZ94 -> 
B95: =DATE(YEAR(B94),MONTH(B94)+1,DAY(B94)) -> 2017-12-01 | C95: =C94 -> 0 | D95: =D94 -> 0 | G95: 0 | H95: =H94 -> 0 | I95: =I94 -> 0 | J95: =J94 -> 0 | K95: =K94 -> 0 | M95: 2017-12-01 | S95: 0 | U95: 2017-12-01 | AC95: 2017-12-01 | AJ95: 2017-12-01 | AK95: 2.7569 | AL95: =AK95 -> 2.7569 | AM95: =AM94 -> 0.1206032663 | AN95: 0.4472361809 | AO95: 0.09296482412 | AQ95: 2017-12-01 | AR95: =AK95 -> 2.7569 | AS95: =AR95 -> 2.7569 | AT95: =AT94 -> 0.1206032663 | AU95: 0.4472361809 | AV95: 0.09296482412 | AX95: 2017-12-01 | BN95: 0 | BR95: 2017-12-01 | BV95: 0
B96: 2018-01-01 | C96: 0 | D96: 0 | G96: 0 | H96: =H95 -> 0 | I96: 0 | J96: 0 | K96: 0 | M96: 2018-01-01 | S96: 0 | U96: 2018-01-01 | AC96: 2018-01-01 | AJ96: 2018-01-01 | AK96: 2.7569 | AL96: 2.7569 | AM96: 0.1206032663 | AN96: 0.4472361809 | AO96: 0.09296482412 | AQ96: 2018-01-01 | AR96: 2.7569 | AS96: 2.7569 | AT96: 0.1206032663 | AU96: 0.4472361809 | AV96: 0.09296482412 | AX96: 2018-01-01 | BN96: 0 | BR96: 2018-01-01 | BV96: 0
B97: 2018-02-01 | C97: 0 | D97: 0 | G97: 0 | H97: 0 | I97: 0 | J97: 0 | K97: 0 | M97: 2018-02-01 | S97: 0 | U97: 2018-02-01 | AC97: 2018-02-01 | AJ97: 2018-02-01 | AK97: 2.7569 | AL97: 2.7569 | AM97: 0.1206032663 | AN97: 0.4472361809 | AO97: 0.09296482412 | AQ97: 2018-02-01 | AR97: 2.7569 | AS97: 2.7569 | AT97: 0.1206032663 | AU97: 0.4472361809 | AV97: 0.09296482412 | AX97: 2018-02-01 | BN97: 0 | BR97: 2018-02-01 | BV97: 0
B98: 2018-03-01 | C98: 0 | D98: =D97 -> 0 | G98: 0 | H98: 0 | I98: 0 | J98: 0 | K98: 0 | M98: 2018-03-01 | S98: 0 | U98: 2018-03-01 | AC98: 2018-03-01 | AJ98: 2018-03-01 | AK98: 2.7569 | AL98: 2.7569 | AM98: 0.1206032663 | AN98: 0.4472361809 | AO98: 0.09296482412 | AQ98: 2018-03-01 | AR98: 2.7569 | AS98: 2.7569 | AT98: 0.1206032663 | AU98: 0.4472361809 | AV98: 0.09296482412 | AX98: 2018-03-01 | BN98: 0 | BR98: 2018-03-01 | BV98: 0
B99: 2018-04-01 | C99: 0 | D99: 0 | G99: 0 | H99: 0 | I99: 0 | J99: 0 | K99: 0 | M99: 2018-04-01 | S99: 0 | U99: 2018-04-01 | AC99: 2018-04-01 | AJ99: 2018-04-01 | AK99: 2.7569 | AL99: 2.7569 | AM99: 0.1206032663 | AN99: 0.4472361809 | AO99: 0.09296482412 | AQ99: 2018-04-01 | AR99: 2.7569 | AS99: 2.7569 | AT99: 0.1206032663 | AU99: 0.4472361809 | AV99: 0.09296482412 | AX99: 2018-04-01 | BN99: 0 | BR99: 2018-04-01 | BV99: 0
B100: 2018-05-01 | C100: 0 | D100: 0 | G100: 0 | H100: 0 | I100: 0 | J100: 0 | K100: 0 | M100: 2018-05-01 | S100: 0 | U100: 2018-05-01 | AC100: 2018-05-01 | AJ100: 2018-05-01 | AK100: 2.7569 | AL100: 2.7569 | AM100: 0.1206032663 | AN100: 0.4472361809 | AO100: 0.09296482412 | AQ100: 2018-05-01 | AR100: 2.7569 | AS100: 2.7569 | AT100: 0.1206032663 | AU100: 0.4472361809 | AV100: 0.09296482412 | AX100: 2018-05-01 | BN100: 0 | BR100: 2018-05-01 | BV100: 0
B101: 2018-06-01 | C101: =C100*(C17/100*100+1) -> 0 | D101: =D100*(D17/100*100+1) -> 0 | G101: 0 | H101: =H100*(E17/100*100+1) -> 0 | I101: =I100*(F17/100*100+1) -> 0 | J101: =J100*(F17/100*100+1) -> 0 | K101: =K100*(F17/100*100+1) -> 0 | M101: 2018-06-01 | S101: 0 | U101: 2018-06-01 | AC101: 2018-06-01 | AJ101: 2018-06-01 | AK101: 2.7569 | AL101: 2.7569 | AM101: 0.1206032663 | AN101: 0.4472361809 | AO101: 0.09296482412 | AQ101: 2018-06-01 | AR101: 2.7569 | AS101: 2.7569 | AT101: 0.1206032663 | AU101: 0.4472361809 | AV101: 0.09296482412 | AX101: 2018-06-01 | BN101: 0 | BR101: 2018-06-01 | BV101: 0
B102: 2018-07-01 | C102: =C101 -> 0 | D102: 0 | G102: 0 | H102: =H101 -> 0 | I102: 0 | J102: 0 | K102: 0 | M102: 2018-07-01 | S102: 0 | U102: 2018-07-01 | AC102: 2018-07-01 | AJ102: 2018-07-01 | AK102: 2.7569 | AL102: 2.7569 | AM102: 0.1206032663 | AN102: 0.4472361809 | AO102: 0.09296482412 | AQ102: 2018-07-01 | AR102: 2.7569 | AS102: 2.7569 | AT102: 0.1206032663 | AU102: 0.4472361809 | AV102: 0.09296482412 | AX102: 2018-07-01 | BN102: 0 | BR102: 2018-07-01 | BV102: 0
B103: 2018-08-01 | C103: 0 | D103: 0 | G103: 0 | H103: 0 | I103: 0 | J103: 0 | K103: 0 | M103: 2018-08-01 | S103: 0 | U103: 2018-08-01 | AC103: 2018-08-01 | AJ103: 2018-08-01 | AK103: 2.7569 | AL103: 2.7569 | AM103: 0.1206032663 | AN103: 0.4472361809 | AO103: 0.09296482412 | AQ103: 2018-08-01 | AR103: 2.7569 | AS103: 2.7569 | AT103: 0.1206032663 | AU103: 0.4472361809 | AV103: 0.09296482412 | AX103: 2018-08-01 | BN103: 0 | BR103: 2018-08-01 | BV103: 0
B104: 2018-09-01 | C104: 0 | D104: 0 | G104: 0 | H104: 0 | I104: 0 | J104: 0 | K104: 0 | M104: 2018-09-01 | S104: 0 | U104: 2018-09-01 | AC104: 2018-09-01 | AJ104: 2018-09-01 | AK104: 2.7569 | AL104: 2.7569 | AM104: 0.1206032663 | AN104: 0.4472361809 | AO104: 0.09296482412 | AQ104: 2018-09-01 | AR104: 2.7569 | AS104: 2.7569 | AT104: 0.1206032663 | AU104: 0.4472361809 | AV104: 0.09296482412 | AX104: 2018-09-01 | BN104: 0 | BR104: 2018-09-01 | BV104: 0
B105: 2018-10-01 | C105: 0 | D105: 0 | G105: 0 | H105: 0 | I105: 0 | J105: 0 | K105: 0 | M105: 2018-10-01 | S105: 0 | U105: 2018-10-01 | AC105: 2018-10-01 | AJ105: 2018-10-01 | AK105: 2.7569 | AL105: 2.7569 | AM105: 0.1206032663 | AN105: 0.4472361809 | AO105: 0.09296482412 | AQ105: 2018-10-01 | AR105: 2.7569 | AS105: 2.7569 | AT105: 0.1206032663 | AU105: 0.4472361809 | AV105: 0.09296482412 | AX105: 2018-10-01 | BN105: 0 | BR105: 2018-10-01 | BV105: 0
B107: =B90 -> Bacia 1 | C107: R$ da Licitação corrigidos nos Dissídios Coletivos | K107: Ano 6 | M107: =B107 -> Bacia 1 | N107: R$ Salário Total Com Horas Extras e Adicional Noturno Pago Por Função (Sem inclusão de Encargos Sociais) - Valor de GFIP | S107: =K107 -> Ano 6 | U107: =M107 -> Bacia 1 | V107: Quantidade de Funcionários - Cálculo pela Folha | AA107: =S107 -> Ano 6 | AC107: =U107 -> Bacia 1 | AD107: Quantidade de Frota Operacional | AH107: =AA107 -> Ano 6 | AJ107: =AC107 -> Bacia 1 | AK107: FU POR FUNÇÃO | AO107: =AH107 -> Ano 6 | AQ107: =AJ107 -> Bacia 1 | AR107: FU FÍSICO PARA BENEFÍCIOS | AV107: =AO107 -> Ano 6 | AX107: =AQ107 -> Bacia 1 | AY107: Qtde. Funcionários - FÍSICO para Benefícios e FOLHA para Salários base de cálculo dos Enc.Sociais | BP107: =AV107 -> Ano 6 | BR107: =AX107 -> Bacia 1 | BS107: =BP107 -> Ano 6
B108: Mês | C108: R$ Salário Médio da Função (Sem Encargos) | M108: Mês | U108: Mês | V108: Inclusas todas as Horas Extras | AC108: Mês | AJ108: Mês | AK108: CÁLCULO SOBRE A FOLHA DE PAGAMENTO | AQ108: Mês | AX108: Mês | AY108: Motoristas | BB108: Cobradores | BE108: Controle Operacional | BH108: Manutenção | BK108: Administração | BN108: Total Geral | BR108: Mês | BS108: Cálculo Mot.Articulados | BV108: Qtde. Física de Motoristas | BY108: Cálculo R$ Mot.Artic. | CA108: R$
C109: Motoristas | E109: Qtde.Física de Mot. | G109: R$ Salário | H109: Cobradores | I109: Controle | J109: Manu- | K109: Admi- | M109: de | N109: Motoristas | O109: Cobradores | P109: Controle | Q109: Manutenção | R109: Administração | S109: R$ | V109: Motoristas | W109: Cobradores | X109: Controle | Y109: Manutenção | Z109: Administração | AA109: Qtde. | AC109: de | AD109: Motoristas | AE109: Cobradores | AF109: Controle | AG109: Manutenção | AH109: Administração | AJ109: de | AK109: Motoristas | AL109: Cobradores | AM109: Controle | AN109: Manutenção | AO109: Administração | AQ109: de | AR109: Motoristas | AS109: Cobradores | AT109: Controle | AU109: Manutenção | AV109: Administração | AX109: de | AY109: Físico | AZ109: Folha | BA109: Dif.Folha | BB109: Físico | BC109: Folha | BD109: Dif.Folha | BE109: Físico | BF109: Folha | BG109: Dif.Folha | BH109: Físico | BI109: Folha | BJ109: Dif.Folha | BK109: Físico | BL109: Folha | BM109: Dif.Folha | BN109: Físico | BO109: Folha | BP109: Dif.Folha | BR109: de | BS109: Frota | BT109: FU físico | BU109: Mot. | BV109: Mot. | BW109: Mot. | BX109: Mot. | BY109: R$ Mot. | BZ109: R$ Mot. | CA109: Total
B110: Ref. | C110: Diversos | D110: Artic. | E110: Div. | F110: Artic. | G110: Médio Mot. | I110: Operacional | J110: tenção | K110: nistração | M110: Ref. | N110: Diversos | P110: Operacional | S110: Total | U110: Ref. | X110: Operacional | AA110: Total | AC110: Ref. | AF110: Operacional | AJ110: Ref. | AM110: Operacional | AQ110: Ref. | AT110: Operacional | AX110: Ref. | BA110: (-) Físico | BD110: (-) Físico | BG110: (-) Físico | BJ110: (-) Físico | BM110: (-) Físico | BP110: (-) Físico | BR110: Ref. | BS110: Artic. | BT110: Mot.Div. | BU110: Artic. | BV110: Total | BW110: Diversos | BX110: Artic. | BY110: Diversos | BZ110: Articulados | CA110: Motoristas
B111: =DATE(YEAR(B105),MONTH(B105)+1,DAY(B105)) -> 2018-11-01 | C111: =C105 -> 0 | D111: =D105 -> 0 | E111: =BW111 ->  | G111: =IF(C111>0,((C111*E111)+(D111*F111))/(E111+F111),0) -> 0 | H111: =H105 -> 0 | I111: =I105 -> 0 | J111: =J105 -> 0 | K111: =K105 -> 0 | M111: =B111 -> 2018-11-01 | S111: =SUM(N111:R111) -> 0 | U111: =M111 -> 2018-11-01 | V111: =N111/G111 ->  | AA111: =SUM(V111:Z111) ->  | AC111: =U111 -> 2018-11-01 | AJ111: =AC111 -> 2018-11-01 | AK111: 2.7569 | AL111: =AK111 -> 2.7569 | AM111: =AM105 -> 0.1206032663 | AN111: =AN105 -> 0.4472361809 | AO111: =AO105 -> 0.09296482412 | AQ111: =AJ111 -> 2018-11-01 | AR111: =AK111 -> 2.7569 | AS111: =AR111 -> 2.7569 | AT111: =AT105 -> 0.1206032663 | AU111: =AU105 -> 0.4472361809 | AV111: =AV105 -> 0.09296482412 | AX111: =AQ111 -> 2018-11-01 | AZ111: =V111 ->  | BA111: =AZ111-AY111 ->  | BC111: =W111 ->  | BD111: =BC111-BB111 ->  | BF111: =X111 ->  | BG111: =BF111-BE111 ->  | BI111: =Y111 ->  | BJ111: =BI111-BH111 ->  | BL111: =Z111 ->  | BM111: =BL111-BK111 ->  | BN111: =AY111+BB111+BE111+BH111+BK111 -> 0 | BP111: =BO111-BN111 ->  | BR111: =AC111 -> 2018-11-01 | BT111: =AY111/AD111 ->  | BU111: =BT111*BS111 ->  | BV111: =AY111 -> 0 | BW111: =BV111-BX111 ->  | BX111: =BU111 ->  | BY111: =N111/BV111*BW111 ->  | BZ111: =N111/BV111*BX111 ->  | CA111: =BY111+BZ111 -> 
B112: =DATE(YEAR(B111),MONTH(B111)+1,DAY(B111)) -> 2018-12-01 | C112: =C111 -> 0 | D112: =D111 -> 0 | G112: 0 | H112: =H111 -> 0 | I112: =I111 -> 0 | J112: =J111 -> 0 | K112: =K111 -> 0 | M112: 2018-12-01 | S112: 0 | U112: 2018-12-01 | AC112: 2018-12-01 | AJ112: 2018-12-01 | AK112: 2.7569 | AL112: =AK112 -> 2.7569 | AM112: =AM111 -> 0.1206032663 | AN112: 0.4472361809 | AO112: 0.09296482412 | AQ112: 2018-12-01 | AR112: =AK112 -> 2.7569 | AS112: =AR112 -> 2.7569 | AT112: =AT111 -> 0.1206032663 | AU112: 0.4472361809 | AV112: 0.09296482412 | AX112: 2018-12-01 | BN112: 0 | BR112: 2018-12-01 | BV112: 0
B113: 2019-01-01 | C113: =C112 -> 0 | D113: 0 | G113: 0 | H113: =H112 -> 0 | I113: 0 | J113: 0 | K113: 0 | M113: 2019-01-01 | S113: 0 | U113: 2019-01-01 | AC113: 2019-01-01 | AJ113: 2019-01-01 | AK113: 2.7569 | AL113: 2.7569 | AM113: 0.1206032663 | AN113: 0.4472361809 | AO113: 0.09296482412 | AQ113: 2019-01-01 | AR113: 2.7569 | AS113: 2.7569 | AT113: 0.1206032663 | AU113: 0.4472361809 | AV113: 0.09296482412 | AX113: 2019-01-01 | BN113: =AY113+BB113+BE113+BH113+BK113 -> 0 | BR113: 2019-01-01 | BV113: 0
B114: 2019-02-01 | C114: 0 | D114: 0 | G114: 0 | H114: 0 | I114: 0 | J114: 0 | K114: 0 | M114: 2019-02-01 | S114: 0 | U114: 2019-02-01 | AC114: 2019-02-01 | AJ114: 2019-02-01 | AK114: 2.7569 | AL114: 2.7569 | AM114: 0.1206032663 | AN114: 0.4472361809 | AO114: 0.09296482412 | AQ114: 2019-02-01 | AR114: 2.7569 | AS114: 2.7569 | AT114: 0.1206032663 | AU114: 0.4472361809 | AV114: 0.09296482412 | AX114: 2019-02-01 | BN114: 0 | BR114: 2019-02-01 | BV114: 0
B115: 2019-03-01 | C115: 0 | D115: 0 | G115: 0 | H115: 0 | I115: 0 | J115: 0 | K115: 0 | M115: 2019-03-01 | N115: 1 | O115: 1 | P115: 1 | Q115: 1 | R115: 1 | S115: 5 | U115: 2019-03-01 | AC115: 2019-03-01 | AJ115: 2019-03-01 | AK115: 2.7569 | AL115: 2.7569 | AM115: 0.1206032663 | AN115: 0.4472361809 | AO115: 0.09296482412 | AQ115: 2019-03-01 | AR115: 2.7569 | AS115: 2.7569 | AT115: 0.1206032663 | AU115: 0.4472361809 | AV115: 0.09296482412 | AX115: 2019-03-01 | BN115: 0 | BR115: 2019-03-01 | BV115: 0
B116: 2019-04-01 | C116: 0 | D116: 0 | G116: 0 | H116: 0 | I116: 0 | J116: 0 | K116: 0 | M116: 2019-04-01 | N116: =N115 -> 1 | O116: 1 | P116: 1 | Q116: 1 | R116: 1 | S116: 5 | U116: 2019-04-01 | AC116: 2019-04-01 | AJ116: 2019-04-01 | AK116: 2.7569 | AL116: 2.7569 | AM116: 0.1206032663 | AN116: 0.4472361809 | AO116: 0.09296482412 | AQ116: 2019-04-01 | AR116: 2.7569 | AS116: 2.7569 | AT116: 0.1206032663 | AU116: 0.4472361809 | AV116: 0.09296482412 | AX116: 2019-04-01 | AY116: =AY115 -> 0 | BB116: =BB115 -> 0 | BE116: =BE115 -> 0 | BH116: =BH115 -> 0 | BK116: =BK115 -> 0 | BN116: 0 | BR116: 2019-04-01 | BV116: 0
B117: 2019-05-01 | C117: 0 | D117: 0 | G117: 0 | H117: 0 | I117: 0 | J117: 0 | K117: 0 | M117: 2019-05-01 | N117: 1 | O117: =O116 -> 1 | P117: 1 | Q117: 1 | R117: 1 | S117: 5 | U117: 2019-05-01 | AC117: 2019-05-01 | AJ117: 2019-05-01 | AK117: 2.7569 | AL117: 2.7569 | AM117: 0.1206032663 | AN117: 0.4472361809 | AO117: 0.09296482412 | AQ117: 2019-05-01 | AR117: 2.7569 | AS117: 2.7569 | AT117: 0.1206032663 | AU117: 0.4472361809 | AV117: 0.09296482412 | AX117: 2019-05-01 | AY117: 0 | BB117: 0 | BE117: 0 | BH117: 0 | BK117: 0 | BN117: 0 | BR117: 2019-05-01 | BV117: 0
B118: 2019-06-01 | C118: 0 | D118: 0 | G118: 0 | H118: 0 | I118: 0 | J118: 0 | K118: 0 | M118: 2019-06-01 | N118: 1 | O118: 1 | P118: 1 | Q118: 1 | R118: 1 | S118: 5 | U118: 2019-06-01 | AC118: 2019-06-01 | AJ118: 2019-06-01 | AK118: 2.7569 | AL118: 2.7569 | AM118: 0.1206032663 | AN118: 0.4472361809 | AO118: 0.09296482412 | AQ118: 2019-06-01 | AR118: 2.7569 | AS118: 2.7569 | AT118: 0.1206032663 | AU118: 0.4472361809 | AV118: 0.09296482412 | AX118: 2019-06-01 | AY118: 0 | BB118: 0 | BE118: 0 | BH118: 0 | BK118: 0 | BN118: 0 | BR118: 2019-06-01 | BV118: 0
B119: 2019-07-01 | C119: 0 | D119: 0 | G119: 0 | H119: 0 | I119: 0 | J119: 0 | K119: 0 | M119: 2019-07-01 | N119: 1 | O119: 1 | P119: 1 | Q119: 1 | R119: 1 | S119: 5 | U119: 2019-07-01 | AC119: 2019-07-01 | AJ119: 2019-07-01 | AK119: 2.7569 | AL119: 2.7569 | AM119: 0.1206032663 | AN119: 0.4472361809 | AO119: 0.09296482412 | AQ119: 2019-07-01 | AR119: 2.7569 | AS119: 2.7569 | AT119: 0.1206032663 | AU119: 0.4472361809 | AV119: 0.09296482412 | AX119: 2019-07-01 | AY119: 0 | BB119: 0 | BE119: 0 | BH119: 0 | BK119: 0 | BN119: 0 | BR119: 2019-07-01 | BV119: 0
B120: 2019-08-01 | C120: 0 | D120: 0 | G120: 0 | H120: 0 | I120: 0 | J120: 0 | K120: 0 | M120: 2019-08-01 | N120: 1 | O120: 1 | P120: 1 | Q120: 1 | R120: 1 | S120: 5 | U120: 2019-08-01 | AC120: 2019-08-01 | AJ120: 2019-08-01 | AK120: 2.7569 | AL120: 2.7569 | AM120: 0.1206032663 | AN120: 0.4472361809 | AO120: 0.09296482412 | AQ120: 2019-08-01 | AR120: 2.7569 | AS120: 2.7569 | AT120: 0.1206032663 | AU120: 0.4472361809 | AV120: 0.09296482412 | AX120: 2019-08-01 | AY120: 0 | BB120: 0 | BE120: 0 | BH120: 0 | BK120: 0 | BN120: 0 | BR120: 2019-08-01 | BV120: 0
B121: 2019-09-01 | C121: 0 | D121: 0 | G121: 0 | H121: 0 | I121: 0 | J121: 0 | K121: 0 | M121: 2019-09-01 | N121: 1 | O121: 1 | P121: 1 | Q121: 1 | R121: 1 | S121: 5 | U121: 2019-09-01 | AC121: 2019-09-01 | AJ121: 2019-09-01 | AK121: 2.7569 | AL121: 2.7569 | AM121: 0.1206032663 | AN121: 0.4472361809 | AO121: 0.09296482412 | AQ121: 2019-09-01 | AR121: 2.7569 | AS121: 2.7569 | AT121: 0.1206032663 | AU121: 0.4472361809 | AV121: 0.09296482412 | AX121: 2019-09-01 | AY121: 0 | BB121: 0 | BE121: 0 | BH121: 0 | BK121: 0 | BN121: 0 | BR121: 2019-09-01 | BV121: 0
B122: 2019-10-01 | C122: 0 | D122: 0 | G122: 0 | H122: 0 | I122: 0 | J122: 0 | K122: 0 | M122: 2019-10-01 | N122: 1 | O122: 1 | P122: 1 | Q122: 1 | R122: 1 | S122: 5 | U122: 2019-10-01 | AC122: 2019-10-01 | AJ122: 2019-10-01 | AK122: 2.7569 | AL122: 2.7569 | AM122: 0.1206032663 | AN122: 0.4472361809 | AO122: 0.09296482412 | AQ122: 2019-10-01 | AR122: 2.7569 | AS122: 2.7569 | AT122: 0.1206032663 | AU122: 0.4472361809 | AV122: 0.09296482412 | AX122: 2019-10-01 | AY122: 0 | BB122: 0 | BE122: 0 | BH122: 0 | BK122: 0 | BN122: 0 | BR122: 2019-10-01 | BV122: 0
B124: =B107 -> Bacia 1 | C124: R$ da Licitação corrigidos nos Dissídios Coletivos | K124: Ano 7 | M124: =B124 -> Bacia 1 | N124: R$ Salário Total Com Horas Extras e Adicional Noturno Pago Por Função (Sem inclusão de Encargos Sociais) - Valor de GFIP | S124: =K124 -> Ano 7 | U124: =M124 -> Bacia 1 | V124: Quantidade de Funcionários - Cálculo pela Folha | AA124: =S124 -> Ano 7 | AC124: =U124 -> Bacia 1 | AD124: Quantidade de Frota Operacional | AH124: =AA124 -> Ano 7 | AJ124: =AC124 -> Bacia 1 | AK124: FU POR FUNÇÃO | AO124: =AH124 -> Ano 7 | AQ124: =AJ124 -> Bacia 1 | AR124: FU FÍSICO PARA BENEFÍCIOS | AV124: =AO124 -> Ano 7 | AX124: =AQ124 -> Bacia 1 | AY124: Qtde. Funcionários - FÍSICO para Benefícios e FOLHA para Salários base de cálculo dos Enc.Sociais | BP124: =AV124 -> Ano 7 | BR124: =AX124 -> Bacia 1 | BS124: =BP124 -> Ano 7
B125: Mês | C125: R$ Salário Médio da Função (Sem Encargos) | M125: Mês | U125: Mês | V125: Inclusas todas as Horas Extras | AC125: Mês | AJ125: Mês | AK125: CÁLCULO SOBRE A FOLHA DE PAGAMENTO | AQ125: Mês | AX125: Mês | AY125: Motoristas | BB125: Cobradores | BE125: Controle Operacional | BH125: Manutenção | BK125: Administração | BN125: Total Geral | BR125: Mês | BS125: Cálculo Mot.Articulados | BV125: Qtde. Física de Motoristas | BY125: Cálculo R$ Mot.Artic. | CA125: R$
C126: Motoristas | E126: Qtde.Física de Mot. | G126: R$ Salário | H126: Cobradores | I126: Controle | J126: Manu- | K126: Admi- | M126: de | N126: Motoristas | O126: Cobradores | P126: Controle | Q126: Manutenção | R126: Administração | S126: R$ | V126: Motoristas | W126: Cobradores | X126: Controle | Y126: Manutenção | Z126: Administração | AA126: Qtde. | AC126: de | AD126: Motoristas | AE126: Cobradores | AF126: Controle | AG126: Manutenção | AH126: Administração | AJ126: de | AK126: Motoristas | AL126: Cobradores | AM126: Controle | AN126: Manutenção | AO126: Administração | AQ126: de | AR126: Motoristas | AS126: Cobradores | AT126: Controle | AU126: Manutenção | AV126: Administração | AX126: de | AY126: Físico | AZ126: Folha | BA126: Dif.Folha | BB126: Físico | BC126: Folha | BD126: Dif.Folha | BE126: Físico | BF126: Folha | BG126: Dif.Folha | BH126: Físico | BI126: Folha | BJ126: Dif.Folha | BK126: Físico | BL126: Folha | BM126: Dif.Folha | BN126: Físico | BO126: Folha | BP126: Dif.Folha | BR126: de | BS126: Frota | BT126: FU físico | BU126: Mot. | BV126: Mot. | BW126: Mot. | BX126: Mot. | BY126: R$ Mot. | BZ126: R$ Mot. | CA126: Total
B127: Ref. | C127: Diversos | D127: Artic. | E127: Div. | F127: Artic. | G127: Médio Mot. | I127: Operacional | J127: tenção | K127: nistração | M127: Ref. | N127: Diversos | P127: Operacional | S127: Total | U127: Ref. | X127: Operacional | AA127: Total | AC127: Ref. | AF127: Operacional | AJ127: Ref. | AM127: Operacional | AQ127: Ref. | AT127: Operacional | AX127: Ref. | BA127: (-) Físico | BD127: (-) Físico | BG127: (-) Físico | BJ127: (-) Físico | BM127: (-) Físico | BP127: (-) Físico | BR127: Ref. | BS127: Artic. | BT127: Mot.Div. | BU127: Artic. | BV127: Total | BW127: Diversos | BX127: Artic. | BY127: Diversos | BZ127: Articulados | CA127: Motoristas
B128: =DATE(YEAR(B122),MONTH(B122)+1,DAY(B122)) -> 2019-11-01 | C128: =C122 -> 0 | D128: =D122 -> 0 | E128: =BW128 ->  | G128: =IF(C128>0,((C128*E128)+(D128*F128))/(E128+F128),0) -> 0 | H128: =H122 -> 0 | I128: =I122 -> 0 | J128: =J122 -> 0 | K128: =K122 -> 0 | M128: =B128 -> 2019-11-01 | N128: =N122 -> 1 | O128: =O122 -> 1 | P128: =P122 -> 1 | Q128: =Q122 -> 1 | R128: =R122 -> 1 | S128: =SUM(N128:R128) -> 5 | U128: =M128 -> 2019-11-01 | V128: =N128/G128 ->  | AA128: =SUM(V128:Z128) ->  | AC128: =U128 -> 2019-11-01 | AJ128: =AC128 -> 2019-11-01 | AK128: 2.7569 | AL128: =AK128 -> 2.7569 | AM128: =AM122 -> 0.1206032663 | AN128: =AN122 -> 0.4472361809 | AO128: =AO122 -> 0.09296482412 | AQ128: =AJ128 -> 2019-11-01 | AR128: =AK128 -> 2.7569 | AS128: =AR128 -> 2.7569 | AT128: =AT122 -> 0.1206032663 | AU128: =AU122 -> 0.4472361809 | AV128: =AV122 -> 0.09296482412 | AX128: =AQ128 -> 2019-11-01 | AY128: =AY122 -> 0 | AZ128: =V128 ->  | BA128: =AZ128-AY128 ->  | BB128: =BB122 -> 0 | BC128: =W128 ->  | BD128: =BC128-BB128 ->  | BE128: =BE122 -> 0 | BF128: =X128 ->  | BG128: =BF128-BE128 ->  | BH128: =BH122 -> 0 | BI128: =Y128 ->  | BJ128: =BI128-BH128 ->  | BK128: =BK122 -> 0 | BL128: =Z128 ->  | BM128: =BL128-BK128 ->  | BN128: =AY128+BB128+BE128+BH128+BK128 -> 0 | BP128: =BO128-BN128 ->  | BR128: =AX128 -> 2019-11-01 | BT128: =AY128/AD128 ->  | BU128: =BT128*BS128 ->  | BV128: =AY128 -> 0 | BW128: =BV128-BX128 ->  | BX128: =BU128 ->  | BY128: =N128/BV128*BW128 ->  | BZ128: =N128/BV128*BX128 ->  | CA128: =BY128+BZ128 -> 
B129: =DATE(YEAR(B128),MONTH(B128)+1,DAY(B128)) -> 2019-12-01 | C129: =C128 -> 0 | D129: =D128 -> 0 | G129: 0 | H129: =H128 -> 0 | I129: =I128 -> 0 | J129: =J128 -> 0 | K129: =K128 -> 0 | M129: 2019-12-01 | N129: =N128 -> 1 | O129: 1 | P129: 1 | Q129: 1 | R129: 1 | S129: 5 | U129: 2019-12-01 | AC129: 2019-12-01 | AJ129: 2019-12-01 | AK129: 2.7569 | AL129: =AK129 -> 2.7569 | AM129: =AM128 -> 0.1206032663 | AN129: 0.4472361809 | AO129: 0.09296482412 | AQ129: 2019-12-01 | AR129: =AK129 -> 2.7569 | AS129: =AR129 -> 2.7569 | AT129: =AT128 -> 0.1206032663 | AU129: 0.4472361809 | AV129: 0.09296482412 | AX129: 2019-12-01 | AY129: =AY128 -> 0 | BB129: =BB128 -> 0 | BE129: =BE128 -> 0 | BH129: =BH128 -> 0 | BK129: =BK128 -> 0 | BN129: 0 | BR129: 2019-12-01 | BV129: 0
B130: 2020-01-01 | C130: =C129 -> 0 | D130: 0 | G130: 0 | H130: =H129 -> 0 | I130: 0 | J130: 0 | K130: 0 | M130: 2020-01-01 | N130: 1 | O130: 1 | P130: 1 | Q130: 1 | R130: 1 | S130: 5 | U130: 2020-01-01 | AC130: 2020-01-01 | AJ130: 2020-01-01 | AK130: 2.7569 | AL130: 2.7569 | AM130: 0.1206032663 | AN130: 0.4472361809 | AO130: 0.09296482412 | AQ130: 2020-01-01 | AR130: 2.7569 | AS130: 2.7569 | AT130: 0.1206032663 | AU130: 0.4472361809 | AV130: 0.09296482412 | AX130: 2020-01-01 | AY130: 0 | BB130: 0 | BE130: 0 | BH130: 0 | BK130: 0 | BN130: 0 | BR130: 2020-01-01 | BV130: 0
B131: 2020-02-01 | C131: 0 | D131: 0 | G131: 0 | H131: 0 | I131: 0 | J131: 0 | K131: 0 | M131: 2020-02-01 | N131: 1 | O131: 1 | P131: 1 | Q131: 1 | R131: 1 | S131: 5 | U131: 2020-02-01 | AC131: 2020-02-01 | AJ131: 2020-02-01 | AK131: 2.7569 | AL131: 2.7569 | AM131: 0.1206032663 | AN131: 0.4472361809 | AO131: 0.09296482412 | AQ131: 2020-02-01 | AR131: 2.7569 | AS131: 2.7569 | AT131: 0.1206032663 | AU131: 0.4472361809 | AV131: 0.09296482412 | AX131: 2020-02-01 | AY131: 0 | BB131: 0 | BE131: 0 | BH131: 0 | BK131: 0 | BN131: 0 | BR131: 2020-02-01 | BV131: 0
B132: 2020-03-01 | C132: 0 | D132: 0 | G132: 0 | H132: 0 | I132: 0 | J132: 0 | K132: 0 | M132: 2020-03-01 | N132: 1 | O132: 1 | P132: 1 | Q132: 1 | R132: 1 | S132: 5 | U132: 2020-03-01 | AC132: 2020-03-01 | AJ132: 2020-03-01 | AK132: 2.7569 | AL132: 2.7569 | AM132: 0.1206032663 | AN132: 0.4472361809 | AO132: 0.09296482412 | AQ132: 2020-03-01 | AR132: 2.7569 | AS132: 2.7569 | AT132: 0.1206032663 | AU132: 0.4472361809 | AV132: 0.09296482412 | AX132: 2020-03-01 | AY132: 0 | BB132: 0 | BE132: 0 | BH132: 0 | BK132: 0 | BN132: 0 | BR132: 2020-03-01 | BV132: 0
B133: 2020-04-01 | C133: 0 | D133: 0 | G133: 0 | H133: 0 | I133: 0 | J133: 0 | K133: 0 | M133: 2020-04-01 | N133: 1 | O133: 1 | P133: 1 | Q133: 1 | R133: 1 | S133: 5 | U133: 2020-04-01 | AC133: 2020-04-01 | AJ133: 2020-04-01 | AK133: 2.7569 | AL133: 2.7569 | AM133: 0.1206032663 | AN133: 0.4472361809 | AO133: 0.09296482412 | AQ133: 2020-04-01 | AR133: 2.7569 | AS133: 2.7569 | AT133: 0.1206032663 | AU133: 0.4472361809 | AV133: 0.09296482412 | AX133: 2020-04-01 | AY133: 0 | BB133: 0 | BE133: 0 | BH133: 0 | BK133: 0 | BN133: 0 | BR133: 2020-04-01 | BV133: 0
B134: 2020-05-01 | C134: 0 | D134: 0 | G134: 0 | H134: 0 | I134: 0 | J134: 0 | K134: 0 | M134: 2020-05-01 | N134: 1 | O134: 1 | P134: 1 | Q134: 1 | R134: 1 | S134: 5 | U134: 2020-05-01 | AC134: 2020-05-01 | AJ134: 2020-05-01 | AK134: 2.7569 | AL134: 2.7569 | AM134: 0.1206032663 | AN134: 0.4472361809 | AO134: 0.09296482412 | AQ134: 2020-05-01 | AR134: 2.7569 | AS134: 2.7569 | AT134: 0.1206032663 | AU134: 0.4472361809 | AV134: 0.09296482412 | AX134: 2020-05-01 | AY134: 0 | BB134: 0 | BE134: 0 | BH134: 0 | BK134: 0 | BN134: 0 | BR134: 2020-05-01 | BV134: 0
B135: 2020-06-01 | C135: 0 | D135: 0 | G135: 0 | H135: 0 | I135: 0 | J135: 0 | K135: 0 | M135: 2020-06-01 | N135: 1 | O135: 1 | P135: 1 | Q135: 1 | R135: 1 | S135: 5 | U135: 2020-06-01 | AC135: 2020-06-01 | AJ135: 2020-06-01 | AK135: 2.7569 | AL135: 2.7569 | AM135: 0.1206032663 | AN135: 0.4472361809 | AO135: 0.09296482412 | AQ135: 2020-06-01 | AR135: 2.7569 | AS135: 2.7569 | AT135: 0.1206032663 | AU135: 0.4472361809 | AV135: 0.09296482412 | AX135: 2020-06-01 | AY135: 0 | BB135: 0 | BE135: 0 | BH135: 0 | BK135: 0 | BN135: 0 | BR135: 2020-06-01 | BV135: 0
B136: 2020-07-01 | C136: 0 | D136: 0 | G136: 0 | H136: 0 | I136: 0 | J136: 0 | K136: 0 | M136: 2020-07-01 | N136: 1 | O136: 1 | P136: 1 | Q136: 1 | R136: 1 | S136: 5 | U136: 2020-07-01 | AC136: 2020-07-01 | AJ136: 2020-07-01 | AK136: 2.7569 | AL136: 2.7569 | AM136: 0.1206032663 | AN136: 0.4472361809 | AO136: 0.09296482412 | AQ136: 2020-07-01 | AR136: 2.7569 | AS136: 2.7569 | AT136: 0.1206032663 | AU136: 0.4472361809 | AV136: 0.09296482412 | AX136: 2020-07-01 | AY136: 0 | BB136: 0 | BE136: 0 | BH136: 0 | BK136: 0 | BN136: 0 | BR136: 2020-07-01 | BV136: 0
B137: 2020-08-01 | C137: 0 | D137: 0 | G137: 0 | H137: 0 | I137: 0 | J137: 0 | K137: 0 | M137: 2020-08-01 | N137: 1 | O137: 1 | P137: 1 | Q137: 1 | R137: 1 | S137: 5 | U137: 2020-08-01 | AC137: 2020-08-01 | AJ137: 2020-08-01 | AK137: 2.7569 | AL137: 2.7569 | AM137: 0.1206032663 | AN137: 0.4472361809 | AO137: 0.09296482412 | AQ137: 2020-08-01 | AR137: 2.7569 | AS137: 2.7569 | AT137: 0.1206032663 | AU137: 0.4472361809 | AV137: 0.09296482412 | AX137: 2020-08-01 | AY137: 0 | BB137: 0 | BE137: 0 | BH137: 0 | BK137: 0 | BN137: 0 | BR137: 2020-08-01 | BV137: 0
B138: 2020-09-01 | C138: 0 | D138: 0 | G138: 0 | H138: 0 | I138: 0 | J138: 0 | K138: 0 | M138: 2020-09-01 | N138: 1 | O138: 1 | P138: 1 | Q138: 1 | R138: 1 | S138: 5 | U138: 2020-09-01 | AC138: 2020-09-01 | AJ138: 2020-09-01 | AK138: 2.7569 | AL138: 2.7569 | AM138: 0.1206032663 | AN138: 0.4472361809 | AO138: 0.09296482412 | AQ138: 2020-09-01 | AR138: 2.7569 | AS138: 2.7569 | AT138: 0.1206032663 | AU138: 0.4472361809 | AV138: 0.09296482412 | AX138: 2020-09-01 | AY138: 0 | BB138: 0 | BE138: 0 | BH138: 0 | BK138: 0 | BN138: 0 | BR138: 2020-09-01 | BV138: 0
B139: 2020-10-01 | C139: 0 | D139: 0 | G139: 0 | H139: 0 | I139: 0 | J139: 0 | K139: 0 | M139: 2020-10-01 | N139: 1 | O139: 1 | P139: 1 | Q139: 1 | R139: 1 | S139: 5 | U139: 2020-10-01 | AC139: 2020-10-01 | AJ139: 2020-10-01 | AK139: 2.7569 | AL139: 2.7569 | AM139: 0.1206032663 | AN139: 0.4472361809 | AO139: 0.09296482412 | AQ139: 2020-10-01 | AR139: 2.7569 | AS139: 2.7569 | AT139: 0.1206032663 | AU139: 0.4472361809 | AV139: 0.09296482412 | AX139: 2020-10-01 | AY139: 0 | BB139: 0 | BE139: 0 | BH139: 0 | BK139: 0 | BN139: 0 | BR139: 2020-10-01 | BV139: 0
B141: =B124 -> Bacia 1 | C141: R$ da Licitação corrigidos nos Dissídios Coletivos | K141: Ano 8 | M141: =B141 -> Bacia 1 | N141: R$ Salário Total Com Horas Extras e Adicional Noturno Pago Por Função (Sem inclusão de Encargos Sociais) - Valor de GFIP | S141: =K141 -> Ano 8 | U141: =M141 -> Bacia 1 | V141: Quantidade de Funcionários - Cálculo pela Folha | AA141: =S141 -> Ano 8 | AC141: =U141 -> Bacia 1 | AD141: Quantidade de Frota Operacional | AH141: =AA141 -> Ano 8 | AJ141: =AC141 -> Bacia 1 | AK141: FU POR FUNÇÃO | AO141: =AH141 -> Ano 8 | AQ141: =AJ141 -> Bacia 1 | AR141: FU FÍSICO PARA BENEFÍCIOS | AV141: =AO141 -> Ano 8 | AX141: =AQ141 -> Bacia 1 | AY141: Qtde. Funcionários - FÍSICO para Benefícios e FOLHA para Salários base de cálculo dos Enc.Sociais | BP141: =AV141 -> Ano 8 | BR141: =AX141 -> Bacia 1 | BS141: =BP141 -> Ano 8
B142: Mês | C142: R$ Salário Médio da Função (Sem Encargos) | M142: Mês | U142: Mês | V142: Inclusas todas as Horas Extras | AC142: Mês | AJ142: Mês | AK142: CÁLCULO SOBRE A FOLHA DE PAGAMENTO | AQ142: Mês | AX142: Mês | AY142: Motoristas | BB142: Cobradores | BE142: Controle Operacional | BH142: Manutenção | BK142: Administração | BN142: Total Geral | BR142: Mês | BS142: Cálculo Mot.Articulados | BV142: Qtde. Física de Motoristas | BY142: Cálculo R$ Mot.Artic. | CA142: R$
C143: Motoristas | E143: Qtde.Física de Mot. | G143: R$ Salário | H143: Cobradores | I143: Controle | J143: Manu- | K143: Admi- | M143: de | N143: Motoristas | O143: Cobradores | P143: Controle | Q143: Manutenção | R143: Administração | S143: R$ | V143: Motoristas | W143: Cobradores | X143: Controle | Y143: Manutenção | Z143: Administração | AA143: Qtde. | AC143: de | AD143: Motoristas | AE143: Cobradores | AF143: Controle | AG143: Manutenção | AH143: Administração | AJ143: de | AK143: Motoristas | AL143: Cobradores | AM143: Controle | AN143: Manutenção | AO143: Administração | AQ143: de | AR143: Motoristas | AS143: Cobradores | AT143: Controle | AU143: Manutenção | AV143: Administração | AX143: de | AY143: Físico | AZ143: Folha | BA143: Dif.Folha | BB143: Físico | BC143: Folha | BD143: Dif.Folha | BE143: Físico | BF143: Folha | BG143: Dif.Folha | BH143: Físico | BI143: Folha | BJ143: Dif.Folha | BK143: Físico | BL143: Folha | BM143: Dif.Folha | BN143: Físico | BO143: Folha | BP143: Dif.Folha | BR143: de | BS143: Frota | BT143: FU físico | BU143: Mot. | BV143: Mot. | BW143: Mot. | BX143: Mot. | BY143: R$ Mot. | BZ143: R$ Mot. | CA143: Total
B144: Ref. | C144: Diversos | D144: Artic. | E144: Div. | F144: Artic. | G144: Médio Mot. | I144: Operacional | J144: tenção | K144: nistração | M144: Ref. | N144: Diversos | P144: Operacional | S144: Total | U144: Ref. | X144: Operacional | AA144: Total | AC144: Ref. | AF144: Operacional | AJ144: Ref. | AM144: Operacional | AQ144: Ref. | AT144: Operacional | AX144: Ref. | BA144: (-) Físico | BD144: (-) Físico | BG144: (-) Físico | BJ144: (-) Físico | BM144: (-) Físico | BP144: (-) Físico | BR144: Ref. | BS144: Artic. | BT144: Mot.Div. | BU144: Artic. | BV144: Total | BW144: Diversos | BX144: Artic. | BY144: Diversos | BZ144: Articulados | CA144: Motoristas
B145: =DATE(YEAR(B139),MONTH(B139)+1,DAY(B139)) -> 2020-11-01 | C145: =C139 -> 0 | D145: =D139 -> 0 | E145: =BW145 ->  | G145: =IF(C145>0,((C145*E145)+(D145*F145))/(E145+F145),0) -> 0 | H145: =H139 -> 0 | I145: =I139 -> 0 | J145: =J139 -> 0 | K145: =K139 -> 0 | M145: =B145 -> 2020-11-01 | N145: =N139 -> 1 | O145: =O139 -> 1 | P145: =P139 -> 1 | Q145: =Q139 -> 1 | R145: =R139 -> 1 | S145: =SUM(N145:R145) -> 5 | U145: =M145 -> 2020-11-01 | V145: =N145/G145 ->  | AA145: =SUM(V145:Z145) ->  | AC145: =U145 -> 2020-11-01 | AJ145: =AC145 -> 2020-11-01 | AK145: 2.7569 | AL145: =AK145 -> 2.7569 | AM145: =AM139 -> 0.1206032663 | AN145: =AN139 -> 0.4472361809 | AO145: =AO139 -> 0.09296482412 | AQ145: =AJ145 -> 2020-11-01 | AR145: =AK145 -> 2.7569 | AS145: =AR145 -> 2.7569 | AT145: =AT139 -> 0.1206032663 | AU145: =AU139 -> 0.4472361809 | AV145: =AV139 -> 0.09296482412 | AX145: =AQ145 -> 2020-11-01 | AY145: =AY139 -> 0 | AZ145: =V145 ->  | BA145: =AZ145-AY145 ->  | BB145: =BB139 -> 0 | BC145: =W145 ->  | BD145: =BC145-BB145 ->  | BE145: =BE139 -> 0 | BF145: =X145 ->  | BG145: =BF145-BE145 ->  | BH145: =BH139 -> 0 | BI145: =Y145 ->  | BJ145: =BI145-BH145 ->  | BK145: =BK139 -> 0 | BL145: =Z145 ->  | BM145: =BL145-BK145 ->  | BN145: =AY145+BB145+BE145+BH145+BK145 -> 0 | BP145: =BO145-BN145 ->  | BR145: =AX145 -> 2020-11-01 | BT145: =AY145/AD145 ->  | BU145: =BT145*BS145 ->  | BV145: =AY145 -> 0 | BW145: =BV145-BX145 ->  | BX145: =BU145 ->  | BY145: =N145/BV145*BW145 ->  | BZ145: =N145/BV145*BX145 ->  | CA145: =BY145+BZ145 -> 
B146: =DATE(YEAR(B145),MONTH(B145)+1,DAY(B145)) -> 2020-12-01 | C146: =C145 -> 0 | D146: =D145 -> 0 | G146: 0 | H146: =H145 -> 0 | I146: =I145 -> 0 | J146: =J145 -> 0 | K146: =K145 -> 0 | M146: 2020-12-01 | N146: =N145 -> 1 | O146: 1 | P146: 1 | Q146: 1 | R146: 1 | S146: 5 | U146: 2020-12-01 | AC146: 2020-12-01 | AJ146: 2020-12-01 | AK146: 2.7569 | AL146: =AK146 -> 2.7569 | AM146: =AM145 -> 0.1206032663 | AN146: 0.4472361809 | AO146: 0.09296482412 | AQ146: 2020-12-01 | AR146: =AK146 -> 2.7569 | AS146: =AR146 -> 2.7569 | AT146: =AT145 -> 0.1206032663 | AU146: 0.4472361809 | AV146: 0.09296482412 | AX146: 2020-12-01 | AY146: =AY145 -> 0 | BB146: =BB145 -> 0 | BE146: =BE145 -> 0 | BH146: =BH145 -> 0 | BK146: =BK145 -> 0 | BN146: 0 | BR146: 2020-12-01 | BV146: 0
B147: 2021-01-01 | C147: =C146 -> 0 | D147: 0 | G147: 0 | H147: =H146 -> 0 | I147: 0 | J147: 0 | K147: 0 | M147: 2021-01-01 | N147: 1 | O147: 1 | P147: 1 | Q147: 1 | R147: 1 | S147: 5 | U147: 2021-01-01 | AC147: 2021-01-01 | AJ147: 2021-01-01 | AK147: 2.7569 | AL147: 2.7569 | AM147: 0.1206032663 | AN147: 0.4472361809 | AO147: 0.09296482412 | AQ147: 2021-01-01 | AR147: 2.7569 | AS147: 2.7569 | AT147: 0.1206032663 | AU147: 0.4472361809 | AV147: 0.09296482412 | AX147: 2021-01-01 | AY147: 0 | BB147: 0 | BE147: 0 | BH147: 0 | BK147: 0 | BN147: 0 | BR147: 2021-01-01 | BV147: 0
B148: 2021-02-01 | C148: 0 | D148: 0 | G148: 0 | H148: 0 | I148: 0 | J148: 0 | K148: 0 | M148: 2021-02-01 | N148: 1 | O148: 1 | P148: 1 | Q148: 1 | R148: 1 | S148: 5 | U148: 2021-02-01 | AC148: 2021-02-01 | AJ148: 2021-02-01 | AK148: 2.7569 | AL148: 2.7569 | AM148: 0.1206032663 | AN148: 0.4472361809 | AO148: 0.09296482412 | AQ148: 2021-02-01 | AR148: 2.7569 | AS148: 2.7569 | AT148: 0.1206032663 | AU148: 0.4472361809 | AV148: 0.09296482412 | AX148: 2021-02-01 | AY148: 0 | BB148: 0 | BE148: 0 | BH148: 0 | BK148: 0 | BN148: 0 | BR148: 2021-02-01 | BV148: 0
B149: 2021-03-01 | C149: 0 | D149: 0 | G149: 0 | H149: 0 | I149: 0 | J149: 0 | K149: 0 | M149: 2021-03-01 | N149: 1 | O149: 1 | P149: 1 | Q149: 1 | R149: 1 | S149: 5 | U149: 2021-03-01 | AC149: 2021-03-01 | AJ149: 2021-03-01 | AK149: 2.7569 | AL149: 2.7569 | AM149: 0.1206032663 | AN149: 0.4472361809 | AO149: 0.09296482412 | AQ149: 2021-03-01 | AR149: 2.7569 | AS149: 2.7569 | AT149: 0.1206032663 | AU149: 0.4472361809 | AV149: 0.09296482412 | AX149: 2021-03-01 | AY149: 0 | BB149: 0 | BE149: 0 | BH149: 0 | BK149: 0 | BN149: 0 | BR149: 2021-03-01 | BV149: 0
B150: 2021-04-01 | C150: 0 | D150: 0 | G150: 0 | H150: 0 | I150: 0 | J150: 0 | K150: 0 | M150: 2021-04-01 | N150: 1 | O150: 1 | P150: 1 | Q150: 1 | R150: 1 | S150: 5 | U150: 2021-04-01 | AC150: 2021-04-01 | AJ150: 2021-04-01 | AK150: 2.7569 | AL150: 2.7569 | AM150: 0.1206032663 | AN150: 0.4472361809 | AO150: 0.09296482412 | AQ150: 2021-04-01 | AR150: 2.7569 | AS150: 2.7569 | AT150: 0.1206032663 | AU150: 0.4472361809 | AV150: 0.09296482412 | AX150: 2021-04-01 | AY150: 0 | BB150: 0 | BE150: 0 | BH150: 0 | BK150: 0 | BN150: 0 | BR150: 2021-04-01 | BV150: 0
B151: 2021-05-01 | C151: 0 | D151: 0 | G151: 0 | H151: 0 | I151: 0 | J151: 0 | K151: 0 | M151: 2021-05-01 | N151: 1 | O151: 1 | P151: 1 | Q151: 1 | R151: 1 | S151: 5 | U151: 2021-05-01 | AC151: 2021-05-01 | AJ151: 2021-05-01 | AK151: 2.7569 | AL151: 2.7569 | AM151: 0.1206032663 | AN151: 0.4472361809 | AO151: 0.09296482412 | AQ151: 2021-05-01 | AR151: 2.7569 | AS151: 2.7569 | AT151: 0.1206032663 | AU151: 0.4472361809 | AV151: 0.09296482412 | AX151: 2021-05-01 | AY151: 0 | BB151: 0 | BE151: 0 | BH151: 0 | BK151: 0 | BN151: 0 | BR151: 2021-05-01 | BV151: 0
B152: 2021-06-01 | C152: 0 | D152: 0 | G152: 0 | H152: 0 | I152: 0 | J152: 0 | K152: 0 | M152: 2021-06-01 | N152: 1 | O152: 1 | P152: 1 | Q152: 1 | R152: 1 | S152: 5 | U152: 2021-06-01 | AC152: 2021-06-01 | AJ152: 2021-06-01 | AK152: 2.7569 | AL152: 2.7569 | AM152: 0.1206032663 | AN152: 0.4472361809 | AO152: 0.09296482412 | AQ152: 2021-06-01 | AR152: 2.7569 | AS152: 2.7569 | AT152: 0.1206032663 | AU152: 0.4472361809 | AV152: 0.09296482412 | AX152: 2021-06-01 | AY152: 0 | BB152: 0 | BE152: 0 | BH152: 0 | BK152: 0 | BN152: 0 | BR152: 2021-06-01 | BV152: 0
B153: 2021-07-01 | C153: 0 | D153: 0 | G153: 0 | H153: 0 | I153: 0 | J153: 0 | K153: 0 | M153: 2021-07-01 | N153: 1 | O153: 1 | P153: 1 | Q153: 1 | R153: 1 | S153: 5 | U153: 2021-07-01 | AC153: 2021-07-01 | AJ153: 2021-07-01 | AK153: 2.7569 | AL153: 2.7569 | AM153: 0.1206032663 | AN153: 0.4472361809 | AO153: 0.09296482412 | AQ153: 2021-07-01 | AR153: 2.7569 | AS153: 2.7569 | AT153: 0.1206032663 | AU153: 0.4472361809 | AV153: 0.09296482412 | AX153: 2021-07-01 | AY153: 0 | BB153: 0 | BE153: 0 | BH153: 0 | BK153: 0 | BN153: 0 | BR153: 2021-07-01 | BV153: 0
B154: 2021-08-01 | C154: 0 | D154: 0 | G154: 0 | H154: 0 | I154: 0 | J154: 0 | K154: 0 | M154: 2021-08-01 | N154: 1 | O154: 1 | P154: 1 | Q154: 1 | R154: 1 | S154: 5 | U154: 2021-08-01 | AC154: 2021-08-01 | AJ154: 2021-08-01 | AK154: 2.7569 | AL154: 2.7569 | AM154: 0.1206032663 | AN154: 0.4472361809 | AO154: 0.09296482412 | AQ154: 2021-08-01 | AR154: 2.7569 | AS154: 2.7569 | AT154: 0.1206032663 | AU154: 0.4472361809 | AV154: 0.09296482412 | AX154: 2021-08-01 | AY154: 0 | BB154: 0 | BE154: 0 | BH154: 0 | BK154: 0 | BN154: 0 | BR154: 2021-08-01 | BV154: 0
B155: 2021-09-01 | C155: 0 | D155: 0 | G155: 0 | H155: 0 | I155: 0 | J155: 0 | K155: 0 | M155: 2021-09-01 | N155: 1 | O155: 1 | P155: 1 | Q155: 1 | R155: 1 | S155: 5 | U155: 2021-09-01 | AC155: 2021-09-01 | AJ155: 2021-09-01 | AK155: 2.7569 | AL155: 2.7569 | AM155: 0.1206032663 | AN155: 0.4472361809 | AO155: 0.09296482412 | AQ155: 2021-09-01 | AR155: 2.7569 | AS155: 2.7569 | AT155: 0.1206032663 | AU155: 0.4472361809 | AV155: 0.09296482412 | AX155: 2021-09-01 | AY155: 0 | BB155: 0 | BE155: 0 | BH155: 0 | BK155: 0 | BN155: 0 | BR155: 2021-09-01 | BV155: 0
B156: 2021-10-01 | C156: 0 | D156: 0 | G156: 0 | H156: 0 | I156: 0 | J156: 0 | K156: 0 | M156: 2021-10-01 | N156: 1 | O156: 1 | P156: 1 | Q156: 1 | R156: 1 | S156: 5 | U156: 2021-10-01 | AC156: 2021-10-01 | AJ156: 2021-10-01 | AK156: 2.7569 | AL156: 2.7569 | AM156: 0.1206032663 | AN156: 0.4472361809 | AO156: 0.09296482412 | AQ156: 2021-10-01 | AR156: 2.7569 | AS156: 2.7569 | AT156: 0.1206032663 | AU156: 0.4472361809 | AV156: 0.09296482412 | AX156: 2021-10-01 | AY156: 0 | BB156: 0 | BE156: 0 | BH156: 0 | BK156: 0 | BN156: 0 | BR156: 2021-10-01 | BV156: 0
B158: =B141 -> Bacia 1 | C158: R$ da Licitação corrigidos nos Dissídios Coletivos | K158: Ano 9 | M158: =B158 -> Bacia 1 | N158: R$ Salário Total Com Horas Extras e Adicional Noturno Pago Por Função (Sem inclusão de Encargos Sociais) - Valor de GFIP | S158: =K158 -> Ano 9 | U158: =M158 -> Bacia 1 | V158: Quantidade de Funcionários - Cálculo pela Folha | AA158: =S158 -> Ano 9 | AC158: =U158 -> Bacia 1 | AD158: Quantidade de Frota Operacional | AH158: =AA158 -> Ano 9 | AJ158: =AC158 -> Bacia 1 | AK158: FU POR FUNÇÃO | AO158: =AH158 -> Ano 9 | AQ158: =AJ158 -> Bacia 1 | AR158: FU FÍSICO PARA BENEFÍCIOS | AV158: =AO158 -> Ano 9 | AX158: =AQ158 -> Bacia 1 | AY158: Qtde. Funcionários - FÍSICO para Benefícios e FOLHA para Salários base de cálculo dos Enc.Sociais | BP158: =AV158 -> Ano 9 | BR158: =AX158 -> Bacia 1 | BS158: =BP158 -> Ano 9
B159: Mês | C159: R$ Salário Médio da Função (Sem Encargos) | M159: Mês | U159: Mês | V159: Inclusas todas as Horas Extras | AC159: Mês | AJ159: Mês | AK159: CÁLCULO SOBRE A FOLHA DE PAGAMENTO | AQ159: Mês | AX159: Mês | AY159: Motoristas | BB159: Cobradores | BE159: Controle Operacional | BH159: Manutenção | BK159: Administração | BN159: Total Geral | BR159: Mês | BS159: Cálculo Mot.Articulados | BV159: Qtde. Física de Motoristas | BY159: Cálculo R$ Mot.Artic. | CA159: R$
C160: Motoristas | E160: Qtde.Física de Mot. | G160: R$ Salário | H160: Cobradores | I160: Controle | J160: Manu- | K160: Admi- | M160: de | N160: Motoristas | O160: Cobradores | P160: Controle | Q160: Manutenção | R160: Administração | S160: R$ | V160: Motoristas | W160: Cobradores | X160: Controle | Y160: Manutenção | Z160: Administração | AA160: Qtde. | AC160: de | AD160: Motoristas | AE160: Cobradores | AF160: Controle | AG160: Manutenção | AH160: Administração | AJ160: de | AK160: Motoristas | AL160: Cobradores | AM160: Controle | AN160: Manutenção | AO160: Administração | AQ160: de | AR160: Motoristas | AS160: Cobradores | AT160: Controle | AU160: Manutenção | AV160: Administração | AX160: de | AY160: Físico | AZ160: Folha | BA160: Dif.Folha | BB160: Físico | BC160: Folha | BD160: Dif.Folha | BE160: Físico | BF160: Folha | BG160: Dif.Folha | BH160: Físico | BI160: Folha | BJ160: Dif.Folha | BK160: Físico | BL160: Folha | BM160: Dif.Folha | BN160: Físico | BO160: Folha | BP160: Dif.Folha | BR160: de | BS160: Frota | BT160: FU físico | BU160: Mot. | BV160: Mot. | BW160: Mot. | BX160: Mot. | BY160: R$ Mot. | BZ160: R$ Mot. | CA160: Total
B161: Ref. | C161: Diversos | D161: Artic. | E161: Div. | F161: Artic. | G161: Médio Mot. | I161: Operacional | J161: tenção | K161: nistração | M161: Ref. | N161: Diversos | P161: Operacional | S161: Total | U161: Ref. | X161: Operacional | AA161: Total | AC161: Ref. | AF161: Operacional | AJ161: Ref. | AM161: Operacional | AQ161: Ref. | AT161: Operacional | AX161: Ref. | BA161: (-) Físico | BD161: (-) Físico | BG161: (-) Físico | BJ161: (-) Físico | BM161: (-) Físico | BP161: (-) Físico | BR161: Ref. | BS161: Artic. | BT161: Mot.Div. | BU161: Artic. | BV161: Total | BW161: Diversos | BX161: Artic. | BY161: Diversos | BZ161: Articulados | CA161: Motoristas
B162: =DATE(YEAR(B156),MONTH(B156)+1,DAY(B156)) -> 2021-11-01 | C162: =C156 -> 0 | D162: =D156 -> 0 | E162: =BW162 ->  | G162: =IF(C162>0,((C162*E162)+(D162*F162))/(E162+F162),0) -> 0 | H162: =H156 -> 0 | I162: =I156 -> 0 | J162: =J156 -> 0 | K162: =K156 -> 0 | M162: =B162 -> 2021-11-01 | N162: =N156 -> 1 | O162: =O156 -> 1 | P162: =P156 -> 1 | Q162: =Q156 -> 1 | R162: =R156 -> 1 | S162: =SUM(N162:R162) -> 5 | U162: =M162 -> 2021-11-01 | V162: =N162/G162 ->  | AA162: =SUM(V162:Z162) ->  | AC162: =U162 -> 2021-11-01 | AJ162: =AC162 -> 2021-11-01 | AK162: 2.7569 | AL162: =AK162 -> 2.7569 | AM162: =AM156 -> 0.1206032663 | AN162: =AN156 -> 0.4472361809 | AO162: =AO156 -> 0.09296482412 | AQ162: =AJ162 -> 2021-11-01 | AR162: =AK162 -> 2.7569 | AS162: =AR162 -> 2.7569 | AT162: =AT156 -> 0.1206032663 | AU162: =AU156 -> 0.4472361809 | AV162: =AV156 -> 0.09296482412 | AX162: =AQ162 -> 2021-11-01 | AY162: =AY156 -> 0 | AZ162: =V162 ->  | BA162: =AZ162-AY162 ->  | BB162: =BB156 -> 0 | BC162: =W162 ->  | BD162: =BC162-BB162 ->  | BE162: =BE156 -> 0 | BF162: =X162 ->  | BG162: =BF162-BE162 ->  | BH162: =BH156 -> 0 | BI162: =Y162 ->  | BJ162: =BI162-BH162 ->  | BK162: =BK156 -> 0 | BL162: =Z162 ->  | BM162: =BL162-BK162 ->  | BN162: =AY162+BB162+BE162+BH162+BK162 -> 0 | BP162: =BO162-BN162 ->  | BR162: =AX162 -> 2021-11-01 | BT162: =AY162/AD162 ->  | BU162: =BT162*BS162 ->  | BV162: =AY162 -> 0 | BW162: =BV162-BX162 ->  | BX162: =BU162 ->  | BY162: =N162/BV162*BW162 ->  | BZ162: =N162/BV162*BX162 ->  | CA162: =BY162+BZ162 -> 
B163: =DATE(YEAR(B162),MONTH(B162)+1,DAY(B162)) -> 2021-12-01 | C163: =C162 -> 0 | D163: =D162 -> 0 | G163: 0 | H163: =H162 -> 0 | I163: =I162 -> 0 | J163: =J162 -> 0 | K163: =K162 -> 0 | M163: 2021-12-01 | N163: =N162 -> 1 | O163: 1 | P163: 1 | Q163: 1 | R163: 1 | S163: 5 | U163: 2021-12-01 | AC163: 2021-12-01 | AJ163: 2021-12-01 | AK163: 2.7569 | AL163: =AK163 -> 2.7569 | AM163: =AM162 -> 0.1206032663 | AN163: 0.4472361809 | AO163: 0.09296482412 | AQ163: 2021-12-01 | AR163: =AK163 -> 2.7569 | AS163: =AR163 -> 2.7569 | AT163: =AT162 -> 0.1206032663 | AU163: 0.4472361809 | AV163: 0.09296482412 | AX163: 2021-12-01 | AY163: =AY162 -> 0 | BB163: =BB162 -> 0 | BE163: =BE162 -> 0 | BH163: =BH162 -> 0 | BK163: =BK162 -> 0 | BN163: 0 | BR163: 2021-12-01 | BV163: 0
B164: =DATE(YEAR(B163),MONTH(B163)+1,DAY(B163)) -> 2022-01-01 | C164: =C163 -> 0 | D164: 0 | G164: 0 | H164: =H163 -> 0 | I164: 0 | J164: 0 | K164: 0 | M164: 2022-01-01 | N164: 1 | O164: 1 | P164: 1 | Q164: 1 | R164: 1 | S164: 5 | U164: 2022-01-01 | AC164: 2022-01-01 | AJ164: 2022-01-01 | AK164: 2.7569 | AL164: 2.7569 | AM164: 0.1206032663 | AN164: 0.4472361809 | AO164: 0.09296482412 | AQ164: 2022-01-01 | AR164: 2.7569 | AS164: 2.7569 | AT164: 0.1206032663 | AU164: 0.4472361809 | AV164: 0.09296482412 | AX164: 2022-01-01 | AY164: 0 | BB164: 0 | BE164: 0 | BH164: 0 | BK164: 0 | BN164: 0 | BR164: 2022-01-01 | BV164: 0
B165: 2022-02-01 | C165: 0 | D165: 0 | G165: 0 | H165: 0 | I165: 0 | J165: 0 | K165: 0 | M165: 2022-02-01 | N165: 1 | O165: 1 | P165: 1 | Q165: 1 | R165: 1 | S165: 5 | U165: 2022-02-01 | AC165: 2022-02-01 | AJ165: 2022-02-01 | AK165: 2.7569 | AL165: 2.7569 | AM165: 0.1206032663 | AN165: 0.4472361809 | AO165: 0.09296482412 | AQ165: 2022-02-01 | AR165: 2.7569 | AS165: 2.7569 | AT165: 0.1206032663 | AU165: 0.4472361809 | AV165: 0.09296482412 | AX165: 2022-02-01 | AY165: 0 | BB165: 0 | BE165: 0 | BH165: 0 | BK165: 0 | BN165: 0 | BR165: 2022-02-01 | BV165: 0
B166: 2022-03-01 | C166: 0 | D166: 0 | G166: 0 | H166: 0 | I166: 0 | J166: 0 | K166: 0 | M166: 2022-03-01 | N166: 1 | O166: 1 | P166: 1 | Q166: 1 | R166: 1 | S166: 5 | U166: 2022-03-01 | AC166: 2022-03-01 | AJ166: 2022-03-01 | AK166: 2.7569 | AL166: 2.7569 | AM166: 0.1206032663 | AN166: 0.4472361809 | AO166: 0.09296482412 | AQ166: 2022-03-01 | AR166: 2.7569 | AS166: 2.7569 | AT166: 0.1206032663 | AU166: 0.4472361809 | AV166: 0.09296482412 | AX166: 2022-03-01 | AY166: 0 | BB166: 0 | BE166: 0 | BH166: 0 | BK166: 0 | BN166: 0 | BR166: 2022-03-01 | BV166: 0
B167: 2022-04-01 | C167: 0 | D167: 0 | G167: 0 | H167: 0 | I167: 0 | J167: 0 | K167: 0 | M167: 2022-04-01 | N167: 1 | O167: 1 | P167: 1 | Q167: 1 | R167: 1 | S167: 5 | U167: 2022-04-01 | AC167: 2022-04-01 | AJ167: 2022-04-01 | AK167: 2.7569 | AL167: 2.7569 | AM167: 0.1206032663 | AN167: 0.4472361809 | AO167: 0.09296482412 | AQ167: 2022-04-01 | AR167: 2.7569 | AS167: 2.7569 | AT167: 0.1206032663 | AU167: 0.4472361809 | AV167: 0.09296482412 | AX167: 2022-04-01 | AY167: 0 | BB167: 0 | BE167: 0 | BH167: 0 | BK167: 0 | BN167: 0 | BR167: 2022-04-01 | BV167: 0
B168: 2022-05-01 | C168: 0 | D168: 0 | G168: 0 | H168: 0 | I168: 0 | J168: 0 | K168: 0 | M168: 2022-05-01 | N168: 1 | O168: 1 | P168: 1 | Q168: 1 | R168: 1 | S168: 5 | U168: 2022-05-01 | AC168: 2022-05-01 | AJ168: 2022-05-01 | AK168: 2.7569 | AL168: 2.7569 | AM168: 0.1206032663 | AN168: 0.4472361809 | AO168: 0.09296482412 | AQ168: 2022-05-01 | AR168: 2.7569 | AS168: 2.7569 | AT168: 0.1206032663 | AU168: 0.4472361809 | AV168: 0.09296482412 | AX168: 2022-05-01 | AY168: 0 | BB168: 0 | BE168: 0 | BH168: 0 | BK168: 0 | BN168: 0 | BR168: 2022-05-01 | BV168: 0
B169: 2022-06-01 | C169: 0 | D169: 0 | G169: 0 | H169: 0 | I169: 0 | J169: 0 | K169: 0 | M169: 2022-06-01 | N169: 1 | O169: 1 | P169: 1 | Q169: 1 | R169: 1 | S169: 5 | U169: 2022-06-01 | AC169: 2022-06-01 | AJ169: 2022-06-01 | AK169: 2.7569 | AL169: 2.7569 | AM169: 0.1206032663 | AN169: 0.4472361809 | AO169: 0.09296482412 | AQ169: 2022-06-01 | AR169: 2.7569 | AS169: 2.7569 | AT169: 0.1206032663 | AU169: 0.4472361809 | AV169: 0.09296482412 | AX169: 2022-06-01 | AY169: 0 | BB169: 0 | BE169: 0 | BH169: 0 | BK169: 0 | BN169: 0 | BR169: 2022-06-01 | BV169: 0
B170: 2022-07-01 | C170: 0 | D170: 0 | G170: 0 | H170: 0 | I170: 0 | J170: 0 | K170: 0 | M170: 2022-07-01 | N170: 1 | O170: 1 | P170: 1 | Q170: 1 | R170: 1 | S170: 5 | U170: 2022-07-01 | AC170: 2022-07-01 | AJ170: 2022-07-01 | AK170: 2.7569 | AL170: 2.7569 | AM170: 0.1206032663 | AN170: 0.4472361809 | AO170: 0.09296482412 | AQ170: 2022-07-01 | AR170: 2.7569 | AS170: 2.7569 | AT170: 0.1206032663 | AU170: 0.4472361809 | AV170: 0.09296482412 | AX170: 2022-07-01 | AY170: 0 | BB170: 0 | BE170: 0 | BH170: 0 | BK170: 0 | BN170: 0 | BR170: 2022-07-01 | BV170: 0
B171: 2022-08-01 | C171: 0 | D171: 0 | G171: 0 | H171: 0 | I171: 0 | J171: 0 | K171: 0 | M171: 2022-08-01 | N171: 1 | O171: 1 | P171: 1 | Q171: 1 | R171: 1 | S171: 5 | U171: 2022-08-01 | AC171: 2022-08-01 | AJ171: 2022-08-01 | AK171: 2.7569 | AL171: 2.7569 | AM171: 0.1206032663 | AN171: 0.4472361809 | AO171: 0.09296482412 | AQ171: 2022-08-01 | AR171: 2.7569 | AS171: 2.7569 | AT171: 0.1206032663 | AU171: 0.4472361809 | AV171: 0.09296482412 | AX171: 2022-08-01 | AY171: 0 | BB171: 0 | BE171: 0 | BH171: 0 | BK171: 0 | BN171: 0 | BR171: 2022-08-01 | BV171: 0
B172: 2022-09-01 | C172: 0 | D172: 0 | G172: 0 | H172: 0 | I172: 0 | J172: 0 | K172: 0 | M172: 2022-09-01 | N172: 1 | O172: 1 | P172: 1 | Q172: 1 | R172: 1 | S172: 5 | U172: 2022-09-01 | AC172: 2022-09-01 | AJ172: 2022-09-01 | AK172: 2.7569 | AL172: 2.7569 | AM172: 0.1206032663 | AN172: 0.4472361809 | AO172: 0.09296482412 | AQ172: 2022-09-01 | AR172: 2.7569 | AS172: 2.7569 | AT172: 0.1206032663 | AU172: 0.4472361809 | AV172: 0.09296482412 | AX172: 2022-09-01 | AY172: 0 | BB172: 0 | BE172: 0 | BH172: 0 | BK172: 0 | BN172: 0 | BR172: 2022-09-01 | BV172: 0
B173: 2022-10-01 | C173: 0 | D173: 0 | G173: 0 | H173: 0 | I173: 0 | J173: 0 | K173: 0 | M173: 2022-10-01 | N173: 1 | O173: 1 | P173: 1 | Q173: 1 | R173: 1 | S173: 5 | U173: 2022-10-01 | AC173: 2022-10-01 | AJ173: 2022-10-01 | AK173: 2.7569 | AL173: 2.7569 | AM173: 0.1206032663 | AN173: 0.4472361809 | AO173: 0.09296482412 | AQ173: 2022-10-01 | AR173: 2.7569 | AS173: 2.7569 | AT173: 0.1206032663 | AU173: 0.4472361809 | AV173: 0.09296482412 | AX173: 2022-10-01 | AY173: 0 | BB173: 0 | BE173: 0 | BH173: 0 | BK173: 0 | BN173: 0 | BR173: 2022-10-01 | BV173: 0
B175: =B158 -> Bacia 1 | C175: R$ da Licitação corrigidos nos Dissídios Coletivos | K175: Ano 10 | M175: =B175 -> Bacia 1 | N175: R$ Salário Total Com Horas Extras e Adicional Noturno Pago Por Função (Sem inclusão de Encargos Sociais) - Valor de GFIP | S175: =K175 -> Ano 10 | U175: =M175 -> Bacia 1 | V175: Quantidade de Funcionários - Cálculo pela Folha | AA175: =S175 -> Ano 10 | AC175: =U175 -> Bacia 1 | AD175: Quantidade de Frota Operacional | AH175: =AA175 -> Ano 10 | AJ175: =AC175 -> Bacia 1 | AK175: FU POR FUNÇÃO | AO175: =AH175 -> Ano 10 | AQ175: =AJ175 -> Bacia 1 | AR175: FU FÍSICO PARA BENEFÍCIOS | AV175: =AO175 -> Ano 10 | AX175: =AQ175 -> Bacia 1 | AY175: Qtde. Funcionários - FÍSICO para Benefícios e FOLHA para Salários base de cálculo dos Enc.Sociais | BP175: =AV175 -> Ano 10 | BR175: =AX175 -> Bacia 1 | BS175: =BP175 -> Ano 10
B176: Mês | C176: R$ Salário Médio da Função (Sem Encargos) | M176: Mês | U176: Mês | V176: Inclusas todas as Horas Extras | AC176: Mês | AJ176: Mês | AK176: CÁLCULO SOBRE A FOLHA DE PAGAMENTO | AQ176: Mês | AX176: Mês | AY176: Motoristas | BB176: Cobradores | BE176: Controle Operacional | BH176: Manutenção | BK176: Administração | BN176: Total Geral | BR176: Mês | BS176: Cálculo Mot.Articulados | BV176: Qtde. Física de Motoristas | BY176: Cálculo R$ Mot.Artic. | CA176: R$
C177: Motoristas | E177: Qtde.Física de Mot. | G177: R$ Salário | H177: Cobradores | I177: Controle | J177: Manu- | K177: Admi- | M177: de | N177: Motoristas | O177: Cobradores | P177: Controle | Q177: Manutenção | R177: Administração | S177: R$ | V177: Motoristas | W177: Cobradores | X177: Controle | Y177: Manutenção | Z177: Administração | AA177: Qtde. | AC177: de | AD177: Motoristas | AE177: Cobradores | AF177: Controle | AG177: Manutenção | AH177: Administração | AJ177: de | AK177: Motoristas | AL177: Cobradores | AM177: Controle | AN177: Manutenção | AO177: Administração | AQ177: de | AR177: Motoristas | AS177: Cobradores | AT177: Controle | AU177: Manutenção | AV177: Administração | AX177: de | AY177: Físico | AZ177: Folha | BA177: Dif.Folha | BB177: Físico | BC177: Folha | BD177: Dif.Folha | BE177: Físico | BF177: Folha | BG177: Dif.Folha | BH177: Físico | BI177: Folha | BJ177: Dif.Folha | BK177: Físico | BL177: Folha | BM177: Dif.Folha | BN177: Físico | BO177: Folha | BP177: Dif.Folha | BR177: de | BS177: Frota | BT177: FU físico | BU177: Mot. | BV177: Mot. | BW177: Mot. | BX177: Mot. | BY177: R$ Mot. | BZ177: R$ Mot. | CA177: Total
B178: Ref. | C178: Diversos | D178: Artic. | E178: Div. | F178: Artic. | G178: Médio Mot. | I178: Operacional | J178: tenção | K178: nistração | M178: Ref. | N178: Diversos | P178: Operacional | S178: Total | U178: Ref. | X178: Operacional | AA178: Total | AC178: Ref. | AF178: Operacional | AJ178: Ref. | AM178: Operacional | AQ178: Ref. | AT178: Operacional | AX178: Ref. | BA178: (-) Físico | BD178: (-) Físico | BG178: (-) Físico | BJ178: (-) Físico | BM178: (-) Físico | BP178: (-) Físico | BR178: Ref. | BS178: Artic. | BT178: Mot.Div. | BU178: Artic. | BV178: Total | BW178: Diversos | BX178: Artic. | BY178: Diversos | BZ178: Articulados | CA178: Motoristas
B179: =DATE(YEAR(B173),MONTH(B173)+1,DAY(B173)) -> 2022-11-01 | C179: =C173 -> 0 | D179: =D173 -> 0 | E179: =BW179 ->  | G179: =IF(C179>0,((C179*E179)+(D179*F179))/(E179+F179),0) -> 0 | H179: =H173 -> 0 | I179: =I173 -> 0 | J179: =J173 -> 0 | K179: =K173 -> 0 | M179: =B179 -> 2022-11-01 | N179: =N173 -> 1 | O179: =O173 -> 1 | P179: =P173 -> 1 | Q179: =Q173 -> 1 | R179: =R173 -> 1 | S179: =SUM(N179:R179) -> 5 | U179: =M179 -> 2022-11-01 | V179: =N179/G179 ->  | AA179: =SUM(V179:Z179) ->  | AC179: =U179 -> 2022-11-01 | AJ179: =AC179 -> 2022-11-01 | AK179: 2.7569 | AL179: =AK179 -> 2.7569 | AM179: =AM173 -> 0.1206032663 | AN179: =AN173 -> 0.4472361809 | AO179: =AO173 -> 0.09296482412 | AQ179: =AJ179 -> 2022-11-01 | AR179: =AK179 -> 2.7569 | AS179: =AR179 -> 2.7569 | AT179: =AT173 -> 0.1206032663 | AU179: =AU173 -> 0.4472361809 | AV179: =AV173 -> 0.09296482412 | AX179: =AQ179 -> 2022-11-01 | AY179: =AY173 -> 0 | AZ179: =V179 ->  | BA179: =AZ179-AY179 ->  | BB179: =BB173 -> 0 | BC179: =W179 ->  | BD179: =BC179-BB179 ->  | BE179: =BE173 -> 0 | BF179: =X179 ->  | BG179: =BF179-BE179 ->  | BH179: =BH173 -> 0 | BI179: =Y179 ->  | BJ179: =BI179-BH179 ->  | BK179: =BK173 -> 0 | BL179: =Z179 ->  | BM179: =BL179-BK179 ->  | BN179: =AY179+BB179+BE179+BH179+BK179 -> 0 | BP179: =BO179-BN179 ->  | BR179: =AX179 -> 2022-11-01 | BT179: =AY179/AD179 ->  | BU179: =BT179*BS179 ->  | BV179: =AY179 -> 0 | BW179: =BV179-BX179 ->  | BX179: =BU179 ->  | BY179: =N179/BV179*BW179 ->  | BZ179: =N179/BV179*BX179 ->  | CA179: =BY179+BZ179 -> 
B180: =DATE(YEAR(B179),MONTH(B179)+1,DAY(B179)) -> 2022-12-01 | C180: =C179 -> 0 | D180: =D179 -> 0 | G180: 0 | H180: =H179 -> 0 | I180: =I179 -> 0 | J180: =J179 -> 0 | K180: =K179 -> 0 | M180: 2022-12-01 | N180: =N179 -> 1 | O180: 1 | P180: 1 | Q180: 1 | R180: 1 | S180: 5 | U180: 2022-12-01 | AC180: 2022-12-01 | AJ180: 2022-12-01 | AK180: 2.7569 | AL180: =AK180 -> 2.7569 | AM180: =AM179 -> 0.1206032663 | AN180: 0.4472361809 | AO180: 0.09296482412 | AQ180: 2022-12-01 | AR180: =AK180 -> 2.7569 | AS180: =AR180 -> 2.7569 | AT180: =AT179 -> 0.1206032663 | AU180: 0.4472361809 | AV180: 0.09296482412 | AX180: 2022-12-01 | AY180: =AY179 -> 0 | BB180: =BB179 -> 0 | BE180: =BE179 -> 0 | BH180: =BH179 -> 0 | BK180: =BK179 -> 0 | BN180: 0 | BR180: 2022-12-01 | BV180: 0
B181: 2023-01-01 | C181: =C180 -> 0 | D181: =D180 -> 0 | G181: 0 | H181: =H180 -> 0 | I181: 0 | J181: 0 | K181: 0 | M181: 2023-01-01 | N181: 1 | O181: 1 | P181: 1 | Q181: 1 | R181: 1 | S181: 5 | U181: 2023-01-01 | AC181: 2023-01-01 | AJ181: 2023-01-01 | AK181: 2.7569 | AL181: 2.7569 | AM181: 0.1206032663 | AN181: 0.4472361809 | AO181: 0.09296482412 | AQ181: 2023-01-01 | AR181: 2.7569 | AS181: 2.7569 | AT181: 0.1206032663 | AU181: 0.4472361809 | AV181: 0.09296482412 | AX181: 2023-01-01 | AY181: 0 | BB181: 0 | BE181: 0 | BH181: 0 | BK181: 0 | BN181: 0 | BR181: 2023-01-01 | BV181: 0
B182: 2023-02-01 | C182: 0 | D182: 0 | G182: 0 | H182: 0 | I182: 0 | J182: 0 | K182: 0 | M182: 2023-02-01 | N182: 1 | O182: 1 | P182: 1 | Q182: 1 | R182: 1 | S182: 5 | U182: 2023-02-01 | AC182: 2023-02-01 | AJ182: 2023-02-01 | AK182: 2.7569 | AL182: 2.7569 | AM182: 0.1206032663 | AN182: 0.4472361809 | AO182: 0.09296482412 | AQ182: 2023-02-01 | AR182: 2.7569 | AS182: 2.7569 | AT182: 0.1206032663 | AU182: 0.4472361809 | AV182: 0.09296482412 | AX182: 2023-02-01 | AY182: 0 | BB182: 0 | BE182: 0 | BH182: 0 | BK182: 0 | BN182: 0 | BR182: 2023-02-01 | BV182: 0
B183: 2023-03-01 | C183: 0 | D183: 0 | G183: 0 | H183: 0 | I183: 0 | J183: 0 | K183: 0 | M183: 2023-03-01 | N183: 1 | O183: 1 | P183: 1 | Q183: 1 | R183: 1 | S183: 5 | U183: 2023-03-01 | AC183: 2023-03-01 | AJ183: 2023-03-01 | AK183: 2.7569 | AL183: 2.7569 | AM183: 0.1206032663 | AN183: 0.4472361809 | AO183: 0.09296482412 | AQ183: 2023-03-01 | AR183: 2.7569 | AS183: 2.7569 | AT183: 0.1206032663 | AU183: 0.4472361809 | AV183: 0.09296482412 | AX183: 2023-03-01 | AY183: 0 | BB183: 0 | BE183: 0 | BH183: 0 | BK183: 0 | BN183: 0 | BR183: 2023-03-01 | BV183: 0
B184: 2023-04-01 | C184: 0 | D184: 0 | G184: 0 | H184: 0 | I184: 0 | J184: 0 | K184: 0 | M184: 2023-04-01 | N184: 1 | O184: 1 | P184: 1 | Q184: 1 | R184: 1 | S184: 5 | U184: 2023-04-01 | AC184: 2023-04-01 | AJ184: 2023-04-01 | AK184: 2.7569 | AL184: 2.7569 | AM184: 0.1206032663 | AN184: 0.4472361809 | AO184: 0.09296482412 | AQ184: 2023-04-01 | AR184: 2.7569 | AS184: 2.7569 | AT184: 0.1206032663 | AU184: 0.4472361809 | AV184: 0.09296482412 | AX184: 2023-04-01 | AY184: 0 | BB184: 0 | BE184: 0 | BH184: 0 | BK184: 0 | BN184: 0 | BR184: 2023-04-01 | BV184: 0
B185: 2023-05-01 | C185: 0 | D185: 0 | G185: 0 | H185: 0 | I185: 0 | J185: 0 | K185: 0 | M185: 2023-05-01 | N185: 1 | O185: 1 | P185: 1 | Q185: 1 | R185: 1 | S185: 5 | U185: 2023-05-01 | AC185: 2023-05-01 | AJ185: 2023-05-01 | AK185: 2.7569 | AL185: 2.7569 | AM185: 0.1206032663 | AN185: 0.4472361809 | AO185: 0.09296482412 | AQ185: 2023-05-01 | AR185: 2.7569 | AS185: 2.7569 | AT185: 0.1206032663 | AU185: 0.4472361809 | AV185: 0.09296482412 | AX185: 2023-05-01 | AY185: 0 | BB185: 0 | BE185: 0 | BH185: 0 | BK185: 0 | BN185: 0 | BR185: 2023-05-01 | BV185: 0
B186: 2023-06-01 | C186: 0 | D186: 0 | G186: 0 | H186: 0 | I186: 0 | J186: 0 | K186: 0 | M186: 2023-06-01 | N186: 1 | O186: 1 | P186: 1 | Q186: 1 | R186: 1 | S186: 5 | U186: 2023-06-01 | AC186: 2023-06-01 | AJ186: 2023-06-01 | AK186: 2.7569 | AL186: 2.7569 | AM186: 0.1206032663 | AN186: 0.4472361809 | AO186: 0.09296482412 | AQ186: 2023-06-01 | AR186: 2.7569 | AS186: 2.7569 | AT186: 0.1206032663 | AU186: 0.4472361809 | AV186: 0.09296482412 | AX186: 2023-06-01 | AY186: 0 | BB186: 0 | BE186: 0 | BH186: 0 | BK186: 0 | BN186: 0 | BR186: 2023-06-01 | BV186: 0
B187: 2023-07-01 | C187: 0 | D187: 0 | G187: 0 | H187: 0 | I187: 0 | J187: 0 | K187: 0 | M187: 2023-07-01 | N187: 1 | O187: 1 | P187: 1 | Q187: 1 | R187: 1 | S187: 5 | U187: 2023-07-01 | AC187: 2023-07-01 | AJ187: 2023-07-01 | AK187: 2.7569 | AL187: 2.7569 | AM187: 0.1206032663 | AN187: 0.4472361809 | AO187: 0.09296482412 | AQ187: 2023-07-01 | AR187: 2.7569 | AS187: 2.7569 | AT187: 0.1206032663 | AU187: 0.4472361809 | AV187: 0.09296482412 | AX187: 2023-07-01 | AY187: 0 | BB187: 0 | BE187: 0 | BH187: 0 | BK187: 0 | BN187: 0 | BR187: 2023-07-01 | BV187: 0
B188: 2023-08-01 | C188: 0 | D188: 0 | G188: 0 | H188: 0 | I188: 0 | J188: 0 | K188: 0 | M188: 2023-08-01 | N188: 1 | O188: 1 | P188: 1 | Q188: 1 | R188: 1 | S188: 5 | U188: 2023-08-01 | AC188: 2023-08-01 | AJ188: 2023-08-01 | AK188: 2.7569 | AL188: 2.7569 | AM188: 0.1206032663 | AN188: 0.4472361809 | AO188: 0.09296482412 | AQ188: 2023-08-01 | AR188: 2.7569 | AS188: 2.7569 | AT188: 0.1206032663 | AU188: 0.4472361809 | AV188: 0.09296482412 | AX188: 2023-08-01 | AY188: 0 | BB188: 0 | BE188: 0 | BH188: 0 | BK188: 0 | BN188: 0 | BR188: 2023-08-01 | BV188: 0
B189: 2023-09-01 | C189: 0 | D189: 0 | G189: 0 | H189: 0 | I189: 0 | J189: 0 | K189: 0 | M189: 2023-09-01 | N189: 1 | O189: 1 | P189: 1 | Q189: 1 | R189: 1 | S189: 5 | U189: 2023-09-01 | AC189: 2023-09-01 | AJ189: 2023-09-01 | AK189: 2.7569 | AL189: 2.7569 | AM189: 0.1206032663 | AN189: 0.4472361809 | AO189: 0.09296482412 | AQ189: 2023-09-01 | AR189: 2.7569 | AS189: 2.7569 | AT189: 0.1206032663 | AU189: 0.4472361809 | AV189: 0.09296482412 | AX189: 2023-09-01 | AY189: 0 | BB189: 0 | BE189: 0 | BH189: 0 | BK189: 0 | BN189: 0 | BR189: 2023-09-01 | BV189: 0
B190: 2023-10-01 | C190: 0 | D190: 0 | G190: 0 | H190: 0 | I190: 0 | J190: 0 | K190: 0 | M190: 2023-10-01 | N190: 1 | O190: 1 | P190: 1 | Q190: 1 | R190: 1 | S190: 5 | U190: 2023-10-01 | V190: =N190/G190 ->  | Z190: =R190/K190 ->  | AC190: 2023-10-01 | AJ190: 2023-10-01 | AK190: 2.7569 | AL190: 2.7569 | AM190: 0.1206032663 | AN190: 0.4472361809 | AO190: 0.09296482412 | AQ190: 2023-10-01 | AR190: 2.7569 | AS190: 2.7569 | AT190: 0.1206032663 | AU190: 0.4472361809 | AV190: 0.09296482412 | AX190: 2023-10-01 | AY190: 0 | BB190: 0 | BE190: 0 | BH190: 0 | BK190: 0 | BN190: =AY190+BB190+BE190+BH190+BK190 -> 0 | BO190: =AZ190+BC190+BF190+BI190+BL190 ->  | BR190: 2023-10-01 | BV190: 0

Sheet FU RESUMO - ANO 11
B2: STPC/DF - DISSÍDIO COLETIVO - REAJUSTES DOS SALÁRIOS E BENEFÍCIOS
B3: Histórico | C3: REAJUSTES DE MÃO DE OBRA | G3: Benefícios
C4: Mot. | D4: Mot. | E4: Cobra- | F4: Demais | G4: Tikets | H4: Cestas | I4: Plano | J4: Plano | K4: Seguro Vida
C5: Diversos | D5: Artic. | E5: dores | F5: Funcionários | I5: de Saúde | J5: Odontol. | K5: é deduzido
B6: Licitação | C6: 100 | D6: 100 | E6: 100 | F6: 100 | G6: 100 | H6: 100 | I6: 100 | J6: 100 | K6: 100
B7: 2013-05-01 | C7: 0.0668 | D7: 0.0668 | E7: 0.0668 | F7: 0.0668 | G7: 0.0668 | H7: 0.0668 | I7: 0.0668 | J7: 0.0668 | K7: 0
C8: =C6*(1+C7) -> 106.68 | D8: =D6*(1+D7) -> 106.68 | E8: 106.68 | F8: 106.68 | G8: 106.68 | H8: 106.68 | I8: 106.68 | J8: 106.68 | K8: 100
B9: 2014-05-01 | C9: 0.2 | D9: 0.3 | E9: 0.2 | F9: 0.2 | G9: 0.12 | H9: 0.4 | I9: 0.12 | J9: 0.12 | K9: 0
C10: =C8*(1+C9) -> 128.016 | D10: =D8*(1+D9) -> 138.684 | E10: 128.016 | F10: 128.016 | G10: 119.4816 | H10: 149.352 | I10: 119.4816 | J10: 119.4816 | K10: 100
B11: 2015-05-01 | C11: 0.1 | D11: 0.1 | E11: 0.1 | F11: 0.1 | G11: 0.11 | H11: 0.11 | I11: 0 | J11: 0 | K11: 0
C12: =C10*(1+C11) -> 140.8176 | D12: =D10*(1+D11) -> 152.5524 | E12: 140.8176 | F12: 140.8176 | G12: 132.624576 | H12: 165.78072 | I12: 119.4816 | J12: 119.4816 | K12: 100
B13: 2016-05-01 | C13: 0.1 | D13: 0.1 | E13: 0.1 | F13: 0.1 | G13: 0.11 | H13: 0.11 | I13: 0.11 | J13: 0.3 | K13: 0
C14: =C12*(1+C13) -> 154.89936 | D14: =D12*(1+D13) -> 167.80764 | E14: 154.89936 | F14: 154.89936 | G14: 147.2132794 | H14: 184.0165992 | I14: 132.624576 | J14: 155.32608 | K14: 100
B15: 2017-05-01 | C15: 0.0525 | D15: 0.0525 | E15: 0.0525 | F15: 0.0525 | G15: 0.0525 | H15: 0.0525 | I15: 0.14 | J15: 0.14 | K15: 0
C16: =C14*(1+C15) -> 163.0315764 | D16: =D14*(1+D15) -> 176.6175411 | E16: 163.0315764 | F16: 163.0315764 | G16: 154.9419765 | H16: 193.6774707 | I16: 151.1920166 | J16: 177.0717312 | K16: 100
B17: 2018-08-01 | C17: 0.0445 | D17: 0.0445 | E17: 0.0445 | F17: 0.0445 | G17: 0.05 | H17: 0.05 | I17: 0.078 | J17: 0.05 | K17: 0
C18: =C16*(1+C17) -> 170.2864815 | D18: =D16*(1+D17) -> 184.4770217 | E18: 170.2864815 | F18: 170.2864815 | G18: 162.6890754 | H18: 203.3613442 | I18: 162.9849939 | J18: 185.9253178 | K18: 100
B19: % Acumulado | C19: =(C18/C6)-100% -> 0.7028648155 | D19: 0.8447702168 | E19: 0.7028648155 | F19: 0.7028648155 | G19: 0.6268907535 | H19: 1.033613442 | I19: 0.6298499394 | J19: 0.8592531776 | K19: 0
B22: Bacia 1 | C22: R$ da Licitação corrigidos nos Dissídios Coletivos | K22: Ano 1 | M22: =B22 -> Bacia 1 | N22: R$ Salário Total Com Horas Extras e Adicional Noturno Pago Por Função (Sem inclusão de Encargos Sociais) - Valor de GFIP | S22: =K22 -> Ano 1 | U22: =M22 -> Bacia 1 | V22: Quantidade de Funcionários - Cálculo pela Folha | AA22: =S22 -> Ano 1 | AC22: =U22 -> Bacia 1 | AD22: Quantidade de Frota Operacional | AH22: =AA22 -> Ano 1 | AJ22: =AC22 -> Bacia 1 | AK22: FU POR FUNÇÃO | AO22: =AH22 -> Ano 1 | AQ22: =AJ22 -> Bacia 1 | AR22: FU FÍSICO PARA BENEFÍCIOS | AV22: =AO22 -> Ano 1 | AX22: =AQ22 -> Bacia 1 | AY22: Qtde. Funcionários - FÍSICO para Benefícios e FOLHA para Salários base de cálculo dos Enc.Sociais | BP22: =AV22 -> Ano 1 | BR22: =AX22 -> Bacia 1 | BS22: =BP22 -> Ano 1
B23: Mês | C23: R$ Salário Médio da Função (Sem Encargos) | M23: Mês | U23: Mês | V23: Inclusas todas as Horas Extras | AC23: Mês | AJ23: Mês | AK23: CÁLCULO SOBRE A FOLHA DE PAGAMENTO | AQ23: Mês | AX23: Mês | AY23: Motoristas | BB23: Cobradores | BE23: Controle Operacional | BH23: Manutenção | BK23: Administração | BN23: Total Geral | BR23: Mês | BS23: Cálculo Mot.Articulados | BV23: Qtde. Física de Motoristas | BY23: Cálculo R$ Mot.Artic. | CA23: R$
B24: de | C24: Motoristas | E24: Qtde.Física de Mot. | G24: R$ Salário | H24: Cobradores | I24: Controle | J24: Manu- | K24: Admi- | M24: de | N24: Motoristas | O24: Cobradores | P24: Controle | Q24: Manutenção | R24: Administração | S24: R$ | U24: de | V24: Motoristas | W24: Cobradores | X24: Controle | Y24: Manutenção | Z24: Administração | AA24: Qtde. | AC24: de | AD24: Motoristas | AE24: Cobradores | AF24: Controle | AG24: Manutenção | AH24: Administração | AJ24: de | AK24: Motoristas | AL24: Cobradores | AM24: Controle | AN24: Manutenção | AO24: Administração | AQ24: de | AR24: Motoristas | AS24: Cobradores | AT24: Controle | AU24: Manutenção | AV24: Administração | AX24: de | AY24: Físico | AZ24: Folha | BA24: Dif.Folha | BB24: Físico | BC24: Folha | BD24: Dif.Folha | BE24: Físico | BF24: Folha | BG24: Dif.Folha | BH24: Físico | BI24: Folha | BJ24: Dif.Folha | BK24: Físico | BL24: Folha | BM24: Dif.Folha | BN24: Físico | BO24: Folha | BP24: Dif.Folha | BR24: de | BS24: Frota | BT24: FU físico | BU24: Mot. | BV24: Mot. | BW24: Mot. | BX24: Mot. | BY24: R$ Mot. | BZ24: R$ Mot. | CA24: Total
B25: Ref. | C25: Diversos | D25: Artic. | E25: Div. | F25: Artic. | G25: Médio Mot. | I25: Operacional | J25: tenção | K25: nistração | M25: Ref. | N25: Diversos | P25: Operacional | S25: Total | U25: Ref. | X25: Operacional | AA25: Total | AC25: Ref. | AF25: Operacional | AJ25: Ref. | AM25: Operacional | AQ25: Ref. | AT25: Operacional | AX25: Ref. | BA25: (-) Físico | BD25: (-) Físico | BG25: (-) Físico | BJ25: (-) Físico | BM25: (-) Físico | BP25: (-) Físico | BR25: Ref. | BS25: Artic. | BT25: Mot.Div. | BU25: Artic. | BV25: Total | BW25: Diversos | BX25: Artic. | BY25: Diversos | BZ25: Articulados | CA25: Motoristas
B26: 2023-11-01 | E26: =BW26 ->  | F26: =BX26 ->  | G26: =IF(C26>0,((C26*E26)+(D26*F26))/(E26+F26),0) -> 0 | M26: =B26 -> 2023-11-01 | S26: =SUM(N26:R26) -> 0 | U26: =M26 -> 2023-11-01 | V26: =N26/G26 ->  | W26: =O26/H26 ->  | X26: =P26/I26 ->  | Y26: =Q26/J26 ->  | Z26: =R26/K26 ->  | AA26: =SUM(V26:Z26) ->  | AC26: =U26 -> 2023-11-01 | AJ26: =AC26 -> 2023-11-01 | AK26: ='FU RESUMO'!AK190 -> 2.7569 | AL26: ='FU RESUMO'!AL190 -> 2.7569 | AM26: ='Plan2 R$ Pessoal'!D23 -> 0.1206032663 | AN26: ='Plan2 R$ Pessoal'!D45 -> 0.4472361809 | AO26: ='Plan4 R$ Pessoal'!D33 -> 0.09296482412 | AQ26: =AJ26 -> 2023-11-01 | AR26: 2.7569 | AS26: =AR26 -> 2.7569 | AT26: 0.1206032663 | AU26: 0.4472361809 | AV26: 0.09296482412 | AX26: =AQ26 -> 2023-11-01 | AZ26: =V26 ->  | BA26: =AZ26-AY26 ->  | BC26: =W26 ->  | BD26: =BC26-BB26 ->  | BF26: =X26 ->  | BG26: =BF26-BE26 ->  | BI26: =Y26 ->  | BJ26: =BI26-BH26 ->  | BL26: =Z26 ->  | BM26: =BL26-BK26 ->  | BN26: =AY26+BB26+BE26+BH26+BK26 -> 0 | BO26: =AZ26+BC26+BF26+BI26+BL26 ->  | BP26: =BO26-BN26 ->  | BR26: =AX26 -> 2023-11-01 | BT26: =AY26/AD26 ->  | BU26: =BT26*BS26 ->  | BV26: =AY26 -> 0 | BW26: =BV26-BX26 ->  | BX26: =BU26 ->  | BY26: =N26/BV26*BW26 ->  | BZ26: =N26/BV26*BX26 ->  | CA26: =BY26+BZ26 -> 
B27: =DATE(YEAR(B26),MONTH(B26)+1,DAY(B26)) -> 2023-12-01 | C27: =C26 -> 0 | D27: 0 | G27: =IF(C27>0,((C27*E27)+(D27*F27))/(E27+F27),0) -> 0 | H27: =H26 -> 0 | I27: 0 | J27: 0 | K27: 0 | M27: =B27 -> 2023-12-01 | S27: =SUM(N27:R27) -> 0 | U27: =M27 -> 2023-12-01 | V27: =N27/G27 ->  | AA27: =SUM(V27:Z27) ->  | AC27: =U27 -> 2023-12-01 | AJ27: =AC27 -> 2023-12-01 | AK27: =AK26 -> 2.7569 | AL27: =AK27 -> 2.7569 | AM27: =AM26 -> 0.1206032663 | AN27: 0.4472361809 | AO27: 0.09296482412 | AQ27: =AJ27 -> 2023-12-01 | AR27: =AK27 -> 2.7569 | AS27: =AR27 -> 2.7569 | AT27: =AT26 -> 0.1206032663 | AU27: 0.4472361809 | AV27: 0.09296482412 | AX27: 2023-12-01 | AZ27: =V27 ->  | BN27: 0 | BR27: 2023-12-01 | BT27: =AY27/AD27 ->  | BV27: =AY27 -> 0 | BW27: =BV27-BX27 ->  | BX27: =BU27 ->  | BY27: =N27/BV27*BW27 ->  | BZ27: =N27/BV27*BX27 -> 
B28: 2024-01-01 | C28: 0 | D28: 0 | G28: =IF(C28>0,((C28*E28)+(D28*F28))/(E28+F28),0) -> 0 | H28: 0 | I28: 0 | J28: 0 | K28: 0 | M28: 2024-01-01 | S28: 0 | U28: 2024-01-01 | AC28: 2024-01-01 | AJ28: 2024-01-01 | AK28: =AK27 -> 2.7569 | AL28: 2.7569 | AM28: 0.1206032663 | AN28: 0.4472361809 | AO28: 0.09296482412 | AQ28: =AJ28 -> 2024-01-01 | AR28: 2.7569 | AS28: 2.7569 | AT28: 0.1206032663 | AU28: 0.4472361809 | AV28: 0.09296482412 | AX28: 2024-01-01 | BN28: 0 | BR28: 2024-01-01 | BV28: 0 | BX28: =BU28 ->  | BZ28: =N28/BV28*BX28 -> 
B29: 2024-02-01 | C29: 0 | D29: 0 | G29: 0 | H29: 0 | I29: 0 | J29: 0 | K29: 0 | M29: 2024-02-01 | S29: 0 | U29: 2024-02-01 | AC29: 2024-02-01 | AJ29: 2024-02-01 | AK29: 2.7569 | AL29: 2.7569 | AM29: 0.1206032663 | AN29: 0.4472361809 | AO29: 0.09296482412 | AQ29: 2024-02-01 | AR29: 2.7569 | AS29: 2.7569 | AT29: 0.1206032663 | AU29: 0.4472361809 | AV29: 0.09296482412 | AX29: 2024-02-01 | BN29: 0 | BR29: 2024-02-01 | BV29: 0 | BX29: =BU29 -> 
B30: 2024-03-01 | C30: =C29*(C9/100*100+1) -> 0 | D30: =D29*(D9/100*100+1) -> 0 | G30: 0 | H30: =H29*(E9/100*100+1) -> 0 | I30: =I29*(F9/100*100+1) -> 0 | J30: =J29*(F9/100*100+1) -> 0 | K30: =K29*(F9/100*100+1) -> 0 | M30: 2024-03-01 | S30: 0 | U30: 2024-03-01 | AC30: 2024-03-01 | AJ30: 2024-03-01 | AK30: 2.7569 | AL30: 2.7569 | AM30: 0.1206032663 | AN30: 0.4472361809 | AO30: 0.09296482412 | AQ30: 2024-03-01 | AR30: 2.7569 | AS30: 2.7569 | AT30: 0.1206032663 | AU30: 0.4472361809 | AV30: 0.09296482412 | AX30: 2024-03-01 | BN30: 0 | BR30: 2024-03-01 | BV30: 0 | BX30: =BU30 -> 
B31: 2024-04-01 | C31: =C30 -> 0 | D31: 0 | G31: 0 | H31: =H30 -> 0 | I31: 0 | J31: 0 | K31: 0 | M31: 2024-04-01 | S31: 0 | U31: 2024-04-01 | AC31: 2024-04-01 | AJ31: 2024-04-01 | AK31: 2.7569 | AL31: 2.7569 | AM31: 0.1206032663 | AN31: 0.4472361809 | AO31: 0.09296482412 | AQ31: 2024-04-01 | AR31: 2.7569 | AS31: 2.7569 | AT31: 0.1206032663 | AU31: 0.4472361809 | AV31: 0.09296482412 | AX31: 2024-04-01 | BN31: 0 | BR31: 2024-04-01 | BV31: 0
B32: 2024-05-01 | C32: 0 | D32: 0 | G32: 0 | H32: 0 | I32: 0 | J32: 0 | K32: 0 | M32: 2024-05-01 | S32: 0 | U32: 2024-05-01 | AC32: 2024-05-01 | AJ32: 2024-05-01 | AK32: 2.7569 | AL32: 2.7569 | AM32: 0.1206032663 | AN32: 0.4472361809 | AO32: 0.09296482412 | AQ32: 2024-05-01 | AR32: 2.7569 | AS32: 2.7569 | AT32: 0.1206032663 | AU32: 0.4472361809 | AV32: 0.09296482412 | AX32: 2024-05-01 | BN32: 0 | BR32: 2024-05-01 | BV32: 0
B33: 2024-06-01 | C33: 0 | D33: 0 | G33: 0 | H33: 0 | I33: 0 | J33: 0 | K33: 0 | M33: 2024-06-01 | S33: 0 | U33: 2024-06-01 | AC33: 2024-06-01 | AJ33: 2024-06-01 | AK33: 2.7569 | AL33: 2.7569 | AM33: 0.1206032663 | AN33: 0.4472361809 | AO33: 0.09296482412 | AQ33: 2024-06-01 | AR33: 2.7569 | AS33: 2.7569 | AT33: 0.1206032663 | AU33: 0.4472361809 | AV33: 0.09296482412 | AX33: 2024-06-01 | BN33: 0 | BR33: 2024-06-01 | BV33: 0
B34: 2024-07-01 | C34: 0 | D34: 0 | G34: 0 | H34: 0 | I34: 0 | J34: 0 | K34: 0 | M34: 2024-07-01 | S34: 0 | U34: 2024-07-01 | AC34: 2024-07-01 | AJ34: 2024-07-01 | AK34: 2.7569 | AL34: 2.7569 | AM34: 0.1206032663 | AN34: 0.4472361809 | AO34: 0.09296482412 | AQ34: 2024-07-01 | AR34: 2.7569 | AS34: 2.7569 | AT34: 0.1206032663 | AU34: 0.4472361809 | AV34: 0.09296482412 | AX34: 2024-07-01 | BN34: 0 | BR34: 2024-07-01 | BV34: 0
B35: 2024-08-01 | C35: 0 | D35: 0 | G35: 0 | H35: 0 | I35: 0 | J35: 0 | K35: 0 | M35: 2024-08-01 | S35: 0 | U35: 2024-08-01 | AC35: 2024-08-01 | AJ35: 2024-08-01 | AK35: 2.7569 | AL35: 2.7569 | AM35: 0.1206032663 | AN35: 0.4472361809 | AO35: 0.09296482412 | AQ35: 2024-08-01 | AR35: 2.7569 | AS35: 2.7569 | AT35: 0.1206032663 | AU35: 0.4472361809 | AV35: 0.09296482412 | AX35: 2024-08-01 | BN35: 0 | BR35: 2024-08-01 | BV35: 0
B36: 2024-09-01 | C36: 0 | D36: 0 | G36: 0 | H36: 0 | I36: 0 | J36: 0 | K36: 0 | M36: 2024-09-01 | S36: 0 | U36: 2024-09-01 | AC36: 2024-09-01 | AJ36: 2024-09-01 | AK36: 2.7569 | AL36: 2.7569 | AM36: 0.1206032663 | AN36: 0.4472361809 | AO36: 0.09296482412 | AQ36: 2024-09-01 | AR36: 2.7569 | AS36: 2.7569 | AT36: 0.1206032663 | AU36: 0.4472361809 | AV36: 0.09296482412 | AX36: 2024-09-01 | BN36: 0 | BR36: 2024-09-01 | BV36: 0
B37: 2024-10-01 | C37: 0 | D37: 0 | G37: 0 | H37: 0 | I37: 0 | J37: 0 | K37: 0 | M37: 2024-10-01 | S37: 0 | U37: 2024-10-01 | AC37: 2024-10-01 | AJ37: 2024-10-01 | AK37: 2.7569 | AL37: 2.7569 | AM37: 0.1206032663 | AN37: 0.4472361809 | AO37: 0.09296482412 | AQ37: 2024-10-01 | AR37: 2.7569 | AS37: 2.7569 | AT37: 0.1206032663 | AU37: 0.4472361809 | AV37: 0.09296482412 | AX37: 2024-10-01 | BN37: 0 | BR37: 2024-10-01 | BV37: 0
B39: =B22 -> Bacia 1 | C39: R$ da Licitação corrigidos nos Dissídios Coletivos | K39: Ano 2 | M39: =B39 -> Bacia 1 | N39: R$ Salário Total Com Horas Extras e Adicional Noturno Pago Por Função (Sem inclusão de Encargos Sociais) - Valor de GFIP | S39: =K39 -> Ano 2 | U39: =M39 -> Bacia 1 | V39: Quantidade de Funcionários - Cálculo pela Folha | AA39: =S39 -> Ano 2 | AC39: =U39 -> Bacia 1 | AD39: Quantidade de Frota Operacional | AH39: =AA39 -> Ano 2 | AJ39: =AC39 -> Bacia 1 | AK39: FU POR FUNÇÃO | AO39: =AH39 -> Ano 2 | AQ39: =AJ39 -> Bacia 1 | AR39: FU FÍSICO PARA BENEFÍCIOS | AV39: =AO39 -> Ano 2 | AX39: =AQ39 -> Bacia 1 | AY39: Qtde. Funcionários - FÍSICO para Benefícios e FOLHA para Salários base de cálculo dos Enc.Sociais | BP39: =AV39 -> Ano 2 | BR39: =AX39 -> Bacia 1 | BS39: =BP39 -> Ano 2
B40: Mês | C40: R$ Salário Médio da Função (Sem Encargos) | M40: Mês | U40: Mês | V40: Inclusas todas as Horas Extras | AC40: Mês | AJ40: Mês | AK40: CÁLCULO SOBRE A FOLHA DE PAGAMENTO | AQ40: Mês | AX40: Mês | AY40: Motoristas | BB40: Cobradores | BE40: Controle Operacional | BH40: Manutenção | BK40: Administração | BN40: Total Geral | BR40: Mês | BS40: Cálculo Mot.Articulados | BV40: Qtde. Física de Motoristas | BY40: Cálculo R$ Mot.Artic. | CA40: R$
C41: Motoristas | E41: Qtde.Física de Mot. | G41: R$ Salário | H41: Cobradores | I41: Controle | J41: Manu- | K41: Admi- | M41: de | N41: Motoristas | O41: Cobradores | P41: Controle | Q41: Manutenção | R41: Administração | S41: R$ | V41: Motoristas | W41: Cobradores | X41: Controle | Y41: Manutenção | Z41: Administração | AA41: Qtde. | AC41: de | AD41: Motoristas | AE41: Cobradores | AF41: Controle | AG41: Manutenção | AH41: Administração | AJ41: de | AK41: Motoristas | AL41: Cobradores | AM41: Controle | AN41: Manutenção | AO41: Administração | AQ41: de | AR41: Motoristas | AS41: Cobradores | AT41: Controle | AU41: Manutenção | AV41: Administração | AX41: de | AY41: Físico | AZ41: Folha | BA41: Dif.Folha | BB41: Físico | BC41: Folha | BD41: Dif.Folha | BE41: Físico | BF41: Folha | BG41: Dif.Folha | BH41: Físico | BI41: Folha | BJ41: Dif.Folha | BK41: Físico | BL41: Folha | BM41: Dif.Folha | BN41: Físico | BO41: Folha | BP41: Dif.Folha | BR41: de | BS41: Frota | BT41: FU físico | BU41: Mot. | BV41: Mot. | BW41: Mot. | BX41: Mot. | BY41: R$ Mot. | BZ41: R$ Mot. | CA41: Total
B42: Ref. | C42: Diversos | D42: Artic. | E42: Div. | F42: Artic. | G42: Médio Mot. | I42: Operacional | J42: tenção | K42: nistração | M42: Ref. | N42: Diversos | P42: Operacional | S42: Total | U42: Ref. | X42: Operacional | AA42: Total | AC42: Ref. | AF42: Operacional | AJ42: Ref. | AM42: Operacional | AQ42: Ref. | AT42: Operacional | AX42: Ref. | BA42: (-) Físico | BD42: (-) Físico | BG42: (-) Físico | BJ42: (-) Físico | BM42: (-) Físico | BP42: (-) Físico | BR42: Ref. | BS42: Artic. | BT42: Mot.Div. | BU42: Artic. | BV42: Total | BW42: Diversos | BX42: Artic. | BY42: Diversos | BZ42: Articulados | CA42: Motoristas
B43: =DATE(YEAR(B37),MONTH(B37)+1,DAY(B37)) -> 2024-11-01 | C43: =C37 -> 0 | D43: =D37 -> 0 | E43: =BW43 ->  | G43: =IF(C43>0,((C43*E43)+(D43*F43))/(E43+F43),0) -> 0 | H43: =H37 -> 0 | I43: =I37 -> 0 | J43: =J37 -> 0 | K43: =K37 -> 0 | M43: =B43 -> 2024-11-01 | S43: =SUM(N43:R43) -> 0 | U43: =M43 -> 2024-11-01 | V43: =N43/G43 ->  | AA43: =SUM(V43:Z43) ->  | AC43: =U43 -> 2024-11-01 | AJ43: =AC43 -> 2024-11-01 | AK43: =AK37 -> 2.7569 | AL43: =AK43 -> 2.7569 | AM43: =AM37 -> 0.1206032663 | AN43: =AN37 -> 0.4472361809 | AO43: =AO37 -> 0.09296482412 | AQ43: =AJ43 -> 2024-11-01 | AR43: =AK43 -> 2.7569 | AS43: =AR43 -> 2.7569 | AT43: =AT37 -> 0.1206032663 | AU43: =AU37 -> 0.4472361809 | AV43: =AV37 -> 0.09296482412 | AX43: =AQ43 -> 2024-11-01 | AZ43: =V43 ->  | BA43: =AZ43-AY43 ->  | BC43: =W43 ->  | BD43: =BC43-BB43 ->  | BF43: =X43 ->  | BG43: =BF43-BE43 ->  | BI43: =Y43 ->  | BJ43: =BI43-BH43 ->  | BL43: =Z43 ->  | BM43: =BL43-BK43 ->  | BN43: =AY43+BB43+BE43+BH43+BK43 -> 0 | BP43: =BO43-BN43 ->  | BR43: =AX43 -> 2024-11-01 | BT43: =AY43/AD43 ->  | BU43: =BT43*BS43 ->  | BV43: =AY43 -> 0 | BW43: =BV43-BX43 ->  | BX43: =BU43 ->  | BY43: =N43/BV43*BW43 ->  | BZ43: =N43/BV43*BX43 ->  | CA43: =BY43+BZ43 -> 
B44: =DATE(YEAR(B43),MONTH(B43)+1,DAY(B43)) -> 2024-12-01 | C44: =C43 -> 0 | D44: =D43 -> 0 | G44: 0 | H44: =H43 -> 0 | I44: =I43 -> 0 | J44: =J43 -> 0 | K44: =K43 -> 0 | M44: 2024-12-01 | S44: 0 | U44: 2024-12-01 | AC44: 2024-12-01 | AJ44: 2024-12-01 | AK44: =AK43 -> 2.7569 | AL44: =AK44 -> 2.7569 | AM44: =AM43 -> 0.1206032663 | AN44: 0.4472361809 | AO44: 0.09296482412 | AQ44: 2024-12-01 | AR44: 2.7569 | AS44: =AR44 -> 2.7569 | AT44: =AT43 -> 0.1206032663 | AU44: 0.4472361809 | AV44: 0.09296482412 | AX44: 2024-12-01 | BN44: 0 | BR44: 2024-12-01 | BV44: 0
B45: 2025-01-01 | C45: =C44 -> 0 | D45: 0 | G45: 0 | H45: =H44 -> 0 | I45: 0 | J45: 0 | K45: 0 | M45: 2025-01-01 | S45: 0 | U45: 2025-01-01 | AC45: 2025-01-01 | AJ45: 2025-01-01 | AK45: =AK44 -> 2.7569 | AL45: 2.7569 | AM45: 0.1206032663 | AN45: 0.4472361809 | AO45: 0.09296482412 | AQ45: 2025-01-01 | AR45: 2.7569 | AS45: 2.7569 | AT45: 0.1206032663 | AU45: 0.4472361809 | AV45: 0.09296482412 | AX45: 2025-01-01 | BN45: 0 | BR45: 2025-01-01 | BV45: 0
B46: 2025-02-01 | C46: 0 | D46: 0 | G46: 0 | H46: 0 | I46: 0 | J46: 0 | K46: 0 | M46: 2025-02-01 | S46: 0 | U46: 2025-02-01 | AC46: 2025-02-01 | AJ46: 2025-02-01 | AK46: 2.7569 | AL46: 2.7569 | AM46: 0.1206032663 | AN46: 0.4472361809 | AO46: 0.09296482412 | AQ46: 2025-02-01 | AR46: 2.7569 | AS46: 2.7569 | AT46: 0.1206032663 | AU46: 0.4472361809 | AV46: 0.09296482412 | AX46: 2025-02-01 | BN46: 0 | BR46: 2025-02-01 | BV46: 0
B47: 2025-03-01 | C47: =C46*(C11/100*100+1) -> 0 | D47: =D46*(D11/100*100+1) -> 0 | G47: 0 | H47: =H46*(E11/100*100+1) -> 0 | I47: =I46*(F11/100*100+1) -> 0 | J47: =J46*(F11/100*100+1) -> 0 | K47: =K46*(F11/100*100+1) -> 0 | M47: 2025-03-01 | S47: 0 | U47: 2025-03-01 | AC47: 2025-03-01 | AJ47: 2025-03-01 | AK47: 2.7569 | AL47: 2.7569 | AM47: 0.1206032663 | AN47: 0.4472361809 | AO47: 0.09296482412 | AQ47: 2025-03-01 | AR47: 2.7569 | AS47: 2.7569 | AT47: 0.1206032663 | AU47: 0.4472361809 | AV47: 0.09296482412 | AX47: 2025-03-01 | BN47: 0 | BR47: 2025-03-01 | BV47: 0
B48: 2025-04-01 | C48: =C47 -> 0 | D48: 0 | G48: 0 | H48: =H47 -> 0 | I48: 0 | J48: 0 | K48: 0 | M48: 2025-04-01 | S48: 0 | U48: 2025-04-01 | AC48: 2025-04-01 | AJ48: 2025-04-01 | AK48: 2.7569 | AL48: 2.7569 | AM48: 0.1206032663 | AN48: 0.4472361809 | AO48: 0.09296482412 | AQ48: 2025-04-01 | AR48: 2.7569 | AS48: 2.7569 | AT48: 0.1206032663 | AU48: 0.4472361809 | AV48: 0.09296482412 | AX48: 2025-04-01 | BN48: 0 | BR48: 2025-04-01 | BV48: 0
B49: 2025-05-01 | C49: 0 | D49: 0 | G49: 0 | H49: 0 | I49: 0 | J49: 0 | K49: 0 | M49: 2025-05-01 | S49: 0 | U49: 2025-05-01 | AC49: 2025-05-01 | AJ49: 2025-05-01 | AK49: 2.7569 | AL49: 2.7569 | AM49: 0.1206032663 | AN49: 0.4472361809 | AO49: 0.09296482412 | AQ49: 2025-05-01 | AR49: 2.7569 | AS49: 2.7569 | AT49: 0.1206032663 | AU49: 0.4472361809 | AV49: 0.09296482412 | AX49: 2025-05-01 | BN49: 0 | BR49: 2025-05-01 | BV49: 0
B50: 2025-06-01 | C50: 0 | D50: 0 | G50: 0 | H50: 0 | I50: 0 | J50: 0 | K50: 0 | M50: 2025-06-01 | S50: 0 | U50: 2025-06-01 | AC50: 2025-06-01 | AJ50: 2025-06-01 | AK50: 2.7569 | AL50: 2.7569 | AM50: 0.1206032663 | AN50: 0.4472361809 | AO50: 0.09296482412 | AQ50: 2025-06-01 | AR50: 2.7569 | AS50: 2.7569 | AT50: 0.1206032663 | AU50: 0.4472361809 | AV50: 0.09296482412 | AX50: 2025-06-01 | BN50: 0 | BR50: 2025-06-01 | BV50: 0
B51: 2025-07-01 | C51: 0 | D51: 0 | G51: 0 | H51: 0 | I51: 0 | J51: 0 | K51: 0 | M51: 2025-07-01 | S51: 0 | U51: 2025-07-01 | AC51: 2025-07-01 | AJ51: 2025-07-01 | AK51: 2.7569 | AL51: 2.7569 | AM51: 0.1206032663 | AN51: 0.4472361809 | AO51: 0.09296482412 | AQ51: 2025-07-01 | AR51: 2.7569 | AS51: 2.7569 | AT51: 0.1206032663 | AU51: 0.4472361809 | AV51: 0.09296482412 | AX51: 2025-07-01 | BN51: 0 | BR51: 2025-07-01 | BV51: 0
B52: 2025-08-01 | C52: 0 | D52: 0 | G52: 0 | H52: 0 | I52: 0 | J52: 0 | K52: 0 | M52: 2025-08-01 | S52: 0 | U52: 2025-08-01 | AC52: 2025-08-01 | AJ52: 2025-08-01 | AK52: 2.7569 | AL52: 2.7569 | AM52: 0.1206032663 | AN52: 0.4472361809 | AO52: 0.09296482412 | AQ52: 2025-08-01 | AR52: 2.7569 | AS52: 2.7569 | AT52: 0.1206032663 | AU52: 0.4472361809 | AV52: 0.09296482412 | AX52: 2025-08-01 | BN52: 0 | BR52: 2025-08-01 | BV52: 0
B53: 2025-09-01 | C53: 0 | D53: 0 | G53: 0 | H53: 0 | I53: 0 | J53: 0 | K53: 0 | M53: 2025-09-01 | S53: 0 | U53: 2025-09-01 | AC53: 2025-09-01 | AJ53: 2025-09-01 | AK53: 2.7569 | AL53: 2.7569 | AM53: 0.1206032663 | AN53: 0.4472361809 | AO53: 0.09296482412 | AQ53: 2025-09-01 | AR53: 2.7569 | AS53: 2.7569 | AT53: 0.1206032663 | AU53: 0.4472361809 | AV53: 0.09296482412 | AX53: 2025-09-01 | BN53: 0 | BR53: 2025-09-01 | BV53: 0
B54: 2025-10-01 | C54: 0 | D54: 0 | G54: 0 | H54: 0 | I54: 0 | J54: 0 | K54: 0 | M54: 2025-10-01 | S54: 0 | U54: 2025-10-01 | AC54: 2025-10-01 | AJ54: 2025-10-01 | AK54: 2.7569 | AL54: 2.7569 | AM54: 0.1206032663 | AN54: 0.4472361809 | AO54: 0.09296482412 | AQ54: 2025-10-01 | AR54: 2.7569 | AS54: 2.7569 | AT54: 0.1206032663 | AU54: 0.4472361809 | AV54: 0.09296482412 | AX54: 2025-10-01 | BN54: 0 | BR54: 2025-10-01 | BV54: 0
B56: =B39 -> Bacia 1 | C56: R$ da Licitação corrigidos nos Dissídios Coletivos | K56: Ano 3 | M56: =B56 -> Bacia 1 | N56: R$ Salário Total Com Horas Extras e Adicional Noturno Pago Por Função (Sem inclusão de Encargos Sociais) - Valor de GFIP | S56: =K56 -> Ano 3 | U56: =M56 -> Bacia 1 | V56: Quantidade de Funcionários - Cálculo pela Folha | AA56: =S56 -> Ano 3 | AC56: =U56 -> Bacia 1 | AD56: Quantidade de Frota Operacional | AH56: =AA56 -> Ano 3 | AJ56: =AC56 -> Bacia 1 | AK56: FU POR FUNÇÃO | AO56: =AH56 -> Ano 3 | AQ56: =AJ56 -> Bacia 1 | AR56: FU FÍSICO PARA BENEFÍCIOS | AV56: =AO56 -> Ano 3 | AX56: =AQ56 -> Bacia 1 | AY56: Qtde. Funcionários - FÍSICO para Benefícios e FOLHA para Salários base de cálculo dos Enc.Sociais | BP56: =AV56 -> Ano 3 | BR56: =AX56 -> Bacia 1 | BS56: =BP56 -> Ano 3
B57: Mês | C57: R$ Salário Médio da Função (Sem Encargos) | M57: Mês | U57: Mês | V57: Inclusas todas as Horas Extras | AC57: Mês | AJ57: Mês | AK57: CÁLCULO SOBRE A FOLHA DE PAGAMENTO | AQ57: Mês | AX57: Mês | AY57: Motoristas | BB57: Cobradores | BE57: Controle Operacional | BH57: Manutenção | BK57: Administração | BN57: Total Geral | BR57: Mês | BS57: Cálculo Mot.Articulados | BV57: Qtde. Física de Motoristas | BY57: Cálculo R$ Mot.Artic. | CA57: R$
C58: Motoristas | E58: Qtde.Física de Mot. | G58: R$ Salário | H58: Cobradores | I58: Controle | J58: Manu- | K58: Admi- | M58: de | N58: Motoristas | O58: Cobradores | P58: Controle | Q58: Manutenção | R58: Administração | S58: R$ | V58: Motoristas | W58: Cobradores | X58: Controle | Y58: Manutenção | Z58: Administração | AA58: Qtde. | AC58: de | AD58: Motoristas | AE58: Cobradores | AF58: Controle | AG58: Manutenção | AH58: Administração | AJ58: de | AK58: Motoristas | AL58: Cobradores | AM58: Controle | AN58: Manutenção | AO58: Administração | AQ58: de | AR58: Motoristas | AS58: Cobradores | AT58: Controle | AU58: Manutenção | AV58: Administração | AX58: de | AY58: Físico | AZ58: Folha | BA58: Dif.Folha | BB58: Físico | BC58: Folha | BD58: Dif.Folha | BE58: Físico | BF58: Folha | BG58: Dif.Folha | BH58: Físico | BI58: Folha | BJ58: Dif.Folha | BK58: Físico | BL58: Folha | BM58: Dif.Folha | BN58: Físico | BO58: Folha | BP58: Dif.Folha | BR58: de | BS58: Frota | BT58: FU físico | BU58: Mot. | BV58: Mot. | BW58: Mot. | BX58: Mot. | BY58: R$ Mot. | BZ58: R$ Mot. | CA58: Total
B59: Ref. | C59: Diversos | D59: Artic. | E59: Div. | F59: Artic. | G59: Médio Mot. | I59: Operacional | J59: tenção | K59: nistração | M59: Ref. | N59: Diversos | P59: Operacional | S59: Total | U59: Ref. | X59: Operacional | AA59: Total | AC59: Ref. | AF59: Operacional | AJ59: Ref. | AM59: Operacional | AQ59: Ref. | AT59: Operacional | AX59: Ref. | BA59: (-) Físico | BD59: (-) Físico | BG59: (-) Físico | BJ59: (-) Físico | BM59: (-) Físico | BP59: (-) Físico | BR59: Ref. | BS59: Artic. | BT59: Mot.Div. | BU59: Artic. | BV59: Total | BW59: Diversos | BX59: Artic. | BY59: Diversos | BZ59: Articulados | CA59: Motoristas
B60: =DATE(YEAR(B54),MONTH(B54)+1,DAY(B54)) -> 2025-11-01 | C60: =C54 -> 0 | D60: =D54 -> 0 | E60: =BW60 ->  | G60: =IF(C60>0,((C60*E60)+(D60*F60))/(E60+F60),0) -> 0 | H60: =H54 -> 0 | I60: =I54 -> 0 | J60: =J54 -> 0 | K60: =K54 -> 0 | M60: =B60 -> 2025-11-01 | S60: =SUM(N60:R60) -> 0 | U60: =M60 -> 2025-11-01 | V60: =N60/G60 ->  | AA60: =SUM(V60:Z60) ->  | AC60: =U60 -> 2025-11-01 | AJ60: =AC60 -> 2025-11-01 | AK60: =AK54 -> 2.7569 | AL60: =AK60 -> 2.7569 | AM60: =AM54 -> 0.1206032663 | AN60: =AN54 -> 0.4472361809 | AO60: =AO54 -> 0.09296482412 | AQ60: =AJ60 -> 2025-11-01 | AR60: =AK60 -> 2.7569 | AS60: =AR60 -> 2.7569 | AT60: =AT54 -> 0.1206032663 | AU60: =AU54 -> 0.4472361809 | AV60: =AV54 -> 0.09296482412 | AX60: =AQ60 -> 2025-11-01 | AZ60: =V60 ->  | BA60: =AZ60-AY60 ->  | BC60: =W60 ->  | BD60: =BC60-BB60 ->  | BF60: =X60 ->  | BG60: =BF60-BE60 ->  | BI60: =Y60 ->  | BJ60: =BI60-BH60 ->  | BL60: =Z60 ->  | BM60: =BL60-BK60 ->  | BN60: =AY60+BB60+BE60+BH60+BK60 -> 0 | BP60: =BO60-BN60 ->  | BR60: =AX60 -> 2025-11-01 | BT60: =AY60/AD60 ->  | BU60: =BT60*BS60 ->  | BV60: =AY60 -> 0 | BW60: =BV60-BX60 ->  | BX60: =BU60 ->  | BY60: =N60/BV60*BW60 ->  | BZ60: =N60/BV60*BX60 ->  | CA60: =BY60+BZ60 -> 
B61: =DATE(YEAR(B60),MONTH(B60)+1,DAY(B60)) -> 2025-12-01 | C61: =C60 -> 0 | D61: =D60 -> 0 | G61: 0 | H61: =H60 -> 0 | I61: =I60 -> 0 | J61: =J60 -> 0 | K61: =K60 -> 0 | M61: 2025-12-01 | S61: 0 | U61: 2025-12-01 | AC61: 2025-12-01 | AJ61: 2025-12-01 | AK61: =AK60 -> 2.7569 | AL61: =AK61 -> 2.7569 | AM61: =AM60 -> 0.1206032663 | AN61: 0.4472361809 | AO61: 0.09296482412 | AQ61: 2025-12-01 | AR61: 2.7569 | AS61: =AR61 -> 2.7569 | AT61: =AT60 -> 0.1206032663 | AU61: 0.4472361809 | AV61: 0.09296482412 | AX61: 2025-12-01 | BN61: 0 | BR61: 2025-12-01 | BV61: 0
B62: 2026-01-01 | C62: 0 | D62: 0 | G62: 0 | H62: =H61 -> 0 | I62: =I61 -> 0 | J62: 0 | K62: 0 | M62: 2026-01-01 | S62: 0 | U62: 2026-01-01 | AC62: 2026-01-01 | AJ62: 2026-01-01 | AK62: =AK61 -> 2.7569 | AL62: 2.7569 | AM62: 0.1206032663 | AN62: 0.4472361809 | AO62: 0.09296482412 | AQ62: 2026-01-01 | AR62: 2.7569 | AS62: 2.7569 | AT62: 0.1206032663 | AU62: 0.4472361809 | AV62: 0.09296482412 | AX62: 2026-01-01 | BN62: 0 | BR62: 2026-01-01 | BV62: 0
B63: 2026-02-01 | C63: 0 | D63: 0 | G63: 0 | H63: 0 | I63: 0 | J63: 0 | K63: 0 | M63: 2026-02-01 | S63: 0 | U63: 2026-02-01 | AC63: 2026-02-01 | AJ63: 2026-02-01 | AK63: 2.7569 | AL63: 2.7569 | AM63: 0.1206032663 | AN63: 0.4472361809 | AO63: 0.09296482412 | AQ63: 2026-02-01 | AR63: 2.7569 | AS63: 2.7569 | AT63: 0.1206032663 | AU63: 0.4472361809 | AV63: 0.09296482412 | AX63: 2026-02-01 | BN63: 0 | BR63: 2026-02-01 | BV63: 0
B64: 2026-03-01 | C64: =C63*(C13/100*100+1) -> 0 | D64: =D63*(D13/100*100+1) -> 0 | G64: 0 | H64: =H63*(E13/100*100+1) -> 0 | I64: =I63*(F13/100*100+1) -> 0 | J64: =J63*(F13/100*100+1) -> 0 | K64: =K63*(F13/100*100+1) -> 0 | M64: 2026-03-01 | S64: 0 | U64: 2026-03-01 | AC64: 2026-03-01 | AJ64: 2026-03-01 | AK64: 2.7569 | AL64: 2.7569 | AM64: 0.1206032663 | AN64: 0.4472361809 | AO64: 0.09296482412 | AQ64: 2026-03-01 | AR64: 2.7569 | AS64: 2.7569 | AT64: 0.1206032663 | AU64: 0.4472361809 | AV64: 0.09296482412 | AX64: 2026-03-01 | BN64: 0 | BR64: 2026-03-01 | BV64: 0
B65: 2026-04-01 | C65: =C64 -> 0 | D65: 0 | G65: 0 | H65: =H64 -> 0 | I65: 0 | J65: 0 | K65: 0 | M65: 2026-04-01 | S65: 0 | U65: 2026-04-01 | AC65: 2026-04-01 | AJ65: 2026-04-01 | AK65: 2.7569 | AL65: 2.7569 | AM65: 0.1206032663 | AN65: 0.4472361809 | AO65: 0.09296482412 | AQ65: 2026-04-01 | AR65: 2.7569 | AS65: 2.7569 | AT65: 0.1206032663 | AU65: 0.4472361809 | AV65: 0.09296482412 | AX65: 2026-04-01 | BN65: 0 | BR65: 2026-04-01 | BV65: 0
B66: 2026-05-01 | C66: 0 | D66: 0 | G66: 0 | H66: 0 | I66: 0 | J66: 0 | K66: 0 | M66: 2026-05-01 | S66: 0 | U66: 2026-05-01 | AC66: 2026-05-01 | AJ66: 2026-05-01 | AK66: 2.7569 | AL66: 2.7569 | AM66: 0.1206032663 | AN66: 0.4472361809 | AO66: 0.09296482412 | AQ66: 2026-05-01 | AR66: 2.7569 | AS66: 2.7569 | AT66: 0.1206032663 | AU66: 0.4472361809 | AV66: 0.09296482412 | AX66: 2026-05-01 | BN66: 0 | BR66: 2026-05-01 | BV66: 0
B67: 2026-06-01 | C67: 0 | D67: 0 | G67: 0 | H67: 0 | I67: 0 | J67: 0 | K67: 0 | M67: 2026-06-01 | S67: 0 | U67: 2026-06-01 | AC67: 2026-06-01 | AJ67: 2026-06-01 | AK67: 2.7569 | AL67: 2.7569 | AM67: 0.1206032663 | AN67: 0.4472361809 | AO67: 0.09296482412 | AQ67: 2026-06-01 | AR67: 2.7569 | AS67: 2.7569 | AT67: 0.1206032663 | AU67: 0.4472361809 | AV67: 0.09296482412 | AX67: 2026-06-01 | BN67: 0 | BR67: 2026-06-01 | BV67: 0
B68: 2026-07-01 | C68: 0 | D68: 0 | G68: 0 | H68: 0 | I68: 0 | J68: 0 | K68: 0 | M68: 2026-07-01 | S68: 0 | U68: 2026-07-01 | AC68: 2026-07-01 | AJ68: 2026-07-01 | AK68: 2.7569 | AL68: 2.7569 | AM68: 0.1206032663 | AN68: 0.4472361809 | AO68: 0.09296482412 | AQ68: 2026-07-01 | AR68: 2.7569 | AS68: 2.7569 | AT68: 0.1206032663 | AU68: 0.4472361809 | AV68: 0.09296482412 | AX68: 2026-07-01 | BN68: 0 | BR68: 2026-07-01 | BV68: 0
B69: 2026-08-01 | C69: 0 | D69: 0 | G69: 0 | H69: 0 | I69: 0 | J69: 0 | K69: 0 | M69: 2026-08-01 | S69: 0 | U69: 2026-08-01 | AC69: 2026-08-01 | AJ69: 2026-08-01 | AK69: 2.7569 | AL69: 2.7569 | AM69: 0.1206032663 | AN69: 0.4472361809 | AO69: 0.09296482412 | AQ69: 2026-08-01 | AR69: 2.7569 | AS69: 2.7569 | AT69: 0.1206032663 | AU69: 0.4472361809 | AV69: 0.09296482412 | AX69: 2026-08-01 | BN69: 0 | BR69: 2026-08-01 | BV69: 0
B70: 2026-09-01 | C70: 0 | D70: 0 | G70: 0 | H70: 0 | I70: 0 | J70: 0 | K70: 0 | M70: 2026-09-01 | S70: 0 | U70: 2026-09-01 | AC70: 2026-09-01 | AJ70: 2026-09-01 | AK70: 2.7569 | AL70: 2.7569 | AM70: 0.1206032663 | AN70: 0.4472361809 | AO70: 0.09296482412 | AQ70: 2026-09-01 | AR70: 2.7569 | AS70: 2.7569 | AT70: 0.1206032663 | AU70: 0.4472361809 | AV70: 0.09296482412 | AX70: 2026-09-01 | BN70: 0 | BR70: 2026-09-01 | BV70: 0
B71: 2026-10-01 | C71: 0 | D71: 0 | G71: 0 | H71: 0 | I71: 0 | J71: 0 | K71: 0 | M71: 2026-10-01 | S71: 0 | U71: 2026-10-01 | AC71: 2026-10-01 | AJ71: 2026-10-01 | AK71: 2.7569 | AL71: 2.7569 | AM71: 0.1206032663 | AN71: 0.4472361809 | AO71: 0.09296482412 | AQ71: 2026-10-01 | AR71: 2.7569 | AS71: 2.7569 | AT71: 0.1206032663 | AU71: 0.4472361809 | AV71: 0.09296482412 | AX71: 2026-10-01 | BN71: 0 | BR71: 2026-10-01 | BV71: 0
B73: =B56 -> Bacia 1 | C73: R$ da Licitação corrigidos nos Dissídios Coletivos | K73: Ano 4 | M73: =B73 -> Bacia 1 | N73: R$ Salário Total Com Horas Extras e Adicional Noturno Pago Por Função (Sem inclusão de Encargos Sociais) - Valor de GFIP | S73: =K73 -> Ano 4 | U73: =M73 -> Bacia 1 | V73: Quantidade de Funcionários - Cálculo pela Folha | AA73: =S73 -> Ano 4 | AC73: =U73 -> Bacia 1 | AD73: Quantidade de Frota Operacional | AH73: =AA73 -> Ano 4 | AJ73: =AC73 -> Bacia 1 | AK73: FU POR FUNÇÃO | AO73: =AH73 -> Ano 4 | AQ73: =AJ73 -> Bacia 1 | AR73: FU FÍSICO PARA BENEFÍCIOS | AV73: =AO73 -> Ano 4 | AX73: =AQ73 -> Bacia 1 | AY73: Qtde. Funcionários - FÍSICO para Benefícios e FOLHA para Salários base de cálculo dos Enc.Sociais | BP73: =AV73 -> Ano 4 | BR73: =AX73 -> Bacia 1 | BS73: =BP73 -> Ano 4
B74: Mês | C74: R$ Salário Médio da Função (Sem Encargos) | M74: Mês | U74: Mês | V74: Inclusas todas as Horas Extras | AC74: Mês | AJ74: Mês | AK74: CÁLCULO SOBRE A FOLHA DE PAGAMENTO | AQ74: Mês | AX74: Mês | AY74: Motoristas | BB74: Cobradores | BE74: Controle Operacional | BH74: Manutenção | BK74: Administração | BN74: Total Geral | BR74: Mês | BS74: Cálculo Mot.Articulados | BV74: Qtde. Física de Motoristas | BY74: Cálculo R$ Mot.Artic. | CA74: R$
C75: Motoristas | E75: Qtde.Física de Mot. | G75: R$ Salário | H75: Cobradores | I75: Controle | J75: Manu- | K75: Admi- | M75: de | N75: Motoristas | O75: Cobradores | P75: Controle | Q75: Manutenção | R75: Administração | S75: R$ | V75: Motoristas | W75: Cobradores | X75: Controle | Y75: Manutenção | Z75: Administração | AA75: Qtde. | AC75: de | AD75: Motoristas | AE75: Cobradores | AF75: Controle | AG75: Manutenção | AH75: Administração | AJ75: de | AK75: Motoristas | AL75: Cobradores | AM75: Controle | AN75: Manutenção | AO75: Administração | AQ75: de | AR75: Motoristas | AS75: Cobradores | AT75: Controle | AU75: Manutenção | AV75: Administração | AX75: de | AY75: Físico | AZ75: Folha | BA75: Dif.Folha | BB75: Físico | BC75: Folha | BD75: Dif.Folha | BE75: Físico | BF75: Folha | BG75: Dif.Folha | BH75: Físico | BI75: Folha | BJ75: Dif.Folha | BK75: Físico | BL75: Folha | BM75: Dif.Folha | BN75: Físico | BO75: Folha | BP75: Dif.Folha | BR75: de | BS75: Frota | BT75: FU físico | BU75: Mot. | BV75: Mot. | BW75: Mot. | BX75: Mot. | BY75: R$ Mot. | BZ75: R$ Mot. | CA75: Total
B76: Ref. | C76: Diversos | D76: Artic. | E76: Div. | F76: Artic. | G76: Médio Mot. | I76: Operacional | J76: tenção | K76: nistração | M76: Ref. | N76: Diversos | P76: Operacional | S76: Total | U76: Ref. | X76: Operacional | AA76: Total | AC76: Ref. | AF76: Operacional | AJ76: Ref. | AM76: Operacional | AQ76: Ref. | AT76: Operacional | AX76: Ref. | BA76: (-) Físico | BD76: (-) Físico | BG76: (-) Físico | BJ76: (-) Físico | BM76: (-) Físico | BP76: (-) Físico | BR76: Ref. | BS76: Artic. | BT76: Mot.Div. | BU76: Artic. | BV76: Total | BW76: Diversos | BX76: Artic. | BY76: Diversos | BZ76: Articulados | CA76: Motoristas
B77: =DATE(YEAR(B71),MONTH(B71)+1,DAY(B71)) -> 2026-11-01 | C77: =C71 -> 0 | D77: =D71 -> 0 | E77: =BW77 ->  | G77: =IF(C77>0,((C77*E77)+(D77*F77))/(E77+F77),0) -> 0 | H77: =H71 -> 0 | I77: =I71 -> 0 | J77: =J71 -> 0 | K77: =K71 -> 0 | M77: =B77 -> 2026-11-01 | S77: =SUM(N77:R77) -> 0 | U77: =M77 -> 2026-11-01 | V77: =N77/G77 ->  | AA77: =SUM(V77:Z77) ->  | AC77: =U77 -> 2026-11-01 | AJ77: =AC77 -> 2026-11-01 | AK77: =AK71 -> 2.7569 | AL77: =AK77 -> 2.7569 | AM77: =AM71 -> 0.1206032663 | AN77: =AN71 -> 0.4472361809 | AO77: =AO71 -> 0.09296482412 | AQ77: =AJ77 -> 2026-11-01 | AR77: =AK77 -> 2.7569 | AS77: =AR77 -> 2.7569 | AT77: =AT71 -> 0.1206032663 | AU77: =AU71 -> 0.4472361809 | AV77: =AV71 -> 0.09296482412 | AX77: =AQ77 -> 2026-11-01 | AZ77: =V77 ->  | BA77: =AZ77-AY77 ->  | BC77: =W77 ->  | BD77: =BC77-BB77 ->  | BF77: =X77 ->  | BG77: =BF77-BE77 ->  | BI77: =Y77 ->  | BJ77: =BI77-BH77 ->  | BL77: =Z77 ->  | BM77: =BL77-BK77 ->  | BN77: =AY77+BB77+BE77+BH77+BK77 -> 0 | BP77: =BO77-BN77 ->  | BR77: =AX77 -> 2026-11-01 | BT77: =AY77/AD77 ->  | BU77: =BT77*BS77 ->  | BV77: =AY77 -> 0 | BW77: =BV77-BX77 ->  | BX77: =BU77 ->  | BY77: =N77/BV77*BW77 ->  | BZ77: =N77/BV77*BX77 ->  | CA77: =BY77+BZ77 -> 
B78: =DATE(YEAR(B77),MONTH(B77)+1,DAY(B77)) -> 2026-12-01 | C78: =C77 -> 0 | D78: =D77 -> 0 | G78: 0 | H78: =H77 -> 0 | I78: =I77 -> 0 | J78: =J77 -> 0 | K78: =K77 -> 0 | M78: 2026-12-01 | S78: 0 | U78: 2026-12-01 | AC78: 2026-12-01 | AJ78: 2026-12-01 | AK78: =AK77 -> 2.7569 | AL78: =AK78 -> 2.7569 | AM78: =AM77 -> 0.1206032663 | AN78: 0.4472361809 | AO78: 0.09296482412 | AQ78: 2026-12-01 | AR78: 2.7569 | AS78: =AR78 -> 2.7569 | AT78: =AT77 -> 0.1206032663 | AU78: 0.4472361809 | AV78: 0.09296482412 | AX78: 2026-12-01 | BN78: 0 | BR78: 2026-12-01 | BV78: 0
B79: 2027-01-01 | C79: 0 | D79: 0 | G79: 0 | H79: =H78 -> 0 | I79: =I78 -> 0 | J79: 0 | K79: 0 | M79: 2027-01-01 | S79: 0 | U79: 2027-01-01 | AC79: 2027-01-01 | AJ79: 2027-01-01 | AK79: =AK78 -> 2.7569 | AL79: 2.7569 | AM79: 0.1206032663 | AN79: 0.4472361809 | AO79: 0.09296482412 | AQ79: 2027-01-01 | AR79: 2.7569 | AS79: 2.7569 | AT79: 0.1206032663 | AU79: 0.4472361809 | AV79: 0.09296482412 | AX79: 2027-01-01 | BN79: 0 | BR79: 2027-01-01 | BV79: 0
B80: 2027-02-01 | C80: 0 | D80: 0 | G80: 0 | H80: 0 | I80: 0 | J80: 0 | K80: 0 | M80: 2027-02-01 | S80: 0 | U80: 2027-02-01 | AC80: 2027-02-01 | AJ80: 2027-02-01 | AK80: 2.7569 | AL80: 2.7569 | AM80: 0.1206032663 | AN80: 0.4472361809 | AO80: 0.09296482412 | AQ80: 2027-02-01 | AR80: 2.7569 | AS80: 2.7569 | AT80: 0.1206032663 | AU80: 0.4472361809 | AV80: 0.09296482412 | AX80: 2027-02-01 | BN80: 0 | BR80: 2027-02-01 | BV80: 0
B81: 2027-03-01 | C81: =C80*(C15/100*100+1) -> 0 | D81: =D80*(D15/100*100+1) -> 0 | G81: 0 | H81: =H80*(E15/100*100+1) -> 0 | I81: =I80*(F15/100*100+1) -> 0 | J81: =J80*(F15/100*100+1) -> 0 | K81: =K80*(F15/100*100+1) -> 0 | M81: 2027-03-01 | S81: 0 | U81: 2027-03-01 | AC81: 2027-03-01 | AJ81: 2027-03-01 | AK81: 2.7569 | AL81: 2.7569 | AM81: 0.1206032663 | AN81: 0.4472361809 | AO81: 0.09296482412 | AQ81: 2027-03-01 | AR81: 2.7569 | AS81: 2.7569 | AT81: 0.1206032663 | AU81: 0.4472361809 | AV81: 0.09296482412 | AX81: 2027-03-01 | BN81: 0 | BR81: 2027-03-01 | BV81: 0
B82: 2027-04-01 | C82: =C81 -> 0 | D82: 0 | G82: 0 | H82: =H81 -> 0 | I82: =I81 -> 0 | J82: =J81 -> 0 | K82: =K81 -> 0 | M82: 2027-04-01 | S82: 0 | U82: 2027-04-01 | AC82: 2027-04-01 | AJ82: 2027-04-01 | AK82: 2.7569 | AL82: 2.7569 | AM82: 0.1206032663 | AN82: 0.4472361809 | AO82: 0.09296482412 | AQ82: 2027-04-01 | AR82: 2.7569 | AS82: 2.7569 | AT82: 0.1206032663 | AU82: 0.4472361809 | AV82: 0.09296482412 | AX82: 2027-04-01 | BN82: 0 | BR82: 2027-04-01 | BV82: 0
B83: 2027-05-01 | C83: 0 | D83: 0 | G83: 0 | H83: =H82 -> 0 | I83: 0 | J83: 0 | K83: 0 | M83: 2027-05-01 | S83: 0 | U83: 2027-05-01 | AC83: 2027-05-01 | AJ83: 2027-05-01 | AK83: 2.7569 | AL83: 2.7569 | AM83: 0.1206032663 | AN83: 0.4472361809 | AO83: 0.09296482412 | AQ83: 2027-05-01 | AR83: 2.7569 | AS83: 2.7569 | AT83: 0.1206032663 | AU83: 0.4472361809 | AV83: 0.09296482412 | AX83: 2027-05-01 | BN83: 0 | BR83: 2027-05-01 | BV83: 0
B84: 2027-06-01 | C84: 0 | D84: 0 | G84: 0 | H84: 0 | I84: 0 | J84: 0 | K84: 0 | M84: 2027-06-01 | S84: 0 | U84: 2027-06-01 | AC84: 2027-06-01 | AJ84: 2027-06-01 | AK84: 2.7569 | AL84: 2.7569 | AM84: 0.1206032663 | AN84: 0.4472361809 | AO84: 0.09296482412 | AQ84: 2027-06-01 | AR84: 2.7569 | AS84: 2.7569 | AT84: 0.1206032663 | AU84: 0.4472361809 | AV84: 0.09296482412 | AX84: 2027-06-01 | BN84: 0 | BR84: 2027-06-01 | BV84: 0
B85: 2027-07-01 | C85: 0 | D85: 0 | G85: 0 | H85: 0 | I85: 0 | J85: 0 | K85: 0 | M85: 2027-07-01 | S85: 0 | U85: 2027-07-01 | AC85: 2027-07-01 | AJ85: 2027-07-01 | AK85: 2.7569 | AL85: 2.7569 | AM85: 0.1206032663 | AN85: 0.4472361809 | AO85: 0.09296482412 | AQ85: 2027-07-01 | AR85: 2.7569 | AS85: 2.7569 | AT85: 0.1206032663 | AU85: 0.4472361809 | AV85: 0.09296482412 | AX85: 2027-07-01 | BN85: 0 | BR85: 2027-07-01 | BV85: 0
B86: 2027-08-01 | C86: 0 | D86: 0 | G86: 0 | H86: 0 | I86: 0 | J86: 0 | K86: 0 | M86: 2027-08-01 | S86: 0 | U86: 2027-08-01 | AC86: 2027-08-01 | AJ86: 2027-08-01 | AK86: 2.7569 | AL86: 2.7569 | AM86: 0.1206032663 | AN86: 0.4472361809 | AO86: 0.09296482412 | AQ86: 2027-08-01 | AR86: 2.7569 | AS86: 2.7569 | AT86: 0.1206032663 | AU86: 0.4472361809 | AV86: 0.09296482412 | AX86: 2027-08-01 | BN86: 0 | BR86: 2027-08-01 | BV86: 0
B87: 2027-09-01 | C87: 0 | D87: 0 | G87: 0 | H87: 0 | I87: 0 | J87: 0 | K87: 0 | M87: 2027-09-01 | S87: 0 | U87: 2027-09-01 | AC87: 2027-09-01 | AJ87: 2027-09-01 | AK87: 2.7569 | AL87: 2.7569 | AM87: 0.1206032663 | AN87: 0.4472361809 | AO87: 0.09296482412 | AQ87: 2027-09-01 | AR87: 2.7569 | AS87: 2.7569 | AT87: 0.1206032663 | AU87: 0.4472361809 | AV87: 0.09296482412 | AX87: 2027-09-01 | BN87: 0 | BR87: 2027-09-01 | BV87: 0
B88: 2027-10-01 | C88: 0 | D88: 0 | G88: 0 | H88: 0 | I88: 0 | J88: 0 | K88: 0 | M88: 2027-10-01 | S88: 0 | U88: 2027-10-01 | AC88: 2027-10-01 | AJ88: 2027-10-01 | AK88: 2.7569 | AL88: 2.7569 | AM88: 0.1206032663 | AN88: 0.4472361809 | AO88: 0.09296482412 | AQ88: 2027-10-01 | AR88: 2.7569 | AS88: 2.7569 | AT88: 0.1206032663 | AU88: 0.4472361809 | AV88: 0.09296482412 | AX88: 2027-10-01 | BN88: 0 | BR88: 2027-10-01 | BV88: 0
B90: =B73 -> Bacia 1 | C90: R$ da Licitação corrigidos nos Dissídios Coletivos | K90: Ano 5 | M90: =B90 -> Bacia 1 | N90: R$ Salário Total Com Horas Extras e Adicional Noturno Pago Por Função (Sem inclusão de Encargos Sociais) - Valor de GFIP | S90: =K90 -> Ano 5 | U90: =M90 -> Bacia 1 | V90: Quantidade de Funcionários - Cálculo pela Folha | AA90: =S90 -> Ano 5 | AC90: =U90 -> Bacia 1 | AD90: Quantidade de Frota Operacional | AH90: =AA90 -> Ano 5 | AJ90: =AC90 -> Bacia 1 | AK90: FU POR FUNÇÃO | AO90: =AH90 -> Ano 5 | AQ90: =AJ90 -> Bacia 1 | AR90: FU FÍSICO PARA BENEFÍCIOS | AV90: =AO90 -> Ano 5 | AX90: =AQ90 -> Bacia 1 | AY90: Qtde. Funcionários - FÍSICO para Benefícios e FOLHA para Salários base de cálculo dos Enc.Sociais | BP90: =AV90 -> Ano 5 | BR90: =AX90 -> Bacia 1 | BS90: =BP90 -> Ano 5
B91: Mês | C91: R$ Salário Médio da Função (Sem Encargos) | M91: Mês | U91: Mês | V91: Inclusas todas as Horas Extras | AC91: Mês | AJ91: Mês | AK91: CÁLCULO SOBRE A FOLHA DE PAGAMENTO | AQ91: Mês | AX91: Mês | AY91: Motoristas | BB91: Cobradores | BE91: Controle Operacional | BH91: Manutenção | BK91: Administração | BN91: Total Geral | BR91: Mês | BS91: Cálculo Mot.Articulados | BV91: Qtde. Física de Motoristas | BY91: Cálculo R$ Mot.Artic. | CA91: R$
C92: Motoristas | E92: Qtde.Física de Mot. | G92: R$ Salário | H92: Cobradores | I92: Controle | J92: Manu- | K92: Admi- | M92: de | N92: Motoristas | O92: Cobradores | P92: Controle | Q92: Manutenção | R92: Administração | S92: R$ | V92: Motoristas | W92: Cobradores | X92: Controle | Y92: Manutenção | Z92: Administração | AA92: Qtde. | AC92: de | AD92: Motoristas | AE92: Cobradores | AF92: Controle | AG92: Manutenção | AH92: Administração | AJ92: de | AK92: Motoristas | AL92: Cobradores | AM92: Controle | AN92: Manutenção | AO92: Administração | AQ92: de | AR92: Motoristas | AS92: Cobradores | AT92: Controle | AU92: Manutenção | AV92: Administração | AX92: de | AY92: Físico | AZ92: Folha | BA92: Dif.Folha | BB92: Físico | BC92: Folha | BD92: Dif.Folha | BE92: Físico | BF92: Folha | BG92: Dif.Folha | BH92: Físico | BI92: Folha | BJ92: Dif.Folha | BK92: Físico | BL92: Folha | BM92: Dif.Folha | BN92: Físico | BO92: Folha | BP92: Dif.Folha | BR92: de | BS92: Frota | BT92: FU físico | BU92: Mot. | BV92: Mot. | BW92: Mot. | BX92: Mot. | BY92: R$ Mot. | BZ92: R$ Mot. | CA92: Total
B93: Ref. | C93: Diversos | D93: Artic. | E93: Div. | F93: Artic. | G93: Médio Mot. | I93: Operacional | J93: tenção | K93: nistração | M93: Ref. | N93: Diversos | P93: Operacional | S93: Total | U93: Ref. | X93: Operacional | AA93: Total | AC93: Ref. | AF93: Operacional | AJ93: Ref. | AM93: Operacional | AQ93: Ref. | AT93: Operacional | AX93: Ref. | BA93: (-) Físico | BD93: (-) Físico | BG93: (-) Físico | BJ93: (-) Físico | BM93: (-) Físico | BP93: (-) Físico | BR93: Ref. | BS93: Artic. | BT93: Mot.Div. | BU93: Artic. | BV93: Total | BW93: Diversos | BX93: Artic. | BY93: Diversos | BZ93: Articulados | CA93: Motoristas
B94: =DATE(YEAR(B88),MONTH(B88)+1,DAY(B88)) -> 2027-11-01 | C94: =C88 -> 0 | D94: =D88 -> 0 | E94: =BW94 ->  | G94: =IF(C94>0,((C94*E94)+(D94*F94))/(E94+F94),0) -> 0 | H94: =H88 -> 0 | I94: =I88 -> 0 | J94: =J88 -> 0 | K94: =K88 -> 0 | M94: =B94 -> 2027-11-01 | S94: =SUM(N94:R94) -> 0 | U94: =M94 -> 2027-11-01 | V94: =N94/G94 ->  | AA94: =SUM(V94:Z94) ->  | AC94: =U94 -> 2027-11-01 | AJ94: =AC94 -> 2027-11-01 | AK94: =AK88 -> 2.7569 | AL94: =AK94 -> 2.7569 | AM94: =AM88 -> 0.1206032663 | AN94: =AN88 -> 0.4472361809 | AO94: =AO88 -> 0.09296482412 | AQ94: =AJ94 -> 2027-11-01 | AR94: =AK94 -> 2.7569 | AS94: =AR94 -> 2.7569 | AT94: =AT88 -> 0.1206032663 | AU94: =AU88 -> 0.4472361809 | AV94: =AV88 -> 0.09296482412 | AX94: =AQ94 -> 2027-11-01 | AZ94: =V94 ->  | BA94: =AZ94-AY94 ->  | BC94: =W94 ->  | BD94: =BC94-BB94 ->  | BF94: =X94 ->  | BG94: =BF94-BE94 ->  | BI94: =Y94 ->  | BJ94: =BI94-BH94 ->  | BL94: =Z94 ->  | BM94: =BL94-BK94 ->  | BN94: =AY94+BB94+BE94+BH94+BK94 -> 0 | BP94: =BO94-BN94 ->  | BR94: =AX94 -> 2027-11-01 | BT94: =AY94/AD94 ->  | BU94: =BT94*BS94 ->  | BV94: =AY94 -> 0 | BW94: =BV94-BX94 ->  | BX94: =BU94 ->  | BY94: =N94/BV94*BW94 ->  | BZ94: =N94/BV94*BX94 ->  | CA94: =BY94+BZ94 -> 
B95: =DATE(YEAR(B94),MONTH(B94)+1,DAY(B94)) -> 2027-12-01 | C95: =C94 -> 0 | D95: =D94 -> 0 | G95: 0 | H95: =H94 -> 0 | I95: =I94 -> 0 | J95: =J94 -> 0 | K95: =K94 -> 0 | M95: 2027-12-01 | S95: 0 | U95: 2027-12-01 | AC95: 2027-12-01 | AJ95: 2027-12-01 | AK95: =AK94 -> 2.7569 | AL95: =AK95 -> 2.7569 | AM95: =AM94 -> 0.1206032663 | AN95: 0.4472361809 | AO95: 0.09296482412 | AQ95: 2027-12-01 | AR95: 2.7569 | AS95: =AR95 -> 2.7569 | AT95: =AT94 -> 0.1206032663 | AU95: 0.4472361809 | AV95: 0.09296482412 | AX95: 2027-12-01 | BN95: 0 | BR95: 2027-12-01 | BV95: 0
B96: 2028-01-01 | C96: 0 | D96: 0 | G96: 0 | H96: =H95 -> 0 | I96: 0 | J96: 0 | K96: 0 | M96: 2028-01-01 | S96: 0 | U96: 2028-01-01 | AC96: 2028-01-01 | AJ96: 2028-01-01 | AK96: =AK95 -> 2.7569 | AL96: 2.7569 | AM96: 0.1206032663 | AN96: 0.4472361809 | AO96: 0.09296482412 | AQ96: 2028-01-01 | AR96: 2.7569 | AS96: 2.7569 | AT96: 0.1206032663 | AU96: 0.4472361809 | AV96: 0.09296482412 | AX96: 2028-01-01 | BN96: 0 | BR96: 2028-01-01 | BV96: 0
B97: 2028-02-01 | C97: 0 | D97: 0 | G97: 0 | H97: 0 | I97: 0 | J97: 0 | K97: 0 | M97: 2028-02-01 | S97: 0 | U97: 2028-02-01 | AC97: 2028-02-01 | AJ97: 2028-02-01 | AK97: 2.7569 | AL97: 2.7569 | AM97: 0.1206032663 | AN97: 0.4472361809 | AO97: 0.09296482412 | AQ97: 2028-02-01 | AR97: 2.7569 | AS97: 2.7569 | AT97: 0.1206032663 | AU97: 0.4472361809 | AV97: 0.09296482412 | AX97: 2028-02-01 | BN97: 0 | BR97: 2028-02-01 | BV97: 0
B98: 2028-03-01 | C98: 0 | D98: =D97 -> 0 | G98: 0 | H98: 0 | I98: 0 | J98: 0 | K98: 0 | M98: 2028-03-01 | S98: 0 | U98: 2028-03-01 | AC98: 2028-03-01 | AJ98: 2028-03-01 | AK98: 2.7569 | AL98: 2.7569 | AM98: 0.1206032663 | AN98: 0.4472361809 | AO98: 0.09296482412 | AQ98: 2028-03-01 | AR98: 2.7569 | AS98: 2.7569 | AT98: 0.1206032663 | AU98: 0.4472361809 | AV98: 0.09296482412 | AX98: 2028-03-01 | BN98: 0 | BR98: 2028-03-01 | BV98: 0
B99: 2028-04-01 | C99: 0 | D99: 0 | G99: 0 | H99: 0 | I99: 0 | J99: 0 | K99: 0 | M99: 2028-04-01 | S99: 0 | U99: 2028-04-01 | AC99: 2028-04-01 | AJ99: 2028-04-01 | AK99: 2.7569 | AL99: 2.7569 | AM99: 0.1206032663 | AN99: 0.4472361809 | AO99: 0.09296482412 | AQ99: 2028-04-01 | AR99: 2.7569 | AS99: 2.7569 | AT99: 0.1206032663 | AU99: 0.4472361809 | AV99: 0.09296482412 | AX99: 2028-04-01 | BN99: 0 | BR99: 2028-04-01 | BV99: 0
B100: 2028-05-01 | C100: 0 | D100: 0 | G100: 0 | H100: 0 | I100: 0 | J100: 0 | K100: 0 | M100: 2028-05-01 | S100: 0 | U100: 2028-05-01 | AC100: 2028-05-01 | AJ100: 2028-05-01 | AK100: 2.7569 | AL100: 2.7569 | AM100: 0.1206032663 | AN100: 0.4472361809 | AO100: 0.09296482412 | AQ100: 2028-05-01 | AR100: 2.7569 | AS100: 2.7569 | AT100: 0.1206032663 | AU100: 0.4472361809 | AV100: 0.09296482412 | AX100: 2028-05-01 | BN100: 0 | BR100: 2028-05-01 | BV100: 0
B101: 2028-06-01 | C101: =C100*(C17/100*100+1) -> 0 | D101: =D100*(D17/100*100+1) -> 0 | G101: 0 | H101: =H100*(E17/100*100+1) -> 0 | I101: =I100*(F17/100*100+1) -> 0 | J101: =J100*(F17/100*100+1) -> 0 | K101: =K100*(F17/100*100+1) -> 0 | M101: 2028-06-01 | S101: 0 | U101: 2028-06-01 | AC101: 2028-06-01 | AJ101: 2028-06-01 | AK101: 2.7569 | AL101: 2.7569 | AM101: 0.1206032663 | AN101: 0.4472361809 | AO101: 0.09296482412 | AQ101: 2028-06-01 | AR101: 2.7569 | AS101: 2.7569 | AT101: 0.1206032663 | AU101: 0.4472361809 | AV101: 0.09296482412 | AX101: 2028-06-01 | BN101: 0 | BR101: 2028-06-01 | BV101: 0
B102: 2028-07-01 | C102: =C101 -> 0 | D102: 0 | G102: 0 | H102: =H101 -> 0 | I102: 0 | J102: 0 | K102: 0 | M102: 2028-07-01 | S102: 0 | U102: 2028-07-01 | AC102: 2028-07-01 | AJ102: 2028-07-01 | AK102: 2.7569 | AL102: 2.7569 | AM102: 0.1206032663 | AN102: 0.4472361809 | AO102: 0.09296482412 | AQ102: 2028-07-01 | AR102: 2.7569 | AS102: 2.7569 | AT102: 0.1206032663 | AU102: 0.4472361809 | AV102: 0.09296482412 | AX102: 2028-07-01 | BN102: 0 | BR102: 2028-07-01 | BV102: 0
B103: 2028-08-01 | C103: 0 | D103: 0 | G103: 0 | H103: 0 | I103: 0 | J103: 0 | K103: 0 | M103: 2028-08-01 | S103: 0 | U103: 2028-08-01 | AC103: 2028-08-01 | AJ103: 2028-08-01 | AK103: 2.7569 | AL103: 2.7569 | AM103: 0.1206032663 | AN103: 0.4472361809 | AO103: 0.09296482412 | AQ103: 2028-08-01 | AR103: 2.7569 | AS103: 2.7569 | AT103: 0.1206032663 | AU103: 0.4472361809 | AV103: 0.09296482412 | AX103: 2028-08-01 | BN103: 0 | BR103: 2028-08-01 | BV103: 0
B104: 2028-09-01 | C104: 0 | D104: 0 | G104: 0 | H104: 0 | I104: 0 | J104: 0 | K104: 0 | M104: 2028-09-01 | S104: 0 | U104: 2028-09-01 | AC104: 2028-09-01 | AJ104: 2028-09-01 | AK104: 2.7569 | AL104: 2.7569 | AM104: 0.1206032663 | AN104: 0.4472361809 | AO104: 0.09296482412 | AQ104: 2028-09-01 | AR104: 2.7569 | AS104: 2.7569 | AT104: 0.1206032663 | AU104: 0.4472361809 | AV104: 0.09296482412 | AX104: 2028-09-01 | BN104: 0 | BR104: 2028-09-01 | BV104: 0
B105: 2028-10-01 | C105: 0 | D105: 0 | G105: 0 | H105: 0 | I105: 0 | J105: 0 | K105: 0 | M105: 2028-10-01 | S105: 0 | U105: 2028-10-01 | AC105: 2028-10-01 | AJ105: 2028-10-01 | AK105: 2.7569 | AL105: 2.7569 | AM105: 0.1206032663 | AN105: 0.4472361809 | AO105: 0.09296482412 | AQ105: 2028-10-01 | AR105: 2.7569 | AS105: 2.7569 | AT105: 0.1206032663 | AU105: 0.4472361809 | AV105: 0.09296482412 | AX105: 2028-10-01 | BN105: 0 | BR105: 2028-10-01 | BV105: 0
B107: =B90 -> Bacia 1 | C107: R$ da Licitação corrigidos nos Dissídios Coletivos | K107: Ano 6 | M107: =B107 -> Bacia 1 | N107: R$ Salário Total Com Horas Extras e Adicional Noturno Pago Por Função (Sem inclusão de Encargos Sociais) - Valor de GFIP | S107: =K107 -> Ano 6 | U107: =M107 -> Bacia 1 | V107: Quantidade de Funcionários - Cálculo pela Folha | AA107: =S107 -> Ano 6 | AC107: =U107 -> Bacia 1 | AD107: Quantidade de Frota Operacional | AH107: =AA107 -> Ano 6 | AJ107: =AC107 -> Bacia 1 | AK107: FU POR FUNÇÃO | AO107: =AH107 -> Ano 6 | AQ107: =AJ107 -> Bacia 1 | AR107: FU FÍSICO PARA BENEFÍCIOS | AV107: =AO107 -> Ano 6 | AX107: =AQ107 -> Bacia 1 | AY107: Qtde. Funcionários - FÍSICO para Benefícios e FOLHA para Salários base de cálculo dos Enc.Sociais | BP107: =AV107 -> Ano 6 | BR107: =AX107 -> Bacia 1 | BS107: =BP107 -> Ano 6
B108: Mês | C108: R$ Salário Médio da Função (Sem Encargos) | M108: Mês | U108: Mês | V108: Inclusas todas as Horas Extras | AC108: Mês | AJ108: Mês | AK108: CÁLCULO SOBRE A FOLHA DE PAGAMENTO | AQ108: Mês | AX108: Mês | AY108: Motoristas | BB108: Cobradores | BE108: Controle Operacional | BH108: Manutenção | BK108: Administração | BN108: Total Geral | BR108: Mês | BS108: Cálculo Mot.Articulados | BV108: Qtde. Física de Motoristas | BY108: Cálculo R$ Mot.Artic. | CA108: R$
C109: Motoristas | E109: Qtde.Física de Mot. | G109: R$ Salário | H109: Cobradores | I109: Controle | J109: Manu- | K109: Admi- | M109: de | N109: Motoristas | O109: Cobradores | P109: Controle | Q109: Manutenção | R109: Administração | S109: R$ | V109: Motoristas | W109: Cobradores | X109: Controle | Y109: Manutenção | Z109: Administração | AA109: Qtde. | AC109: de | AD109: Motoristas | AE109: Cobradores | AF109: Controle | AG109: Manutenção | AH109: Administração | AJ109: de | AK109: Motoristas | AL109: Cobradores | AM109: Controle | AN109: Manutenção | AO109: Administração | AQ109: de | AR109: Motoristas | AS109: Cobradores | AT109: Controle | AU109: Manutenção | AV109: Administração | AX109: de | AY109: Físico | AZ109: Folha | BA109: Dif.Folha | BB109: Físico | BC109: Folha | BD109: Dif.Folha | BE109: Físico | BF109: Folha | BG109: Dif.Folha | BH109: Físico | BI109: Folha | BJ109: Dif.Folha | BK109: Físico | BL109: Folha | BM109: Dif.Folha | BN109: Físico | BO109: Folha | BP109: Dif.Folha | BR109: de | BS109: Frota | BT109: FU físico | BU109: Mot. | BV109: Mot. | BW109: Mot. | BX109: Mot. | BY109: R$ Mot. | BZ109: R$ Mot. | CA109: Total
B110: Ref. | C110: Diversos | D110: Artic. | E110: Div. | F110: Artic. | G110: Médio Mot. | I110: Operacional | J110: tenção | K110: nistração | M110: Ref. | N110: Diversos | P110: Operacional | S110: Total | U110: Ref. | X110: Operacional | AA110: Total | AC110: Ref. | AF110: Operacional | AJ110: Ref. | AM110: Operacional | AQ110: Ref. | AT110: Operacional | AX110: Ref. | BA110: (-) Físico | BD110: (-) Físico | BG110: (-) Físico | BJ110: (-) Físico | BM110: (-) Físico | BP110: (-) Físico | BR110: Ref. | BS110: Artic. | BT110: Mot.Div. | BU110: Artic. | BV110: Total | BW110: Diversos | BX110: Artic. | BY110: Diversos | BZ110: Articulados | CA110: Motoristas
B111: =DATE(YEAR(B105),MONTH(B105)+1,DAY(B105)) -> 2028-11-01 | C111: =C105 -> 0 | D111: =D105 -> 0 | E111: =BW111 ->  | G111: =IF(C111>0,((C111*E111)+(D111*F111))/(E111+F111),0) -> 0 | H111: =H105 -> 0 | I111: =I105 -> 0 | J111: =J105 -> 0 | K111: =K105 -> 0 | M111: =B111 -> 2028-11-01 | S111: =SUM(N111:R111) -> 0 | U111: =M111 -> 2028-11-01 | V111: =N111/G111 ->  | AA111: =SUM(V111:Z111) ->  | AC111: =U111 -> 2028-11-01 | AJ111: =AC111 -> 2028-11-01 | AK111: =AK105 -> 2.7569 | AL111: =AK111 -> 2.7569 | AM111: =AM105 -> 0.1206032663 | AN111: =AN105 -> 0.4472361809 | AO111: =AO105 -> 0.09296482412 | AQ111: =AJ111 -> 2028-11-01 | AR111: =AK111 -> 2.7569 | AS111: =AR111 -> 2.7569 | AT111: =AT105 -> 0.1206032663 | AU111: =AU105 -> 0.4472361809 | AV111: =AV105 -> 0.09296482412 | AX111: =AQ111 -> 2028-11-01 | AZ111: =V111 ->  | BA111: =AZ111-AY111 ->  | BC111: =W111 ->  | BD111: =BC111-BB111 ->  | BF111: =X111 ->  | BG111: =BF111-BE111 ->  | BI111: =Y111 ->  | BJ111: =BI111-BH111 ->  | BL111: =Z111 ->  | BM111: =BL111-BK111 ->  | BN111: =AY111+BB111+BE111+BH111+BK111 -> 0 | BP111: =BO111-BN111 ->  | BR111: =AC111 -> 2028-11-01 | BT111: =AY111/AD111 ->  | BU111: =BT111*BS111 ->  | BV111: =AY111 -> 0 | BW111: =BV111-BX111 ->  | BX111: =BU111 ->  | BY111: =N111/BV111*BW111 ->  | BZ111: =N111/BV111*BX111 ->  | CA111: =BY111+BZ111 -> 
B112: =DATE(YEAR(B111),MONTH(B111)+1,DAY(B111)) -> 2028-12-01 | C112: =C111 -> 0 | D112: =D111 -> 0 | G112: 0 | H112: =H111 -> 0 | I112: =I111 -> 0 | J112: =J111 -> 0 | K112: =K111 -> 0 | M112: 2028-12-01 | S112: 0 | U112: 2028-12-01 | AC112: 2028-12-01 | AJ112: 2028-12-01 | AK112: =AK111 -> 2.7569 | AL112: =AK112 -> 2.7569 | AM112: =AM111 -> 0.1206032663 | AN112: 0.4472361809 | AO112: 0.09296482412 | AQ112: 2028-12-01 | AR112: 2.7569 | AS112: =AR112 -> 2.7569 | AT112: =AT111 -> 0.1206032663 | AU112: 0.4472361809 | AV112: 0.09296482412 | AX112: 2028-12-01 | BN112: 0 | BR112: 2028-12-01 | BV112: 0
B113: 2029-01-01 | C113: =C112 -> 0 | D113: 0 | G113: 0 | H113: =H112 -> 0 | I113: 0 | J113: 0 | K113: 0 | M113: 2029-01-01 | S113: 0 | U113: 2029-01-01 | AC113: 2029-01-01 | AJ113: 2029-01-01 | AK113: =AK112 -> 2.7569 | AL113: 2.7569 | AM113: 0.1206032663 | AN113: 0.4472361809 | AO113: 0.09296482412 | AQ113: 2029-01-01 | AR113: 2.7569 | AS113: 2.7569 | AT113: 0.1206032663 | AU113: 0.4472361809 | AV113: 0.09296482412 | AX113: 2029-01-01 | BN113: =AY113+BB113+BE113+BH113+BK113 -> 0 | BR113: 2029-01-01 | BV113: 0
B114: 2029-02-01 | C114: 0 | D114: 0 | G114: 0 | H114: 0 | I114: 0 | J114: 0 | K114: 0 | M114: 2029-02-01 | S114: 0 | U114: 2029-02-01 | AC114: 2029-02-01 | AJ114: 2029-02-01 | AK114: 2.7569 | AL114: 2.7569 | AM114: 0.1206032663 | AN114: 0.4472361809 | AO114: 0.09296482412 | AQ114: 2029-02-01 | AR114: 2.7569 | AS114: 2.7569 | AT114: 0.1206032663 | AU114: 0.4472361809 | AV114: 0.09296482412 | AX114: 2029-02-01 | BN114: 0 | BR114: 2029-02-01 | BV114: 0
B115: 2029-03-01 | C115: 0 | D115: 0 | G115: 0 | H115: 0 | I115: 0 | J115: 0 | K115: 0 | M115: 2029-03-01 | N115: 1 | O115: 1 | P115: 1 | Q115: 1 | R115: 1 | S115: 5 | U115: 2029-03-01 | AC115: 2029-03-01 | AJ115: 2029-03-01 | AK115: 2.7569 | AL115: 2.7569 | AM115: 0.1206032663 | AN115: 0.4472361809 | AO115: 0.09296482412 | AQ115: 2029-03-01 | AR115: 2.7569 | AS115: 2.7569 | AT115: 0.1206032663 | AU115: 0.4472361809 | AV115: 0.09296482412 | AX115: 2029-03-01 | BN115: 0 | BR115: 2029-03-01 | BV115: 0
B116: 2029-04-01 | C116: 0 | D116: 0 | G116: 0 | H116: 0 | I116: 0 | J116: 0 | K116: 0 | M116: 2029-04-01 | N116: =N115 -> 1 | O116: 1 | P116: 1 | Q116: 1 | R116: 1 | S116: 5 | U116: 2029-04-01 | AC116: 2029-04-01 | AJ116: 2029-04-01 | AK116: 2.7569 | AL116: 2.7569 | AM116: 0.1206032663 | AN116: 0.4472361809 | AO116: 0.09296482412 | AQ116: 2029-04-01 | AR116: 2.7569 | AS116: 2.7569 | AT116: 0.1206032663 | AU116: 0.4472361809 | AV116: 0.09296482412 | AX116: 2029-04-01 | AY116: =AY115 -> 0 | BB116: =BB115 -> 0 | BE116: =BE115 -> 0 | BH116: =BH115 -> 0 | BK116: =BK115 -> 0 | BN116: 0 | BR116: 2029-04-01 | BV116: 0
B117: 2029-05-01 | C117: 0 | D117: 0 | G117: 0 | H117: 0 | I117: 0 | J117: 0 | K117: 0 | M117: 2029-05-01 | N117: 1 | O117: 1 | P117: 1 | Q117: 1 | R117: 1 | S117: 5 | U117: 2029-05-01 | AC117: 2029-05-01 | AJ117: 2029-05-01 | AK117: 2.7569 | AL117: 2.7569 | AM117: 0.1206032663 | AN117: 0.4472361809 | AO117: 0.09296482412 | AQ117: 2029-05-01 | AR117: 2.7569 | AS117: 2.7569 | AT117: 0.1206032663 | AU117: 0.4472361809 | AV117: 0.09296482412 | AX117: 2029-05-01 | AY117: 0 | BB117: 0 | BE117: 0 | BH117: 0 | BK117: 0 | BN117: 0 | BR117: 2029-05-01 | BV117: 0
B118: 2029-06-01 | C118: 0 | D118: 0 | G118: 0 | H118: 0 | I118: 0 | J118: 0 | K118: 0 | M118: 2029-06-01 | N118: 1 | O118: 1 | P118: 1 | Q118: 1 | R118: 1 | S118: 5 | U118: 2029-06-01 | AC118: 2029-06-01 | AJ118: 2029-06-01 | AK118: 2.7569 | AL118: 2.7569 | AM118: 0.1206032663 | AN118: 0.4472361809 | AO118: 0.09296482412 | AQ118: 2029-06-01 | AR118: 2.7569 | AS118: 2.7569 | AT118: 0.1206032663 | AU118: 0.4472361809 | AV118: 0.09296482412 | AX118: 2029-06-01 | AY118: 0 | BB118: 0 | BE118: 0 | BH118: 0 | BK118: 0 | BN118: 0 | BR118: 2029-06-01 | BV118: 0
B119: 2029-07-01 | C119: 0 | D119: 0 | G119: 0 | H119: 0 | I119: 0 | J119: 0 | K119: 0 | M119: 2029-07-01 | N119: 1 | O119: 1 | P119: 1 | Q119: 1 | R119: 1 | S119: 5 | U119: 2029-07-01 | AC119: 2029-07-01 | AJ119: 2029-07-01 | AK119: 2.7569 | AL119: 2.7569 | AM119: 0.1206032663 | AN119: 0.4472361809 | AO119: 0.09296482412 | AQ119: 2029-07-01 | AR119: 2.7569 | AS119: 2.7569 | AT119: 0.1206032663 | AU119: 0.4472361809 | AV119: 0.09296482412 | AX119: 2029-07-01 | AY119: 0 | BB119: 0 | BE119: 0 | BH119: 0 | BK119: 0 | BN119: 0 | BR119: 2029-07-01 | BV119: 0
B120: 2029-08-01 | C120: 0 | D120: 0 | G120: 0 | H120: 0 | I120: 0 | J120: 0 | K120: 0 | M120: 2029-08-01 | N120: 1 | O120: 1 | P120: 1 | Q120: 1 | R120: 1 | S120: 5 | U120: 2029-08-01 | AC120: 2029-08-01 | AJ120: 2029-08-01 | AK120: 2.7569 | AL120: 2.7569 | AM120: 0.1206032663 | AN120: 0.4472361809 | AO120: 0.09296482412 | AQ120: 2029-08-01 | AR120: 2.7569 | AS120: 2.7569 | AT120: 0.1206032663 | AU120: 0.4472361809 | AV120: 0.09296482412 | AX120: 2029-08-01 | AY120: 0 | BB120: 0 | BE120: 0 | BH120: 0 | BK120: 0 | BN120: 0 | BR120: 2029-08-01 | BV120: 0
B121: 2029-09-01 | C121: 0 | D121: 0 | G121: 0 | H121: 0 | I121: 0 | J121: 0 | K121: 0 | M121: 2029-09-01 | N121: 1 | O121: 1 | P121: 1 | Q121: 1 | R121: 1 | S121: 5 | U121: 2029-09-01 | AC121: 2029-09-01 | AJ121: 2029-09-01 | AK121: 2.7569 | AL121: 2.7569 | AM121: 0.1206032663 | AN121: 0.4472361809 | AO121: 0.09296482412 | AQ121: 2029-09-01 | AR121: 2.7569 | AS121: 2.7569 | AT121: 0.1206032663 | AU121: 0.4472361809 | AV121: 0.09296482412 | AX121: 2029-09-01 | AY121: 0 | BB121: 0 | BE121: 0 | BH121: 0 | BK121: 0 | BN121: 0 | BR121: 2029-09-01 | BV121: 0
B122: 2029-10-01 | C122: 0 | D122: 0 | G122: 0 | H122: 0 | I122: 0 | J122: 0 | K122: 0 | M122: 2029-10-01 | N122: 1 | O122: 1 | P122: 1 | Q122: 1 | R122: 1 | S122: 5 | U122: 2029-10-01 | AC122: 2029-10-01 | AJ122: 2029-10-01 | AK122: 2.7569 | AL122: 2.7569 | AM122: 0.1206032663 | AN122: 0.4472361809 | AO122: 0.09296482412 | AQ122: 2029-10-01 | AR122: 2.7569 | AS122: 2.7569 | AT122: 0.1206032663 | AU122: 0.4472361809 | AV122: 0.09296482412 | AX122: 2029-10-01 | AY122: 0 | BB122: 0 | BE122: 0 | BH122: 0 | BK122: 0 | BN122: 0 | BR122: 2029-10-01 | BV122: 0
B124: =B107 -> Bacia 1 | C124: R$ da Licitação corrigidos nos Dissídios Coletivos | K124: Ano 7 | M124: =B124 -> Bacia 1 | N124: R$ Salário Total Com Horas Extras e Adicional Noturno Pago Por Função (Sem inclusão de Encargos Sociais) - Valor de GFIP | S124: =K124 -> Ano 7 | U124: =M124 -> Bacia 1 | V124: Quantidade de Funcionários - Cálculo pela Folha | AA124: =S124 -> Ano 7 | AC124: =U124 -> Bacia 1 | AD124: Quantidade de Frota Operacional | AH124: =AA124 -> Ano 7 | AJ124: =AC124 -> Bacia 1 | AK124: FU POR FUNÇÃO | AO124: =AH124 -> Ano 7 | AQ124: =AJ124 -> Bacia 1 | AR124: FU FÍSICO PARA BENEFÍCIOS | AV124: =AO124 -> Ano 7 | AX124: =AQ124 -> Bacia 1 | AY124: Qtde. Funcionários - FÍSICO para Benefícios e FOLHA para Salários base de cálculo dos Enc.Sociais | BP124: =AV124 -> Ano 7 | BR124: =AX124 -> Bacia 1 | BS124: =BP124 -> Ano 7
B125: Mês | C125: R$ Salário Médio da Função (Sem Encargos) | M125: Mês | U125: Mês | V125: Inclusas todas as Horas Extras | AC125: Mês | AJ125: Mês | AK125: CÁLCULO SOBRE A FOLHA DE PAGAMENTO | AQ125: Mês | AX125: Mês | AY125: Motoristas | BB125: Cobradores | BE125: Controle Operacional | BH125: Manutenção | BK125: Administração | BN125: Total Geral | BR125: Mês | BS125: Cálculo Mot.Articulados | BV125: Qtde. Física de Motoristas | BY125: Cálculo R$ Mot.Artic. | CA125: R$
C126: Motoristas | E126: Qtde.Física de Mot. | G126: R$ Salário | H126: Cobradores | I126: Controle | J126: Manu- | K126: Admi- | M126: de | N126: Motoristas | O126: Cobradores | P126: Controle | Q126: Manutenção | R126: Administração | S126: R$ | V126: Motoristas | W126: Cobradores | X126: Controle | Y126: Manutenção | Z126: Administração | AA126: Qtde. | AC126: de | AD126: Motoristas | AE126: Cobradores | AF126: Controle | AG126: Manutenção | AH126: Administração | AJ126: de | AK126: Motoristas | AL126: Cobradores | AM126: Controle | AN126: Manutenção | AO126: Administração | AQ126: de | AR126: Motoristas | AS126: Cobradores | AT126: Controle | AU126: Manutenção | AV126: Administração | AX126: de | AY126: Físico | AZ126: Folha | BA126: Dif.Folha | BB126: Físico | BC126: Folha | BD126: Dif.Folha | BE126: Físico | BF126: Folha | BG126: Dif.Folha | BH126: Físico | BI126: Folha | BJ126: Dif.Folha | BK126: Físico | BL126: Folha | BM126: Dif.Folha | BN126: Físico | BO126: Folha | BP126: Dif.Folha | BR126: de | BS126: Frota | BT126: FU físico | BU126: Mot. | BV126: Mot. | BW126: Mot. | BX126: Mot. | BY126: R$ Mot. | BZ126: R$ Mot. | CA126: Total
B127: Ref. | C127: Diversos | D127: Artic. | E127: Div. | F127: Artic. | G127: Médio Mot. | I127: Operacional | J127: tenção | K127: nistração | M127: Ref. | N127: Diversos | P127: Operacional | S127: Total | U127: Ref. | X127: Operacional | AA127: Total | AC127: Ref. | AF127: Operacional | AJ127: Ref. | AM127: Operacional | AQ127: Ref. | AT127: Operacional | AX127: Ref. | BA127: (-) Físico | BD127: (-) Físico | BG127: (-) Físico | BJ127: (-) Físico | BM127: (-) Físico | BP127: (-) Físico | BR127: Ref. | BS127: Artic. | BT127: Mot.Div. | BU127: Artic. | BV127: Total | BW127: Diversos | BX127: Artic. | BY127: Diversos | BZ127: Articulados | CA127: Motoristas
B128: =DATE(YEAR(B122),MONTH(B122)+1,DAY(B122)) -> 2029-11-01 | C128: =C122 -> 0 | D128: =D122 -> 0 | E128: =BW128 ->  | G128: =IF(C128>0,((C128*E128)+(D128*F128))/(E128+F128),0) -> 0 | H128: =H122 -> 0 | I128: =I122 -> 0 | J128: =J122 -> 0 | K128: =K122 -> 0 | M128: =B128 -> 2029-11-01 | N128: =N122 -> 1 | O128: =O122 -> 1 | P128: =P122 -> 1 | Q128: =Q122 -> 1 | R128: =R122 -> 1 | S128: =SUM(N128:R128) -> 5 | U128: =M128 -> 2029-11-01 | V128: =N128/G128 ->  | AA128: =SUM(V128:Z128) ->  | AC128: =U128 -> 2029-11-01 | AJ128: =AC128 -> 2029-11-01 | AK128: =AK122 -> 2.7569 | AL128: =AK128 -> 2.7569 | AM128: =AM122 -> 0.1206032663 | AN128: =AN122 -> 0.4472361809 | AO128: =AO122 -> 0.09296482412 | AQ128: =AJ128 -> 2029-11-01 | AR128: =AK128 -> 2.7569 | AS128: =AR128 -> 2.7569 | AT128: =AT122 -> 0.1206032663 | AU128: =AU122 -> 0.4472361809 | AV128: =AV122 -> 0.09296482412 | AX128: =AQ128 -> 2029-11-01 | AY128: =AY122 -> 0 | AZ128: =V128 ->  | BA128: =AZ128-AY128 ->  | BB128: =BB122 -> 0 | BC128: =W128 ->  | BD128: =BC128-BB128 ->  | BE128: =BE122 -> 0 | BF128: =X128 ->  | BG128: =BF128-BE128 ->  | BH128: =BH122 -> 0 | BI128: =Y128 ->  | BJ128: =BI128-BH128 ->  | BK128: =BK122 -> 0 | BL128: =Z128 ->  | BM128: =BL128-BK128 ->  | BN128: =AY128+BB128+BE128+BH128+BK128 -> 0 | BP128: =BO128-BN128 ->  | BR128: =AX128 -> 2029-11-01 | BT128: =AY128/AD128 ->  | BU128: =BT128*BS128 ->  | BV128: =AY128 -> 0 | BW128: =BV128-BX128 ->  | BX128: =BU128 ->  | BY128: =N128/BV128*BW128 ->  | BZ128: =N128/BV128*BX128 ->  | CA128: =BY128+BZ128 -> 
B129: =DATE(YEAR(B128),MONTH(B128)+1,DAY(B128)) -> 2029-12-01 | C129: =C128 -> 0 | D129: =D128 -> 0 | G129: 0 | H129: =H128 -> 0 | I129: =I128 -> 0 | J129: =J128 -> 0 | K129: =K128 -> 0 | M129: 2029-12-01 | N129: =N128 -> 1 | O129: 1 | P129: 1 | Q129: 1 | R129: 1 | S129: 5 | U129: 2029-12-01 | AC129: 2029-12-01 | AJ129: 2029-12-01 | AK129: =AK128 -> 2.7569 | AL129: =AK129 -> 2.7569 | AM129: =AM128 -> 0.1206032663 | AN129: 0.4472361809 | AO129: 0.09296482412 | AQ129: 2029-12-01 | AR129: 2.7569 | AS129: =AR129 -> 2.7569 | AT129: =AT128 -> 0.1206032663 | AU129: 0.4472361809 | AV129: 0.09296482412 | AX129: 2029-12-01 | AY129: =AY128 -> 0 | BB129: =BB128 -> 0 | BE129: =BE128 -> 0 | BH129: =BH128 -> 0 | BK129: =BK128 -> 0 | BN129: 0 | BR129: 2029-12-01 | BV129: 0
B130: 2030-01-01 | C130: =C129 -> 0 | D130: 0 | G130: 0 | H130: =H129 -> 0 | I130: 0 | J130: 0 | K130: 0 | M130: 2030-01-01 | N130: 1 | O130: 1 | P130: 1 | Q130: 1 | R130: 1 | S130: 5 | U130: 2030-01-01 | AC130: 2030-01-01 | AJ130: 2030-01-01 | AK130: =AK129 -> 2.7569 | AL130: 2.7569 | AM130: 0.1206032663 | AN130: 0.4472361809 | AO130: 0.09296482412 | AQ130: 2030-01-01 | AR130: 2.7569 | AS130: 2.7569 | AT130: 0.1206032663 | AU130: 0.4472361809 | AV130: 0.09296482412 | AX130: 2030-01-01 | AY130: 0 | BB130: 0 | BE130: 0 | BH130: 0 | BK130: 0 | BN130: 0 | BR130: 2030-01-01 | BV130: 0
B131: 2030-02-01 | C131: 0 | D131: 0 | G131: 0 | H131: 0 | I131: 0 | J131: 0 | K131: 0 | M131: 2030-02-01 | N131: 1 | O131: 1 | P131: 1 | Q131: 1 | R131: 1 | S131: 5 | U131: 2030-02-01 | AC131: 2030-02-01 | AJ131: 2030-02-01 | AK131: 2.7569 | AL131: 2.7569 | AM131: 0.1206032663 | AN131: 0.4472361809 | AO131: 0.09296482412 | AQ131: 2030-02-01 | AR131: 2.7569 | AS131: 2.7569 | AT131: 0.1206032663 | AU131: 0.4472361809 | AV131: 0.09296482412 | AX131: 2030-02-01 | AY131: 0 | BB131: 0 | BE131: 0 | BH131: 0 | BK131: 0 | BN131: 0 | BR131: 2030-02-01 | BV131: 0
B132: 2030-03-01 | C132: 0 | D132: 0 | G132: 0 | H132: 0 | I132: 0 | J132: 0 | K132: 0 | M132: 2030-03-01 | N132: 1 | O132: 1 | P132: 1 | Q132: 1 | R132: 1 | S132: 5 | U132: 2030-03-01 | AC132: 2030-03-01 | AJ132: 2030-03-01 | AK132: 2.7569 | AL132: 2.7569 | AM132: 0.1206032663 | AN132: 0.4472361809 | AO132: 0.09296482412 | AQ132: 2030-03-01 | AR132: 2.7569 | AS132: 2.7569 | AT132: 0.1206032663 | AU132: 0.4472361809 | AV132: 0.09296482412 | AX132: 2030-03-01 | AY132: 0 | BB132: 0 | BE132: 0 | BH132: 0 | BK132: 0 | BN132: 0 | BR132: 2030-03-01 | BV132: 0
B133: 2030-04-01 | C133: 0 | D133: 0 | G133: 0 | H133: 0 | I133: 0 | J133: 0 | K133: 0 | M133: 2030-04-01 | N133: 1 | O133: 1 | P133: 1 | Q133: 1 | R133: 1 | S133: 5 | U133: 2030-04-01 | AC133: 2030-04-01 | AJ133: 2030-04-01 | AK133: 2.7569 | AL133: 2.7569 | AM133: 0.1206032663 | AN133: 0.4472361809 | AO133: 0.09296482412 | AQ133: 2030-04-01 | AR133: 2.7569 | AS133: 2.7569 | AT133: 0.1206032663 | AU133: 0.4472361809 | AV133: 0.09296482412 | AX133: 2030-04-01 | AY133: 0 | BB133: 0 | BE133: 0 | BH133: 0 | BK133: 0 | BN133: 0 | BR133: 2030-04-01 | BV133: 0
B134: 2030-05-01 | C134: 0 | D134: 0 | G134: 0 | H134: 0 | I134: 0 | J134: 0 | K134: 0 | M134: 2030-05-01 | N134: 1 | O134: 1 | P134: 1 | Q134: 1 | R134: 1 | S134: 5 | U134: 2030-05-01 | AC134: 2030-05-01 | AJ134: 2030-05-01 | AK134: 2.7569 | AL134: 2.7569 | AM134: 0.1206032663 | AN134: 0.4472361809 | AO134: 0.09296482412 | AQ134: 2030-05-01 | AR134: 2.7569 | AS134: 2.7569 | AT134: 0.1206032663 | AU134: 0.4472361809 | AV134: 0.09296482412 | AX134: 2030-05-01 | AY134: 0 | BB134: 0 | BE134: 0 | BH134: 0 | BK134: 0 | BN134: 0 | BR134: 2030-05-01 | BV134: 0
B135: 2030-06-01 | C135: 0 | D135: 0 | G135: 0 | H135: 0 | I135: 0 | J135: 0 | K135: 0 | M135: 2030-06-01 | N135: 1 | O135: 1 | P135: 1 | Q135: 1 | R135: 1 | S135: 5 | U135: 2030-06-01 | AC135: 2030-06-01 | AJ135: 2030-06-01 | AK135: 2.7569 | AL135: 2.7569 | AM135: 0.1206032663 | AN135: 0.4472361809 | AO135: 0.09296482412 | AQ135: 2030-06-01 | AR135: 2.7569 | AS135: 2.7569 | AT135: 0.1206032663 | AU135: 0.4472361809 | AV135: 0.09296482412 | AX135: 2030-06-01 | AY135: 0 | BB135: 0 | BE135: 0 | BH135: 0 | BK135: 0 | BN135: 0 | BR135: 2030-06-01 | BV135: 0
B136: 2030-07-01 | C136: 0 | D136: 0 | G136: 0 | H136: 0 | I136: 0 | J136: 0 | K136: 0 | M136: 2030-07-01 | N136: 1 | O136: 1 | P136: 1 | Q136: 1 | R136: 1 | S136: 5 | U136: 2030-07-01 | AC136: 2030-07-01 | AJ136: 2030-07-01 | AK136: 2.7569 | AL136: 2.7569 | AM136: 0.1206032663 | AN136: 0.4472361809 | AO136: 0.09296482412 | AQ136: 2030-07-01 | AR136: 2.7569 | AS136: 2.7569 | AT136: 0.1206032663 | AU136: 0.4472361809 | AV136: 0.09296482412 | AX136: 2030-07-01 | AY136: 0 | BB136: 0 | BE136: 0 | BH136: 0 | BK136: 0 | BN136: 0 | BR136: 2030-07-01 | BV136: 0
B137: 2030-08-01 | C137: 0 | D137: 0 | G137: 0 | H137: 0 | I137: 0 | J137: 0 | K137: 0 | M137: 2030-08-01 | N137: 1 | O137: 1 | P137: 1 | Q137: 1 | R137: 1 | S137: 5 | U137: 2030-08-01 | AC137: 2030-08-01 | AJ137: 2030-08-01 | AK137: 2.7569 | AL137: 2.7569 | AM137: 0.1206032663 | AN137: 0.4472361809 | AO137: 0.09296482412 | AQ137: 2030-08-01 | AR137: 2.7569 | AS137: 2.7569 | AT137: 0.1206032663 | AU137: 0.4472361809 | AV137: 0.09296482412 | AX137: 2030-08-01 | AY137: 0 | BB137: 0 | BE137: 0 | BH137: 0 | BK137: 0 | BN137: 0 | BR137: 2030-08-01 | BV137: 0
B138: 2030-09-01 | C138: 0 | D138: 0 | G138: 0 | H138: 0 | I138: 0 | J138: 0 | K138: 0 | M138: 2030-09-01 | N138: 1 | O138: 1 | P138: 1 | Q138: 1 | R138: 1 | S138: 5 | U138: 2030-09-01 | AC138: 2030-09-01 | AJ138: 2030-09-01 | AK138: 2.7569 | AL138: 2.7569 | AM138: 0.1206032663 | AN138: 0.4472361809 | AO138: 0.09296482412 | AQ138: 2030-09-01 | AR138: 2.7569 | AS138: 2.7569 | AT138: 0.1206032663 | AU138: 0.4472361809 | AV138: 0.09296482412 | AX138: 2030-09-01 | AY138: 0 | BB138: 0 | BE138: 0 | BH138: 0 | BK138: 0 | BN138: 0 | BR138: 2030-09-01 | BV138: 0
B139: 2030-10-01 | C139: 0 | D139: 0 | G139: 0 | H139: 0 | I139: 0 | J139: 0 | K139: 0 | M139: 2030-10-01 | N139: 1 | O139: 1 | P139: 1 | Q139: 1 | R139: 1 | S139: 5 | U139: 2030-10-01 | AC139: 2030-10-01 | AJ139: 2030-10-01 | AK139: 2.7569 | AL139: 2.7569 | AM139: 0.1206032663 | AN139: 0.4472361809 | AO139: 0.09296482412 | AQ139: 2030-10-01 | AR139: 2.7569 | AS139: 2.7569 | AT139: 0.1206032663 | AU139: 0.4472361809 | AV139: 0.09296482412 | AX139: 2030-10-01 | AY139: 0 | BB139: 0 | BE139: 0 | BH139: 0 | BK139: 0 | BN139: 0 | BR139: 2030-10-01 | BV139: 0
B141: =B124 -> Bacia 1 | C141: R$ da Licitação corrigidos nos Dissídios Coletivos | K141: Ano 8 | M141: =B141 -> Bacia 1 | N141: R$ Salário Total Com Horas Extras e Adicional Noturno Pago Por Função (Sem inclusão de Encargos Sociais) - Valor de GFIP | S141: =K141 -> Ano 8 | U141: =M141 -> Bacia 1 | V141: Quantidade de Funcionários - Cálculo pela Folha | AA141: =S141 -> Ano 8 | AC141: =U141 -> Bacia 1 | AD141: Quantidade de Frota Operacional | AH141: =AA141 -> Ano 8 | AJ141: =AC141 -> Bacia 1 | AK141: FU POR FUNÇÃO | AO141: =AH141 -> Ano 8 | AQ141: =AJ141 -> Bacia 1 | AR141: FU FÍSICO PARA BENEFÍCIOS | AV141: =AO141 -> Ano 8 | AX141: =AQ141 -> Bacia 1 | AY141: Qtde. Funcionários - FÍSICO para Benefícios e FOLHA para Salários base de cálculo dos Enc.Sociais | BP141: =AV141 -> Ano 8 | BR141: =AX141 -> Bacia 1 | BS141: =BP141 -> Ano 8
B142: Mês | C142: R$ Salário Médio da Função (Sem Encargos) | M142: Mês | U142: Mês | V142: Inclusas todas as Horas Extras | AC142: Mês | AJ142: Mês | AK142: CÁLCULO SOBRE A FOLHA DE PAGAMENTO | AQ142: Mês | AX142: Mês | AY142: Motoristas | BB142: Cobradores | BE142: Controle Operacional | BH142: Manutenção | BK142: Administração | BN142: Total Geral | BR142: Mês | BS142: Cálculo Mot.Articulados | BV142: Qtde. Física de Motoristas | BY142: Cálculo R$ Mot.Artic. | CA142: R$
C143: Motoristas | E143: Qtde.Física de Mot. | G143: R$ Salário | H143: Cobradores | I143: Controle | J143: Manu- | K143: Admi- | M143: de | N143: Motoristas | O143: Cobradores | P143: Controle | Q143: Manutenção | R143: Administração | S143: R$ | V143: Motoristas | W143: Cobradores | X143: Controle | Y143: Manutenção | Z143: Administração | AA143: Qtde. | AC143: de | AD143: Motoristas | AE143: Cobradores | AF143: Controle | AG143: Manutenção | AH143: Administração | AJ143: de | AK143: Motoristas | AL143: Cobradores | AM143: Controle | AN143: Manutenção | AO143: Administração | AQ143: de | AR143: Motoristas | AS143: Cobradores | AT143: Controle | AU143: Manutenção | AV143: Administração | AX143: de | AY143: Físico | AZ143: Folha | BA143: Dif.Folha | BB143: Físico | BC143: Folha | BD143: Dif.Folha | BE143: Físico | BF143: Folha | BG143: Dif.Folha | BH143: Físico | BI143: Folha | BJ143: Dif.Folha | BK143: Físico | BL143: Folha | BM143: Dif.Folha | BN143: Físico | BO143: Folha | BP143: Dif.Folha | BR143: de | BS143: Frota | BT143: FU físico | BU143: Mot. | BV143: Mot. | BW143: Mot. | BX143: Mot. | BY143: R$ Mot. | BZ143: R$ Mot. | CA143: Total
B144: Ref. | C144: Diversos | D144: Artic. | E144: Div. | F144: Artic. | G144: Médio Mot. | I144: Operacional | J144: tenção | K144: nistração | M144: Ref. | N144: Diversos | P144: Operacional | S144: Total | U144: Ref. | X144: Operacional | AA144: Total | AC144: Ref. | AF144: Operacional | AJ144: Ref. | AM144: Operacional | AQ144: Ref. | AT144: Operacional | AX144: Ref. | BA144: (-) Físico | BD144: (-) Físico | BG144: (-) Físico | BJ144: (-) Físico | BM144: (-) Físico | BP144: (-) Físico | BR144: Ref. | BS144: Artic. | BT144: Mot.Div. | BU144: Artic. | BV144: Total | BW144: Diversos | BX144: Artic. | BY144: Diversos | BZ144: Articulados | CA144: Motoristas
B145: =DATE(YEAR(B139),MONTH(B139)+1,DAY(B139)) -> 2030-11-01 | C145: =C139 -> 0 | D145: =D139 -> 0 | E145: =BW145 ->  | G145: =IF(C145>0,((C145*E145)+(D145*F145))/(E145+F145),0) -> 0 | H145: =H139 -> 0 | I145: =I139 -> 0 | J145: =J139 -> 0 | K145: =K139 -> 0 | M145: =B145 -> 2030-11-01 | N145: =N139 -> 1 | O145: =O139 -> 1 | P145: =P139 -> 1 | Q145: =Q139 -> 1 | R145: =R139 -> 1 | S145: =SUM(N145:R145) -> 5 | U145: =M145 -> 2030-11-01 | V145: =N145/G145 ->  | AA145: =SUM(V145:Z145) ->  | AC145: =U145 -> 2030-11-01 | AJ145: =AC145 -> 2030-11-01 | AK145: =AK139 -> 2.7569 | AL145: =AK145 -> 2.7569 | AM145: =AM139 -> 0.1206032663 | AN145: =AN139 -> 0.4472361809 | AO145: =AO139 -> 0.09296482412 | AQ145: =AJ145 -> 2030-11-01 | AR145: =AK145 -> 2.7569 | AS145: =AR145 -> 2.7569 | AT145: =AT139 -> 0.1206032663 | AU145: =AU139 -> 0.4472361809 | AV145: =AV139 -> 0.09296482412 | AX145: =AQ145 -> 2030-11-01 | AY145: =AY139 -> 0 | AZ145: =V145 ->  | BA145: =AZ145-AY145 ->  | BB145: =BB139 -> 0 | BC145: =W145 ->  | BD145: =BC145-BB145 ->  | BE145: =BE139 -> 0 | BF145: =X145 ->  | BG145: =BF145-BE145 ->  | BH145: =BH139 -> 0 | BI145: =Y145 ->  | BJ145: =BI145-BH145 ->  | BK145: =BK139 -> 0 | BL145: =Z145 ->  | BM145: =BL145-BK145 ->  | BN145: =AY145+BB145+BE145+BH145+BK145 -> 0 | BP145: =BO145-BN145 ->  | BR145: =AX145 -> 2030-11-01 | BT145: =AY145/AD145 ->  | BU145: =BT145*BS145 ->  | BV145: =AY145 -> 0 | BW145: =BV145-BX145 ->  | BX145: =BU145 ->  | BY145: =N145/BV145*BW145 ->  | BZ145: =N145/BV145*BX145 ->  | CA145: =BY145+BZ145 -> 
B146: =DATE(YEAR(B145),MONTH(B145)+1,DAY(B145)) -> 2030-12-01 | C146: =C145 -> 0 | D146: =D145 -> 0 | G146: 0 | H146: =H145 -> 0 | I146: =I145 -> 0 | J146: =J145 -> 0 | K146: =K145 -> 0 | M146: 2030-12-01 | N146: =N145 -> 1 | O146: 1 | P146: 1 | Q146: 1 | R146: 1 | S146: 5 | U146: 2030-12-01 | AC146: 2030-12-01 | AJ146: 2030-12-01 | AK146: =AK145 -> 2.7569 | AL146: =AK146 -> 2.7569 | AM146: =AM145 -> 0.1206032663 | AN146: 0.4472361809 | AO146: 0.09296482412 | AQ146: 2030-12-01 | AR146: 2.7569 | AS146: =AR146 -> 2.7569 | AT146: =AT145 -> 0.1206032663 | AU146: 0.4472361809 | AV146: 0.09296482412 | AX146: 2030-12-01 | AY146: =AY145 -> 0 | BB146: =BB145 -> 0 | BE146: =BE145 -> 0 | BH146: =BH145 -> 0 | BK146: =BK145 -> 0 | BN146: 0 | BR146: 2030-12-01 | BV146: 0
B147: 2031-01-01 | C147: =C146 -> 0 | D147: 0 | G147: 0 | H147: =H146 -> 0 | I147: 0 | J147: 0 | K147: 0 | M147: 2031-01-01 | N147: 1 | O147: 1 | P147: 1 | Q147: 1 | R147: 1 | S147: 5 | U147: 2031-01-01 | AC147: 2031-01-01 | AJ147: 2031-01-01 | AK147: =AK146 -> 2.7569 | AL147: 2.7569 | AM147: 0.1206032663 | AN147: 0.4472361809 | AO147: 0.09296482412 | AQ147: 2031-01-01 | AR147: 2.7569 | AS147: 2.7569 | AT147: 0.1206032663 | AU147: 0.4472361809 | AV147: 0.09296482412 | AX147: 2031-01-01 | AY147: 0 | BB147: 0 | BE147: 0 | BH147: 0 | BK147: 0 | BN147: 0 | BR147: 2031-01-01 | BV147: 0
B148: 2031-02-01 | C148: 0 | D148: 0 | G148: 0 | H148: 0 | I148: 0 | J148: 0 | K148: 0 | M148: 2031-02-01 | N148: 1 | O148: 1 | P148: 1 | Q148: 1 | R148: 1 | S148: 5 | U148: 2031-02-01 | AC148: 2031-02-01 | AJ148: 2031-02-01 | AK148: 2.7569 | AL148: 2.7569 | AM148: 0.1206032663 | AN148: 0.4472361809 | AO148: 0.09296482412 | AQ148: 2031-02-01 | AR148: 2.7569 | AS148: 2.7569 | AT148: 0.1206032663 | AU148: 0.4472361809 | AV148: 0.09296482412 | AX148: 2031-02-01 | AY148: 0 | BB148: 0 | BE148: 0 | BH148: 0 | BK148: 0 | BN148: 0 | BR148: 2031-02-01 | BV148: 0
B149: 2031-03-01 | C149: 0 | D149: 0 | G149: 0 | H149: 0 | I149: 0 | J149: 0 | K149: 0 | M149: 2031-03-01 | N149: 1 | O149: 1 | P149: 1 | Q149: 1 | R149: 1 | S149: 5 | U149: 2031-03-01 | AC149: 2031-03-01 | AJ149: 2031-03-01 | AK149: 2.7569 | AL149: 2.7569 | AM149: 0.1206032663 | AN149: 0.4472361809 | AO149: 0.09296482412 | AQ149: 2031-03-01 | AR149: 2.7569 | AS149: 2.7569 | AT149: 0.1206032663 | AU149: 0.4472361809 | AV149: 0.09296482412 | AX149: 2031-03-01 | AY149: 0 | BB149: 0 | BE149: 0 | BH149: 0 | BK149: 0 | BN149: 0 | BR149: 2031-03-01 | BV149: 0
B150: 2031-04-01 | C150: 0 | D150: 0 | G150: 0 | H150: 0 | I150: 0 | J150: 0 | K150: 0 | M150: 2031-04-01 | N150: 1 | O150: 1 | P150: 1 | Q150: 1 | R150: 1 | S150: 5 | U150: 2031-04-01 | AC150: 2031-04-01 | AJ150: 2031-04-01 | AK150: 2.7569 | AL150: 2.7569 | AM150: 0.1206032663 | AN150: 0.4472361809 | AO150: 0.09296482412 | AQ150: 2031-04-01 | AR150: 2.7569 | AS150: 2.7569 | AT150: 0.1206032663 | AU150: 0.4472361809 | AV150: 0.09296482412 | AX150: 2031-04-01 | AY150: 0 | BB150: 0 | BE150: 0 | BH150: 0 | BK150: 0 | BN150: 0 | BR150: 2031-04-01 | BV150: 0
B151: 2031-05-01 | C151: 0 | D151: 0 | G151: 0 | H151: 0 | I151: 0 | J151: 0 | K151: 0 | M151: 2031-05-01 | N151: 1 | O151: 1 | P151: 1 | Q151: 1 | R151: 1 | S151: 5 | U151: 2031-05-01 | AC151: 2031-05-01 | AJ151: 2031-05-01 | AK151: 2.7569 | AL151: 2.7569 | AM151: 0.1206032663 | AN151: 0.4472361809 | AO151: 0.09296482412 | AQ151: 2031-05-01 | AR151: 2.7569 | AS151: 2.7569 | AT151: 0.1206032663 | AU151: 0.4472361809 | AV151: 0.09296482412 | AX151: 2031-05-01 | AY151: 0 | BB151: 0 | BE151: 0 | BH151: 0 | BK151: 0 | BN151: 0 | BR151: 2031-05-01 | BV151: 0
B152: 2031-06-01 | C152: 0 | D152: 0 | G152: 0 | H152: 0 | I152: 0 | J152: 0 | K152: 0 | M152: 2031-06-01 | N152: 1 | O152: 1 | P152: 1 | Q152: 1 | R152: 1 | S152: 5 | U152: 2031-06-01 | AC152: 2031-06-01 | AJ152: 2031-06-01 | AK152: 2.7569 | AL152: 2.7569 | AM152: 0.1206032663 | AN152: 0.4472361809 | AO152: 0.09296482412 | AQ152: 2031-06-01 | AR152: 2.7569 | AS152: 2.7569 | AT152: 0.1206032663 | AU152: 0.4472361809 | AV152: 0.09296482412 | AX152: 2031-06-01 | AY152: 0 | BB152: 0 | BE152: 0 | BH152: 0 | BK152: 0 | BN152: 0 | BR152: 2031-06-01 | BV152: 0
B153: 2031-07-01 | C153: 0 | D153: 0 | G153: 0 | H153: 0 | I153: 0 | J153: 0 | K153: 0 | M153: 2031-07-01 | N153: 1 | O153: 1 | P153: 1 | Q153: 1 | R153: 1 | S153: 5 | U153: 2031-07-01 | AC153: 2031-07-01 | AJ153: 2031-07-01 | AK153: 2.7569 | AL153: 2.7569 | AM153: 0.1206032663 | AN153: 0.4472361809 | AO153: 0.09296482412 | AQ153: 2031-07-01 | AR153: 2.7569 | AS153: 2.7569 | AT153: 0.1206032663 | AU153: 0.4472361809 | AV153: 0.09296482412 | AX153: 2031-07-01 | AY153: 0 | BB153: 0 | BE153: 0 | BH153: 0 | BK153: 0 | BN153: 0 | BR153: 2031-07-01 | BV153: 0
B154: 2031-08-01 | C154: 0 | D154: 0 | G154: 0 | H154: 0 | I154: 0 | J154: 0 | K154: 0 | M154: 2031-08-01 | N154: 1 | O154: 1 | P154: 1 | Q154: 1 | R154: 1 | S154: 5 | U154: 2031-08-01 | AC154: 2031-08-01 | AJ154: 2031-08-01 | AK154: 2.7569 | AL154: 2.7569 | AM154: 0.1206032663 | AN154: 0.4472361809 | AO154: 0.09296482412 | AQ154: 2031-08-01 | AR154: 2.7569 | AS154: 2.7569 | AT154: 0.1206032663 | AU154: 0.4472361809 | AV154: 0.09296482412 | AX154: 2031-08-01 | AY154: 0 | BB154: 0 | BE154: 0 | BH154: 0 | BK154: 0 | BN154: 0 | BR154: 2031-08-01 | BV154: 0
B155: 2031-09-01 | C155: 0 | D155: 0 | G155: 0 | H155: 0 | I155: 0 | J155: 0 | K155: 0 | M155: 2031-09-01 | N155: 1 | O155: 1 | P155: 1 | Q155: 1 | R155: 1 | S155: 5 | U155: 2031-09-01 | AC155: 2031-09-01 | AJ155: 2031-09-01 | AK155: 2.7569 | AL155: 2.7569 | AM155: 0.1206032663 | AN155: 0.4472361809 | AO155: 0.09296482412 | AQ155: 2031-09-01 | AR155: 2.7569 | AS155: 2.7569 | AT155: 0.1206032663 | AU155: 0.4472361809 | AV155: 0.09296482412 | AX155: 2031-09-01 | AY155: 0 | BB155: 0 | BE155: 0 | BH155: 0 | BK155: 0 | BN155: 0 | BR155: 2031-09-01 | BV155: 0
B156: 2031-10-01 | C156: 0 | D156: 0 | G156: 0 | H156: 0 | I156: 0 | J156: 0 | K156: 0 | M156: 2031-10-01 | N156: 1 | O156: 1 | P156: 1 | Q156: 1 | R156: 1 | S156: 5 | U156: 2031-10-01 | AC156: 2031-10-01 | AJ156: 2031-10-01 | AK156: 2.7569 | AL156: 2.7569 | AM156: 0.1206032663 | AN156: 0.4472361809 | AO156: 0.09296482412 | AQ156: 2031-10-01 | AR156: 2.7569 | AS156: 2.7569 | AT156: 0.1206032663 | AU156: 0.4472361809 | AV156: 0.09296482412 | AX156: 2031-10-01 | AY156: 0 | BB156: 0 | BE156: 0 | BH156: 0 | BK156: 0 | BN156: 0 | BR156: 2031-10-01 | BV156: 0
B158: =B141 -> Bacia 1 | C158: R$ da Licitação corrigidos nos Dissídios Coletivos | K158: Ano 9 | M158: =B158 -> Bacia 1 | N158: R$ Salário Total Com Horas Extras e Adicional Noturno Pago Por Função (Sem inclusão de Encargos Sociais) - Valor de GFIP | S158: =K158 -> Ano 9 | U158: =M158 -> Bacia 1 | V158: Quantidade de Funcionários - Cálculo pela Folha | AA158: =S158 -> Ano 9 | AC158: =U158 -> Bacia 1 | AD158: Quantidade de Frota Operacional | AH158: =AA158 -> Ano 9 | AJ158: =AC158 -> Bacia 1 | AK158: FU POR FUNÇÃO | AO158: =AH158 -> Ano 9 | AQ158: =AJ158 -> Bacia 1 | AR158: FU FÍSICO PARA BENEFÍCIOS | AV158: =AO158 -> Ano 9 | AX158: =AQ158 -> Bacia 1 | AY158: Qtde. Funcionários - FÍSICO para Benefícios e FOLHA para Salários base de cálculo dos Enc.Sociais | BP158: =AV158 -> Ano 9 | BR158: =AX158 -> Bacia 1 | BS158: =BP158 -> Ano 9
B159: Mês | C159: R$ Salário Médio da Função (Sem Encargos) | M159: Mês | U159: Mês | V159: Inclusas todas as Horas Extras | AC159: Mês | AJ159: Mês | AK159: CÁLCULO SOBRE A FOLHA DE PAGAMENTO | AQ159: Mês | AX159: Mês | AY159: Motoristas | BB159: Cobradores | BE159: Controle Operacional | BH159: Manutenção | BK159: Administração | BN159: Total Geral | BR159: Mês | BS159: Cálculo Mot.Articulados | BV159: Qtde. Física de Motoristas | BY159: Cálculo R$ Mot.Artic. | CA159: R$
C160: Motoristas | E160: Qtde.Física de Mot. | G160: R$ Salário | H160: Cobradores | I160: Controle | J160: Manu- | K160: Admi- | M160: de | N160: Motoristas | O160: Cobradores | P160: Controle | Q160: Manutenção | R160: Administração | S160: R$ | V160: Motoristas | W160: Cobradores | X160: Controle | Y160: Manutenção | Z160: Administração | AA160: Qtde. | AC160: de | AD160: Motoristas | AE160: Cobradores | AF160: Controle | AG160: Manutenção | AH160: Administração | AJ160: de | AK160: Motoristas | AL160: Cobradores | AM160: Controle | AN160: Manutenção | AO160: Administração | AQ160: de | AR160: Motoristas | AS160: Cobradores | AT160: Controle | AU160: Manutenção | AV160: Administração | AX160: de | AY160: Físico | AZ160: Folha | BA160: Dif.Folha | BB160: Físico | BC160: Folha | BD160: Dif.Folha | BE160: Físico | BF160: Folha | BG160: Dif.Folha | BH160: Físico | BI160: Folha | BJ160: Dif.Folha | BK160: Físico | BL160: Folha | BM160: Dif.Folha | BN160: Físico | BO160: Folha | BP160: Dif.Folha | BR160: de | BS160: Frota | BT160: FU físico | BU160: Mot. | BV160: Mot. | BW160: Mot. | BX160: Mot. | BY160: R$ Mot. | BZ160: R$ Mot. | CA160: Total
B161: Ref. | C161: Diversos | D161: Artic. | E161: Div. | F161: Artic. | G161: Médio Mot. | I161: Operacional | J161: tenção | K161: nistração | M161: Ref. | N161: Diversos | P161: Operacional | S161: Total | U161: Ref. | X161: Operacional | AA161: Total | AC161: Ref. | AF161: Operacional | AJ161: Ref. | AM161: Operacional | AQ161: Ref. | AT161: Operacional | AX161: Ref. | BA161: (-) Físico | BD161: (-) Físico | BG161: (-) Físico | BJ161: (-) Físico | BM161: (-) Físico | BP161: (-) Físico | BR161: Ref. | BS161: Artic. | BT161: Mot.Div. | BU161: Artic. | BV161: Total | BW161: Diversos | BX161: Artic. | BY161: Diversos | BZ161: Articulados | CA161: Motoristas
B162: =DATE(YEAR(B156),MONTH(B156)+1,DAY(B156)) -> 2031-11-01 | C162: =C156 -> 0 | D162: =D156 -> 0 | E162: =BW162 ->  | G162: =IF(C162>0,((C162*E162)+(D162*F162))/(E162+F162),0) -> 0 | H162: =H156 -> 0 | I162: =I156 -> 0 | J162: =J156 -> 0 | K162: =K156 -> 0 | M162: =B162 -> 2031-11-01 | N162: =N156 -> 1 | O162: =O156 -> 1 | P162: =P156 -> 1 | Q162: =Q156 -> 1 | R162: =R156 -> 1 | S162: =SUM(N162:R162) -> 5 | U162: =M162 -> 2031-11-01 | V162: =N162/G162 ->  | AA162: =SUM(V162:Z162) ->  | AC162: =U162 -> 2031-11-01 | AJ162: =AC162 -> 2031-11-01 | AK162: =AK156 -> 2.7569 | AL162: 2.7569 | AM162: =AM156 -> 0.1206032663 | AN162: =AN156 -> 0.4472361809 | AO162: =AO156 -> 0.09296482412 | AQ162: =AJ162 -> 2031-11-01 | AR162: =AK162 -> 2.7569 | AS162: =AR162 -> 2.7569 | AT162: =AT156 -> 0.1206032663 | AU162: =AU156 -> 0.4472361809 | AV162: =AV156 -> 0.09296482412 | AX162: =AQ162 -> 2031-11-01 | AY162: =AY156 -> 0 | AZ162: =V162 ->  | BA162: =AZ162-AY162 ->  | BB162: =BB156 -> 0 | BC162: =W162 ->  | BD162: =BC162-BB162 ->  | BE162: =BE156 -> 0 | BF162: =X162 ->  | BG162: =BF162-BE162 ->  | BH162: =BH156 -> 0 | BI162: =Y162 ->  | BJ162: =BI162-BH162 ->  | BK162: =BK156 -> 0 | BL162: =Z162 ->  | BM162: =BL162-BK162 ->  | BN162: =AY162+BB162+BE162+BH162+BK162 -> 0 | BP162: =BO162-BN162 ->  | BR162: =AX162 -> 2031-11-01 | BT162: =AY162/AD162 ->  | BU162: =BT162*BS162 ->  | BV162: =AY162 -> 0 | BW162: =BV162-BX162 ->  | BX162: =BU162 ->  | BY162: =N162/BV162*BW162 ->  | BZ162: =N162/BV162*BX162 ->  | CA162: =BY162+BZ162 -> 
B163: =DATE(YEAR(B162),MONTH(B162)+1,DAY(B162)) -> 2031-12-01 | C163: =C162 -> 0 | D163: =D162 -> 0 | G163: 0 | H163: =H162 -> 0 | I163: =I162 -> 0 | J163: =J162 -> 0 | K163: =K162 -> 0 | M163: 2031-12-01 | N163: =N162 -> 1 | O163: 1 | P163: 1 | Q163: 1 | R163: 1 | S163: 5 | U163: 2031-12-01 | AC163: 2031-12-01 | AJ163: 2031-12-01 | AK163: =AK162 -> 2.7569 | AL163: =AK163 -> 2.7569 | AM163: =AM162 -> 0.1206032663 | AN163: 0.4472361809 | AO163: 0.09296482412 | AQ163: 2031-12-01 | AR163: 2.7569 | AS163: =AR163 -> 2.7569 | AT163: =AT162 -> 0.1206032663 | AU163: 0.4472361809 | AV163: 0.09296482412 | AX163: 2031-12-01 | AY163: =AY162 -> 0 | BB163: =BB162 -> 0 | BE163: =BE162 -> 0 | BH163: =BH162 -> 0 | BK163: =BK162 -> 0 | BN163: 0 | BR163: 2031-12-01 | BV163: 0
B164: =DATE(YEAR(B163),MONTH(B163)+1,DAY(B163)) -> 2032-01-01 | C164: =C163 -> 0 | D164: 0 | G164: 0 | H164: =H163 -> 0 | I164: 0 | J164: 0 | K164: 0 | M164: 2032-01-01 | N164: 1 | O164: 1 | P164: 1 | Q164: 1 | R164: 1 | S164: 5 | U164: 2032-01-01 | AC164: 2032-01-01 | AJ164: 2032-01-01 | AK164: =AK163 -> 2.7569 | AL164: 2.7569 | AM164: 0.1206032663 | AN164: 0.4472361809 | AO164: 0.09296482412 | AQ164: 2032-01-01 | AR164: 2.7569 | AS164: 2.7569 | AT164: 0.1206032663 | AU164: 0.4472361809 | AV164: 0.09296482412 | AX164: 2032-01-01 | AY164: 0 | BB164: 0 | BE164: 0 | BH164: 0 | BK164: 0 | BN164: 0 | BR164: 2032-01-01 | BV164: 0
B165: 2032-02-01 | C165: 0 | D165: 0 | G165: 0 | H165: 0 | I165: 0 | J165: 0 | K165: 0 | M165: 2032-02-01 | N165: 1 | O165: 1 | P165: 1 | Q165: 1 | R165: 1 | S165: 5 | U165: 2032-02-01 | AC165: 2032-02-01 | AJ165: 2032-02-01 | AK165: 2.7569 | AL165: 2.7569 | AM165: 0.1206032663 | AN165: 0.4472361809 | AO165: 0.09296482412 | AQ165: 2032-02-01 | AR165: 2.7569 | AS165: 2.7569 | AT165: 0.1206032663 | AU165: 0.4472361809 | AV165: 0.09296482412 | AX165: 2032-02-01 | AY165: 0 | BB165: 0 | BE165: 0 | BH165: 0 | BK165: 0 | BN165: 0 | BR165: 2032-02-01 | BV165: 0
B166: 2032-03-01 | C166: 0 | D166: 0 | G166: 0 | H166: 0 | I166: 0 | J166: 0 | K166: 0 | M166: 2032-03-01 | N166: 1 | O166: 1 | P166: 1 | Q166: 1 | R166: 1 | S166: 5 | U166: 2032-03-01 | AC166: 2032-03-01 | AJ166: 2032-03-01 | AK166: 2.7569 | AL166: 2.7569 | AM166: 0.1206032663 | AN166: 0.4472361809 | AO166: 0.09296482412 | AQ166: 2032-03-01 | AR166: 2.7569 | AS166: 2.7569 | AT166: 0.1206032663 | AU166: 0.4472361809 | AV166: 0.09296482412 | AX166: 2032-03-01 | AY166: 0 | BB166: 0 | BE166: 0 | BH166: 0 | BK166: 0 | BN166: 0 | BR166: 2032-03-01 | BV166: 0
B167: 2032-04-01 | C167: 0 | D167: 0 | G167: 0 | H167: 0 | I167: 0 | J167: 0 | K167: 0 | M167: 2032-04-01 | N167: 1 | O167: 1 | P167: 1 | Q167: 1 | R167: 1 | S167: 5 | U167: 2032-04-01 | AC167: 2032-04-01 | AJ167: 2032-04-01 | AK167: 2.7569 | AL167: 2.7569 | AM167: 0.1206032663 | AN167: 0.4472361809 | AO167: 0.09296482412 | AQ167: 2032-04-01 | AR167: 2.7569 | AS167: 2.7569 | AT167: 0.1206032663 | AU167: 0.4472361809 | AV167: 0.09296482412 | AX167: 2032-04-01 | AY167: 0 | BB167: 0 | BE167: 0 | BH167: 0 | BK167: 0 | BN167: 0 | BR167: 2032-04-01 | BV167: 0
B168: 2032-05-01 | C168: 0 | D168: 0 | G168: 0 | H168: 0 | I168: 0 | J168: 0 | K168: 0 | M168: 2032-05-01 | N168: 1 | O168: 1 | P168: 1 | Q168: 1 | R168: 1 | S168: 5 | U168: 2032-05-01 | AC168: 2032-05-01 | AJ168: 2032-05-01 | AK168: 2.7569 | AL168: 2.7569 | AM168: 0.1206032663 | AN168: 0.4472361809 | AO168: 0.09296482412 | AQ168: 2032-05-01 | AR168: 2.7569 | AS168: 2.7569 | AT168: 0.1206032663 | AU168: 0.4472361809 | AV168: 0.09296482412 | AX168: 2032-05-01 | AY168: 0 | BB168: 0 | BE168: 0 | BH168: 0 | BK168: 0 | BN168: 0 | BR168: 2032-05-01 | BV168: 0
B169: 2032-06-01 | C169: 0 | D169: 0 | G169: 0 | H169: 0 | I169: 0 | J169: 0 | K169: 0 | M169: 2032-06-01 | N169: 1 | O169: 1 | P169: 1 | Q169: 1 | R169: 1 | S169: 5 | U169: 2032-06-01 | AC169: 2032-06-01 | AJ169: 2032-06-01 | AK169: 2.7569 | AL169: 2.7569 | AM169: 0.1206032663 | AN169: 0.4472361809 | AO169: 0.09296482412 | AQ169: 2032-06-01 | AR169: 2.7569 | AS169: 2.7569 | AT169: 0.1206032663 | AU169: 0.4472361809 | AV169: 0.09296482412 | AX169: 2032-06-01 | AY169: 0 | BB169: 0 | BE169: 0 | BH169: 0 | BK169: 0 | BN169: 0 | BR169: 2032-06-01 | BV169: 0
B170: 2032-07-01 | C170: 0 | D170: 0 | G170: 0 | H170: 0 | I170: 0 | J170: 0 | K170: 0 | M170: 2032-07-01 | N170: 1 | O170: 1 | P170: 1 | Q170: 1 | R170: 1 | S170: 5 | U170: 2032-07-01 | AC170: 2032-07-01 | AJ170: 2032-07-01 | AK170: 2.7569 | AL170: 2.7569 | AM170: 0.1206032663 | AN170: 0.4472361809 | AO170: 0.09296482412 | AQ170: 2032-07-01 | AR170: 2.7569 | AS170: 2.7569 | AT170: 0.1206032663 | AU170: 0.4472361809 | AV170: 0.09296482412 | AX170: 2032-07-01 | AY170: 0 | BB170: 0 | BE170: 0 | BH170: 0 | BK170: 0 | BN170: 0 | BR170: 2032-07-01 | BV170: 0
B171: 2032-08-01 | C171: 0 | D171: 0 | G171: 0 | H171: 0 | I171: 0 | J171: 0 | K171: 0 | M171: 2032-08-01 | N171: 1 | O171: 1 | P171: 1 | Q171: 1 | R171: 1 | S171: 5 | U171: 2032-08-01 | AC171: 2032-08-01 | AJ171: 2032-08-01 | AK171: 2.7569 | AL171: 2.7569 | AM171: 0.1206032663 | AN171: 0.4472361809 | AO171: 0.09296482412 | AQ171: 2032-08-01 | AR171: 2.7569 | AS171: 2.7569 | AT171: 0.1206032663 | AU171: 0.4472361809 | AV171: 0.09296482412 | AX171: 2032-08-01 | AY171: 0 | BB171: 0 | BE171: 0 | BH171: 0 | BK171: 0 | BN171: 0 | BR171: 2032-08-01 | BV171: 0
B172: 2032-09-01 | C172: 0 | D172: 0 | G172: 0 | H172: 0 | I172: 0 | J172: 0 | K172: 0 | M172: 2032-09-01 | N172: 1 | O172: 1 | P172: 1 | Q172: 1 | R172: 1 | S172: 5 | U172: 2032-09-01 | AC172: 2032-09-01 | AJ172: 2032-09-01 | AK172: 2.7569 | AL172: 2.7569 | AM172: 0.1206032663 | AN172: 0.4472361809 | AO172: 0.09296482412 | AQ172: 2032-09-01 | AR172: 2.7569 | AS172: 2.7569 | AT172: 0.1206032663 | AU172: 0.4472361809 | AV172: 0.09296482412 | AX172: 2032-09-01 | AY172: 0 | BB172: 0 | BE172: 0 | BH172: 0 | BK172: 0 | BN172: 0 | BR172: 2032-09-01 | BV172: 0
B173: 2032-10-01 | C173: 0 | D173: 0 | G173: 0 | H173: 0 | I173: 0 | J173: 0 | K173: 0 | M173: 2032-10-01 | N173: 1 | O173: 1 | P173: 1 | Q173: 1 | R173: 1 | S173: 5 | U173: 2032-10-01 | AC173: 2032-10-01 | AJ173: 2032-10-01 | AK173: 2.7569 | AL173: 2.7569 | AM173: 0.1206032663 | AN173: 0.4472361809 | AO173: 0.09296482412 | AQ173: 2032-10-01 | AR173: 2.7569 | AS173: 2.7569 | AT173: 0.1206032663 | AU173: 0.4472361809 | AV173: 0.09296482412 | AX173: 2032-10-01 | AY173: 0 | BB173: 0 | BE173: 0 | BH173: 0 | BK173: 0 | BN173: 0 | BR173: 2032-10-01 | BV173: 0
B175: =B158 -> Bacia 1 | C175: R$ da Licitação corrigidos nos Dissídios Coletivos | K175: Ano 10 | M175: =B175 -> Bacia 1 | N175: R$ Salário Total Com Horas Extras e Adicional Noturno Pago Por Função (Sem inclusão de Encargos Sociais) - Valor de GFIP | S175: =K175 -> Ano 10 | U175: =M175 -> Bacia 1 | V175: Quantidade de Funcionários - Cálculo pela Folha | AA175: =S175 -> Ano 10 | AC175: =U175 -> Bacia 1 | AD175: Quantidade de Frota Operacional | AH175: =AA175 -> Ano 10 | AJ175: =AC175 -> Bacia 1 | AK175: FU POR FUNÇÃO | AO175: =AH175 -> Ano 10 | AQ175: =AJ175 -> Bacia 1 | AR175: FU FÍSICO PARA BENEFÍCIOS | AV175: =AO175 -> Ano 10 | AX175: =AQ175 -> Bacia 1 | AY175: Qtde. Funcionários - FÍSICO para Benefícios e FOLHA para Salários base de cálculo dos Enc.Sociais | BP175: =AV175 -> Ano 10 | BR175: =AX175 -> Bacia 1 | BS175: =BP175 -> Ano 10
B176: Mês | C176: R$ Salário Médio da Função (Sem Encargos) | M176: Mês | U176: Mês | V176: Inclusas todas as Horas Extras | AC176: Mês | AJ176: Mês | AK176: CÁLCULO SOBRE A FOLHA DE PAGAMENTO | AQ176: Mês | AX176: Mês | AY176: Motoristas | BB176: Cobradores | BE176: Controle Operacional | BH176: Manutenção | BK176: Administração | BN176: Total Geral | BR176: Mês | BS176: Cálculo Mot.Articulados | BV176: Qtde. Física de Motoristas | BY176: Cálculo R$ Mot.Artic. | CA176: R$
C177: Motoristas | E177: Qtde.Física de Mot. | G177: R$ Salário | H177: Cobradores | I177: Controle | J177: Manu- | K177: Admi- | M177: de | N177: Motoristas | O177: Cobradores | P177: Controle | Q177: Manutenção | R177: Administração | S177: R$ | V177: Motoristas | W177: Cobradores | X177: Controle | Y177: Manutenção | Z177: Administração | AA177: Qtde. | AC177: de | AD177: Motoristas | AE177: Cobradores | AF177: Controle | AG177: Manutenção | AH177: Administração | AJ177: de | AK177: Motoristas | AL177: Cobradores | AM177: Controle | AN177: Manutenção | AO177: Administração | AQ177: de | AR177: Motoristas | AS177: Cobradores | AT177: Controle | AU177: Manutenção | AV177: Administração | AX177: de | AY177: Físico | AZ177: Folha | BA177: Dif.Folha | BB177: Físico | BC177: Folha | BD177: Dif.Folha | BE177: Físico | BF177: Folha | BG177: Dif.Folha | BH177: Físico | BI177: Folha | BJ177: Dif.Folha | BK177: Físico | BL177: Folha | BM177: Dif.Folha | BN177: Físico | BO177: Folha | BP177: Dif.Folha | BR177: de | BS177: Frota | BT177: FU físico | BU177: Mot. | BV177: Mot. | BW177: Mot. | BX177: Mot. | BY177: R$ Mot. | BZ177: R$ Mot. | CA177: Total
B178: Ref. | C178: Diversos | D178: Artic. | E178: Div. | F178: Artic. | G178: Médio Mot. | I178: Operacional | J178: tenção | K178: nistração | M178: Ref. | N178: Diversos | P178: Operacional | S178: Total | U178: Ref. | X178: Operacional | AA178: Total | AC178: Ref. | AF178: Operacional | AJ178: Ref. | AM178: Operacional | AQ178: Ref. | AT178: Operacional | AX178: Ref. | BA178: (-) Físico | BD178: (-) Físico | BG178: (-) Físico | BJ178: (-) Físico | BM178: (-) Físico | BP178: (-) Físico | BR178: Ref. | BS178: Artic. | BT178: Mot.Div. | BU178: Artic. | BV178: Total | BW178: Diversos | BX178: Artic. | BY178: Diversos | BZ178: Articulados | CA178: Motoristas
B179: =DATE(YEAR(B173),MONTH(B173)+1,DAY(B173)) -> 2032-11-01 | C179: =C173 -> 0 | D179: =D173 -> 0 | E179: =BW179 ->  | G179: =IF(C179>0,((C179*E179)+(D179*F179))/(E179+F179),0) -> 0 | H179: =H173 -> 0 | I179: =I173 -> 0 | J179: =J173 -> 0 | K179: =K173 -> 0 | M179: =B179 -> 2032-11-01 | N179: =N173 -> 1 | O179: =O173 -> 1 | P179: =P173 -> 1 | Q179: =Q173 -> 1 | R179: =R173 -> 1 | S179: =SUM(N179:R179) -> 5 | U179: =M179 -> 2032-11-01 | V179: =N179/G179 ->  | AA179: =SUM(V179:Z179) ->  | AC179: =U179 -> 2032-11-01 | AJ179: =AC179 -> 2032-11-01 | AK179: =AK173 -> 2.7569 | AL179: =AK179 -> 2.7569 | AM179: =AM173 -> 0.1206032663 | AN179: =AN173 -> 0.4472361809 | AO179: =AO173 -> 0.09296482412 | AQ179: =AJ179 -> 2032-11-01 | AR179: =AK179 -> 2.7569 | AS179: =AR179 -> 2.7569 | AT179: =AT173 -> 0.1206032663 | AU179: =AU173 -> 0.4472361809 | AV179: =AV173 -> 0.09296482412 | AX179: =AQ179 -> 2032-11-01 | AY179: =AY173 -> 0 | AZ179: =V179 ->  | BA179: =AZ179-AY179 ->  | BB179: =BB173 -> 0 | BC179: =W179 ->  | BD179: =BC179-BB179 ->  | BE179: =BE173 -> 0 | BF179: =X179 ->  | BG179: =BF179-BE179 ->  | BH179: =BH173 -> 0 | BI179: =Y179 ->  | BJ179: =BI179-BH179 ->  | BK179: =BK173 -> 0 | BL179: =Z179 ->  | BM179: =BL179-BK179 ->  | BN179: =AY179+BB179+BE179+BH179+BK179 -> 0 | BP179: =BO179-BN179 ->  | BR179: =AX179 -> 2032-11-01 | BT179: =AY179/AD179 ->  | BU179: =BT179*BS179 ->  | BV179: =AY179 -> 0 | BW179: =BV179-BX179 ->  | BX179: =BU179 ->  | BY179: =N179/BV179*BW179 ->  | BZ179: =N179/BV179*BX179 ->  | CA179: =BY179+BZ179 -> 
B180: =DATE(YEAR(B179),MONTH(B179)+1,DAY(B179)) -> 2032-12-01 | C180: =C179 -> 0 | D180: =D179 -> 0 | G180: 0 | H180: =H179 -> 0 | I180: =I179 -> 0 | J180: =J179 -> 0 | K180: =K179 -> 0 | M180: 2032-12-01 | N180: =N179 -> 1 | O180: 1 | P180: 1 | Q180: 1 | R180: 1 | S180: 5 | U180: 2032-12-01 | AC180: 2032-12-01 | AJ180: 2032-12-01 | AK180: =AK179 -> 2.7569 | AL180: =AK180 -> 2.7569 | AM180: =AM179 -> 0.1206032663 | AN180: 0.4472361809 | AO180: 0.09296482412 | AQ180: 2032-12-01 | AR180: 2.7569 | AS180: =AR180 -> 2.7569 | AT180: =AT179 -> 0.1206032663 | AU180: 0.4472361809 | AV180: 0.09296482412 | AX180: 2032-12-01 | AY180: =AY179 -> 0 | BB180: =BB179 -> 0 | BE180: =BE179 -> 0 | BH180: =BH179 -> 0 | BK180: =BK179 -> 0 | BN180: 0 | BR180: 2032-12-01 | BV180: 0
B181: 2033-01-01 | C181: =C180 -> 0 | D181: =D180 -> 0 | G181: 0 | H181: =H180 -> 0 | I181: 0 | J181: 0 | K181: 0 | M181: 2033-01-01 | N181: 1 | O181: 1 | P181: 1 | Q181: 1 | R181: 1 | S181: 5 | U181: 2033-01-01 | AC181: 2033-01-01 | AJ181: 2033-01-01 | AK181: =AK180 -> 2.7569 | AL181: 2.7569 | AM181: 0.1206032663 | AN181: 0.4472361809 | AO181: 0.09296482412 | AQ181: 2033-01-01 | AR181: 2.7569 | AS181: 2.7569 | AT181: 0.1206032663 | AU181: 0.4472361809 | AV181: 0.09296482412 | AX181: 2033-01-01 | AY181: 0 | BB181: 0 | BE181: 0 | BH181: 0 | BK181: 0 | BN181: 0 | BR181: 2033-01-01 | BV181: 0
B182: 2033-02-01 | C182: 0 | D182: 0 | G182: 0 | H182: 0 | I182: 0 | J182: 0 | K182: 0 | M182: 2033-02-01 | N182: 1 | O182: 1 | P182: 1 | Q182: 1 | R182: 1 | S182: 5 | U182: 2033-02-01 | AC182: 2033-02-01 | AJ182: 2033-02-01 | AK182: 2.7569 | AL182: 2.7569 | AM182: 0.1206032663 | AN182: 0.4472361809 | AO182: 0.09296482412 | AQ182: 2033-02-01 | AR182: 2.7569 | AS182: 2.7569 | AT182: 0.1206032663 | AU182: =AU181 -> 0.4472361809 | AV182: 0.09296482412 | AX182: 2033-02-01 | AY182: 0 | BB182: 0 | BE182: 0 | BH182: 0 | BK182: 0 | BN182: 0 | BR182: 2033-02-01 | BV182: 0
B183: 2033-03-01 | C183: 0 | D183: 0 | G183: 0 | H183: 0 | I183: 0 | J183: 0 | K183: 0 | M183: 2033-03-01 | N183: 1 | O183: 1 | P183: 1 | Q183: 1 | R183: 1 | S183: 5 | U183: 2033-03-01 | AC183: 2033-03-01 | AJ183: 2033-03-01 | AK183: 2.7569 | AL183: 2.7569 | AM183: 0.1206032663 | AN183: 0.4472361809 | AO183: 0.09296482412 | AQ183: 2033-03-01 | AR183: 2.7569 | AS183: 2.7569 | AT183: 0.1206032663 | AU183: 0.4472361809 | AV183: 0.09296482412 | AX183: 2033-03-01 | AY183: 0 | BB183: 0 | BE183: 0 | BH183: 0 | BK183: 0 | BN183: 0 | BR183: 2033-03-01 | BV183: 0
B184: 2033-04-01 | C184: 0 | D184: 0 | G184: 0 | H184: 0 | I184: 0 | J184: 0 | K184: 0 | M184: 2033-04-01 | N184: 1 | O184: 1 | P184: 1 | Q184: 1 | R184: 1 | S184: 5 | U184: 2033-04-01 | AC184: 2033-04-01 | AJ184: 2033-04-01 | AK184: 2.7569 | AL184: 2.7569 | AM184: 0.1206032663 | AN184: 0.4472361809 | AO184: 0.09296482412 | AQ184: 2033-04-01 | AR184: 2.7569 | AS184: 2.7569 | AT184: 0.1206032663 | AU184: 0.4472361809 | AV184: 0.09296482412 | AX184: 2033-04-01 | AY184: 0 | BB184: 0 | BE184: 0 | BH184: 0 | BK184: 0 | BN184: 0 | BR184: 2033-04-01 | BV184: 0
B185: 2033-05-01 | C185: 0 | D185: 0 | G185: 0 | H185: 0 | I185: 0 | J185: 0 | K185: 0 | M185: 2033-05-01 | N185: 1 | O185: 1 | P185: 1 | Q185: 1 | R185: 1 | S185: 5 | U185: 2033-05-01 | AC185: 2033-05-01 | AJ185: 2033-05-01 | AK185: 2.7569 | AL185: 2.7569 | AM185: 0.1206032663 | AN185: 0.4472361809 | AO185: 0.09296482412 | AQ185: 2033-05-01 | AR185: 2.7569 | AS185: 2.7569 | AT185: 0.1206032663 | AU185: 0.4472361809 | AV185: 0.09296482412 | AX185: 2033-05-01 | AY185: 0 | BB185: 0 | BE185: 0 | BH185: 0 | BK185: 0 | BN185: 0 | BR185: 2033-05-01 | BV185: 0
B186: 2033-06-01 | C186: 0 | D186: 0 | G186: 0 | H186: 0 | I186: 0 | J186: 0 | K186: 0 | M186: 2033-06-01 | N186: 1 | O186: 1 | P186: 1 | Q186: 1 | R186: 1 | S186: 5 | U186: 2033-06-01 | AC186: 2033-06-01 | AJ186: 2033-06-01 | AK186: 2.7569 | AL186: 2.7569 | AM186: 0.1206032663 | AN186: 0.4472361809 | AO186: 0.09296482412 | AQ186: 2033-06-01 | AR186: 2.7569 | AS186: 2.7569 | AT186: 0.1206032663 | AU186: 0.4472361809 | AV186: =AV185 -> 0.09296482412 | AX186: 2033-06-01 | AY186: 0 | BB186: 0 | BE186: 0 | BH186: 0 | BK186: 0 | BN186: 0 | BR186: 2033-06-01 | BV186: 0
B187: 2033-07-01 | C187: 0 | D187: 0 | G187: 0 | H187: 0 | I187: 0 | J187: 0 | K187: 0 | M187: 2033-07-01 | N187: 1 | O187: 1 | P187: 1 | Q187: 1 | R187: 1 | S187: 5 | U187: 2033-07-01 | AC187: 2033-07-01 | AJ187: 2033-07-01 | AK187: 2.7569 | AL187: 2.7569 | AM187: 0.1206032663 | AN187: 0.4472361809 | AO187: 0.09296482412 | AQ187: 2033-07-01 | AR187: 2.7569 | AS187: 2.7569 | AT187: 0.1206032663 | AU187: 0.4472361809 | AV187: 0.09296482412 | AX187: 2033-07-01 | AY187: 0 | BB187: 0 | BE187: 0 | BH187: 0 | BK187: 0 | BN187: 0 | BR187: 2033-07-01 | BV187: 0
B188: 2033-08-01 | C188: 0 | D188: 0 | G188: 0 | H188: 0 | I188: 0 | J188: 0 | K188: 0 | M188: 2033-08-01 | N188: 1 | O188: 1 | P188: 1 | Q188: 1 | R188: 1 | S188: 5 | U188: 2033-08-01 | AC188: 2033-08-01 | AJ188: 2033-08-01 | AK188: 2.7569 | AL188: 2.7569 | AM188: 0.1206032663 | AN188: 0.4472361809 | AO188: 0.09296482412 | AQ188: 2033-08-01 | AR188: 2.7569 | AS188: 2.7569 | AT188: 0.1206032663 | AU188: 0.4472361809 | AV188: 0.09296482412 | AX188: 2033-08-01 | AY188: 0 | BB188: 0 | BE188: 0 | BH188: 0 | BK188: 0 | BN188: 0 | BR188: 2033-08-01 | BV188: 0
B189: 2033-09-01 | C189: 0 | D189: 0 | G189: 0 | H189: 0 | I189: 0 | J189: 0 | K189: 0 | M189: 2033-09-01 | N189: 1 | O189: 1 | P189: 1 | Q189: 1 | R189: 1 | S189: 5 | U189: 2033-09-01 | AC189: 2033-09-01 | AJ189: 2033-09-01 | AK189: 2.7569 | AL189: 2.7569 | AM189: 0.1206032663 | AN189: 0.4472361809 | AO189: 0.09296482412 | AQ189: 2033-09-01 | AR189: 2.7569 | AS189: 2.7569 | AT189: 0.1206032663 | AU189: 0.4472361809 | AV189: 0.09296482412 | AX189: 2033-09-01 | AY189: 0 | BB189: 0 | BE189: 0 | BH189: 0 | BK189: 0 | BN189: 0 | BR189: 2033-09-01 | BV189: 0
B190: 2033-10-01 | C190: 0 | D190: 0 | G190: 0 | H190: 0 | I190: 0 | J190: 0 | K190: 0 | M190: 2033-10-01 | N190: 1 | O190: 1 | P190: 1 | Q190: 1 | R190: 1 | S190: 5 | U190: 2033-10-01 | V190: =N190/G190 ->  | Z190: =R190/K190 ->  | AC190: 2033-10-01 | AJ190: 2033-10-01 | AK190: 2.7569 | AL190: 2.7569 | AM190: 0.1206032663 | AN190: 0.4472361809 | AO190: 0.09296482412 | AQ190: 2033-10-01 | AR190: 2.7569 | AS190: 2.7569 | AT190: 0.1206032663 | AU190: 0.4472361809 | AV190: 0.09296482412 | AX190: 2033-10-01 | AY190: 0 | BB190: 0 | BE190: 0 | BH190: 0 | BK190: 0 | BN190: =AY190+BB190+BE190+BH190+BK190 -> 0 | BO190: =AZ190+BC190+BF190+BI190+BL190 ->  | BR190: 2033-10-01 | BV190: 0
AK192: 2.9031

Sheet Plan2 R$ Pessoal
B2: Planilha 2 - Demonstração do Custo com Pessoal até 31/12/2014 | M2: PRACICABANA
B3: Composição do Custo mensal com Pessoal | L3: Bacia/Lote: | M3: 1
I4: até 12/2024 | J4: 0.4108
B5: Funções | C5: Cargo | D5: Fator de | E5: Qtde. de | F5: Salário Base | G5: Total Salário | H5: Horas extras e | I5: % Encargos | J5: Encargos | K5: Salário + Enc. | L5: Benefícios | M5: Total
D6: Utilização | E6: Funcionários | F6: (R$/mês) | G6: R$ | H6: Ad.noturno | I6: aplicáveis | J6: R$ | K6: R$/mês | L6: R$/mês | M6: R$/mês
B8: Motorista | C8: Motoristas (Miniônibus) | D8: 2.45 | E8: =(D8*Q.Frota!E5)-0.00043881 -> 146.9995612 | F8: 1506.43 | G8: =E8*F8 -> 221444.549 | H8: =G8*5.12423539% -> 11347.33995 | I8: =Enc.Soc.!B40 -> 0.5656744065 | J8: =(G8+H8)*I8 -> 131684.4136 | K8: =G8+H8+J8 -> 364476.3025 | L8: =E8*Benefícios!E13 -> 90181.2908 | M8: =K8+L8 -> 454657.5933
C9: Motoristas (Ônibus Básicos) | D9: 2.45 | E9: =(D9*Q.Frota!H5)-0.0022447 -> 757.0477553 | F9: =F8 -> 1506.43 | G9: =E9*F9 -> 1140439.45 | H9: =G9*5.12423347% -> 58438.78 | I9: =I8 -> 0.5656744065 | J9: =(G9+H9)*I9 -> 678174.7312 | K9: =G9+H9+J9 -> 1877052.961 | L9: =E9*Benefícios!E13 -> 464433.6569 | M9: =K9+L9 -> 2341486.618
C10: Motoristas (Ônibus Articulados) | D10: 2.45 | E10: =D10*Q.Frota!N5-0.000204 -> 71.049796 | F10: =F9 -> 1506.43 | G10: =E10*F10 -> 107031.5442 | H10: =G10*5.124237211% -> 5484.550215 | I10: =I9 -> 0.5656744065 | J10: =(G10+H10)*I10 -> 63647.47492 | K10: =G10+H10+J10 -> 176163.5693 | L10: =E10*Benefícios!E13 -> 43587.62885 | M10: =K10+L10 -> 219751.1982
C11: Sub-total Motoristas | D11: =D8 -> 2.45 | E11: =SUM(E8:E10) -> 975.0971125 | G11: =SUM(G8:G10) -> 1468915.543 | H11: =SUM(H8:H10) -> 75270.67016 | J11: =SUM(J8:J10) -> 873506.6197 | K11: =SUM(K8:K10) -> 2417692.833 | L11: =SUM(L8:L10) -> 598202.5766 | M11: =SUM(M8:M10) -> 3015895.41
B13: Cobrador | C13: Cobradores ônibus básico e Artic. | D13: =D8 -> 2.45 | E13: =D13*(Q.Frota!H5+Q.Frota!N5)-0.0029927 -> 828.0970073 | F13: 787.57 | G13: =E13*F13 -> 652184.36 | H13: =G13*4.06314558% -> 26499.2 | I13: =I10 -> 0.5656744065 | J13: =(G13+H13)*I13 -> 383913.92 | K13: =G13+H13+J13 -> 1062597.48 | L13: =E13*Benefícios!E13+L15 -> 508020.952 | M13: =K13+L13 -> 1570618.432
C14: Sub-total Cobradores | D14: =D13 -> 2.45 | E14: 828.0970073 | F14: 787.57 | G14: 652184.36 | H14: 26499.2 | I14: 0.5656744065 | J14: 383913.92 | K14: 1062597.48 | L14: 508020.952 | M14: 1570618.432
B16: Controle | C16: Fiscal | D16: =E16/Q.Frota!$T$5 -> 0.09547763819 | E16: =38+0.0001 -> 38.0001 | F16: 1536.55 | G16: =E16*F16 -> 58389.05366 | H16: =G16*0.500008135% -> 291.9500182 | I16: =I13 -> 0.5656744065 | J16: =(G16+H16)*I16 -> 33194.34192 | K16: =G16+H16+J16 -> 91875.3456 | L16: =E16*Benefícios!$E$13-0.13 -> 23312.17135 | M16: =K16+L16 -> 115187.5169
B17: operacional | C17: Inspetores de Tráfego | D17: =E17/Q.Frota!$T$5 -> 0.007537688442 | E17: 3 | F17: 2519.59 | G17: 7558.77 | H17: 37.79446491 | I17: =I16 -> 0.5656744065 | J17: 4297.182095 | K17: 11893.74656 | L17: =E17*Benefícios!$E$13 -> 1840.44 | M17: 13734.18656
C18: Chefe de Tráfego | D18: =E18/Q.Frota!$T$5 -> 0.002512562814 | E18: 1 | F18: 3301.13 | G18: 3301.13 | H18: 16.50591855 | I18: =I17 -> 0.5656744065 | J18: 1876.701729 | K18: 5194.337648 | L18: =E18*Benefícios!$E$13-0.004 -> 613.476 | M18: 5807.813648
C19: Instrutor | D19: =E19/Q.Frota!$T$5 -> 0.002512562814 | E19: 1 | F19: 1650.56 | G19: 1650.56 | H19: 8.252934273 | I19: =I18 -> 0.5656744065 | J19: 938.3480221 | K19: 2597.160956 | L19: =E19*Benefícios!$E$13 -> 613.48 | M19: 3210.640956
C20: Programadores | D20: =E20/Q.Frota!$T$5 -> 0.002512562814 | E20: 1 | F20: 1320.45 | G20: 1320.45 | H20: 6.602357419 | I20: =I19+0.000044% -> 0.5656748465 | J20: 750.6801386 | K20: 2077.732496 | L20: =E20*Benefícios!$E$13 -> 613.48 | M20: 2691.212496
C21: Escaladores | D21: =E21/Q.Frota!$T$5 -> 0.005025125628 | E21: 2 | F21: 1320.45 | G21: 2640.9 | H21: 13.20471484 | I21: =I20 -> 0.5656748465 | J21: 1501.360277 | K21: 4155.464992 | L21: =E21*Benefícios!$E$13 -> 1226.96 | M21: 5382.424992
C22: Auxiliares | D22: =E22/Q.Frota!$T$5 -> 0.005025125628 | E22: 2 | F22: 967.4 | G22: 1934.8 | H22: 9.674157396 | I22: =I21 -> 0.5656748465 | J22: 1099.94012 | K22: 3044.414278 | L22: =E22*Benefícios!$E$13 -> 1226.96 | M22: 4271.374278
C23: Sub-total Controle Operac. | D23: =SUM(D16:D22) -> 0.1206032663 | E23: =SUM(E16:E22) -> 48.0001 | F23: =G23/E23 -> 1599.906326 | G23: =SUM(G16:G22) -> 76795.66365 | H23: =SUM(H16:H22) -> 383.9845656 | I23: =I22 -> 0.5656748465 | J23: =SUM(J16:J22) -> 43658.55431 | K23: =SUM(K16:K22) -> 120838.2025 | L23: =SUM(L16:L22) -> 29446.96735 | M23: =SUM(M16:M22) -> 150285.1699
B25: Manutenção | C25: 1/2 Oficial Eletricista | D25: =E25/Q.Frota!$T$5 -> 0.01507537688 | E25: 6 | F25: 925.9333333 | G25: =E25*F25 -> 5555.6 | H25: 27.78 | I25: =I23 -> 0.5656748465 | J25: =(G25+H25)*I25 -> 3158.377624 | K25: =G25+H25+J25 -> 8741.757624 | L25: =E25*Benefícios!$E$13 -> 3680.88 | M25: =K25+L25 -> 12422.63762
C26: 1/2 Oficial Funileiro | D26: =E26/Q.Frota!$T$5 -> 0.01507537688 | E26: 6 | F26: 925.9333333 | G26: 5555.6 | H26: 27.78 | I26: =I25 -> 0.5656748465 | J26: 3158.377624 | K26: 8741.757624 | L26: =E26*Benefícios!$E$13 -> 3680.88 | M26: 12422.63762
C27: Abastecedor | D27: =E27/Q.Frota!$T$5 -> 0.03015075377 | E27: 12 | F27: 1294.515 | G27: 15534.18 | H27: =77.67 -> 77.67 | I27: 0.5656748465 | J27: 8831.230852 | K27: 24443.08085 | L27: =E27*Benefícios!$E$13 -> 7361.76 | M27: 31804.84085
C28: Auxiliar Almoxarife | D28: =E28/Q.Frota!$T$5 -> 0.02010050251 | E28: 8 | F28: 900.69125 | G28: 7205.53 | H28: =36.03 -> 36.03 | I28: 0.5656748465 | J28: 4096.368341 | K28: 11337.92834 | L28: =E28*Benefícios!$E$13 -> 4907.84 | M28: 16245.76834
C29: Auxiliar de Serviços Gerais | D29: =E29/Q.Frota!$T$5 -> 0.07286432161 | E29: 29 | F29: 748.2555172 | G29: 21699.41 | H29: =108.5 -> 108.5 | I29: 0.5656748465 | J29: 12336.18614 | K29: 34144.09614 | L29: =E29*Benefícios!$E$13 -> 17790.92 | M29: 51935.01614
C30: Borracheiro | D30: =E30/Q.Frota!$T$5 -> 0.01005025126 | E30: 4 | F30: 1275.7325 | G30: 5102.93 | H30: 25.51 | I30: 0.5656748465 | J30: 2901.02951 | K30: 8029.46951 | L30: =E30*Benefícios!$E$13 -> 2453.92 | M30: 10483.38951
C31: Comprador / Almoxarife | D31: =E31/Q.Frota!$T$5 -> 0.005025125628 | E31: 2 | F31: 1392.46 | G31: 2784.92 | H31: 13.92 | I31: 0.5656748465 | J31: 1583.233387 | K31: 4382.073387 | L31: =E31*Benefícios!$E$13 -> 1226.96 | M31: 5609.033387
C32: Controlador de manutenção | D32: =E32/Q.Frota!$T$5 -> 0.01005025126 | E32: 4 | F32: 2583.4625 | G32: 10333.85 | H32: 51.67 | I32: 0.5656748465 | J32: 5874.827432 | K32: 16260.34743 | L32: =E32*Benefícios!$E$13 -> 2453.92 | M32: 18714.26743
C33: Eletricista (A e B) | D33: =E33/Q.Frota!$T$5 -> 0.02010050251 | E33: 8 | F33: 1637.72625 | G33: 13101.81 | H33: 65.51 | I33: 0.5656748465 | J33: 7448.42172 | K33: 20615.74172 | L33: =E33*Benefícios!$E$13 -> 4907.84 | M33: 25523.58172
C34: Eletrônico | D34: =E34/Q.Frota!$T$5 -> 0.01005025126 | E34: 4 | F34: 1637.7275 | G34: 6550.91 | H34: 32.75 | I34: 0.5656748465 | J34: 3724.21086 | K34: 10307.87086 | L34: =E34*Benefícios!$E$13 -> 2453.92 | M34: 12761.79086
C35: Funileiro (A e B) | D35: =E35/Q.Frota!$T$5 -> 0.02010050251 | E35: 8 | F35: 1427.76 | G35: 11422.08 | H35: 57.11 | I35: 0.5656748465 | J35: 6493.489041 | K35: 17972.67904 | L35: =E35*Benefícios!$E$13 -> 4907.84 | M35: 22880.51904
C36: Chefe de Manutenção | D36: =E36/Q.Frota!$T$5 -> 0.005025125628 | E36: 2 | F36: 3301.13 | G36: 6602.26 | H36: 33.01 | I36: 0.5656748465 | J36: 3753.405339 | K36: 10388.67534 | L36: =E36*Benefícios!$E$13 -> 1226.96 | M36: 11615.63534
C37: Lavador | D37: =E37/Q.Frota!$T$5 -> 0.03015075377 | E37: 12 | F37: 748.2558333 | G37: 8979.07 | H37: =44.9 -> 44.9 | I37: 0.5656748465 | J37: 5104.632844 | K37: 14128.60284 | L37: =E37*Benefícios!$E$13 -> 7361.76 | M37: 21490.36284
C38: Lubrificador | D38: =E38/Q.Frota!$T$5 -> 0.02010050251 | E38: 8 | F38: 1196.8025 | G38: 9574.42 | H38: 47.87 | I38: 0.5656748465 | J38: 5443.087419 | K38: 15065.37742 | L38: =E38*Benefícios!$E$13 -> 4907.84 | M38: 19973.21742
C39: Manobrista | D39: =E39/Q.Frota!$T$5 -> 0.05778894472 | E39: 23 | F39: 1536.553913 | G39: 35340.74 | H39: =176.7 -> 176.7 | I39: 0.5656748465 | J39: 20091.32242 | K39: 55608.76242 | L39: =E39*Benefícios!$E$13 -> 14110.04 | M39: 69718.80242
C40: Mecânico (A, B e C) | D40: =E40/Q.Frota!$T$5 -> 0.04020100503 | E40: 16 | F40: 1751.10875 | G40: 28017.74 | H40: =140.09 -> 140.09 | I40: 0.5656748465 | J40: 15928.17616 | K40: 44086.00616 | L40: =E40*Benefícios!$E$13 -> 9815.68 | M40: 53901.68616
C41: Mecânico de Revisão | D41: =E41/Q.Frota!$T$5 -> 0.01507537688 | E41: 6 | F41: 1751.108333 | G41: 10506.65 | H41: =52.53 -> 52.53 | I41: 0.5656748465 | J41: 5973.062525 | K41: 16532.24253 | L41: =E41*Benefícios!$E$13 -> 3680.88 | M41: 20213.12253
C42: Mecânico Montador | D42: =E42/Q.Frota!$T$5 -> 0.01005025126 | E42: 4 | F42: 1751.11 | G42: 7004.44 | H42: =35.02 -> 35.02 | I42: 0.5656748465 | J42: 3982.045455 | K42: 11021.50545 | L42: =E42*Benefícios!$E$13 -> 2453.92 | M42: 13475.42545
C43: Moleiro | D43: =E43/Q.Frota!$T$5 -> 0.02010050251 | E43: 8 | F43: 1259.7875 | G43: 10078.3 | H43: 50.39 | I43: 0.5656748465 | J43: 5729.545161 | K43: 15858.23516 | L43: =E43*Benefícios!$E$13 -> 4907.84 | M43: 20766.07516
C44: Pintor | D44: =E44/Q.Frota!$T$5 -> 0.02010050251 | E44: 8 | F44: 1427.76 | G44: 11422.08 | H44: 57.11 | I44: 0.5656748465 | J44: 6493.489041 | K44: 17972.67904 | L44: =E44*Benefícios!$E$13 -> 4907.84 | M44: 22880.51904
C45: Sub-total Manutenção | D45: =SUM(D25:D44) -> 0.4472361809 | E45: =SUM(E25:E44) -> 178 | F45: =G45/E45 -> 1305.463596 | G45: =SUM(G25:G44) -> 232372.52 | H45: =SUM(H25:H44) -> 1161.85 | J45: =SUM(J25:J44) -> 132104.5189 | K45: =SUM(K25:K44) -> 365638.8889 | L45: =SUM(L25:L44) -> 109199.44 | M45: =SUM(M25:M44) -> 474838.3289
B47: Total | D47: =D11+D14+D23+D45 -> 5.467839447 | E47: =E11+E14+E23+E45 -> 2029.19422 | G47: =G11+G14+G23+G45-0.01 -> 2430268.077 | H47: =H11+H14+H23+H45 -> 103315.7047 | J47: =J11+J14+J23+J45 -> 1433183.613 | K47: =K11+K14+K23+K45 -> 3966767.405 | L47: =L11+L14+L23+L45 -> 1244869.936 | M47: =M11+M14+M23+M45+0.01 -> 5211637.35
B51: Planilha 2 - Demonstração do Custo com Pessoal após 31/12/2014 | M51: PRACICABANA
B52: Composição do Custo mensal com Pessoal | L52: Bacia/Lote: | M52: 1
B54: Funções | C54: Cargo | D54: Fator de | E54: Qtde. de | F54: Salário Base | G54: Total Salário | H54: Horas extras e | I54: % Encargos | J54: Encargos | K54: Salário + Enc. | L54: Benefícios | M54: Total
D55: Utilização | E55: Funcionários | F55: (R$/mês) | G55: R$ | H55: Ad.noturno | I55: aplicáveis | J55: R$ | K55: R$/mês | L55: R$/mês | M55: R$/mês
B57: Motorista | C57: Motoristas (Miniônibus) | D57: 2.45 | E57: =E8 -> 146.9995612 | F57: 1506.43 | G57: =E57*F57 -> 221444.549 | H57: =G57*5.12423539% -> 11347.33995 | I57: =Enc.Soc.!B85 -> 0.565678869 | J57: =(G57+H57)*I57 -> 131685.4524 | K57: =G57+H57+J57 -> 364477.3413 | L57: =E57*Benefícios!E13 -> 90181.2908 | M57: =K57+L57 -> 454658.6321
C58: Motoristas (Ônibus Básicos) | D58: 2.45 | E58: =E9 -> 757.0477553 | F58: =F57 -> 1506.43 | G58: =E58*F58 -> 1140439.45 | H58: =G58*5.12423347% -> 58438.78 | I58: =I57 -> 0.565678869 | J58: =(G58+H58)*I58 -> 678180.0812 | K58: =G58+H58+J58 -> 1877058.311 | L58: =E58*Benefícios!E13 -> 464433.6569 | M58: =K58+L58 -> 2341491.968
C59: Motoristas (Ônibus Articulados) | D59: 2.45 | E59: =E10 -> 71.049796 | F59: =F58 -> 1506.43 | G59: =E59*F59 -> 107031.5442 | H59: =G59*5.124237211% -> 5484.550215 | I59: =I58 -> 0.565678869 | J59: =(G59+H59)*I59 -> 63647.97703 | K59: =G59+H59+J59 -> 176164.0714 | L59: =E59*Benefícios!E13 -> 43587.62885 | M59: =K59+L59 -> 219751.7003
C60: Sub-total Motoristas | D60: =D57 -> 2.45 | E60: =SUM(E57:E59) -> 975.0971125 | G60: =SUM(G57:G59) -> 1468915.543 | H60: =SUM(H57:H59) -> 75270.67016 | J60: =SUM(J57:J59) -> 873513.5107 | K60: =SUM(K57:K59) -> 2417699.724 | L60: =SUM(L57:L59) -> 598202.5766 | M60: =SUM(M57:M59) -> 3015902.301
B62: Cobrador | C62: Cobradores ônibus básico e Artic. | D62: =D57 -> 2.45 | E62: =E13 -> 828.0970073 | F62: 787.57 | G62: =E62*F62 -> 652184.36 | H62: =G62*4.06314558% -> 26499.2 | I62: =I59 -> 0.565678869 | J62: =(G62+H62)*I62 -> 383916.9486 | K62: =G62+H62+J62 -> 1062600.509 | L62: =E62*Benefícios!E13+L64 -> 508021.282 | M62: =K62+L62 -> 1570621.791
C63: Sub-total Cobradores | D63: =D62 -> 2.45 | E63: 828.0970073 | F63: 787.57 | G63: 652184.36 | H63: 26499.2 | I63: 0.565678869 | J63: 383916.9486 | K63: 1062600.509 | L63: 508021.282 | M63: 1570621.791
L64: 0.33
B65: Controle | C65: Fiscal | D65: =E65/Q.Frota!$T$5 -> 0.09547763819 | E65: =38+0.0001 -> 38.0001 | F65: 1536.55 | G65: =E65*F65 -> 58389.05366 | H65: =G65*0.500008135% -> 291.9500182 | I65: =I62 -> 0.565678869 | J65: =(G65+H65)*I65 -> 33194.60379 | K65: =G65+H65+J65 -> 91875.60746 | L65: =E65*Benefícios!$E$13 -> 23312.30135 | M65: =K65+L65 -> 115187.9088
B66: operacional | C66: Inspetores de Tráfego | D66: =E66/Q.Frota!$T$5 -> 0.007537688442 | E66: 3 | F66: 2519.59 | G66: 7558.77 | H66: 37.79446491 | I66: =I65 -> 0.565678869 | J66: 4297.215995 | K66: =G66+H66+J66 -> 11893.78046 | L66: =E66*Benefícios!$E$13 -> 1840.44 | M66: 13734.22046
C67: Chefe de Tráfego | D67: =E67/Q.Frota!$T$5 -> 0.002512562814 | E67: 1 | F67: 3301.13 | G67: 3301.13 | H67: 16.50591855 | I67: =I66 -> 0.565678869 | J67: 1876.716534 | K67: 5194.352453 | L67: =E67*Benefícios!$E$13 -> 613.48 | M67: 5807.832453
C68: Instrutor | D68: =E68/Q.Frota!$T$5 -> 0.002512562814 | E68: 1 | F68: 1650.56 | G68: 1650.56 | H68: 8.252934273 | I68: =I67 -> 0.565678869 | J68: 938.3554245 | K68: 2597.168359 | L68: =E68*Benefícios!$E$13 -> 613.48 | M68: 3210.648359
C69: Programadores | D69: =E69/Q.Frota!$T$5 -> 0.002512562814 | E69: 1 | F69: 1320.45 | G69: 1320.45 | H69: 6.602357419 | I69: =I68+0.000044% -> 0.565679309 | J69: 750.6860605 | K69: 2077.738418 | L69: =E69*Benefícios!$E$13 -> 613.48 | M69: 2691.218418
C70: Escaladores | D70: =E70/Q.Frota!$T$5 -> 0.005025125628 | E70: 2 | F70: 1320.45 | G70: 2640.9 | H70: 13.20471484 | I70: =I69 -> 0.565679309 | J70: 1501.372121 | K70: 4155.476836 | L70: =E70*Benefícios!$E$13 -> 1226.96 | M70: 5382.436836
C71: Auxiliares | D71: =E71/Q.Frota!$T$5 -> 0.005025125628 | E71: 2 | F71: 967.4 | G71: 1934.8 | H71: 9.674157396 | I71: =I70 -> 0.565679309 | J71: 1099.948798 | K71: 3044.422955 | L71: =E71*Benefícios!$E$13 -> 1226.96 | M71: 4271.382955
C72: Sub-total Controle Operac. | D72: =SUM(D65:D71) -> 0.1206032663 | E72: =SUM(E65:E71) -> 48.0001 | F72: =G72/E72 -> 1599.906326 | G72: =SUM(G65:G71) -> 76795.66365 | H72: =SUM(H65:H71) -> 383.9845656 | I72: =I71 -> 0.565679309 | J72: =SUM(J65:J71) -> 43658.89872 | K72: =SUM(K65:K71) -> 120838.5469 | L72: =SUM(L65:L71) -> 29447.10135 | M72: =SUM(M65:M71) -> 150285.6483
B74: Manutenção | C74: 1/2 Oficial Eletricista | D74: =E74/Q.Frota!$T$5 -> 0.01507537688 | E74: 6 | F74: 925.9333333 | G74: =E74*F74 -> 5555.6 | H74: 27.78 | I74: =I72 -> 0.565679309 | J74: =(G74+H74)*I74 -> 3158.40254 | K74: =G74+H74+J74 -> 8741.78254 | L74: =E74*Benefícios!$E$13 -> 3680.88 | M74: =K74+L74 -> 12422.66254
C75: 1/2 Oficial Funileiro | D75: =E75/Q.Frota!$T$5 -> 0.01507537688 | E75: 6 | F75: 925.9333333 | G75: 5555.6 | H75: 27.78 | I75: =I74 -> 0.565679309 | J75: 3158.40254 | K75: 8741.78254 | L75: =E75*Benefícios!$E$13 -> 3680.88 | M75: 12422.66254
C76: Abastecedor | D76: =E76/Q.Frota!$T$5 -> 0.03015075377 | E76: 12 | F76: 1294.515 | G76: 15534.18 | H76: =77.67 -> 77.67 | I76: 0.565679309 | J76: 8831.30052 | K76: 24443.15052 | L76: =E76*Benefícios!$E$13 -> 7361.76 | M76: 31804.91052
C77: Auxiliar Almoxarife | D77: =E77/Q.Frota!$T$5 -> 0.02010050251 | E77: 8 | F77: 900.69125 | G77: 7205.53 | H77: =36.03 -> 36.03 | I77: 0.565679309 | J77: 4096.400657 | K77: 11337.96066 | L77: =E77*Benefícios!$E$13 -> 4907.84 | M77: 16245.80066
C78: Auxiliar de Serviços Gerais | D78: =E78/Q.Frota!$T$5 -> 0.07286432161 | E78: 29 | F78: 748.2555172 | G78: 21699.41 | H78: =108.5 -> 108.5 | I78: 0.565679309 | J78: 12336.28346 | K78: 34144.19346 | L78: =E78*Benefícios!$E$13 -> 17790.92 | M78: 51935.11346
C79: Borracheiro | D79: =E79/Q.Frota!$T$5 -> 0.01005025126 | E79: 4 | F79: 1275.7325 | G79: 5102.93 | H79: 25.51 | I79: 0.565679309 | J79: 2901.052395 | K79: 8029.492395 | L79: =E79*Benefícios!$E$13 -> 2453.92 | M79: 10483.4124
C80: Comprador / Almoxarife | D80: =E80/Q.Frota!$T$5 -> 0.005025125628 | E80: 2 | F80: 1392.46 | G80: 2784.92 | H80: 13.92 | I80: 0.565679309 | J80: 1583.245877 | K80: 4382.085877 | L80: =E80*Benefícios!$E$13 -> 1226.96 | M80: 5609.045877
C81: Controlador de manutenção | D81: =E81/Q.Frota!$T$5 -> 0.01005025126 | E81: 4 | F81: 2583.4625 | G81: 10333.85 | H81: 51.67 | I81: 0.565679309 | J81: 5874.873777 | K81: 16260.39378 | L81: =E81*Benefícios!$E$13 -> 2453.92 | M81: 18714.31378
C82: Eletricista (A e B) | D82: =E82/Q.Frota!$T$5 -> 0.02010050251 | E82: 8 | F82: 1637.72625 | G82: 13101.81 | H82: 65.51 | I82: 0.565679309 | J82: 7448.480479 | K82: 20615.80048 | L82: =E82*Benefícios!$E$13 -> 4907.84 | M82: 25523.64048
C83: Eletrônico | D83: =E83/Q.Frota!$T$5 -> 0.01005025126 | E83: 4 | F83: 1637.7275 | G83: 6550.91 | H83: 32.75 | I83: 0.565679309 | J83: 3724.240239 | K83: 10307.90024 | L83: =E83*Benefícios!$E$13 -> 2453.92 | M83: 12761.82024
C84: Funileiro (A e B) | D84: =E84/Q.Frota!$T$5 -> 0.02010050251 | E84: 8 | F84: 1427.76 | G84: 11422.08 | H84: 57.11 | I84: 0.565679309 | J84: 6493.540267 | K84: 17972.73027 | L84: =E84*Benefícios!$E$13 -> 4907.84 | M84: 22880.57027
C85: Chefe de Manutenção | D85: =E85/Q.Frota!$T$5 -> 0.005025125628 | E85: 2 | F85: 3301.13 | G85: 6602.26 | H85: 33.01 | I85: 0.565679309 | J85: 3753.434949 | K85: 10388.70495 | L85: =E85*Benefícios!$E$13 -> 1226.96 | M85: 11615.66495
C86: Lavador | D86: =E86/Q.Frota!$T$5 -> 0.03015075377 | E86: 12 | F86: 748.2558333 | G86: 8979.07 | H86: =44.9 -> 44.9 | I86: 0.565679309 | J86: 5104.673114 | K86: 14128.64311 | L86: =E86*Benefícios!$E$13 -> 7361.76 | M86: 21490.40311
C87: Lubrificador | D87: =E87/Q.Frota!$T$5 -> 0.02010050251 | E87: 8 | F87: 1196.8025 | G87: 9574.42 | H87: 47.87 | I87: 0.565679309 | J87: 5443.130358 | K87: 15065.42036 | L87: =E87*Benefícios!$E$13 -> 4907.84 | M87: 19973.26036
C88: Manobrista | D88: =E88/Q.Frota!$T$5 -> 0.05778894472 | E88: 23 | F88: 1536.553913 | G88: 35340.74 | H88: =176.7 -> 176.7 | I88: 0.565679309 | J88: =(G88+H88)*I88 -> 20091.48092 | K88: 55608.92092 | L88: =E88*Benefícios!$E$13 -> 14110.04 | M88: 69718.96092
C89: Mecânico (A, B e C) | D89: =E89/Q.Frota!$T$5 -> 0.04020100503 | E89: 16 | F89: 1751.10875 | G89: 28017.74 | H89: =140.09 -> 140.09 | I89: 0.565679309 | J89: 15928.30182 | K89: 44086.13182 | L89: =E89*Benefícios!$E$13 -> 9815.68 | M89: 53901.81182
C90: Mecânico de Revisão | D90: =E90/Q.Frota!$T$5 -> 0.01507537688 | E90: 6 | F90: 1751.108333 | G90: 10506.65 | H90: =52.53 -> 52.53 | I90: 0.565679309 | J90: 5973.109646 | K90: 16532.28965 | L90: =E90*Benefícios!$E$13 -> 3680.88 | M90: 20213.16965
C91: Mecânico Montador | D91: =E91/Q.Frota!$T$5 -> 0.01005025126 | E91: 4 | F91: 1751.11 | G91: 7004.44 | H91: =35.02 -> 35.02 | I91: 0.565679309 | J91: 3982.076868 | K91: 11021.53687 | L91: =E91*Benefícios!$E$13 -> 2453.92 | M91: 13475.45687
C92: Moleiro | D92: =E92/Q.Frota!$T$5 -> 0.02010050251 | E92: 8 | F92: 1259.7875 | G92: 10078.3 | H92: 50.39 | I92: 0.565679309 | J92: 5729.59036 | K92: 15858.28036 | L92: =E92*Benefícios!$E$13 -> 4907.84 | M92: 20766.12036
C93: Pintor | D93: =E93/Q.Frota!$T$5 -> 0.02010050251 | E93: 8 | F93: 1427.76 | G93: 11422.08 | H93: 57.11 | I93: 0.565679309 | J93: 6493.540267 | K93: 17972.73027 | L93: =E93*Benefícios!$E$13 -> 4907.84 | M93: 22880.57027
C94: Sub-total Manutenção | D94: =SUM(D74:D93) -> 0.4472361809 | E94: =SUM(E74:E93) -> 178 | F94: =G94/E94 -> 1305.463596 | G94: =SUM(G74:G93) -> 232372.52 | H94: =SUM(H74:H93) -> 1161.85 | J94: =SUM(J74:J93) -> 132105.561 | K94: =SUM(K74:K93) -> 365639.931 | L94: =SUM(L74:L93) -> 109199.44 | M94: =SUM(M74:M93) -> 474839.371
B96: Total | D96: =D60+D63+D72+D94 -> 5.467839447 | E96: =E60+E63+E72+E94 -> 2029.19422 | G96: =G60+G63+G72+G94 -> 2430268.087 | H96: =H60+H63+H72+H94 -> 103315.7047 | J96: =J60+J63+J72+J94 -> 1433194.919 | K96: =K60+K63+K72+K94 -> 3966778.711 | L96: =L60+L63+L72+L94 -> 1244870.4 | M96: =M60+M63+M72+M94 -> 5211649.111
B100: Planilha 2 - Demonstração do Custo com Pessoal após o 5º ano de Concessão | M100: PRACICABANA
B101: Composição do Custo mensal com Pessoal | L101: Bacia/Lote: | M101: 1
B103: Funções | C103: Cargo | D103: Fator de | E103: Qtde. de | F103: Salário Base | G103: Total Salário | H103: Horas extras e | I103: % Encargos | J103: Encargos | K103: Salário + Enc. | L103: Benefícios | M103: Total
D104: Utilização | E104: Funcionários | F104: (R$/mês) | G104: R$ | H104: Ad.noturno | I104: aplicáveis | J104: R$ | K104: R$/mês | L104: R$/mês | M104: R$/mês
H105: 4.358748842e-07
B106: Motorista | C106: Motoristas (Miniônibus) | D106: 2.45 | E106: =E57 -> 146.9995612 | F106: =1506.43*1.05 -> 1581.7515 | G106: =E106*F106 -> 232516.7764 | H106: 11679.5 | I106: =I93-H105 -> 0.5656788731 | J106: =(G106+H106)*I106 -> 138136.6745 | K106: =G106+H106+J106 -> 382332.9509 | L106: =E106*Benefícios!E13 -> 90181.2908 | M106: =K106+L106 -> 472514.2417
C107: Motoristas (Ônibus Básicos) | D107: 2.45 | E107: =E58 -> 757.0477553 | F107: =F106 -> 1581.7515 | G107: =E107*F107 -> 1197461.423 | H107: 60149.44 | I107: =I106 -> 0.5656788731 | J107: =(G107+H107)*I107 -> 711403.8955 | K107: =G107+H107+J107 -> 1969014.758 | L107: =E107*Benefícios!E13 -> 464433.6569 | M107: =K107+L107 -> 2433448.415
C108: Motoristas (Ônibus Articulados) | D108: 2.45 | E108: =E59 -> 71.049796 | F108: =F107 -> 1581.7515 | G108: =E108*F108 -> 112383.1214 | H108: 5645.09 | I108: =I107 -> 0.5656788731 | J108: =(G108+H108)*I108 -> 66766.06562 | K108: =G108+H108+J108 -> 184794.277 | L108: =E108*Benefícios!E13 -> 43587.62885 | M108: =K108+L108 -> 228381.9059
C109: Sub-total Motoristas | D109: =D106 -> 2.45 | E109: =SUM(E106:E108) -> 975.0971125 | G109: =SUM(G106:G108) -> 1542361.32 | H109: =SUM(H106:H108) -> 77474.03 | J109: =SUM(J106:J108) -> 916306.6356 | K109: =SUM(K106:K108) -> 2536141.986 | L109: =SUM(L106:L108) -> 598202.5766 | M109: =SUM(M106:M108) -> 3134344.563
B111: Cobrador | C111: Cobradores ônibus básico e Artic. | D111: =D106 -> 2.45 | E111: =E62 -> 828.0970073 | F111: =787.57*1.05 -> 826.9485 | G111: =E111*F111 -> 684793.578 | H111: 26499.2 | I111: =I108 -> 0.5656788731 | J111: =(G111+H111)*I111 -> 402363.2971 | K111: =G111+H111+J111 -> 1113656.075 | L111: =E111*Benefícios!E13+L113 -> 508021.282 | M111: =K111+L111 -> 1621677.357
C112: Sub-total Cobradores | D112: =D111 -> 2.45 | E112: 828.0970073 | F112: 826.9485 | G112: 684793.578 | H112: 26499.2 | I112: 0.5656788731 | J112: 402363.2971 | K112: 1113656.075 | L112: 508021.282 | M112: 1621677.357
L113: 0.33
B114: Controle | C114: Fiscal | D114: =E114/Q.Frota!$T$5 -> 0.09547763819 | E114: =38+0.0001 -> 38.0001 | F114: =1536.55*1.05 -> 1613.3775 | G114: =E114*F114 -> 61308.50634 | H114: =G114*0.500008135% -> 306.5475191 | I114: =I111 -> 0.5656788731 | J114: =(G114+H114)*I114 -> 34854.33423 | K114: =G114+H114+J114 -> 96469.38809 | L114: =E114*Benefícios!$E$13 -> 23312.30135 | M114: =K114+L114 -> 119781.6894
B115: operacional | C115: Inspetores de Tráfego | D115: =E115/Q.Frota!$T$5 -> 0.007537688442 | E115: 3 | F115: =2519.59*1.05 -> 2645.5695 | G115: 7936.7085 | H115: =G115*0.500008135% -> 39.68418815 | I115: =I114 -> 0.5656788731 | J115: 4512.076827 | K115: =G115+H115+J115 -> 12488.46952 | L115: =E115*Benefícios!$E$13 -> 1840.44 | M115: 14328.90952
C116: Chefe de Tráfego | D116: =E116/Q.Frota!$T$5 -> 0.002512562814 | E116: 1 | F116: =3301.13*1.05-0.01 -> 3466.1765 | G116: 3466.1765 | H116: 17.33116447 | I116: =I115 -> 0.5656788731 | J116: 1970.54669 | K116: 5454.054355 | L116: =E116*Benefícios!$E$13 -> 613.48 | M116: 6067.534355
C117: Instrutor | D117: =E117/Q.Frota!$T$5 -> 0.002512562814 | E117: 1 | F117: =1650.56*1.05 -> 1733.088 | G117: 1733.088 | H117: 8.665580987 | I117: =I116 -> 0.5656788731 | J117: 985.2732029 | K117: 2727.026784 | L117: =E117*Benefícios!$E$13 -> 613.48 | M117: 3340.506784
